Workbook

Sheet 2023 (2) (hidden)
A1: ОТЧЁТ ПО НАЧИСЛЕНИЯМ И ОПЛАТЕ ЗА ЖКУ НАСЕЛЕНИЮ
A2: ЗА | B2: ЯНВАРЬ - ДЕКАБРЬ 2023 | AP2: Содержание ж/ф. | AQ2: Содержание ж/ф
A3: № п/п | B3: Поселение | C3: Адрес | D3: ЖЭУ | E3: Содержание ж/ф. | F3: Содержание ж/ф | G3: Обращение с ТКО | H3: Вывоз ЖБО | I3: ТО ВКГО | J3: Установка ОДПУ | K3: Обслуживание домофона | L3: Оплата услуг консьержа | M3: ХВС (повышающий коэффициент) | N3: ГВС носитель (повышающий коэффициент) | O3: Отопление | P3: Отопление КПУ | Q3: Холодное в/с | R3: Горячее в/с (носитель) | S3: Горячее в/с (энергия) | T3: Водоотведение | U3: Электроснабжение | V3: Электроснабжение день | W3: Электроснабжение ночь | X3: Газоснабжение | Y3: АГВ | Z3: АГВ (изл.) | AA3: Холодное в/с ОДН | AB3: Горячая вода (носитель) ОДН | AC3: Горячее в/с (носитель) ОДН | AD3: Горячее в/с (энергия) ОДН | AE3: Водоотведение ОДН | AF3: Электроснабжение ОДН | AG3: Электроснабжение день ОДН | AH3: Электроснабжение ночь ОДН | AI3: Капитальный ремонт долг | AJ3: Долг прошлых периодов | AK3: Долг прошлых периодов АО "УЖХ" | AL3: Итого начислено за период, руб. | AM3: Оплачено за период, руб. | AN3: Сальдо на конец периода по дебету | AO3: Сальдо на конец периода по кредиту | AP3: 1кв | AQ3: 2кв | AR3: 3кв | AS3: 4кв | AT3: оплачено за СиР за 2023
A4: 1 | B4: г.п. Одинцово | C4: г.Одинцово, 1-я Вокзальная, 41 | D4: ЖЭУ-6,7 | E4: 205377.82 | F4: 0 | G4: 0 | H4: 0 | I4: -1296.65 | J4: 0 | K4: 0 | L4: 0 | M4: 0 | N4: 0 | O4: -10525.69 | P4: 0 | Q4: -4337.31 | R4: -3140.8 | S4: -8985.8 | T4: -7690.49 | U4: 0 | V4: 0 | W4: 0 | X4: -1927.15 | Y4: 0 | Z4: 0 | AA4: 298.32 | AB4: 298.32 | AC4: 0 | AD4: 1163.51 | AE4: 630.61 | AF4: 2545.14 | AG4: 0 | AH4: 0 | AI4: 0 | AJ4: -46159.74 | AK4: 0 | AL4: 126250.09 | AM4: 292762.82 | AN4: 312286.57 | AO4: 12338.34 | AP4: 32850.62 | AQ4: 43199.61 | AR4: 56963.55 | AS4: 77793.87 | AT4: =SUM(AP4:AS4) -> 210807.65
A5: =A4+1 -> 2 | B5: г.п. Одинцово | C5: г.Одинцово, 1-я Вокзальная, 43 | D5: ЖЭУ-6,7 | E5: 165751.98 | F5: 0 | G5: 0 | H5: 0 | I5: 0 | J5: 0 | K5: 0 | L5: 0 | M5: 0 | N5: 0 | O5: 0 | P5: 0 | Q5: 0 | R5: 0 | S5: 0 | T5: 0 | U5: 0 | V5: 0 | W5: 0 | X5: 0 | Y5: 0 | Z5: 0 | AA5: 328.01 | AB5: 371.35 | AC5: 0 | AD5: 1449.43 | AE5: 785.89 | AF5: 3305.91 | AG5: 0 | AH5: 0 | AI5: 0 | AJ5: 0 | AK5: 0 | AL5: 171992.57 | AM5: 132729.08 | AN5: 260186.58 | AO5: 5835.7 | AP5: 32910.64 | AQ5: 48441.19 | AR5: 35262.16 | AS5: 12018.21 | AT5: =SUM(AP5:AS5) -> 128632.2
A6: 3 | B6: г.п. Одинцово | C6: г.Одинцово, 1-я Вокзальная, 45 | D6: ЖЭУ-6,7 | E6: 174853.44 | F6: 0 | G6: 0 | H6: 0 | I6: 0 | J6: 0 | K6: 0 | L6: 0 | M6: 0 | N6: 0 | O6: 0 | P6: 0 | Q6: 27620.11 | R6: 19231.32 | S6: 74993.38 | T6: 49545.53 | U6: 0 | V6: 0 | W6: 0 | X6: 0 | Y6: 0 | Z6: 0 | AA6: 422.41 | AB6: 422.41 | AC6: 0 | AD6: 1647.97 | AE6: 893.62 | AF6: 3734.26 | AG6: 0 | AH6: 0 | AI6: 0 | AJ6: -72123.99 | AK6: 0 | AL6: 281240.46 | AM6: 320570.81 | AN6: 66599.19 | AO6: 14290.21 | AP6: 41528.91 | AQ6: 37145.23 | AR6: 48915.16 | AS6: 26271.89 | AT6: 153861.19
A7: 4 | B7: г.п. Одинцово | C7: г.Одинцово, 1-я Вокзальная, 46 | D7: ЖЭУ-6,7 | E7: 408656.19 | F7: 0 | G7: -2212.68 | H7: 0 | I7: -4070.25 | J7: 0 | K7: 0 | L7: 0 | M7: 0 | N7: 0 | O7: -53853.05 | P7: 0 | Q7: -13965.56 | R7: -10112.99 | S7: -29038.14 | T7: -24794.68 | U7: -9570.76 | V7: 0 | W7: 0 | X7: -6415.51 | Y7: 0 | Z7: 0 | AA7: 1120.26 | AB7: 1120.26 | AC7: 0 | AD7: 4369.79 | AE7: 2369.36 | AF7: 8770.85 | AG7: 0 | AH7: 0 | AI7: -1175.96 | AJ7: -35052.18 | AK7: 0 | AL7: 236144.95 | AM7: 314819.93 | AN7: 4383457.66 | AO7: 34170.85 | AP7: 62353.08 | AQ7: 69231.6 | AR7: 74896.3 | AS7: 91186.34 | AT7: 297667.32
A8: 5 | B8: г.п. Одинцово | C8: г.Одинцово, 1-я Вокзальная, 47 | D8: ЖЭУ-6,7 | E8: 192379.9 | F8: 0 | G8: 0 | H8: 0 | I8: 0 | J8: 0 | K8: 0 | L8: 0 | M8: 0 | N8: 0 | O8: 0 | P8: 0 | Q8: 0 | R8: 0 | S8: 0 | T8: 0 | U8: 0 | V8: 0 | W8: 0 | X8: 0 | Y8: 0 | Z8: 0 | AA8: 528.55 | AB8: 528.55 | AC8: 0 | AD8: 2061.97 | AE8: 1117.9 | AF8: 4673.03 | AG8: 0 | AH8: 0 | AI8: 0 | AJ8: 0 | AK8: 0 | AL8: 201289.9 | AM8: 166918.85 | AN8: 48817.44 | AO8: 11787 | AP8: 36803.08 | AQ8: 44913.65 | AR8: 40476.35 | AS8: 37308.98 | AT8: 159502.06
A9: 6 | B9: г.п. Одинцово | C9: г.Одинцово, 1-я Вокзальная, 48 | D9: ЖЭУ-6,7 | E9: 258549.84 | F9: 0 | G9: 0 | H9: 0 | I9: 0 | J9: 0 | K9: 0 | L9: 0 | M9: 0 | N9: 0 | O9: 0 | P9: 0 | Q9: 0 | R9: 0 | S9: 0 | T9: 0 | U9: 0 | V9: 0 | W9: 0 | X9: -49.77 | Y9: 0 | Z9: 0 | AA9: 591.11 | AB9: 591.11 | AC9: 0 | AD9: 2305.33 | AE9: 1249.93 | AF9: 5223.35 | AG9: 0 | AH9: 0 | AI9: 0 | AJ9: 0 | AK9: 0 | AL9: 268460.9 | AM9: 234164.62 | AN9: 162603.57 | AO9: 11722.89 | AP9: 47134.72 | AQ9: 46923.08 | AR9: 66100.85 | AS9: 67398.9 | AT9: 227557.55
A10: 7 | B10: г.п. Одинцово | C10: г.Одинцово, 1-я Вокзальная, 50 | D10: ЖЭУ-6,7 | E10: 393081.49 | F10: 0 | G10: 0 | H10: 0 | I10: 0 | J10: 0 | K10: 0 | L10: 0 | M10: 0 | N10: 0 | O10: 0.02 | P10: 0 | Q10: 0 | R10: 0 | S10: 0.01 | T10: 0.01 | U10: 0 | V10: 0 | W10: 0 | X10: 0 | Y10: 0 | Z10: 0 | AA10: 873.12 | AB10: 873.12 | AC10: 0 | AD10: 3405.36 | AE10: 1846.56 | AF10: 7716.84 | AG10: 0 | AH10: 0 | AI10: -1887 | AJ10: -144248.36 | AK10: 0 | AL10: 261661.17 | AM10: 331781.47 | AN10: 2481656.23 | AO10: 15647.42 | AP10: 69463.27 | AQ10: 68004.71 | AR10: 77929.22 | AS10: 89445.78 | AT10: 304842.98
A11: 8 | B11: г.п. Одинцово | C11: г.Одинцово, 1-я Вокзальная, 52 | D11: ЖЭУ-6,7 | E11: 467858.22 | F11: 0 | G11: 0 | H11: 0 | I11: 0 | J11: 0 | K11: 0 | L11: 0 | M11: 0 | N11: 0 | O11: 0 | P11: 0 | Q11: 0 | R11: 0 | S11: 0 | T11: 0 | U11: 0 | V11: 0 | W11: 0 | X11: 0 | Y11: 0 | Z11: 0 | AA11: 1143.24 | AB11: 1143.24 | AC11: 0 | AD11: 4460.28 | AE11: 2418 | AF11: 10107.24 | AG11: 0 | AH11: 0 | AI11: 0 | AJ11: 0 | AK11: 0 | AL11: 487130.22 | AM11: 479857.72 | AN11: 272742.9 | AO11: 24736.32 | AP11: 115591.01 | AQ11: 101549.08 | AR11: 105176.92 | AS11: 128764.15 | AT11: 451081.16
A12: 9 | B12: г.п. Одинцово | C12: г.Одинцово, 1-я Вокзальная, 53 | D12: ЖЭУ-6,7 | E12: 152160.18 | F12: 0 | G12: 0 | H12: 0 | I12: 0 | J12: 0 | K12: 0 | L12: 0 | M12: 0 | N12: 0 | O12: -46024.68 | P12: 0 | Q12: 0 | R12: 0 | S12: -14105.9 | T12: 0 | U12: 0 | V12: 0 | W12: 0 | X12: 0 | Y12: 0 | Z12: 0 | AA12: 516.95 | AB12: 516.95 | AC12: 0 | AD12: 2015.52 | AE12: 1092.6 | AF12: 4021.63 | AG12: 0 | AH12: 0 | AI12: -2086.19 | AJ12: -74558.15 | AK12: 0 | AL12: 23548.91 | AM12: 251707.16 | AN12: 47770.88 | AO12: 8372.88 | AP12: 37554.3 | AQ12: 51467.6 | AR12: 61524.41 | AS12: 36978.14 | AT12: 187524.45
A13: 10 | B13: г.п. Одинцово | C13: г.Одинцово, Баковская, 2 | D13: ЖЭУ-6,7 | E13: 1175012.54 | F13: 0 | G13: 0 | H13: 0 | I13: 123.35 | J13: 0 | K13: 0 | L13: 0 | M13: 0 | N13: 0 | O13: 1090126.31 | P13: 0 | Q13: 163985.55 | R13: 113954.78 | S13: 444142.8 | T13: 293914.84 | U13: 0 | V13: 0 | W13: 0 | X13: 159.8 | Y13: 0 | Z13: 0 | AA13: 2796.15 | AB13: 2796.15 | AC13: 0 | AD13: 10906.1 | AE13: 5915.23 | AF13: 126655.35 | AG13: 0 | AH13: 0 | AI13: 0 | AJ13: 0 | AK13: 0 | AL13: 3430488.95 | AM13: 3432181.82 | AN13: 542631.4 | AO13: 4571.95 | AP13: 317425.57 | AQ13: 258630.02 | AR13: 285163.85 | AS13: 308844.83 | AT13: 1170064.27
A14: 11 | B14: г.п. Одинцово | C14: г.Одинцово, Баковская, 4 | D14: ЖЭУ-6,7 | E14: 1167436.8 | F14: 0 | G14: 0 | H14: 0 | I14: 0 | J14: 0 | K14: 0 | L14: 0 | M14: 0 | N14: 0 | O14: 1083135.95 | P14: 0 | Q14: 145644.26 | R14: 111092.44 | S14: 430595.62 | T14: 271499.53 | U14: 0 | V14: 0 | W14: 0 | X14: 0 | Y14: 0 | Z14: 0 | AA14: 2798.52 | AB14: 2798.52 | AC14: 0 | AD14: 10916.64 | AE14: 5919.72 | AF14: 126749.4 | AG14: 0 | AH14: 0 | AI14: 0 | AJ14: 0 | AK14: 0 | AL14: 3358587.4 | AM14: 3314282.89 | AN14: 640738.62 | AO14: 45019.3 | AP14: 256004.75 | AQ14: 254413.96 | AR14: 273445.57 | AS14: 354416.56 | AT14: 1138280.84
A15: 12 | B15: г.п. Одинцово | C15: г.Одинцово, Баковская, 8 | D15: ЖЭУ-6,7 | E15: 1170197.31 | F15: 0 | G15: 0 | H15: 0 | I15: 0 | J15: 0 | K15: 0 | L15: 0 | M15: 0 | N15: 0 | O15: 0 | P15: 0 | Q15: 0 | R15: 0 | S15: 0 | T15: 0 | U15: 0 | V15: 0 | W15: 0 | X15: 0 | Y15: 0 | Z15: 0 | AA15: 2799.04 | AB15: 2799.04 | AC15: 0 | AD15: 10919.8 | AE15: 5920.87 | AF15: 126783.19 | AG15: 0 | AH15: 0 | AI15: 0 | AJ15: 0 | AK15: 0 | AL15: 1319419.25 | AM15: 1252559.46 | AN15: 1309727.74 | AO15: 24826.09 | AP15: 273014.75 | AQ15: 258461.52 | AR15: 276597.14 | AS15: 301954.39 | AT15: 1110027.8
A16: 13 | B16: г.п. Одинцово | C16: г.Одинцово, БЗРИ, 1 | D16: ЖЭУ-6,7 | E16: 194746.74 | F16: 0 | G16: 0 | H16: 0 | I16: 0 | J16: 0 | K16: 0 | L16: 0 | M16: 0 | N16: 0 | O16: 0 | P16: 0 | Q16: 0 | R16: 0 | S16: 0 | T16: 0 | U16: 178523.21 | V16: 0 | W16: 0 | X16: 0 | Y16: 0 | Z16: 0 | AA16: 559.92 | AB16: 559.92 | AC16: 0 | AD16: 2183.4 | AE16: 1184.04 | AF16: 4947.96 | AG16: 0 | AH16: 0 | AI16: 0 | AJ16: 0 | AK16: 0 | AL16: 382705.19 | AM16: 395537.64 | AN16: 43436.64 | AO16: 9691.71 | AP16: 35343.06 | AQ16: 46025.2 | AR16: 61800.21 | AS16: 53673.98 | AT16: 196842.45
A17: 14 | B17: г.п. Одинцово | C17: г.Одинцово, БЗРИ, 2 | D17: ЖЭУ-6,7 | E17: 199960.92 | F17: 0 | G17: 0 | H17: 0 | I17: 0 | J17: 0 | K17: 0 | L17: 0 | M17: 0 | N17: 0 | O17: 0 | P17: 0 | Q17: 0 | R17: 0 | S17: 0 | T17: 0 | U17: 0 | V17: 0 | W17: 0 | X17: 0 | Y17: 0 | Z17: 0 | AA17: 624.24 | AB17: 624.24 | AC17: 0 | AD17: 2434.44 | AE17: 1319.88 | AF17: 5515.68 | AG17: 0 | AH17: 0 | AI17: 0 | AJ17: 0 | AK17: 0 | AL17: 210479.4 | AM17: 332217.1 | AN17: 193812.95 | AO17: 2887.51 | AP17: 39428.44 | AQ17: 46271.47 | AR17: 71440.69 | AS17: 93479.87 | AT17: 250620.47
A18: 15 | B18: г.п. Одинцово | C18: г.Одинцово, БЗРИ, 4 | D18: ЖЭУ-6,7 | E18: 229034.28 | F18: 0 | G18: 0 | H18: 0 | I18: 0 | J18: 0 | K18: 0 | L18: 0 | M18: 0 | N18: 0 | O18: 0 | P18: 0 | Q18: 0 | R18: 0 | S18: 0 | T18: 0 | U18: 0 | V18: 0 | W18: 0 | X18: 0 | Y18: 0 | Z18: 0 | AA18: 408 | AB18: 408 | AC18: 0 | AD18: 1592.04 | AE18: 863.04 | AF18: 3607.2 | AG18: 0 | AH18: 0 | AI18: 0 | AJ18: 0 | AK18: 0 | AL18: 235912.56 | AM18: 234253.52 | AN18: 627765.29 | AO18: 282.88 | AP18: 40118.7 | AQ18: 44696.88 | AR18: 48234.72 | AS18: 62969.4 | AT18: 196019.7
A19: 16 | B19: г.п. Одинцово | C19: г.Одинцово, БЗРИ, 5 | D19: ЖЭУ-6,7 | E19: 230674.86 | F19: 0 | G19: 0 | H19: 0 | I19: 0 | J19: 0 | K19: 0 | L19: 0 | M19: 0 | N19: 0 | O19: 0 | P19: 0 | Q19: 0 | R19: 0 | S19: 0 | T19: 0 | U19: 151087.72 | V19: 5934.46 | W19: 1205.82 | X19: 0 | Y19: 0 | Z19: 0 | AA19: 408.12 | AB19: 408.12 | AC19: 0 | AD19: 1592.04 | AE19: 863.52 | AF19: 3607.2 | AG19: 0 | AH19: 0 | AI19: 0 | AJ19: 0 | AK19: 0 | AL19: 395781.86 | AM19: 457127 | AN19: 152783.58 | AO19: 9058.29 | AP19: 48728.59 | AQ19: 59229.33 | AR19: 56419.82 | AS19: 80104.08 | AT19: 244481.82
A20: 17 | B20: г.п. Одинцово | C20: г.Одинцово, БЗРИ, 6 | D20: ЖЭУ-6,7 | E20: 225753.18 | F20: 0 | G20: 0 | H20: 0 | I20: 0 | J20: 0 | K20: 0 | L20: 0 | M20: 0 | N20: 0 | O20: 0 | P20: 0 | Q20: 0 | R20: 0 | S20: 0 | T20: 0 | U20: 146255.68 | V20: 7924.29 | W20: 1316.09 | X20: 0 | Y20: 0 | Z20: 0 | AA20: 408 | AB20: 408 | AC20: 0 | AD20: 1592.04 | AE20: 863.16 | AF20: 3607.56 | AG20: 0 | AH20: 0 | AI20: 0 | AJ20: 0 | AK20: 0 | AL20: 388128 | AM20: 389011.65 | AN20: 211879 | AO20: 54.72 | AP20: 43043.89 | AQ20: 63649.17 | AR20: 51693.32 | AS20: 61598.38 | AT20: 219984.76
A21: 18 | B21: г.п. Одинцово | C21: г.Одинцово, БЗРИ, 7 | D21: ЖЭУ-6,7 | E21: 215695.68 | F21: 0 | G21: 0 | H21: 0 | I21: 0 | J21: 0 | K21: 0 | L21: 0 | M21: 0 | N21: 0 | O21: 0 | P21: 0 | Q21: 0 | R21: 0 | S21: 0 | T21: 0 | U21: 146228.96 | V21: 6586.06 | W21: 758.81 | X21: 0 | Y21: 0 | Z21: 0 | AA21: 420.6 | AB21: 420.6 | AC21: 0 | AD21: 1640.76 | AE21: 889.56 | AF21: 3717.72 | AG21: 0 | AH21: 0 | AI21: 0 | AJ21: 0 | AK21: 0 | AL21: 376358.75 | AM21: 422911.79 | AN21: 344340.83 | AO21: 925.19 | AP21: 51919.15 | AQ21: 64492.3 | AR21: 50237.38 | AS21: 62251.95 | AT21: 228900.78
A22: 19 | B22: г.п. Одинцово | C22: г.Одинцово, БЗРИ, 8 | D22: ЖЭУ-6,7 | E22: 364471.86 | F22: 0 | G22: 0 | H22: 0 | I22: 0 | J22: 0 | K22: 0 | L22: 0 | M22: 0 | N22: 0 | O22: 0 | P22: 0 | Q22: 0 | R22: 0 | S22: 0 | T22: 0 | U22: 0 | V22: 0 | W22: 0 | X22: 0 | Y22: 0 | Z22: 0 | AA22: 566.16 | AB22: 566.16 | AC22: 0 | AD22: 2208 | AE22: 1197.12 | AF22: 5002.56 | AG22: 0 | AH22: 0 | AI22: 0 | AJ22: 0 | AK22: 0 | AL22: 374011.86 | AM22: 405637.86 | AN22: 127005.99 | AO22: 38578.71 | AP22: 70347.87 | AQ22: 90649.6 | AR22: 78802.02 | AS22: 129023.02 | AT22: 368822.51
A23: 20 | B23: г.п. Одинцово | C23: г.Одинцово, Буденовское шоссе, 9 | D23: ЖЭУ-13 | E23: 0 | F23: 0 | G23: 0 | H23: 0 | I23: 0 | J23: 0 | K23: 0 | L23: 0 | M23: 0 | N23: 0 | O23: 0 | P23: 0 | Q23: 0 | R23: 0 | S23: 0 | T23: 0 | U23: 0 | V23: 0 | W23: 0 | X23: 0 | Y23: 0 | Z23: 0 | AA23: 0 | AB23: 0 | AC23: 0 | AD23: 0 | AE23: 0 | AF23: 0 | AG23: 0 | AH23: 0 | AI23: 0 | AJ23: 0 | AK23: 0 | AL23: 0 | AM23: 0 | AN23: 0 | AO23: 0 | AP23: 0 | AQ23: 0 | AR23: 0 | AS23: 0 | AT23: 0
A24: 21 | B24: г.п. Одинцово | C24: г.Одинцово, Буденовское шоссе, 11 | D24: ЖЭУ-13 | E24: 0 | F24: 0 | G24: 0 | H24: 0 | I24: 0 | J24: 0 | K24: 0 | L24: 0 | M24: 0 | N24: 0 | O24: 0 | P24: 0 | Q24: 0 | R24: 0 | S24: 0 | T24: 0 | U24: 0 | V24: 0 | W24: 0 | X24: 0 | Y24: 0 | Z24: 0 | AA24: 0 | AB24: 0 | AC24: 0 | AD24: 0 | AE24: 0 | AF24: 0 | AG24: 0 | AH24: 0 | AI24: 0 | AJ24: 0 | AK24: 0 | AL24: 0 | AM24: 0 | AN24: 0 | AO24: 0 | AP24: 0 | AQ24: 0 | AR24: 0 | AS24: 0 | AT24: 0
A25: 22 | B25: г.п. Одинцово | C25: г.Одинцово, бульвар маршала Крылова, 1 | D25: ЖЭУ-5 | E25: 5060285.67 | F25: 0 | G25: 0 | H25: 0 | I25: 20.1 | J25: 0 | K25: 0 | L25: 0 | M25: 0 | N25: 0 | O25: 6100221.93 | P25: 0 | Q25: 697732.4 | R25: 464718.06 | S25: 1811748.11 | T25: 1229271.72 | U25: 0 | V25: 0 | W25: 0 | X25: 61.22 | Y25: 0 | Z25: 0 | AA25: 10770.02 | AB25: 10770.02 | AC25: 0 | AD25: 42007.4 | AE25: 22771.45 | AF25: 487624.77 | AG25: 0 | AH25: 0 | AI25: 0 | AJ25: 0 | AK25: 0 | AL25: 15938002.87 | AM25: 15586361.27 | AN25: 2291143.24 | AO25: 50612.39 | AP25: 1116431.84 | AQ25: 1188984.49 | AR25: 1256187.29 | AS25: 1408174.63 | AT25: 4969778.25
A26: 23 | B26: г.п. Одинцово | C26: г.Одинцово, бульвар маршала Крылова, 3 | D26: ЖЭУ-5 | E26: 1881886.23 | F26: 0 | G26: -208.73 | H26: 0 | I26: -200.92 | J26: 0 | K26: 0 | L26: 0 | M26: 0 | N26: 0 | O26: 1745683.83 | P26: 0 | Q26: 214788.76 | R26: 133123.13 | S26: 519082.68 | T26: 367913.96 | U26: 0 | V26: 0 | W26: 0 | X26: -127.08 | Y26: 0 | Z26: 0 | AA26: 4400.87 | AB26: 4400.87 | AC26: 0 | AD26: 17159.52 | AE26: 9303.74 | AF26: 199068.62 | AG26: 0 | AH26: 0 | AI26: -12.08 | AJ26: -155.96 | AK26: 0 | AL26: 5096107.44 | AM26: 5268712.34 | AN26: 1213168.97 | AO26: 35746.18 | AP26: 426205.17 | AQ26: 464755.14 | AR26: 454361.68 | AS26: 555499.5 | AT26: 1900821.49
A27: 24 | B27: г.п. Одинцово | C27: г.Одинцово, бульвар маршала Крылова, 27 | D27: ЖЭУ-5 | E27: 4606124.92 | F27: 0 | G27: 454.52 | H27: 0 | I27: 0 | J27: 0 | K27: 0 | L27: 0 | M27: 0 | N27: 0 | O27: 7681.81 | P27: 0 | Q27: -14915.15 | R27: -10695.49 | S27: -31834.17 | T27: -26702.2 | U27: 0 | V27: 0 | W27: 0 | X27: 0 | Y27: 0 | Z27: 0 | AA27: 3962.81 | AB27: 3962.81 | AC27: 0 | AD27: 15452.71 | AE27: 8380.15 | AF27: 230947.61 | AG27: 0 | AH27: 0 | AI27: 0 | AJ27: 0 | AK27: 0 | AL27: 4792820.33 | AM27: 5015836.09 | AN27: 656485.18 | AO27: 57275.83 | AP27: 1001536.5 | AQ27: 1115627.14 | AR27: 1151781.26 | AS27: 1417852.78 | AT27: 4686797.68
A28: 25 | B28: г.п. Одинцово | C28: г.Одинцово, Верхне-Пролетарская, 1 корп.1 | D28: ЖЭУ-8 | E28: 1681049.98 | F28: 0 | G28: 0 | H28: 0 | I28: 0 | J28: 0 | K28: 0 | L28: 0 | M28: 0 | N28: 0 | O28: 0 | P28: 0 | Q28: -6157.38 | R28: -4458.7 | S28: -13194.52 | T28: -10968.34 | U28: 0 | V28: 0 | W28: 0 | X28: -2760.2 | Y28: 0 | Z28: 0 | AA28: 1758.47 | AB28: 1758.47 | AC28: 0 | AD28: 6853.68 | AE28: 3718.93 | AF28: 136542 | AG28: 0 | AH28: 0 | AI28: 0 | AJ28: 0 | AK28: 0 | AL28: 1794142.39 | AM28: 1896217.43 | AN28: 487708.81 | AO28: 48930.04 | AP28: 365426.45 | AQ28: 418039.64 | AR28: 398718.58 | AS28: 464311.87 | AT28: 1646496.54
A29: 26 | B29: г.п. Одинцово | C29: г.Одинцово, Верхне-Пролетарская, 1 корп.2 | D29: ЖЭУ-8 | E29: 1671731.49 | F29: 0 | G29: 0 | H29: 0 | I29: 0 | J29: 61.47 | K29: 0 | L29: 0 | M29: 0 | N29: 0 | O29: 0 | P29: 0 | Q29: -1937.57 | R29: -1403.11 | S29: -4251.56 | T29: -3474.53 | U29: 0 | V29: 0 | W29: 0 | X29: -885.14 | Y29: 0 | Z29: 0 | AA29: 1748.87 | AB29: 1748.87 | AC29: 0 | AD29: 6812.42 | AE29: 3698.13 | AF29: 135740.43 | AG29: 0 | AH29: 0 | AI29: 0 | AJ29: 0 | AK29: 3356.23 | AL29: 1812946 | AM29: 1803735.29 | AN29: 221055.83 | AO29: 23521.43 | AP29: 409528.26 | AQ29: 403246.98 | AR29: 394852.49 | AS29: 448881.1 | AT29: 1656508.83
A30: 27 | B30: г.п. Одинцово | C30: г.Одинцово, Верхне-Пролетарская, 3 | D30: ЖЭУ-8 | E30: 3358756.08 | F30: 0 | G30: 0 | H30: 0 | I30: 0 | J30: 0 | K30: 0 | L30: 0 | M30: 0 | N30: 0 | O30: 4787267.64 | P30: 0 | Q30: 440988.48 | R30: 293354.06 | S30: 1143947.77 | T30: 776564.93 | U30: 0 | V30: 0 | W30: 0 | X30: 0 | Y30: 0 | Z30: 0 | AA30: 5281.68 | AB30: 5281.68 | AC30: 0 | AD30: 20579.88 | AE30: 11169.24 | AF30: 307655.28 | AG30: 0 | AH30: 0 | AI30: 0 | AJ30: 0 | AK30: 3141.86 | AL30: 11153988.58 | AM30: 11219561.26 | AN30: 1332185.72 | AO30: 42592.27 | AP30: 794005.29 | AQ30: 825874.46 | AR30: 827033.27 | AS30: 917934.85 | AT30: 3364847.87
A31: 28 | B31: г.п. Одинцово | C31: г.Одинцово, Верхне-Пролетарская, 29 | D31: ЖЭУ-8 | E31: 379227.36 | F31: 0 | G31: 0 | H31: 0 | I31: 0 | J31: 0 | K31: 0 | L31: 0 | M31: 0 | N31: 0 | O31: 0 | P31: 0 | Q31: 25397.91 | R31: 0 | S31: 0 | T31: 26856.21 | U31: 0 | V31: 0 | W31: 0 | X31: 0 | Y31: 0 | Z31: 0 | AA31: 406.2 | AB31: 0 | AC31: 0 | AD31: 0 | AE31: 429.24 | AF31: 4667.28 | AG31: 0 | AH31: 0 | AI31: 0 | AJ31: 0 | AK31: -6718.72 | AL31: 430265.48 | AM31: 751900.41 | AN31: 87469.84 | AO31: 54309.03 | AP31: 132838.07 | AQ31: 95660.31 | AR31: 107904.72 | AS31: 102699.99 | AT31: 439103.09
A32: 29 | B32: г.п. Одинцово | C32: г.Одинцово, Верхне-Пролетарская, 31 | D32: ЖЭУ-8 | E32: 622839.24 | F32: 0 | G32: 0 | H32: 0 | I32: 0 | J32: 0 | K32: 0 | L32: 0 | M32: 0 | N32: 0 | O32: 0 | P32: 0 | Q32: 45005.56 | R32: 0 | S32: 0 | T32: 47586.34 | U32: 0 | V32: 0 | W32: 0 | X32: 0 | Y32: 0 | Z32: 0 | AA32: 899.4 | AB32: 0 | AC32: 0 | AD32: 0 | AE32: 951.24 | AF32: 10338.72 | AG32: 0 | AH32: 0 | AI32: 0 | AJ32: 0 | AK32: 0 | AL32: 727620.5 | AM32: 798332.4 | AN32: 826456.13 | AO32: 75883.86 | AP32: 144552.35 | AQ32: 145130.98 | AR32: 142487.79 | AS32: 175671.85 | AT32: 607842.97
A33: 30 | B33: г.п. Одинцово | C33: г.Одинцово, Верхне-Пролетарская, 33 | D33: ЖЭУ-8 | E33: 154670.64 | F33: 0 | G33: 0 | H33: 0 | I33: 0 | J33: 0 | K33: 0 | L33: 0 | M33: 0 | N33: 0 | O33: 0 | P33: 0 | Q33: 14618.01 | R33: 0 | S33: 0 | T33: 15470.93 | U33: 0 | V33: 0 | W33: 0 | X33: 0 | Y33: 0 | Z33: 0 | AA33: 460.68 | AB33: 0 | AC33: 0 | AD33: 0 | AE33: 487.56 | AF33: 5295.24 | AG33: 0 | AH33: 0 | AI33: 0 | AJ33: 0 | AK33: 0 | AL33: 191003.06 | AM33: 200952.66 | AN33: 318611.37 | AO33: 562.84 | AP33: 33581.69 | AQ33: 39180.13 | AR33: 34297.41 | AS33: 34096.32 | AT33: 141155.55
A34: 31 | B34: г.п. Одинцово | C34: г.Одинцово, Верхне-Пролетарская, 37 | D34: ЖЭУ-8 | E34: 1710247.2 | F34: 0 | G34: 0 | H34: 0 | I34: 0 | J34: 0 | K34: 0 | L34: 0 | M34: 0 | N34: 0 | O34: 1599695.9 | P34: 0 | Q34: 263054.59 | R34: 149503.54 | S34: 582750.41 | T34: 436335.23 | U34: 0 | V34: 0 | W34: 0 | X34: 0 | Y34: 0 | Z34: 0 | AA34: 2109.72 | AB34: 2109.72 | AC34: 0 | AD34: 8222.17 | AE34: 4462.68 | AF34: 122923.2 | AG34: 0 | AH34: 0 | AI34: 0 | AJ34: 0 | AK34: -202898.53 | AL34: 4678515.83 | AM34: 4994437.62 | AN34: 1708538.88 | AO34: 106902.99 | AP34: 416056.18 | AQ34: 403442.95 | AR34: 407918.42 | AS34: 459100.71 | AT34: 1686518.26
A35: 32 | B35: г.п. Одинцово | C35: г.Одинцово, Верхне-Пролетарская, 43 | D35: ЖЭУ-8 | E35: 63496.68 | F35: 0 | G35: 0 | H35: 0 | I35: 0 | J35: 0 | K35: 0 | L35: 0 | M35: 0 | N35: 0 | O35: 0 | P35: 0 | Q35: 0 | R35: 0 | S35: 0 | T35: 0 | U35: 0 | V35: 0 | W35: 0 | X35: 0 | Y35: 0 | Z35: 0 | AA35: 713.52 | AB35: 0 | AC35: 0 | AD35: 0 | AE35: 754.33 | AF35: 6150.37 | AG35: 0 | AH35: 0 | AI35: 0 | AJ35: 0 | AK35: 0 | AL35: 71114.9 | AM35: 85176.87 | AN35: 137022.89 | AO35: 2546.89 | AP35: 12327.6 | AQ35: 13722.2 | AR35: 18209.22 | AS35: 13974.26 | AT35: 58233.28
A36: 33 | B36: г.п. Одинцово | C36: г.Одинцово, Верхне-Пролетарская, 45 | D36: ЖЭУ-8 | E36: 63669.84 | F36: 0 | G36: 0 | H36: 0 | I36: 0 | J36: 0 | K36: 0 | L36: 0 | M36: 0 | N36: 0 | O36: 0 | P36: 0 | Q36: 0 | R36: 0 | S36: 0 | T36: 0 | U36: 0 | V36: 0 | W36: 0 | X36: 0 | Y36: 0 | Z36: 0 | AA36: 198.96 | AB36: 0 | AC36: 0 | AD36: 0 | AE36: 210.36 | AF36: 1713.48 | AG36: 0 | AH36: 0 | AI36: 0 | AJ36: 0 | AK36: 0 | AL36: 65792.64 | AM36: 60659.45 | AN36: 8726.12 | AO36: 770.8 | AP36: 13612.84 | AQ36: 14735.93 | AR36: 15407.5 | AS36: 14946.01 | AT36: 58702.28
A37: 34 | B37: г.п. Одинцово | C37: г.Одинцово, Верхне-Пролетарская, 67 | D37: ЖЭУ-8 | E37: -1306.94 | F37: 0 | G37: 0 | H37: 0 | I37: 0 | J37: 0 | K37: 0 | L37: 0 | M37: 0 | N37: 0 | O37: 0 | P37: 0 | Q37: 488.84 | R37: 0 | S37: 0 | T37: 518.3 | U37: 0 | V37: 0 | W37: 0 | X37: 0 | Y37: 0 | Z37: 0 | AA37: -1.34 | AB37: 0 | AC37: 0 | AD37: 0 | AE37: -1.4 | AF37: -13.12 | AG37: 0 | AH37: 0 | AI37: 0 | AJ37: 0 | AK37: 3980.29 | AL37: 3664.63 | AM37: 2031.78 | AN37: 17173.52 | AO37: 0 | AP37: 1994.49 | AQ37: 0 | AR37: 0 | AS37: 0 | AT37: 1994.49
A38: 35 | B38: г.п. Одинцово | C38: г.Одинцово, Вокзальная, 7 | D38: ЖЭУ-6,7 | E38: 5591215.58 | F38: 0 | G38: 0 | H38: 0 | I38: 32.66 | J38: 0 | K38: 0 | L38: 0 | M38: 0 | N38: 0 | O38: 6740446.62 | P38: 0 | Q38: 691979.57 | R38: 450553.3 | S38: 1756702.33 | T38: 1208215.09 | U38: 0 | V38: 0 | W38: 0 | X38: 19.81 | Y38: 0 | Z38: 0 | AA38: 5649.83 | AB38: 5649.83 | AC38: 0 | AD38: 22036.65 | AE38: 11948.08 | AF38: 255883.57 | AG38: 0 | AH38: 0 | AI38: 0 | AJ38: 0 | AK38: 0 | AL38: 16740332.92 | AM38: 16485666.12 | AN38: 4517742.09 | AO38: 19127.53 | AP38: 1195823.73 | AQ38: 1270926.69 | AR38: 1421274 | AS38: 1622105.83 | AT38: 5510130.25
A39: 36 | B39: г.п. Одинцово | C39: г.Одинцово, Вокзальная, 9 | D39: ЖЭУ-6,7 | E39: 5557073.07 | F39: 0 | G39: -1708.05 | H39: 0 | I39: -679.16 | J39: 0 | K39: -10.07 | L39: 0 | M39: 0 | N39: 0 | O39: 6592390.63 | P39: 0 | Q39: 632974.9 | R39: 411893.78 | S39: 1601794.95 | T39: 1105036.93 | U39: 0 | V39: 0 | W39: 0 | X39: -1500.08 | Y39: 0 | Z39: 0 | AA39: 5942.84 | AB39: 6762.48 | AC39: 0 | AD39: 23177.96 | AE39: 12567.24 | AF39: 269260.28 | AG39: 0 | AH39: 0 | AI39: 0 | AJ39: -10689.83 | AK39: 0 | AL39: 16204287.87 | AM39: 15424713.52 | AN39: 6894765.99 | AO39: 276809.17 | AP39: 1166934.92 | AQ39: 1285458.58 | AR39: 1417323.05 | AS39: 1467613.46 | AT39: 5337330.01
A40: 37 | B40: г.п. Одинцово | C40: г.Одинцово, Вокзальная, 11 | D40: ЖЭУ-6,7 | E40: 5558112.07 | F40: 0 | G40: 0 | H40: 0 | I40: 128.25 | J40: 0 | K40: 0 | L40: 0 | M40: 0 | N40: 0 | O40: 5156741.74 | P40: 0 | Q40: 680526.61 | R40: 436535.61 | S40: 1701943.63 | T40: 1181281.02 | U40: 0 | V40: 0 | W40: 0 | X40: 109.04 | Y40: 0 | Z40: 0 | AA40: 5214.46 | AB40: 5214.58 | AC40: 0 | AD40: 20342.89 | AE40: 11030.29 | AF40: 236962.38 | AG40: 0 | AH40: 0 | AI40: -1901.8 | AJ40: -48651.59 | AK40: 0 | AL40: 14943589.18 | AM40: 14910212.66 | AN40: 3633830.38 | AO40: 52736.6 | AP40: 1139899.36 | AQ40: 1339036.31 | AR40: 1309943.38 | AS40: 1673723.97 | AT40: 5462603.02
A41: 38 | B41: г.п. Одинцово | C41: г.Одинцово, Вокзальная, 13 | D41: ЖЭУ-6,7 | E41: 1783002.81 | F41: 0 | G41: 0 | H41: 0 | I41: 448.87 | J41: 0 | K41: 0 | L41: 0 | M41: 0 | N41: 0 | O41: 2147655.38 | P41: 0 | Q41: 212887.79 | R41: 141359.33 | S41: 551236.68 | T41: 374631.49 | U41: 0 | V41: 0 | W41: 0 | X41: 272.21 | Y41: 0 | Z41: 0 | AA41: 1258.68 | AB41: 1258.68 | AC41: 0 | AD41: 4902.81 | AE41: 2664.76 | AF41: 97654.88 | AG41: 0 | AH41: 0 | AI41: 0 | AJ41: 0 | AK41: 0 | AL41: 5319234.37 | AM41: 5216318.73 | AN41: 807459.12 | AO41: 25951.55 | AP41: 350059.83 | AQ41: 424005.53 | AR41: 476732.31 | AS41: 483955.15 | AT41: 1734752.82
A42: 39 | B42: г.п. Одинцово | C42: г.Одинцово, Вокзальная, 17 | D42: ЖЭУ-6,7 | E42: 1847470.18 | F42: 0 | G42: 0 | H42: 0 | I42: -108.6 | J42: 0 | K42: 0 | L42: 0 | M42: 0 | N42: 0 | O42: 2227727.18 | P42: 0 | Q42: 211029.79 | R42: 157102.9 | S42: 612710.06 | T42: 389313.53 | U42: 0 | V42: 0 | W42: 0 | X42: -68.11 | Y42: 0 | Z42: 0 | AA42: 2301.52 | AB42: 2301.52 | AC42: 0 | AD42: 8973.42 | AE42: 4868.8 | AF42: 178747.55 | AG42: 0 | AH42: 0 | AI42: 0 | AJ42: 0 | AK42: 0 | AL42: 5642369.74 | AM42: 5373973.29 | AN42: 1926137.5 | AO42: 5518.8 | AP42: 410012.48 | AQ42: 425952.55 | AR42: 431565.85 | AS42: 473720.33 | AT42: 1741251.21
A43: 40 | B43: г.п. Одинцово | C43: г.Одинцово, Вокзальная, 51 | D43: ЖЭУ-6,7 | E43: 10421788.92 | F43: 0 | G43: 0 | H43: 0 | I43: 0 | J43: 0 | K43: 0 | L43: 0 | M43: 0 | N43: 0 | O43: 12636112.43 | P43: 0 | Q43: 1043911 | R43: 718776.39 | S43: 2794559.24 | T43: 1860933.38 | U43: 0 | V43: 0 | W43: 0 | X43: 0 | Y43: 0 | Z43: 0 | AA43: 14306.03 | AB43: 14306.03 | AC43: 0 | AD43: 47693.04 | AE43: 27146.55 | AF43: 674091.45 | AG43: 0 | AH43: 0 | AI43: 0 | AJ43: -71636.48 | AK43: 0 | AL43: 30181987.98 | AM43: 29519135.53 | AN43: 6114919.5 | AO43: 149463.92 | AP43: 2093993.97 | AQ43: 2449648.86 | AR43: 2643590.74 | AS43: 2927635.3 | AT43: 10114868.87
A44: 41 | B44: г.п. Одинцово | C44: г.Одинцово, Вокзальная, 69 | D44: ЖЭУ-6,7 | E44: 229997.22 | F44: 0 | G44: 0 | H44: 0 | I44: 0 | J44: 0 | K44: 0 | L44: 0 | M44: 0 | N44: 0 | O44: 0 | P44: 0 | Q44: 38530.29 | R44: 31884.09 | S44: 124333.59 | T44: 74463.4 | U44: 0 | V44: 0 | W44: 0 | X44: 0 | Y44: 0 | Z44: 0 | AA44: 388.2 | AB44: 388.2 | AC44: 0 | AD44: 1513.56 | AE44: 820.8 | AF44: 3430.8 | AG44: 0 | AH44: 0 | AI44: 0 | AJ44: 0 | AK44: 0 | AL44: 505750.15 | AM44: 503375.54 | AN44: 40324.27 | AO44: 12866.92 | AP44: 44589.39 | AQ44: 56655.49 | AR44: 56433.54 | AS44: 63140.86 | AT44: 220819.28
A45: 42 | B45: г.п. Одинцово | C45: г.Одинцово, Глазынинская, 2 | D45: ЖЭУ-8 | E45: 338301.94 | F45: 0 | G45: 0 | H45: 0 | I45: 0 | J45: 0 | K45: 0 | L45: 0 | M45: 0 | N45: 0 | O45: 0 | P45: 0 | Q45: 16070.04 | R45: 0 | S45: 0 | T45: 16993.57 | U45: 0 | V45: 0 | W45: 0 | X45: 0 | Y45: 0 | Z45: 0 | AA45: 394.83 | AB45: 0 | AC45: 0 | AD45: 0 | AE45: 417.54 | AF45: 4536.38 | AG45: 0 | AH45: 0 | AI45: 0 | AJ45: 0 | AK45: 103.37 | AL45: 376817.67 | AM45: 381881.05 | AN45: 38660.67 | AO45: 19511.73 | AP45: 77240.46 | AQ45: 81942.09 | AR45: 77185.18 | AS45: 88543.76 | AT45: 324911.49
A46: 43 | B46: г.п. Одинцово | C46: г.Одинцово, Глазынинская, 4 | D46: ЖЭУ-8 | E46: 215821.68 | F46: 0 | G46: 0 | H46: 0 | I46: 0 | J46: 0 | K46: 0 | L46: 0 | M46: 0 | N46: 0 | O46: 0 | P46: 0 | Q46: 0 | R46: 0 | S46: 0 | T46: 0 | U46: 0 | V46: 0 | W46: 0 | X46: 0 | Y46: 0 | Z46: 0 | AA46: 426 | AB46: 0 | AC46: 0 | AD46: 0 | AE46: 450.6 | AF46: 4897.92 | AG46: 0 | AH46: 0 | AI46: 0 | AJ46: 0 | AK46: -2292.51 | AL46: 219303.69 | AM46: 224976.57 | AN46: 16076.94 | AO46: 10178.17 | AP46: 52071.37 | AQ46: 55527.27 | AR46: 47792.8 | AS46: 63730.08 | AT46: 219121.52
A47: 44 | B47: г.п. Одинцово | C47: г.Одинцово, Глазынинская, 10 | D47: ЖЭУ-8 | E47: 217472.88 | F47: 0 | G47: 0 | H47: 0 | I47: 0 | J47: 0 | K47: 0 | L47: 0 | M47: 0 | N47: 0 | O47: 0 | P47: 0 | Q47: 0 | R47: 0 | S47: 0 | T47: 0 | U47: 0 | V47: 0 | W47: 0 | X47: 0 | Y47: 0 | Z47: 0 | AA47: 429.48 | AB47: 0 | AC47: 0 | AD47: 0 | AE47: 454.56 | AF47: 4936.56 | AG47: 0 | AH47: 0 | AI47: 0 | AJ47: 0 | AK47: -2769.55 | AL47: 220523.93 | AM47: 225547.96 | AN47: 47705.07 | AO47: 6475.16 | AP47: 46336.45 | AQ47: 61278.15 | AR47: 48331.08 | AS47: 63745.03 | AT47: 219690.71
A48: 45 | B48: г.п. Одинцово | C48: г.Одинцово, Глазынинская, 12 | D48: ЖЭУ-8 | E48: 0 | F48: 217064.72 | G48: 0 | H48: 0 | I48: 0 | J48: 0 | K48: 0 | L48: 0 | M48: 0 | N48: 0 | O48: 0 | P48: 0 | Q48: 0 | R48: 0 | S48: 0 | T48: 0 | U48: 0 | V48: 0 | W48: 0 | X48: 0 | Y48: 0 | Z48: 0 | AA48: 426.28 | AB48: 0 | AC48: 0 | AD48: 0 | AE48: 451.12 | AF48: 4898.24 | AG48: 0 | AH48: 0 | AI48: 0 | AJ48: 0 | AK48: 0 | AL48: 222840.36 | AM48: 217750.17 | AN48: 52419.62 | AO48: 10091.55 | AP48: 49653.9 | AQ48: 50762.04 | AR48: 51147.53 | AS48: 56049.73 | AT48: 207613.2
A49: 46 | B49: г.п. Одинцово | C49: г.Одинцово, Глазынинская, 14 | D49: ЖЭУ-8 | E49: 340867.88 | F49: 0 | G49: 0 | H49: 0 | I49: 0 | J49: 0 | K49: 0 | L49: 0 | M49: 0 | N49: 0 | O49: 0 | P49: 0 | Q49: -7072.57 | R49: 0 | S49: 0 | T49: -7389.2 | U49: 0 | V49: 0 | W49: 0 | X49: 0 | Y49: 0 | Z49: 0 | AA49: 682.65 | AB49: 0 | AC49: 0 | AD49: 0 | AE49: 721.99 | AF49: 7843.64 | AG49: 0 | AH49: 0 | AI49: 0 | AJ49: 0 | AK49: 0 | AL49: 335654.39 | AM49: 343961.38 | AN49: 97993.55 | AO49: 29624.49 | AP49: 79076.86 | AQ49: 80153.79 | AR49: 77724.68 | AS49: 94720.25 | AT49: 331675.58
A50: 47 | B50: г.п. Одинцово | C50: г.Одинцово, Глазынинская, 20 | D50: ЖЭУ-8 | E50: 0 | F50: 115064.4 | G50: 0 | H50: 0 | I50: 0 | J50: 0 | K50: 0 | L50: 0 | M50: 0 | N50: 0 | O50: 0 | P50: 0 | Q50: 0 | R50: 0 | S50: 0 | T50: 0 | U50: 0 | V50: 0 | W50: 0 | X50: 0 | Y50: 0 | Z50: 0 | AA50: 1003.8 | AB50: 1003.8 | AC50: 0 | AD50: 3916.68 | AE50: 2123.4 | AF50: 8875.44 | AG50: 0 | AH50: 0 | AI50: 0 | AJ50: 0 | AK50: 0 | AL50: 131987.52 | AM50: 131225.45 | AN50: 73969.83 | AO50: 64.38 | AP50: 26708.78 | AQ50: 29211.31 | AR50: 26837.81 | AS50: 27784.2 | AT50: 110542.1
A51: 48 | B51: г.п. Одинцово | C51: г.Одинцово, Глазынинская, 22 | D51: ЖЭУ-8 | E51: 123297.24 | F51: 0 | G51: 0 | H51: 0 | I51: 0 | J51: 0 | K51: 0 | L51: 0 | M51: 0 | N51: 0 | O51: 0 | P51: 0 | Q51: 0 | R51: 0 | S51: 0 | T51: 0 | U51: 0 | V51: 0 | W51: 0 | X51: 0 | Y51: 0 | Z51: 0 | AA51: 312.72 | AB51: 0 | AC51: 0 | AD51: 0 | AE51: 331.08 | AF51: 3596.4 | AG51: 0 | AH51: 0 | AI51: 0 | AJ51: 0 | AK51: 0 | AL51: 127537.44 | AM51: 114992.88 | AN51: 231764.88 | AO51: 1048.49 | AP51: 23571.41 | AQ51: 28844.67 | AR51: 28525.05 | AS51: 30232.02 | AT51: 111173.15
A52: 49 | B52: г.п. Одинцово | C52: г.Одинцово, Глазынинская, 24 | D52: ЖЭУ-8 | E52: 0 | F52: 186165 | G52: 0 | H52: 0 | I52: 0 | J52: 0 | K52: 0 | L52: 0 | M52: 0 | N52: 0 | O52: 0 | P52: 0 | Q52: 0 | R52: 0 | S52: 0 | T52: 0 | U52: 0 | V52: 0 | W52: 0 | X52: 0 | Y52: 0 | Z52: 0 | AA52: 478.92 | AB52: 0 | AC52: 0 | AD52: 0 | AE52: 506.88 | AF52: 5504.52 | AG52: 0 | AH52: 0 | AI52: 0 | AJ52: 0 | AK52: 0 | AL52: 192655.32 | AM52: 190765.84 | AN52: 27061.9 | AO52: 3326.56 | AP52: 42823.36 | AQ52: 41685.27 | AR52: 52926.59 | AS52: 46932.3 | AT52: 184367.52
A53: 50 | B53: г.п. Одинцово | C53: г.Одинцово, Говорова, 8 | D53: ЖЭУ-5 | E53: 2985465.56 | F53: 0 | G53: 0 | H53: 0 | I53: 0 | J53: 0 | K53: 0 | L53: 0 | M53: 0 | N53: 0 | O53: 0 | P53: 0 | Q53: 0 | R53: 0 | S53: 0 | T53: 0 | U53: 0 | V53: 0 | W53: 0 | X53: 0 | Y53: 0 | Z53: 0 | AA53: 9352.53 | AB53: 9352.52 | AC53: 0 | AD53: 26425.14 | AE53: 15914.88 | AF53: 270032.37 | AG53: 0 | AH53: 0 | AI53: 0 | AJ53: 0 | AK53: 0 | AL53: 3316543 | AM53: 3624613.92 | AN53: 1133170.02 | AO53: 54266.47 | AP53: 609095.44 | AQ53: 861118.17 | AR53: 745552.16 | AS53: 812187.35 | AT53: 3027953.12
A54: 51 | B54: г.п. Одинцово | C54: г.Одинцово, Говорова, 8 А | D54: ЖЭУ-5 | E54: 3011636.57 | F54: 0 | G54: 0 | H54: 0 | I54: 180.73 | J54: 0 | K54: 0 | L54: 0 | M54: 0 | N54: 0 | O54: 2140.51 | P54: 0 | Q54: 66.16 | R54: 0.02 | S54: 0.05 | T54: 0.13 | U54: 0 | V54: 0 | W54: 0 | X54: 583.82 | Y54: 0 | Z54: 0 | AA54: 3813.72 | AB54: 3813.72 | AC54: 0 | AD54: 14864.13 | AE54: 8080.98 | AF54: 269618.84 | AG54: 0 | AH54: 0 | AI54: 0 | AJ54: 0 | AK54: 0 | AL54: 3314799.38 | AM54: 3205921.62 | AN54: 1628136.05 | AO54: 46515.32 | AP54: 624734.01 | AQ54: 705402.48 | AR54: 781424.21 | AS54: 783974.04 | AT54: 2895534.74
A55: 52 | B55: г.п. Одинцово | C55: г.Одинцово, Говорова, 38 | D55: ЖЭУ-5 | E55: 4964121.58 | F55: 0 | G55: 0 | H55: 0 | I55: 0 | J55: 0 | K55: 0 | L55: 0 | M55: 0 | N55: 0 | O55: 6019152.99 | P55: 0 | Q55: 566135.54 | R55: 397866.59 | S55: 1551289.9 | T55: 1019448.29 | U55: 0 | V55: 0 | W55: 0 | X55: 0 | Y55: 0 | Z55: 0 | AA55: 4269.22 | AB55: 4269.22 | AC55: 0 | AD55: 16641.55 | AE55: 9032.87 | AF55: 248805.08 | AG55: 0 | AH55: 0 | AI55: 0 | AJ55: -113360.93 | AK55: 0 | AL55: 14687671.9 | AM55: 14749232.07 | AN55: 2281099.01 | AO55: 22212.47 | AP55: 1051441.52 | AQ55: 1165474.25 | AR55: 1222541.31 | AS55: 1478993.34 | AT55: 4918450.42
A56: 53 | B56: г.п. Одинцово | C56: г.Одинцово, Говорова, 40 | D56: ЖЭУ-5 | E56: 2527676.16 | F56: 0 | G56: 0 | H56: 0 | I56: 0 | J56: 0 | K56: 0 | L56: 0 | M56: 0 | N56: 0 | O56: 3065038.08 | P56: 0 | Q56: 275727.03 | R56: 190125.24 | S56: 741200.13 | T56: 492633.3 | U56: 0 | V56: 0 | W56: 0 | X56: 0 | Y56: 0 | Z56: 0 | AA56: 1803.6 | AB56: 1803.6 | AC56: 0 | AD56: 7028.64 | AE56: 3815.03 | AF56: 105071.41 | AG56: 0 | AH56: 0 | AI56: 0 | AJ56: 0 | AK56: 0 | AL56: 7411922.22 | AM56: 7177378.8 | AN56: 1284134.19 | AO56: 8306.18 | AP56: 545246.87 | AQ56: 617387.01 | AR56: 624914.27 | AS56: 672346.81 | AT56: 2459894.96
A57: 54 | B57: г.п. Одинцово | C57: г.Одинцово, Комсомольская, 2 | D57: ЖЭУ-8 | E57: 1331337.11 | F57: 0 | G57: 0 | H57: 0 | I57: 0 | J57: 0 | K57: 0 | L57: 0 | M57: 0 | N57: 0 | O57: 1238160.01 | P57: 0 | Q57: 183619.51 | R57: 127502.19 | S57: 497181.86 | T57: 329011.08 | U57: 0 | V57: 0 | W57: 0 | X57: 0 | Y57: 0 | Z57: 0 | AA57: 3003.36 | AB57: 3003.36 | AC57: 0 | AD57: 11714.28 | AE57: 6352.19 | AF57: 136003.81 | AG57: 0 | AH57: 0 | AI57: 0 | AJ57: 0 | AK57: 0 | AL57: 3866888.76 | AM57: 4006244.57 | AN57: 822936.54 | AO57: 25152.92 | AP57: 325735.68 | AQ57: 314206.6 | AR57: 311563.89 | AS57: 378502.1 | AT57: 1330008.27
A58: 55 | B58: г.п. Одинцово | C58: г.Одинцово, Комсомольская, 4 | D58: ЖЭУ-8 | E58: 1690164.48 | F58: 0 | G58: 0 | H58: 0 | I58: 0 | J58: 0 | K58: 0 | L58: 0 | M58: 0 | N58: 0 | O58: 2409007.2 | P58: 0 | Q58: 253882.99 | R58: 157269.81 | S58: 613059.64 | T58: 434782.15 | U58: 0 | V58: 0 | W58: 0 | X58: 0 | Y58: 0 | Z58: 0 | AA58: 3495.12 | AB58: 3495.12 | AC58: 0 | AD58: 13617.6 | AE58: 7391.76 | AF58: 203578.44 | AG58: 0 | AH58: 0 | AI58: 0 | AJ58: 0 | AK58: -2634.87 | AL58: 5787109.44 | AM58: 5778641.4 | AN58: 615436.21 | AO58: 46956.82 | AP58: 391480.17 | AQ58: 409264.16 | AR58: 417975.08 | AS58: 464781.4 | AT58: 1683500.81
A59: 56 | B59: г.п. Одинцово | C59: г.Одинцово, Комсомольская, 6 | D59: ЖЭУ-8 | E59: 3426928.07 | F59: 0 | G59: 0 | H59: 0 | I59: 0 | J59: 0 | K59: 0 | L59: 0 | M59: 0 | N59: 0 | O59: 3187086.63 | P59: 0 | Q59: 509157.77 | R59: 334890.94 | S59: 1306317.45 | T59: 892593.11 | U59: 0 | V59: 0 | W59: 0 | X59: 0 | Y59: 0 | Z59: 0 | AA59: 8095.56 | AB59: 8095.56 | AC59: 0 | AD59: 31576.56 | AE59: 17120.88 | AF59: 366610.44 | AG59: 0 | AH59: 0 | AI59: 0 | AJ59: 0 | AK59: -517842.15 | AL59: 9570630.82 | AM59: 10778047.72 | AN59: 1252336.73 | AO59: 82776.68 | AP59: 803524.64 | AQ59: 907819.91 | AR59: 879464.3 | AS59: 928624.47 | AT59: 3519433.32
A60: 57 | B60: г.п. Одинцово | C60: г.Одинцово, Комсомольская, 7 | D60: ЖЭУ-8 | E60: 2320152.13 | F60: 0 | G60: 0 | H60: 0 | I60: 0 | J60: 0 | K60: 0 | L60: 0 | M60: 0 | N60: 0 | O60: 3306935.67 | P60: 0 | Q60: 340120.98 | R60: 221221.18 | S60: 862309.46 | T60: 593589.55 | U60: 0 | V60: 0 | W60: 0 | X60: 0 | Y60: 0 | Z60: 0 | AA60: 2866.99 | AB60: 2866.99 | AC60: 0 | AD60: 11171.15 | AE60: 6061.42 | AF60: 166999.71 | AG60: 0 | AH60: 0 | AI60: 0 | AJ60: 0 | AK60: 50268.87 | AL60: 7884564.1 | AM60: 7536788.95 | AN60: 1769610.47 | AO60: 40135.4 | AP60: 506251.9 | AQ60: 558286.68 | AR60: 541943.32 | AS60: 619763.12 | AT60: 2226245.02
A61: 58 | B61: г.п. Одинцово | C61: г.Одинцово, Комсомольская, 7а | D61: ЖЭУ-8 | E61: 2323064.04 | F61: 0 | G61: 0 | H61: 0 | I61: 0 | J61: 0 | K61: 0 | L61: 0 | M61: 0 | N61: 0 | O61: 3311117.68 | P61: 0 | Q61: 339160.4 | R61: 230249.01 | S61: 897956.79 | T61: 602170.96 | U61: 0 | V61: 0 | W61: 0 | X61: 0 | Y61: 0 | Z61: 0 | AA61: 3347.13 | AB61: 3347.13 | AC61: 0 | AD61: 13046.04 | AE61: 7079.21 | AF61: 195015.35 | AG61: 0 | AH61: 0 | AI61: 0 | AJ61: 0 | AK61: -84772.23 | AL61: 7840781.51 | AM61: 7728200 | AN61: 1510187.89 | AO61: 44715.5 | AP61: 553389.56 | AQ61: 531235.76 | AR61: 583628.17 | AS61: 591375.69 | AT61: 2259629.18
A62: 59 | B62: г.п. Одинцово | C62: г.Одинцово, Комсомольская, 9 | D62: ЖЭУ-8 | E62: 2313153.72 | F62: 0 | G62: 0 | H62: 0 | I62: 0 | J62: 0 | K62: 0 | L62: 0 | M62: 0 | N62: 0 | O62: 2163627.36 | P62: 0 | Q62: 334500.18 | R62: 227628.63 | S62: 887276.12 | T62: 594432.79 | U62: 0 | V62: 0 | W62: 0 | X62: 0 | Y62: 0 | Z62: 0 | AA62: 3134.4 | AB62: 3134.4 | AC62: 0 | AD62: 12209.89 | AE62: 6627 | AF62: 182543.88 | AG62: 0 | AH62: 0 | AI62: 0 | AJ62: 0 | AK62: 2555.46 | AL62: 6730823.83 | AM62: 7003791.63 | AN62: 697725.49 | AO62: 79622.26 | AP62: 521086.98 | AQ62: 557266.12 | AR62: 567226.44 | AS62: 619610.84 | AT62: 2265190.38
A63: 60 | B63: г.п. Одинцово | C63: г.Одинцово, Красногорское шоссе, 4 | D63: ЖЭУ-5 | E63: 2183134.64 | F63: 0 | G63: 0 | H63: 0 | I63: 0 | J63: 0 | K63: 0 | L63: 0 | M63: 0 | N63: 0 | O63: 1170866.68 | P63: 0 | Q63: 141810.9 | R63: 100157.8 | S63: 390362.02 | T63: 255875.86 | U63: 0 | V63: 0 | W63: 0 | X63: 0 | Y63: 0 | Z63: 0 | AA63: 3619.45 | AB63: 3619.45 | AC63: 0 | AD63: 14102.2 | AE63: 7653.8 | AF63: 188879.78 | AG63: 0 | AH63: 0 | AI63: 0 | AJ63: 0 | AK63: 0 | AL63: 4460082.58 | AM63: 4333204.38 | AN63: 778623.23 | AO63: 40139.35 | AP63: 473567.57 | AQ63: 507738.16 | AR63: 514575.57 | AS63: 600826.93 | AT63: 2096708.23
A64: 61 | B64: г.п. Одинцово | C64: г.Одинцово, Любы Новоселовой бульвар, 1 | D64: ЖЭУ-1,2,3 | E64: 3085783.26 | F64: 0 | G64: 0 | H64: 0 | I64: 21.34 | J64: 0 | K64: 6.08 | L64: 0 | M64: 0 | N64: 0 | O64: 2862951.64 | P64: 0 | Q64: 361745.44 | R64: 255130.58 | S64: 994188.9 | T64: 652327.51 | U64: 0 | V64: 0 | W64: 0 | X64: 177.12 | Y64: 0 | Z64: 0 | AA64: 4444.43 | AB64: 4444.43 | AC64: 0 | AD64: 17334.31 | AE64: 9399.71 | AF64: 201158.5 | AG64: 0 | AH64: 0 | AI64: 0 | AJ64: 0 | AK64: 0 | AL64: 8449113.25 | AM64: 8411948.36 | AN64: 1199361.17 | AO64: 28341.01 | AP64: 707435.41 | AQ64: 754324.27 | AR64: 763644.78 | AS64: 833200.19 | AT64: 3058604.65
A65: 62 | B65: г.п. Одинцово | C65: г.Одинцово, Любы Новоселовой бульвар, 2 корп.1 | D65: ЖЭУ-1,2,3 | E65: 1462736.69 | F65: 0 | G65: 0 | H65: 0 | I65: -159.17 | J65: 0 | K65: 0 | L65: 0 | M65: 0 | N65: 0 | O65: 1357140.91 | P65: 0 | Q65: 182676.1 | R65: 135171.52 | S65: 529918.07 | T65: 335999.53 | U65: 0 | V65: 0 | W65: 0 | X65: 545.52 | Y65: 0 | Z65: 0 | AA65: 2957.85 | AB65: 2957.85 | AC65: 0 | AD65: 11542.69 | AE65: 6250.59 | AF65: 134024.12 | AG65: 0 | AH65: 0 | AI65: 0 | AJ65: 0 | AK65: 0 | AL65: 4161762.27 | AM65: 3993842.52 | AN65: 1029142.91 | AO65: 20760.46 | AP65: 301425.65 | AQ65: 344175.06 | AR65: 372634.06 | AS65: 385065.69 | AT65: 1403300.46
A66: 63 | B66: г.п. Одинцово | C66: г.Одинцово, Любы Новоселовой бульвар, 2 корп.2 | D66: ЖЭУ-1,2,3 | E66: 1476558.71 | F66: 0 | G66: 0 | H66: 0 | I66: 0 | J66: 0 | K66: 0 | L66: 0 | M66: 0 | N66: 0 | O66: 1742581.71 | P66: 0 | Q66: 198507.19 | R66: 149136.8 | S66: 581566.08 | T66: 367634.53 | U66: 0 | V66: 0 | W66: 0 | X66: 0 | Y66: 0 | Z66: 0 | AA66: 2715.72 | AB66: 2715.72 | AC66: 0 | AD66: 10593.12 | AE66: 5744.16 | AF66: 122992.32 | AG66: 0 | AH66: 0 | AI66: 0 | AJ66: 0 | AK66: 0 | AL66: 4660746.06 | AM66: 4399818.32 | AN66: 851965.89 | AO66: 25715.26 | AP66: 302515.11 | AQ66: 321061.27 | AR66: 380826.42 | AS66: 394375.18 | AT66: 1398777.98
A67: 64 | B67: г.п. Одинцово | C67: г.Одинцово, Любы Новоселовой бульвар, 2А | D67: ЖЭУ-1,2,3 | E67: 4917512.53 | F67: 0 | G67: 0 | H67: 0 | I67: 48.99 | J67: 0 | K67: -52.13 | L67: 0 | M67: 0 | N67: 0 | O67: 5223459.99 | P67: 0 | Q67: 589305.11 | R67: 392259.7 | S67: 1531205.99 | T67: 1038096.8 | U67: 0 | V67: 0 | W67: 0 | X67: -68.02 | Y67: 0 | Z67: 0 | AA67: 11482.79 | AB67: 11482.79 | AC67: 0 | AD67: 44801.07 | AE67: 24293.59 | AF67: 519643.95 | AG67: 0 | AH67: 0 | AI67: -1022.52 | AJ67: -11880.1 | AK67: 0 | AL67: 14290570.53 | AM67: 13862474.15 | AN67: 4889703.25 | AO67: 64689.13 | AP67: 1051661.1 | AQ67: 1167878.34 | AR67: 1259250.78 | AS67: 1299531.99 | AT67: 4778322.21
A68: 65 | B68: г.п. Одинцово | C68: г.Одинцово, Любы Новоселовой бульвар, 4 корп.1 | D68: ЖЭУ-1,2,3 | E68: 1487602.31 | F68: 0 | G68: 0 | H68: 0 | I68: 0.09 | J68: 0 | K68: 0 | L68: 0 | M68: 0 | N68: 0 | O68: 1380068.65 | P68: 0 | Q68: 188440.87 | R68: 142792.74 | S68: 556863.76 | T68: 350282.24 | U68: 0 | V68: 0 | W68: 0 | X68: 0.22 | Y68: 0 | Z68: 0 | AA68: 2807.04 | AB68: 2807.04 | AC68: 0 | AD68: 10950.25 | AE68: 5937.73 | AF68: 127075.08 | AG68: 0 | AH68: 0 | AI68: 0 | AJ68: 0 | AK68: 0 | AL68: 4255628.02 | AM68: 4220917.61 | AN68: 833458.42 | AO68: 8097.48 | AP68: 327777.72 | AQ68: 360056.82 | AR68: 354146.61 | AS68: 406257.57 | AT68: 1448238.72
A69: =A68+1 -> 66 | B69: г.п. Одинцово | C69: г.Одинцово, Любы Новоселовой бульвар, 4 корп.2 | D69: ЖЭУ-1,2,3 | E69: 1488782.91 | F69: 0 | G69: 0 | H69: 0 | I69: 2617.59 | J69: 0 | K69: 0 | L69: 0 | M69: 0 | N69: 0 | O69: 1793953.94 | P69: 0 | Q69: 218205.07 | R69: 160529.72 | S69: 618322.29 | T69: 397705.09 | U69: 0 | V69: 0 | W69: 0 | X69: 2637.15 | Y69: 0 | Z69: 0 | AA69: 2807.28 | AB69: 2807.28 | AC69: 0 | AD69: 10950.24 | AE69: 5937.96 | AF69: 129700.24 | AG69: 0 | AH69: 0 | AI69: 0 | AJ69: 0 | AK69: 0 | AL69: 4834956.76 | AM69: 4978425.6 | AN69: 549135.41 | AO69: 77641.96 | AP69: 337049.8 | AQ69: 370663.28 | AR69: 390537.6 | AS69: 428734.71 | AT69: =SUM(AP69:AS69) -> 1526985.39
A70: 67 | B70: г.п. Одинцово | C70: г.Одинцово, Любы Новоселовой бульвар, 4А | D70: ЖЭУ-1,2,3 | E70: 3097773.73 | F70: 0 | G70: 0 | H70: 0 | I70: 0 | J70: 0 | K70: 0 | L70: 0 | M70: 0 | N70: 0 | O70: 2890880.61 | P70: 0 | Q70: 296923.16 | R70: 219827.07 | S70: 857032.42 | T70: 546450.5 | U70: 0 | V70: 0 | W70: 0 | X70: 0 | Y70: 0 | Z70: 0 | AA70: 9231.15 | AB70: 9231.23 | AC70: 0 | AD70: 36013.79 | AE70: 19513.46 | AF70: 313748.9 | AG70: 0 | AH70: 0 | AI70: 0 | AJ70: 0 | AK70: 0 | AL70: 8296626.02 | AM70: 7915761.84 | AN70: 1828533.26 | AO70: 31561.84 | AP70: 672592.04 | AQ70: 724010.84 | AR70: 736299.91 | AS70: 821348.05 | AT70: 2954250.84
A71: 68 | B71: г.п. Одинцово | C71: г.Одинцово, Любы Новоселовой бульвар, 9 к.1 | D71: ЖЭУ-1,2,3 | E71: 1574899.2 | F71: 0 | G71: 0 | H71: 0 | I71: 0 | J71: 0 | K71: 0 | L71: 0 | M71: 0 | N71: 0 | O71: 0 | P71: 0 | Q71: 0 | R71: 0 | S71: 0 | T71: 0 | U71: 0 | V71: 0 | W71: 0 | X71: 0 | Y71: 0 | Z71: 0 | AA71: 2070.6 | AB71: 2070.6 | AC71: 0 | AD71: 8077.09 | AE71: 4379.16 | AF71: 93776.2 | AG71: 0 | AH71: 0 | AI71: 0 | AJ71: 0 | AK71: 0 | AL71: 1685272.85 | AM71: 1554566.33 | AN71: 492632.38 | AO71: 19278.59 | AP71: 289431.73 | AQ71: 356333.96 | AR71: 398661.03 | AS71: 407847.66 | AT71: 1452274.38
A72: 69 | B72: г.п. Одинцово | C72: г.Одинцово, Любы Новоселовой бульвар, 9 к.2 | D72: ЖЭУ-1,2,3 | E72: 1582993.07 | F72: 0 | G72: 0 | H72: 0 | I72: 29.4 | J72: 0 | K72: 0 | L72: 0 | M72: 0 | N72: 0 | O72: 519.79 | P72: 0 | Q72: 269.29 | R72: 78.03 | S72: 237.25 | T72: 362.08 | U72: 0 | V72: 0 | W72: 0 | X72: 35.65 | Y72: 0 | Z72: 0 | AA72: 2081.4 | AB72: 2081.4 | AC72: 0 | AD72: 8117.06 | AE72: 4401.3 | AF72: 94321.07 | AG72: 0 | AH72: 0 | AI72: 0 | AJ72: 0 | AK72: 0 | AL72: 1695526.79 | AM72: 1620897.77 | AN72: 258488.5 | AO72: 28949.6 | AP72: 339429.63 | AQ72: 357492.24 | AR72: 381234.2 | AS72: 434633.03 | AT72: 1512789.1
A73: 70 | B73: г.п. Одинцово | C73: г.Одинцово, Любы Новоселовой бульвар, 10 А | D73: ЖЭУ-1,2,3 | E73: 1606130.51 | F73: 0 | G73: 0 | H73: 0 | I73: -62.01 | J73: 0 | K73: 0 | L73: 0 | M73: 0 | N73: 0 | O73: 1938467.75 | P73: 0 | Q73: 180041.41 | R73: 132167.94 | S73: 518862.96 | T73: 330146.86 | U73: 0 | V73: 0 | W73: 0 | X73: -38.89 | Y73: 0 | Z73: 0 | AA73: 4601.04 | AB73: 4601.04 | AC73: 0 | AD73: 17948.76 | AE73: 9732.96 | AF73: 208270.07 | AG73: 0 | AH73: 0 | AI73: 0 | AJ73: 0 | AK73: 0 | AL73: 4950870.4 | AM73: 4596970.5 | AN73: 2908170.11 | AO73: 28599.08 | AP73: 313576.49 | AQ73: 408171.29 | AR73: 382976.46 | AS73: 414237.19 | AT73: 1518961.43
A74: 71 | B74: г.п. Одинцово | C74: г.Одинцово, Любы Новоселовой бульвар, 10 к.1 | D74: ЖЭУ-1,2,3 | E74: 1499027.6 | F74: 0 | G74: 0 | H74: 0 | I74: 87.28 | J74: 0 | K74: 0 | L74: 0 | M74: 0 | N74: 0 | O74: 1805537.04 | P74: 11274.94 | Q74: 172982.97 | R74: 117656.25 | S74: 457079.02 | T74: 307346.76 | U74: 0 | V74: 0 | W74: 0 | X74: 55.77 | Y74: 0 | Z74: 0 | AA74: 1682.68 | AB74: 1653.79 | AC74: 0 | AD74: 6450.04 | AE74: 3558.67 | AF74: 119621.69 | AG74: 0 | AH74: 0 | AI74: 0 | AJ74: 0 | AK74: 0 | AL74: 4504014.5 | AM74: 4370025.45 | AN74: 552376.49 | AO74: 7971.67 | AP74: 319468.58 | AQ74: 364467.05 | AR74: 365035.01 | AS74: 402600.07 | AT74: 1451570.71
A75: 72 | B75: г.п. Одинцово | C75: г.Одинцово, Любы Новоселовой бульвар, 10 к.2 | D75: ЖЭУ-1,2,3 | E75: 1482256.12 | F75: 0 | G75: 0 | H75: 0 | I75: 15.9 | J75: 0 | K75: 0 | L75: 0 | M75: 0 | N75: 0 | O75: 1785662.64 | P75: 15.34 | Q75: 201004.13 | R75: 131537.89 | S75: 510912.9 | T75: 351835.04 | U75: 0 | V75: 0 | W75: 0 | X75: 112.13 | Y75: 0 | Z75: 0 | AA75: 1803.72 | AB75: 1781.13 | AC75: 0 | AD75: 6948.02 | AE75: 3814.95 | AF75: 118067.35 | AG75: 0 | AH75: 0 | AI75: 0 | AJ75: 0 | AK75: 0 | AL75: 4595767.26 | AM75: 4569252.28 | AN75: 915193.95 | AO75: 3984.96 | AP75: 291087.61 | AQ75: 333521.86 | AR75: 448589.64 | AS75: 401370.84 | AT75: 1474569.95
A76: 73 | B76: г.п. Одинцово | C76: г.Одинцово, Любы Новоселовой бульвар, 11 к.1 | D76: ЖЭУ-1,2,3 | E76: 1569673.05 | F76: 0 | G76: 0 | H76: 0 | I76: 1250.93 | J76: 0 | K76: 0 | L76: 0 | M76: 0 | N76: 0 | O76: 1456711.33 | P76: 0 | Q76: 182269.99 | R76: 119485.79 | S76: 465907.35 | T76: 319120.47 | U76: 0 | V76: 0 | W76: 0 | X76: 25.75 | Y76: 0 | Z76: 0 | AA76: 1950.05 | AB76: 1950.05 | AC76: 0 | AD76: 7605.45 | AE76: 4124.49 | AF76: 88001.35 | AG76: 0 | AH76: 0 | AI76: 0 | AJ76: 0 | AK76: 0 | AL76: 4218076.05 | AM76: 4209141.8 | AN76: 411722.33 | AO76: 5670.66 | AP76: 325533.58 | AQ76: 360566 | AR76: 443582.55 | AS76: 426200.59 | AT76: 1555882.72
A77: 74 | B77: г.п. Одинцово | C77: г.Одинцово, Любы Новоселовой бульвар, 11 к.2 | D77: ЖЭУ-1,2,3 | E77: 1560111.33 | F77: 0 | G77: -59.9 | H77: 0 | I77: 381.05 | J77: 0 | K77: 0 | L77: 0 | M77: 0 | N77: 0 | O77: 1447526.62 | P77: 0 | Q77: 186713.94 | R77: 122378.62 | S77: 477023.85 | T77: 326851.88 | U77: 0 | V77: 0 | W77: 0 | X77: 738.37 | Y77: 0 | Z77: 0 | AA77: 1930.92 | AB77: 1930.92 | AC77: 0 | AD77: 7532.16 | AE77: 4083.74 | AF77: 87377.91 | AG77: 0 | AH77: 0 | AI77: 0 | AJ77: 0 | AK77: 0 | AL77: 4224521.41 | AM77: 4145698.92 | AN77: 572748.14 | AO77: 11380.14 | AP77: 324866.59 | AQ77: 369134.56 | AR77: 390162.89 | AS77: 433956.77 | AT77: 1518120.81
A78: 75 | B78: г.п. Одинцово | C78: г.Одинцово, Любы Новоселовой бульвар, 12 | D78: ЖЭУ-1,2,3 | E78: 2476769.84 | F78: 0 | G78: 0 | H78: 0 | I78: 495.28 | J78: 0 | K78: 0 | L78: 0 | M78: 0 | N78: 0 | O78: 3351307.08 | P78: 0 | Q78: 493780.68 | R78: 370241.19 | S78: 1443885.95 | T78: 913692.81 | U78: 0 | V78: 0 | W78: 0 | X78: 11.88 | Y78: 0 | Z78: 0 | AA78: 4412.5 | AB78: 4412.5 | AC78: 0 | AD78: 17211.21 | AE78: 9324.3 | AF78: 38934.1 | AG78: 0 | AH78: 0 | AI78: 0 | AJ78: 0 | AK78: 0 | AL78: 9124479.32 | AM78: 9669114.59 | AN78: 2677031.33 | AO78: 74287.06 | AP78: 528114.59 | AQ78: 673698.48 | AR78: 606702.45 | AS78: 724747.25 | AT78: 2533262.77
A79: 76 | B79: г.п. Одинцово | C79: г.Одинцово, Любы Новоселовой бульвар, 12 корп.А | D79: ЖЭУ-1,2,3 | E79: 2399507.4 | F79: 0 | G79: 0 | H79: 0 | I79: 0 | J79: 0 | K79: 0 | L79: 0 | M79: 0 | N79: 0 | O79: 0 | P79: -225.15 | Q79: -8750.11 | R79: 109255.71 | S79: 431750.49 | T79: -12478.17 | U79: 0 | V79: 0 | W79: 0 | X79: 0 | Y79: 0 | Z79: 0 | AA79: 3150.14 | AB79: 3150.14 | AC79: 0 | AD79: 12271.3 | AE79: 6664.99 | AF79: 223995.99 | AG79: 0 | AH79: 0 | AI79: 0 | AJ79: 0 | AK79: 0 | AL79: 3168292.73 | AM79: 3595332.81 | AN79: 443268.7 | AO79: 113773.35 | AP79: 526130.19 | AQ79: 834345.75 | AR79: 608819.9 | AS79: 641746.36 | AT79: 2611042.2
A80: 77 | B80: г.п. Одинцово | C80: г.Одинцово, Любы Новоселовой бульвар, 13 | D80: ЖЭУ-1,2,3 | E80: 952300.14 | F80: 0 | G80: 0 | H80: 0 | I80: 0 | J80: 94020.35 | K80: 0 | L80: 0 | M80: 0 | N80: 0 | O80: 0 | P80: 0 | Q80: 0 | R80: 0 | S80: 0 | T80: 0 | U80: 0 | V80: 0 | W80: 0 | X80: 0 | Y80: 0 | Z80: 0 | AA80: 1294.68 | AB80: 1294.68 | AC80: 0 | AD80: 5049.96 | AE80: 2738.16 | AF80: 11443.92 | AG80: 0 | AH80: 0 | AI80: 0 | AJ80: -14021.7 | AK80: 0 | AL80: 1054120.19 | AM80: 809729.67 | AN80: 730531.3 | AO80: 20558.55 | AP80: 5535.05 | AQ80: 194189.06 | AR80: 221643.09 | AS80: 261431.31 | AT80: 682798.51
A81: 78 | B81: г.п. Одинцово | C81: г.Одинцово, Любы Новоселовой бульвар, 15 | D81: ЖЭУ-1,2,3 | E81: 1118708.59 | F81: 0 | G81: 0 | H81: 0 | I81: 707.8 | J81: 0 | K81: 0 | L81: 0 | M81: 0 | N81: 0 | O81: 1509898.86 | P81: 0 | Q81: 212743.21 | R81: 149954.8 | S81: 591083.67 | T81: 383269.1 | U81: 0 | V81: 0 | W81: 0 | X81: -2514.57 | Y81: 0 | Z81: 0 | AA81: 2039.46 | AB81: 2039.46 | AC81: 0 | AD81: 7955.59 | AE81: 4313.55 | AF81: 18495.63 | AG81: 0 | AH81: 0 | AI81: -2242.11 | AJ81: -43676.14 | AK81: 0 | AL81: 3952776.9 | AM81: 3567308.45 | AN81: 2624057.19 | AO81: 22314.88 | AP81: 219831.52 | AQ81: 244010.22 | AR81: 241939.61 | AS81: 277177.08 | AT81: 982958.43
A82: 79 | B82: г.п. Одинцово | C82: г.Одинцово, Маршала Бирюзова, 2 | D82: ЖЭУ-1,2,3 | E82: 5324401.16 | F82: 0 | G82: 0 | H82: 0 | I82: 2.46 | J82: 0 | K82: 0 | L82: 0 | M82: 0 | N82: 0 | O82: -494.38 | P82: 0 | Q82: -31.23 | R82: 23.45 | S82: -127.42 | T82: -104.01 | U82: 0 | V82: 0 | W82: 0 | X82: -12.87 | Y82: 0 | Z82: 0 | AA82: 4289.31 | AB82: 7518.75 | AC82: 0 | AD82: 29324.98 | AE82: 15896.12 | AF82: 340428.2 | AG82: 0 | AH82: 0 | AI82: 0 | AJ82: 0 | AK82: 0 | AL82: 5721114.52 | AM82: 5583439.33 | AN82: 3213693.89 | AO82: 195004.76 | AP82: 1106187.28 | AQ82: 1234468.29 | AR82: 1323908.41 | AS82: 1429461.16 | AT82: 5094025.14
A83: 80 | B83: г.п. Одинцово | C83: г.Одинцово, Маршала Бирюзова, 2а | D83: ЖЭУ-1,2,3 | E83: 9594776.62 | F83: 0 | G83: -2246.77 | H83: 0 | I83: 0 | J83: 0 | K83: 0.99 | L83: 0 | M83: 0 | N83: 0 | O83: 241047.43 | P83: -354239.39 | Q83: -7576.76 | R83: 631553.65 | S83: 2466395 | T83: -13632.66 | U83: 199.45 | V83: 3783.47 | W83: 752.98 | X83: 0 | Y83: 0 | Z83: 0 | AA83: 758.24 | AB83: 590.25 | AC83: 0 | AD83: 8999.8 | AE83: 4451.52 | AF83: 198589.91 | AG83: 0 | AH83: 0 | AI83: 0 | AJ83: -159796.3 | AK83: 0 | AL83: 12614407.43 | AM83: 13390717.13 | AN83: 3863021.2 | AO83: 416067.44 | AP83: 2151441.92 | AQ83: 2339868.27 | AR83: 2624340.9 | AS83: 2671157.2 | AT83: 9786808.29
A84: 81 | B84: г.п. Одинцово | C84: г.Одинцово, Маршала Бирюзова, 4 | D84: ЖЭУ-1,2,3 | E84: 1255622.64 | F84: 0 | G84: 0 | H84: 0 | I84: 0 | J84: 0 | K84: 0 | L84: 0 | M84: 0 | N84: 0 | O84: 1693352.4 | P84: 0 | Q84: 290374.52 | R84: 203410.95 | S84: 793156.42 | T84: 522174.52 | U84: 0 | V84: 0 | W84: 0 | X84: 0 | Y84: 0 | Z84: 0 | AA84: 2048.64 | AB84: 2048.64 | AC84: 0 | AD84: 7989.72 | AE84: 4330.2 | AF84: 18103.2 | AG84: 0 | AH84: 0 | AI84: 0 | AJ84: 0 | AK84: 0 | AL84: 4792611.85 | AM84: 4786109.11 | AN84: 1829125.11 | AO84: 12579.1 | AP84: 275339.97 | AQ84: 285036.84 | AR84: 306570.67 | AS84: 351220.12 | AT84: 1218167.6
A85: 82 | B85: г.п. Одинцово | C85: г.Одинцово, Маршала Бирюзова, 6 | D85: ЖЭУ-1,2,3 | E85: 1243372.56 | F85: 0 | G85: 0 | H85: 0 | I85: 222.62 | J85: 0 | K85: 0 | L85: 0 | M85: 0 | N85: 0 | O85: 3389.2 | P85: 0 | Q85: 508.15 | R85: 367.97 | S85: 1117.88 | T85: 915.61 | U85: 0 | V85: 0 | W85: 0 | X85: 722.36 | Y85: 0 | Z85: 0 | AA85: 1958.88 | AB85: 1958.88 | AC85: 0 | AD85: 7639.32 | AE85: 4139.76 | AF85: 17456.81 | AG85: 0 | AH85: 0 | AI85: 0.98 | AJ85: 0.98 | AK85: 0 | AL85: 1283771.96 | AM85: 1574640.43 | AN85: 1711658.36 | AO85: 33804.05 | AP85: 253158.01 | AQ85: 266841 | AR85: 527999.63 | AS85: 294669.6 | AT85: 1342668.24
A86: 83 | B86: г.п. Одинцово | C86: г.Одинцово, Маршала Бирюзова, 8 | D86: ЖЭУ-1,2,3 | E86: 1232012.92 | F86: 0 | G86: 0 | H86: 0 | I86: 0 | J86: 0 | K86: 0 | L86: 0 | M86: 0 | N86: 0 | O86: 1660553.96 | P86: 0 | Q86: 242523.32 | R86: 193819.66 | S86: 755798.89 | T86: 461447.44 | U86: 0 | V86: 0 | W86: 0 | X86: 0 | Y86: 0 | Z86: 0 | AA86: 2268.79 | AB86: 2268.79 | AC86: 0 | AD86: 8850.77 | AE86: 4798.68 | AF86: 19947.35 | AG86: 0 | AH86: 0 | AI86: 0 | AJ86: 0 | AK86: 0 | AL86: 4584290.57 | AM86: 4772257.7 | AN86: 1686273.24 | AO86: 106418.68 | AP86: 285693.62 | AQ86: 299512.46 | AR86: 285143.56 | AS86: 390561.69 | AT86: 1260911.33
A87: 84 | B87: г.п. Одинцово | C87: г.Одинцово, Маршала Бирюзова, 10 к.1 | D87: ЖЭУ-1,2,3 | E87: 1569314.08 | F87: 0 | G87: -2466.87 | H87: 0 | I87: -1772.02 | J87: 0 | K87: 0 | L87: 0 | M87: 0 | N87: 0 | O87: 1494804.9 | P87: 0 | Q87: 174450.39 | R87: 132058.46 | S87: 515383.4 | T87: 324138.87 | U87: 0 | V87: 0 | W87: 0 | X87: 272.16 | Y87: 0 | Z87: 0 | AA87: 1937.69 | AB87: 1937.69 | AC87: 0 | AD87: 7579.98 | AE87: 4098.17 | AF87: 87872.36 | AG87: 0 | AH87: 0 | AI87: 0 | AJ87: 0 | AK87: 0 | AL87: 4309609.26 | AM87: 4269263.16 | AN87: 780933.71 | AO87: 16972.34 | AP87: 350800.29 | AQ87: 381009.76 | AR87: 370692.84 | AS87: 448678.09 | AT87: 1551180.98
A88: 85 | B88: г.п. Одинцово | C88: г.Одинцово, Маршала Бирюзова, 10 к.2 | D88: ЖЭУ-1,2,3 | E88: 1574867.02 | F88: 0 | G88: 0 | H88: 0 | I88: -57.38 | J88: 0 | K88: 0 | L88: 0 | M88: 0 | N88: 0 | O88: 1501526.09 | P88: 0 | Q88: 153911.14 | R88: 118129.99 | S88: 460237.19 | T88: 287675.34 | U88: 0 | V88: 0 | W88: 0 | X88: -34.79 | Y88: 0 | Z88: 0 | AA88: 1942.32 | AB88: 1942.32 | AC88: 0 | AD88: 7577.52 | AE88: 4108.55 | AF88: 87953.46 | AG88: 0 | AH88: 0 | AI88: 0 | AJ88: 0 | AK88: 0 | AL88: 4199778.77 | AM88: 4043423.01 | AN88: 1185264.88 | AO88: 27618.55 | AP88: 338088.96 | AQ88: 372313.42 | AR88: 380240.61 | AS88: 425422.4 | AT88: 1516065.39
A89: 86 | B89: г.п. Одинцово | C89: г.Одинцово, Маршала Бирюзова, 12 | D89: ЖЭУ-1,2,3 | E89: 4589927.41 | F89: 0 | G89: -5491.85 | H89: 0 | I89: -4375.04 | J89: 0 | K89: -2.24 | L89: 0 | M89: 0 | N89: 0 | O89: 4246459.42 | P89: 0 | Q89: 595073.44 | R89: 416493.43 | S89: 1627379.51 | T89: 1069871.84 | U89: 0 | V89: 0 | W89: 0 | X89: -3531.2 | Y89: 0 | Z89: 0 | AA89: 4771.32 | AB89: 4778.24 | AC89: 0 | AD89: 18672.78 | AE89: 10148.54 | AF89: 216092.13 | AG89: 0 | AH89: 0 | AI89: 0 | AJ89: 0 | AK89: 0 | AL89: 12786267.73 | AM89: 13508069.71 | AN89: 3621084.8 | AO89: 123873.02 | AP89: 1132350.11 | AQ89: 1031546.74 | AR89: 1225727.47 | AS89: 1377254.52 | AT89: 4766878.84
A90: 87 | B90: г.п. Одинцово | C90: г.Одинцово, Маршала Бирюзова, 14 | D90: ЖЭУ-1,2,3 | E90: 967568.64 | F90: 0 | G90: 0 | H90: 0 | I90: 0 | J90: 0 | K90: 0 | L90: 0 | M90: 0 | N90: 0 | O90: 1695542.1 | P90: 0 | Q90: 236454.92 | R90: 172675.28 | S90: 673209.49 | T90: 432645.96 | U90: 0 | V90: 0 | W90: 0 | X90: 0 | Y90: 0 | Z90: 0 | AA90: 1594.68 | AB90: 1594.68 | AC90: 0 | AD90: 6222.48 | AE90: 3373.26 | AF90: 14098.8 | AG90: 0 | AH90: 0 | AI90: 0 | AJ90: 0 | AK90: 0 | AL90: 4204980.29 | AM90: 4289018.13 | AN90: 1439694.54 | AO90: 5411.02 | AP90: 213480.68 | AQ90: 252637.47 | AR90: 241449.05 | AS90: 272771.01 | AT90: 980338.21
A91: 88 | B91: г.п. Одинцово | C91: г.Одинцово, Маршала Бирюзова, 16 | D91: ЖЭУ-1,2,3 | E91: 1239586.72 | F91: 0 | G91: 0 | H91: 0 | I91: 145.35 | J91: 0 | K91: 0 | L91: 0 | M91: 0 | N91: 0 | O91: 988.33 | P91: 0 | Q91: 600.48 | R91: 459.96 | S91: 810.2 | T91: 1098.36 | U91: 0 | V91: 0 | W91: 0 | X91: 595.37 | Y91: 0 | Z91: 0 | AA91: 2031.44 | AB91: 2031.44 | AC91: 0 | AD91: 7927.71 | AE91: 4300.39 | AF91: 17971.08 | AG91: 0 | AH91: 0 | AI91: 0 | AJ91: 0 | AK91: 0 | AL91: 1278546.83 | AM91: 1407994.24 | AN91: 457547.99 | AO91: 10667.26 | AP91: 280656.65 | AQ91: 413889.08 | AR91: 311453.64 | AS91: 327605.24 | AT91: 1333604.61
A92: 89 | B92: г.п. Одинцово | C92: г.Одинцово, Маршала Бирюзова, 18 | D92: ЖЭУ-1,2,3 | E92: 1236261.17 | F92: 0 | G92: -118.05 | H92: 0 | I92: -341.65 | J92: 0 | K92: 0 | L92: 0 | M92: 0 | N92: 0 | O92: -6251.82 | P92: 0 | Q92: 224993.32 | R92: -367.14 | S92: -1107.42 | T92: 405964.98 | U92: 0 | V92: 0 | W92: 0 | X92: -230.56 | Y92: 0 | Z92: 0 | AA92: 1920.37 | AB92: 1920.37 | AC92: 0 | AD92: 7489.32 | AE92: 4062.6 | AF92: 16857.55 | AG92: 0 | AH92: 0 | AI92: 0 | AJ92: 0 | AK92: 0 | AL92: 1891053.04 | AM92: 1899367.08 | AN92: 446153.36 | AO92: 35183.11 | AP92: 273469.37 | AQ92: 278012.18 | AR92: 347440.58 | AS92: 331947.81 | AT92: 1230869.94
A93: 90 | B93: г.п. Одинцово | C93: г.Одинцово, Маршала Бирюзова, 20 | D93: ЖЭУ-1,2,3 | E93: 1248799.8 | F93: 0 | G93: 0 | H93: 0 | I93: 0 | J93: 0 | K93: 0 | L93: 0 | M93: 0 | N93: 0 | O93: 1767461.73 | P93: 0 | Q93: 260742.41 | R93: 169306.07 | S93: 660132.4 | T93: 454772.61 | U93: 0 | V93: 0 | W93: 0 | X93: 0 | Y93: 0 | Z93: 0 | AA93: 1889.52 | AB93: 1889.52 | AC93: 0 | AD93: 7370.88 | AE93: 3995.87 | AF93: 16714.58 | AG93: 0 | AH93: 0 | AI93: 0 | AJ93: 0 | AK93: 0 | AL93: 4593075.39 | AM93: 4369464.2 | AN93: 659597.3 | AO93: 16372.61 | AP93: 255065.35 | AQ93: 299346.31 | AR93: 310306.46 | AS93: 331260.29 | AT93: 1195978.41
A94: 91 | B94: г.п. Одинцово | C94: г.Одинцово, Маршала Бирюзова, 24 корп.1 | D94: ЖЭУ-1,2,3 | E94: 1854962.91 | F94: 0 | G94: 0 | H94: 0 | I94: 37.14 | J94: 0 | K94: 0 | L94: 0 | M94: 0 | N94: 0 | O94: 2236130.2 | P94: 0 | Q94: 208111.28 | R94: 143501.04 | S94: 559328.85 | T94: 371807.77 | U94: 0 | V94: 0 | W94: 0 | X94: 81.9 | Y94: 0 | Z94: 0 | AA94: 1390.65 | AB94: 1390.65 | AC94: 0 | AD94: 5420.8 | AE94: 2941.77 | AF94: 107993.61 | AG94: 0 | AH94: 0 | AI94: 0 | AJ94: 0 | AK94: 0 | AL94: 5493098.57 | AM94: 5551062.8 | AN94: 985683.94 | AO94: 88564.99 | AP94: 405227.92 | AQ94: 463152.54 | AR94: 457530.99 | AS94: 533167.04 | AT94: 1859078.49
A95: 92 | B95: г.п. Одинцово | C95: г.Одинцово, Маршала Бирюзова, 24 корп.2 | D95: ЖЭУ-1,2,3 | E95: 1888580.89 | F95: 0 | G95: 0 | H95: 0 | I95: -51.29 | J95: 0 | K95: 0 | L95: 0 | M95: 0 | N95: 0 | O95: 2277030.89 | P95: 0 | Q95: 265622.72 | R95: 172061.45 | S95: 670808.92 | T95: 462852.82 | U95: 0 | V95: 0 | W95: 0 | X95: 178.95 | Y95: 0 | Z95: 0 | AA95: 1481.34 | AB95: 1481.34 | AC95: 0 | AD95: 5774.09 | AE95: 3133.34 | AF95: 114952.51 | AG95: 0 | AH95: 0 | AI95: 0 | AJ95: 0 | AK95: 0 | AL95: 5863907.97 | AM95: 5901929.73 | AN95: 648493.16 | AO95: 24334.34 | AP95: 440687.44 | AQ95: 452201.99 | AR95: 486430.66 | AS95: 525961.04 | AT95: 1905281.13
A96: 93 | B96: г.п. Одинцово | C96: г.Одинцово, Маршала Бирюзова, 26 | D96: ЖЭУ-1,2,3 | E96: 4656612.67 | F96: 0 | G96: 0 | H96: 0 | I96: 72.91 | J96: 0 | K96: 0 | L96: 0 | M96: 0 | N96: 0 | O96: 5613664.59 | P96: 0 | Q96: 561979.14 | R96: 386282.84 | S96: 1488568.6 | T96: 1002774.01 | U96: 0 | V96: 0 | W96: 0 | X96: 44.23 | Y96: 0 | Z96: 0 | AA96: 5230.58 | AB96: 5230.58 | AC96: 0 | AD96: 20397.96 | AE96: 11063.52 | AF96: 236849.93 | AG96: 0 | AH96: 0 | AI96: 0 | AJ96: 0 | AK96: 0 | AL96: 13988771.56 | AM96: 13623309.75 | AN96: 2993476.65 | AO96: 36710.98 | AP96: 975777.15 | AQ96: 1155959.4 | AR96: 1141959.61 | AS96: 1279424.92 | AT96: 4553121.08
A97: 94 | B97: г.п. Одинцово | C97: г.Одинцово, Маршала Бирюзова, 28 | D97: ЖЭУ-1,2,3 | E97: 3539020.36 | F97: 0 | G97: 0 | H97: 0 | I97: 993.05 | J97: 0 | K97: 0 | L97: 0 | M97: 0 | N97: 0 | O97: 4247045.91 | P97: 0 | Q97: 451648.87 | R97: 313210.71 | S97: 1222990.45 | T97: 808768.15 | U97: 0 | V97: 0 | W97: 0 | X97: 1317.37 | Y97: 0 | Z97: 0 | AA97: 2304.9 | AB97: 2304.9 | AC97: 0 | AD97: 8983.21 | AE97: 4876.35 | AF97: 178930.6 | AG97: 0 | AH97: 0 | AI97: 2.52 | AJ97: 37.14 | AK97: 0 | AL97: 10782434.49 | AM97: 10284346.16 | AN97: 2720504.49 | AO97: 35055.23 | AP97: 752272.53 | AQ97: 865505.28 | AR97: 852241.06 | AS97: 916289.33 | AT97: 3386308.2
A98: 95 | B98: г.п. Одинцово | C98: г.Одинцово, Маршала Бирюзова, 30 корп.А | D98: ЖЭУ-1,2,3 | E98: 2611232.59 | F98: 0 | G98: 0 | H98: 0 | I98: 0 | J98: 0 | K98: 0 | L98: 0 | M98: 0 | N98: 0 | O98: 0 | P98: 0 | Q98: 0 | R98: 0 | S98: 0 | T98: 0 | U98: 0 | V98: 0 | W98: 0 | X98: 0 | Y98: 0 | Z98: 0 | AA98: 2768.76 | AB98: 2768.76 | AC98: 0 | AD98: 10791.96 | AE98: 5856.97 | AF98: 214990.68 | AG98: 0 | AH98: 0 | AI98: 0 | AJ98: 0 | AK98: 0 | AL98: 2848409.72 | AM98: 2864415.44 | AN98: 401229.78 | AO98: 40425.05 | AP98: 579917 | AQ98: 605434.11 | AR98: 636288.27 | AS98: 731696.88 | AT98: 2553336.26
A99: 96 | B99: г.п. Одинцово | C99: г.Одинцово, Маршала Бирюзова, 30 корп.Б | D99: ЖЭУ-1,2,3 | E99: 2603497.07 | F99: 0 | G99: 0 | H99: 0 | I99: 10.12 | J99: 0 | K99: 0 | L99: 0 | M99: 0 | N99: 0 | O99: 2415493.56 | P99: 0 | Q99: 244683.53 | R99: 163460.81 | S99: 637522.43 | T99: 431872.75 | U99: 0 | V99: 0 | W99: 0 | X99: 924.14 | Y99: 0 | Z99: 0 | AA99: 2768.28 | AB99: 2768.28 | AC99: 0 | AD99: 10791 | AE99: 5857.08 | AF99: 215030.81 | AG99: 0 | AH99: 0 | AI99: 0 | AJ99: 0 | AK99: 0 | AL99: 6734679.86 | AM99: 6879378.22 | AN99: 1086769.33 | AO99: 14612.42 | AP99: 564162.66 | AQ99: 671415.75 | AR99: 659804.91 | AS99: 716984.05 | AT99: 2612367.37
A100: 97 | B100: г.п. Одинцово | C100: г.Одинцово, Маршала Жукова, 1 корп.А | D100: ЖЭУ-1,2,3 | E100: 2622343.68 | F100: 0 | G100: 0 | H100: 0 | I100: 0 | J100: 0 | K100: 0 | L100: 0 | M100: 0 | N100: 0 | O100: 0 | P100: 38.97 | Q100: 0 | R100: 157227.95 | S100: 612122.59 | T100: 0 | U100: 0 | V100: 0 | W100: 0 | X100: 0 | Y100: 0 | Z100: 0 | AA100: 7151.84 | AB100: 7151.84 | AC100: 0 | AD100: 14580.21 | AE100: 15015.07 | AF100: 254336.25 | AG100: 0 | AH100: 0 | AI100: 0 | AJ100: 0 | AK100: 0 | AL100: 3689968.4 | AM100: 3540350.28 | AN100: 1361344.2 | AO100: 128544.28 | AP100: 525712.09 | AQ100: 628676.32 | AR100: 715182.9 | AS100: 684266.28 | AT100: 2553837.59
A101: 98 | B101: г.п. Одинцово | C101: г.Одинцово, Маршала Жукова, 4 | D101: ЖЭУ-1,2,3 | E101: 1205383.32 | F101: 0 | G101: 0 | H101: 0 | I101: 214.38 | J101: 0 | K101: 40.55 | L101: 0 | M101: 0 | N101: 0 | O101: 2110305.36 | P101: 0 | Q101: 253520.24 | R101: 175946.81 | S101: 685652.26 | T101: 454135.45 | U101: 0 | V101: 0 | W101: 0 | X101: 211.23 | Y101: 0 | Z101: 0 | AA101: 2083.03 | AB101: 2083.05 | AC101: 0 | AD101: 8124.88 | AE101: 4405.56 | AF101: 18461.33 | AG101: 0 | AH101: 0 | AI101: 0 | AJ101: 0 | AK101: 0 | AL101: 4920567.45 | AM101: 4898320.68 | AN101: 3927077.21 | AO101: 23665.86 | AP101: 228174.5 | AQ101: 268912.83 | AR101: 315374.72 | AS101: 360355.58 | AT101: 1172817.63
A102: 99 | B102: г.п. Одинцово | C102: г.Одинцово, Маршала Жукова, 7 к.1 | D102: ЖЭУ-1,2,3 | E102: 1582986.24 | F102: 0 | G102: 0 | H102: 0 | I102: 0 | J102: 0 | K102: 0 | L102: 0 | M102: 0 | N102: 0 | O102: 1908406.68 | P102: 0 | Q102: 182013.74 | R102: 132803.59 | S102: 517714.96 | T102: 332957.9 | U102: 0 | V102: 0 | W102: 0 | X102: 0 | Y102: 0 | Z102: 0 | AA102: 3168 | AB102: 3168 | AC102: 0 | AD102: 12357.6 | AE102: 6700.8 | AF102: 143485.91 | AG102: 0 | AH102: 0 | AI102: 0 | AJ102: 0 | AK102: 0 | AL102: 4825763.42 | AM102: 4612635.46 | AN102: 1345709.16 | AO102: 81896.87 | AP102: 340594.9 | AQ102: 372292.65 | AR102: 375495.9 | AS102: 434094.82 | AT102: 1522478.27
A103: 100 | B103: г.п. Одинцово | C103: г.Одинцово, Маршала Жукова, 7 к.2 | D103: ЖЭУ-1,2,3 | E103: 1573395.84 | F103: 0 | G103: 0 | H103: 0 | I103: 0 | J103: 0 | K103: 0 | L103: 0 | M103: 0 | N103: 0 | O103: 1896845.4 | P103: 0 | Q103: 191279.38 | R103: 130448.06 | S103: 508659.28 | T103: 340226.45 | U103: 0 | V103: 0 | W103: 0 | X103: 0 | Y103: 0 | Z103: 0 | AA103: 3148.08 | AB103: 3148.08 | AC103: 0 | AD103: 12282.72 | AE103: 6660.12 | AF103: 142604.52 | AG103: 0 | AH103: 0 | AI103: 0 | AJ103: 0 | AK103: 0 | AL103: 4808697.93 | AM103: 4496997.12 | AN103: 1308928.53 | AO103: 23345.03 | AP103: 343699.15 | AQ103: 354781.29 | AR103: 366435.92 | AS103: 399995 | AT103: 1464911.36
A104: 101 | B104: г.п. Одинцово | C104: г.Одинцово, Маршала Жукова, 10 | D104: ЖЭУ-1,2,3 | E104: 1492680.9 | F104: 0 | G104: 0 | H104: 0 | I104: 0 | J104: 0 | K104: 0 | L104: 0 | M104: 0 | N104: 0 | O104: 0 | P104: 0 | Q104: 0 | R104: 0 | S104: 0 | T104: 0 | U104: 0 | V104: 0 | W104: 0 | X104: 0 | Y104: 0 | Z104: 0 | AA104: 3313.08 | AB104: 3313.08 | AC104: 0 | AD104: 12923.4 | AE104: 7006.68 | AF104: 29283 | AG104: 0 | AH104: 0 | AI104: 0 | AJ104: 0 | AK104: 0 | AL104: 1548520.14 | AM104: 1738339.4 | AN104: 557244.55 | AO104: 23121.33 | AP104: 393767.82 | AQ104: 331345.96 | AR104: 385653.17 | AS104: 388244.09 | AT104: 1499011.04
A105: 102 | B105: г.п. Одинцово | C105: г.Одинцово, Маршала Жукова, 12 | D105: ЖЭУ-1,2,3 | E105: 1604517.28 | F105: 0 | G105: 0 | H105: 0 | I105: -58.79 | J105: 0 | K105: 0 | L105: 0 | M105: 0 | N105: 0 | O105: 2163905.1 | P105: 0 | Q105: 296730.46 | R105: 197152.28 | S105: 768734.13 | T105: 522277.87 | U105: 0 | V105: 0 | W105: 0 | X105: -73.74 | Y105: 0 | Z105: 0 | AA105: 3561.49 | AB105: 3561.49 | AC105: 0 | AD105: 13898.97 | AE105: 7539.79 | AF105: 31514.28 | AG105: 0 | AH105: 0 | AI105: 0 | AJ105: 0 | AK105: 0 | AL105: 5613260.61 | AM105: 5619622.95 | AN105: 1352251.97 | AO105: 25584.82 | AP105: 367050.74 | AQ105: 392206.1 | AR105: 388439.22 | AS105: 426512.77 | AT105: 1574208.83
A106: 103 | B106: г.п. Одинцово | C106: г.Одинцово, Маршала Жукова, 13 | D106: ЖЭУ-1,2,3 | E106: 2383756.48 | F106: 0 | G106: -3204.16 | H106: 0 | I106: -3657.98 | J106: 0 | K106: 0 | L106: 0 | M106: 0 | N106: 0 | O106: -83270.06 | P106: 0 | Q106: -6962.3 | R106: -5041.67 | S106: -14984.01 | T106: -12415.06 | U106: 0 | V106: 0 | W106: 0 | X106: -3129.11 | Y106: 0 | Z106: 0 | AA106: 4407.86 | AB106: 4407.86 | AC106: 0 | AD106: 17195.09 | AE106: 9322.31 | AF106: 38194.11 | AG106: 0 | AH106: 0 | AI106: -3978.24 | AJ106: -275321.42 | AK106: 0 | AL106: 2045319.7 | AM106: 2667920.18 | AN106: 694138.82 | AO106: 72835.76 | AP106: 561884.83 | AQ106: 585332.23 | AR106: 660410.75 | AS106: 623973.53 | AT106: 2431601.34
A107: 104 | B107: г.п. Одинцово | C107: г.Одинцово, Маршала Жукова, 14 | D107: ЖЭУ-1,2,3 | E107: 1601937.97 | F107: 0 | G107: 94.05 | H107: 0 | I107: -1778.77 | J107: 0 | K107: 11.19 | L107: 0 | M107: 0 | N107: 0 | O107: -45488.42 | P107: 0 | Q107: -9534.11 | R107: -7611.1 | S107: -22598.16 | T107: -17751.92 | U107: 0 | V107: 0 | W107: 0 | X107: -5686.39 | Y107: 0 | Z107: 0 | AA107: 3445.02 | AB107: 3463.17 | AC107: 0 | AD107: 13574.93 | AE107: 7418.98 | AF107: 30717.67 | AG107: 0 | AH107: 0 | AI107: -1473.99 | AJ107: -17217.36 | AK107: 0 | AL107: 1531522.76 | AM107: 1599389.59 | AN107: 673276.95 | AO107: 94494.12 | AP107: 342615.21 | AQ107: 369433.16 | AR107: 389331.18 | AS107: 433827.05 | AT107: 1535206.6
A108: 105 | B108: г.п. Одинцово | C108: г.Одинцово, Маршала Жукова, 15 | D108: ЖЭУ-1,2,3 | E108: 1230657.26 | F108: 0 | G108: 0 | H108: 0 | I108: -535.8 | J108: 0 | K108: -57.86 | L108: 0 | M108: 0 | N108: 0 | O108: 2168859.67 | P108: 0 | Q108: 261652.31 | R108: 189517.11 | S108: 755694.41 | T108: 477557.24 | U108: 0 | V108: 0 | W108: 0 | X108: -3370.59 | Y108: 0 | Z108: 0 | AA108: 2203.91 | AB108: 2203.91 | AC108: 0 | AD108: 8599.21 | AE108: 4661.76 | AF108: 19144.88 | AG108: 0 | AH108: 0 | AI108: -5965.18 | AJ108: -303514.97 | AK108: 0 | AL108: 4807307.27 | AM108: 5013845.15 | AN108: 1286792.26 | AO108: 29116.86 | AP108: 269983.51 | AQ108: 304630.18 | AR108: 296927.89 | AS108: 339565.24 | AT108: 1211106.82
A109: 106 | B109: г.п. Одинцово | C109: г.Одинцово, Маршала Жукова, 16 | D109: ЖЭУ-1,2,3 | E109: 970649.72 | F109: 0 | G109: 0 | H109: 0 | I109: 1.37 | J109: 0 | K109: 0 | L109: 0 | M109: 0 | N109: 0 | O109: 23.43 | P109: 0 | Q109: 160324.35 | R109: 0 | S109: 0 | T109: 274100.01 | U109: 0 | V109: 0 | W109: 0 | X109: 2.58 | Y109: 0 | Z109: 0 | AA109: 2215.83 | AB109: 2215.83 | AC109: 0 | AD109: 8642.26 | AE109: 4685.11 | AF109: 19581.74 | AG109: 0 | AH109: 0 | AI109: 0 | AJ109: 0 | AK109: 0 | AL109: 1442442.23 | AM109: 1604800.53 | AN109: 279536.33 | AO109: 8652.68 | AP109: 215399.21 | AQ109: 254142.56 | AR109: 281702.77 | AS109: 269716.18 | AT109: 1020960.72
A110: 107 | B110: г.п. Одинцово | C110: г.Одинцово, Маршала Жукова, 17 | D110: ЖЭУ-1,2,3 | E110: 1248953.46 | F110: 0 | G110: 0 | H110: 0 | I110: 0 | J110: 0 | K110: 0 | L110: 0 | M110: 0 | N110: 0 | O110: 0 | P110: 0 | Q110: 0 | R110: 0 | S110: 0 | T110: 0 | U110: 0 | V110: 0 | W110: 0 | X110: 0 | Y110: 0 | Z110: 0 | AA110: 2203.57 | AB110: 2203.57 | AC110: 0 | AD110: 8597.52 | AE110: 4660.92 | AF110: 19483.16 | AG110: 0 | AH110: 0 | AI110: 0 | AJ110: 0 | AK110: 0 | AL110: 1286102.2 | AM110: 1293287.4 | AN110: 286518.12 | AO110: 71368.03 | AP110: 259295.85 | AQ110: 302367.47 | AR110: 310130.45 | AS110: 366895.23 | AT110: 1238689
A111: 108 | B111: г.п. Одинцово | C111: г.Одинцово, Маршала Жукова, 19 | D111: ЖЭУ-1,2,3 | E111: 1225236.81 | F111: 0 | G111: 0 | H111: 0 | I111: 656.18 | J111: 0 | K111: 0 | L111: 0 | M111: 0 | N111: 0 | O111: 3937.6 | P111: 0 | Q111: 806.57 | R111: 606.38 | S111: 1207.49 | T111: 1306.96 | U111: 0 | V111: 0 | W111: 0 | X111: 114.66 | Y111: 0 | Z111: 0 | AA111: 2093.61 | AB111: 2092.57 | AC111: 0 | AD111: 8166.09 | AE111: 4423.14 | AF111: 18528.73 | AG111: 0 | AH111: 0 | AI111: -127.31 | AJ111: -4280.76 | AK111: 0 | AL111: 1264768.72 | AM111: 1197857.64 | AN111: 203524.84 | AO111: 57042.04 | AP111: 256443.21 | AQ111: 274705.04 | AR111: 290866.18 | AS111: 334910.06 | AT111: 1156924.49
A112: 109 | B112: г.п. Одинцово | C112: г.Одинцово, Маршала Жукова, 21 | D112: ЖЭУ-1,2,3 | E112: 1242874.27 | F112: 0 | G112: -397.82 | H112: 0 | I112: -31.83 | J112: 0 | K112: 0 | L112: 0 | M112: 0 | N112: 0 | O112: 1676156.26 | P112: 0 | Q112: 278807.59 | R112: 205948.27 | S112: 797026.13 | T112: 512624.33 | U112: 0 | V112: 0 | W112: 0 | X112: 107.47 | Y112: 0 | Z112: 0 | AA112: 1819.2 | AB112: 1819.2 | AC112: 0 | AD112: 7098.72 | AE112: 3848.41 | AF112: 16185.45 | AG112: 0 | AH112: 0 | AI112: 0 | AJ112: 0 | AK112: 0 | AL112: 4743885.65 | AM112: 4643724.4 | AN112: 1594963.48 | AO112: 25582.56 | AP112: 305989.35 | AQ112: 271742.06 | AR112: 297510.04 | AS112: 342752.97 | AT112: 1217994.42
A113: 110 | B113: г.п. Одинцово | C113: г.Одинцово, Маршала Жукова, 25 к.1 | D113: ЖЭУ-1,2,3 | E113: 1401183.36 | F113: 0 | G113: 0 | H113: 0 | I113: 0 | J113: 0 | K113: 0 | L113: 0 | M113: 0 | N113: 0 | O113: 0 | P113: 0 | Q113: 0 | R113: 126.8 | S113: 494.46 | T113: 611.57 | U113: 0 | V113: 0 | W113: 0 | X113: 0 | Y113: 0 | Z113: 0 | AA113: 1623.84 | AB113: 1623.84 | AC113: 0 | AD113: 6335.28 | AE113: 3435.12 | AF113: 73548.48 | AG113: 0 | AH113: 0 | AI113: 0 | AJ113: 0 | AK113: 0 | AL113: 1488982.75 | AM113: 1438372.98 | AN113: 201686.98 | AO113: 53274.09 | AP113: 266981.96 | AQ113: 337857.12 | AR113: 357097.97 | AS113: 391686.37 | AT113: 1353623.42
A114: 111 | B114: г.п. Одинцово | C114: г.Одинцово, Маршала Жукова, 25 к.2 | D114: ЖЭУ-1,2,3 | E114: 1569310.86 | F114: 0 | G114: 0 | H114: 0 | I114: 0 | J114: 0 | K114: 0 | L114: 0 | M114: 0 | N114: 0 | O114: 0 | P114: 0 | Q114: 0 | R114: 0 | S114: 0 | T114: 0 | U114: 0 | V114: 0 | W114: 0 | X114: 0 | Y114: 0 | Z114: 0 | AA114: 906.72 | AB114: 906.72 | AC114: 0 | AD114: 3537.48 | AE114: 1917.96 | AF114: 82371.84 | AG114: 0 | AH114: 0 | AI114: 0 | AJ114: 0 | AK114: 0 | AL114: 1658951.58 | AM114: 1756876.7 | AN114: 188888.03 | AO114: 61878.66 | AP114: 324043.35 | AQ114: 413284.76 | AR114: 399965.63 | AS114: 474885.74 | AT114: 1612179.48
A115: 112 | B115: г.п. Одинцово | C115: г.Одинцово, Маршала Жукова, 27 к.1 | D115: ЖЭУ-1,2,3 | E115: 1546074.12 | F115: 0 | G115: -36.08 | H115: 0 | I115: 0 | J115: 0 | K115: 0 | L115: 0 | M115: 0 | N115: 0 | O115: 1433674.19 | P115: 0 | Q115: 171823.23 | R115: 118111.22 | S115: 460543.12 | T115: 306605.64 | U115: 0 | V115: 0 | W115: 0 | X115: 0 | Y115: 0 | Z115: 0 | AA115: 1851.4 | AB115: 1851.4 | AC115: 0 | AD115: 7223.83 | AE115: 3916.46 | AF115: 83866.67 | AG115: 0 | AH115: 0 | AI115: 0 | AJ115: 0 | AK115: 0 | AL115: 4135505.2 | AM115: 3996214.58 | AN115: 955992.09 | AO115: 13592.61 | AP115: 341932.67 | AQ115: 352698.47 | AR115: 370996.38 | AS115: 410316.97 | AT115: 1475944.49
A116: 113 | B116: г.п. Одинцово | C116: г.Одинцово, Маршала Жукова, 27 к.2 | D116: ЖЭУ-1,2,3 | E116: 1584048.55 | F116: 0 | G116: 0 | H116: 0 | I116: 35.93 | J116: 0 | K116: 0 | L116: 0 | M116: 0 | N116: 0 | O116: 1469645.45 | P116: 0 | Q116: 194693.46 | R116: 132882.24 | S116: 518052.3 | T116: 346406.03 | U116: 0 | V116: 0 | W116: 0 | X116: 21.79 | Y116: 0 | Z116: 0 | AA116: 1892.16 | AB116: 1892.16 | AC116: 0 | AD116: 7379.64 | AE116: 4002 | AF116: 85696.33 | AG116: 0 | AH116: 0 | AI116: 0 | AJ116: 0 | AK116: 0 | AL116: 4346648.04 | AM116: 4367670.75 | AN116: 1401975.16 | AO116: 44636.14 | AP116: 338528.52 | AQ116: 363003.71 | AR116: 399301.73 | AS116: 447046.54 | AT116: 1547880.5
A117: 114 | B117: г.п. Одинцово | C117: г.Одинцово, Маршала Жукова, 29 | D117: ЖЭУ-1,2,3 | E117: 3536786.4 | F117: 0 | G117: 0 | H117: 0 | I117: 157.32 | J117: 0 | K117: 0 | L117: 0 | M117: 0 | N117: 0 | O117: 2798899.5 | P117: 0 | Q117: 401413.78 | R117: 286980.5 | S117: 1118853.69 | T117: 728029.14 | U117: 0 | V117: 0 | W117: 0 | X117: 1158.05 | Y117: 0 | Z117: 0 | AA117: 3182.39 | AB117: 3182.39 | AC117: 0 | AD117: 12413.74 | AE117: 6730.89 | AF117: 144176.18 | AG117: 0 | AH117: 0 | AI117: 0 | AJ117: 0 | AK117: 0 | AL117: 9041963.97 | AM117: 9469570.12 | AN117: 1483111.19 | AO117: 83223.46 | AP117: 737823.61 | AQ117: 874570.85 | AR117: 945203.75 | AS117: 979251.89 | AT117: 3536850.1
A118: 115 | B118: г.п. Одинцово | C118: г.Одинцово, Маршала Жукова, 33 | D118: ЖЭУ-1,2,3 | E118: 1232063.73 | F118: 0 | G118: -1121.52 | H118: 0 | I118: 1066.19 | J118: 0 | K118: 0 | L118: 0 | M118: 0 | N118: 0 | O118: 1660775.51 | P118: 0 | Q118: 269747.91 | R118: 194061.33 | S118: 751864.64 | T118: 488213.01 | U118: 0 | V118: 0 | W118: 0 | X118: 1536.61 | Y118: 0 | Z118: 0 | AA118: 1866.76 | AB118: 1866.76 | AC118: 0 | AD118: 7283 | AE118: 3948.76 | AF118: 19146 | AG118: 0 | AH118: 0 | AI118: 0 | AJ118: 0 | AK118: 0 | AL118: 4632318.69 | AM118: 4785379.04 | AN118: 1099916.36 | AO118: 43307.71 | AP118: 284948.97 | AQ118: 307026.61 | AR118: 316128.37 | AS118: 339512.22 | AT118: 1247616.17
A119: 116 | B119: г.п. Одинцово | C119: г.Одинцово, Маршала Жукова, 35 | D119: ЖЭУ-1,2,3 | E119: 1245325.26 | F119: 0 | G119: -203.64 | H119: 0 | I119: -148.57 | J119: 0 | K119: 0.28 | L119: 0 | M119: 0 | N119: 0 | O119: 1679515.29 | P119: 0 | Q119: 287085.82 | R119: 205332.26 | S119: 800810.64 | T119: 520736.64 | U119: 0 | V119: 0 | W119: 0 | X119: -2568.86 | Y119: 0 | Z119: 0 | AA119: 3013.31 | AB119: 3013.31 | AC119: 0 | AD119: 11755.6 | AE119: 6373.92 | AF119: 26597.56 | AG119: 0 | AH119: 0 | AI119: 9.24 | AJ119: 0 | AK119: 0 | AL119: 4786648.06 | AM119: 4607688.04 | AN119: 1734241.08 | AO119: 30207.4 | AP119: 271399.99 | AQ119: 276784.59 | AR119: 293181.92 | AS119: 349387.5 | AT119: 1190754
A120: 117 | B120: г.п. Одинцово | C120: г.Одинцово, Маршала Жукова, 37 | D120: ЖЭУ-1,2,3 | E120: 2503847.34 | F120: 0 | G120: 81.07 | H120: 0 | I120: 91.45 | J120: 0 | K120: 0 | L120: 0 | M120: 0 | N120: 0 | O120: 4387383.21 | P120: 0 | Q120: 474433.05 | R120: 313309.12 | S120: 1224390.93 | T120: 833031.4 | U120: 0 | V120: 0 | W120: 0 | X120: 265.85 | Y120: 0 | Z120: 0 | AA120: 6138.53 | AB120: 6138.53 | AC120: 0 | AD120: 23946.43 | AE120: 12981.88 | AF120: 54267.44 | AG120: 0 | AH120: 0 | AI120: 0 | AJ120: 0 | AK120: 0 | AL120: 9840306.23 | AM120: 9837694.87 | AN120: 1037675.29 | AO120: 16554.56 | AP120: 548391.46 | AQ120: 592452.57 | AR120: 641408.27 | AS120: 710421.4 | AT120: 2492673.7
A121: 118 | B121: г.п. Одинцово | C121: г.Одинцово, Маршала Жукова, 41 | D121: ЖЭУ-1,2,3 | E121: 1246856.75 | F121: 0 | G121: 0 | H121: 0 | I121: -620.56 | J121: 0 | K121: 0 | L121: 0 | M121: 0 | N121: 0 | O121: 1682508.1 | P121: 0 | Q121: 253951.33 | R121: 183489.03 | S121: 719932.67 | T121: 462901.47 | U121: 0 | V121: 0 | W121: 0 | X121: -2310.32 | Y121: 0 | Z121: 0 | AA121: 3068.87 | AB121: 3068.87 | AC121: 0 | AD121: 11972.48 | AE121: 6491.03 | AF121: 27001.74 | AG121: 0 | AH121: 0 | AI121: 0 | AJ121: -1185.78 | AK121: 0 | AL121: 4597125.68 | AM121: 4543591.1 | AN121: 2220353.46 | AO121: 8199.83 | AP121: 273803.89 | AQ121: 269816.52 | AR121: 317325.16 | AS121: 369176.12 | AT121: 1230121.69
A122: 119 | B122: г.п. Одинцово | C122: г.Одинцово, Маршала Жукова, 43 | D122: ЖЭУ-1,2,3 | E122: 1261808.27 | F122: 0 | G122: 0 | H122: 0 | I122: -190.6 | J122: 0 | K122: 0 | L122: 0 | M122: 0 | N122: 0 | O122: 1700186.61 | P122: 0 | Q122: 246295.46 | R122: 173658.67 | S122: 676577.96 | T122: 444046.17 | U122: 0 | V122: 0 | W122: 0 | X122: -26.89 | Y122: 0 | Z122: 0 | AA122: 1979.47 | AB122: 1979.47 | AC122: 0 | AD122: 7707.23 | AE122: 4190.65 | AF122: 17504.12 | AG122: 0 | AH122: 0 | AI122: 0 | AJ122: 0 | AK122: 0 | AL122: 4535716.59 | AM122: 4725087.16 | AN122: 1615847.22 | AO122: 41499.27 | AP122: 258795.16 | AQ122: 329076.6 | AR122: 305174.67 | AS122: 381610.76 | AT122: 1274657.19
A123: 120 | B123: г.п. Одинцово | C123: г.Одинцово, Маршала Жукова, 45 | D123: ЖЭУ-1,2,3 | E123: 1189395.95 | F123: 0 | G123: 0 | H123: 0 | I123: 1.93 | J123: 0 | K123: 0 | L123: 0 | M123: 0 | N123: 0 | O123: 1604026.17 | P123: 0 | Q123: 215593.93 | R123: 144484.98 | S123: 563298.31 | T123: 397707.21 | U123: 0 | V123: 0 | W123: 0 | X123: -3596.4 | Y123: 0 | Z123: 0 | AA123: 2040.97 | AB123: 2040.97 | AC123: 0 | AD123: 7963.1 | AE123: 4317.73 | AF123: 18044.57 | AG123: 0 | AH123: 0 | AI123: 0 | AJ123: 0 | AK123: 0 | AL123: 4145319.42 | AM123: 3974484.69 | AN123: 2450658.88 | AO123: 41662.21 | AP123: 249234.32 | AQ123: 295732.11 | AR123: 281383.59 | AS123: 306018.48 | AT123: 1132368.5
A124: 121 | B124: г.п. Одинцово | C124: г.Одинцово, Маршала Жукова, 47 | D124: ЖЭУ-1,2,3 | E124: 1135970.04 | F124: 0 | G124: 0 | H124: 0 | I124: 0 | J124: 0 | K124: 0 | L124: 0 | M124: 0 | N124: 0 | O124: 0 | P124: 0 | Q124: 0 | R124: 0 | S124: 0 | T124: 0 | U124: 0 | V124: 0 | W124: 0 | X124: 0 | Y124: 0 | Z124: 0 | AA124: 1594.44 | AB124: 1594.44 | AC124: 0 | AD124: 6219.96 | AE124: 3372.22 | AF124: 14093.03 | AG124: 0 | AH124: 0 | AI124: 0 | AJ124: 0 | AK124: 0 | AL124: 1162844.13 | AM124: 1536958.13 | AN124: 1417013.94 | AO124: 23367.43 | AP124: 229102.87 | AQ124: 277851.64 | AR124: 310424.75 | AS124: 339818.56 | AT124: 1157197.82
A125: 122 | B125: г.п. Одинцово | C125: г.Одинцово, Маршала Жукова, 49 | D125: ЖЭУ-1,2,3 | E125: 2606913.71 | F125: 0 | G125: 0 | H125: 0 | I125: 0 | J125: 0 | K125: 0 | L125: 0 | M125: 0 | N125: 0 | O125: -1288.5 | P125: 0 | Q125: 324283.37 | R125: -211.77 | S125: -635.74 | T125: 561506.83 | U125: 0 | V125: 0 | W125: 0 | X125: 0 | Y125: 0 | Z125: 0 | AA125: 3152.34 | AB125: 3152.34 | AC125: 0 | AD125: 12288.99 | AE125: 6670.92 | AF125: 183675.83 | AG125: 0 | AH125: 0 | AI125: 0 | AJ125: 0 | AK125: 0 | AL125: 3699508.32 | AM125: 3765574.2 | AN125: 276258.43 | AO125: 35163.01 | AP125: 545255.62 | AQ125: 625883.49 | AR125: 642517.48 | AS125: 832703.7 | AT125: 2646360.29
A126: 123 | B126: г.п. Одинцово | C126: г.Одинцово, Можайское шоссе, 15 | D126: ЖЭУ-1,2,3 | E126: 1245869.38 | F126: 0 | G126: 417.07 | H126: 0 | I126: 1591.38 | J126: 0 | K126: 0 | L126: 0 | M126: 0 | N126: 0 | O126: -892.85 | P126: 0 | Q126: -191.75 | R126: -138.85 | S126: -88.54 | T126: -346.21 | U126: 0 | V126: 0 | W126: 0 | X126: 125.05 | Y126: 0 | Z126: 0 | AA126: 2395.91 | AB126: 2395.91 | AC126: 0 | AD126: 9347.14 | AE126: 5067.77 | AF126: 21160.14 | AG126: 0 | AH126: 0 | AI126: 0 | AJ126: 0 | AK126: 0 | AL126: 1286711.55 | AM126: 1282930.89 | AN126: 1124293.37 | AO126: 57437.08 | AP126: 248914.18 | AQ126: 261560.23 | AR126: 360658.94 | AS126: 326299.39 | AT126: 1197432.74
A127: 124 | B127: г.п. Одинцово | C127: г.Одинцово, Можайское шоссе, 23 | D127: ЖЭУ-1,2,3 | E127: 1128632.23 | F127: 0 | G127: 0 | H127: 0 | I127: 58.79 | J127: 0 | K127: 0 | L127: 0 | M127: 0 | N127: 0 | O127: 1977456.78 | P127: 0 | Q127: 205576.76 | R127: 140660.86 | S127: 547974.02 | T127: 366131.23 | U127: 0 | V127: 0 | W127: 0 | X127: 73.74 | Y127: 0 | Z127: 0 | AA127: 1857.68 | AB127: 1857.68 | AC127: 0 | AD127: 7247.45 | AE127: 3930.25 | AF127: 16422.69 | AG127: 0 | AH127: 0 | AI127: 0 | AJ127: 0 | AK127: 0 | AL127: 4397880.16 | AM127: 4206324.19 | AN127: 2857232.31 | AO127: 24581.75 | AP127: 246842.86 | AQ127: 260738.51 | AR127: 276018.34 | AS127: 288892.16 | AT127: 1072491.87
A128: 125 | B128: г.п. Одинцово | C128: г.Одинцово, Можайское шоссе, 25 | D128: ЖЭУ-1,2,3 | E128: 1264038.84 | F128: 0 | G128: 0 | H128: 0 | I128: 0 | J128: 0 | K128: 0 | L128: 0 | M128: 0 | N128: 0 | O128: 0 | P128: 0 | Q128: 838.97 | R128: 0 | S128: 0 | T128: 663.42 | U128: 0 | V128: 0 | W128: 0 | X128: 0 | Y128: 0 | Z128: 0 | AA128: 1940.4 | AB128: 1934.04 | AC128: 0 | AD128: 7546.8 | AE128: 4090.8 | AF128: 17098.56 | AG128: 0 | AH128: 0 | AI128: 0 | AJ128: 0 | AK128: 0 | AL128: 1298151.83 | AM128: 1262431.03 | AN128: 632057.1 | AO128: 38259.96 | AP128: 268341.35 | AQ128: 320635.13 | AR128: 307865.27 | AS128: 330260.4 | AT128: 1227102.15
A129: 126 | B129: г.п. Одинцово | C129: г.Одинцово, Можайское шоссе, 26 | D129: ЖЭУ-6,7 | E129: 1188769.21 | F129: 0 | G129: 0 | H129: 0 | I129: 26.13 | J129: 0 | K129: 0 | L129: 0 | M129: 0 | N129: 0 | O129: 1603129.27 | P129: 0 | Q129: 270694.06 | R129: 181067.79 | S129: 705826.47 | T129: 477732.84 | U129: 0 | V129: 0 | W129: 0 | X129: 15.85 | Y129: 0 | Z129: 0 | AA129: 1535.04 | AB129: 1535.04 | AC129: 0 | AD129: 5988.48 | AE129: 3246.6 | AF129: 13571.58 | AG129: 0 | AH129: 0 | AI129: 0 | AJ129: 0 | AK129: 0 | AL129: 4453138.36 | AM129: 4213672.5 | AN129: 1814962.98 | AO129: 8583.52 | AP129: 240249.93 | AQ129: 263572.02 | AR129: 288390.4 | AS129: 312444.78 | AT129: 1104657.13
A130: 127 | B130: г.п. Одинцово | C130: г.Одинцово, Можайское шоссе, 30 | D130: ЖЭУ-6,7 | E130: 1198024.86 | F130: 0 | G130: 0 | H130: 0 | I130: 0 | J130: 0 | K130: 0 | L130: 0 | M130: 0 | N130: 0 | O130: 2099397.6 | P130: 0 | Q130: 214248.53 | R130: 136804.47 | S130: 558546.52 | T130: 371237.58 | U130: 0 | V130: 0 | W130: 0 | X130: 0 | Y130: 0 | Z130: 0 | AA130: 2388.6 | AB130: 2388.6 | AC130: 0 | AD130: 9318.24 | AE130: 5051.76 | AF130: 21115.08 | AG130: 0 | AH130: 0 | AI130: 0 | AJ130: 0 | AK130: 0 | AL130: 4618521.84 | AM130: 4455338.26 | AN130: 1519126.16 | AO130: 14651.97 | AP130: 237993.14 | AQ130: 287092.59 | AR130: 312857.47 | AS130: 317919.38 | AT130: 1155862.58
A131: 128 | B131: г.п. Одинцово | C131: г.Одинцово, Можайское шоссе, 32 | D131: ЖЭУ-6,7 | E131: 3319466.52 | F131: 0 | G131: 0 | H131: 0 | I131: 0 | J131: 0 | K131: 0 | L131: 0 | M131: 0 | N131: 0 | O131: 3080321.55 | P131: 0 | Q131: 419590.78 | R131: 274159.4 | S131: 1069105.15 | T131: 733699.57 | U131: 0 | V131: 0 | W131: 0 | X131: 0 | Y131: 0 | Z131: 0 | AA131: 9362.13 | AB131: 9362.13 | AC131: 0 | AD131: 36518.39 | AE131: 19801.03 | AF131: 423993.05 | AG131: 0 | AH131: 0 | AI131: 0 | AJ131: 0 | AK131: 0 | AL131: 9395379.7 | AM131: 9260962.84 | AN131: 4047385 | AO131: 70019.09 | AP131: 681645.34 | AQ131: 842645 | AR131: 826673.99 | AS131: 877859.7 | AT131: 3228824.03
A132: 129 | B132: г.п. Одинцово | C132: г.Одинцово, Можайское шоссе, 36 | D132: ЖЭУ-6,7 | E132: 1802270.67 | F132: 0 | G132: -31.57 | H132: 0 | I132: -91.13 | J132: 0 | K132: 0 | L132: 0 | M132: 0 | N132: 0 | O132: 2173377.13 | P132: 0 | Q132: 219180.3 | R132: 153306.16 | S132: 597500.35 | T132: 393888.53 | U132: 0 | V132: 0 | W132: 0 | X132: -55.26 | Y132: 0 | Z132: 0 | AA132: 1191.25 | AB132: 1191.25 | AC132: 0 | AD132: 4644.41 | AE132: 2517.88 | AF132: 92688.92 | AG132: 0 | AH132: 0 | AI132: 0 | AJ132: 0 | AK132: 0 | AL132: 5441578.89 | AM132: 5379302.73 | AN132: 1327801.99 | AO132: 24312.4 | AP132: 383464.73 | AQ132: 414813.54 | AR132: 442269.81 | AS132: 515646.15 | AT132: 1756194.23
A133: =A132+1 -> 130 | B133: г.п. Одинцово | C133: г.Одинцово, Можайское шоссе, 38 | D133: ЖЭУ-6,7 | E133: 2280850.26 | F133: 0 | G133: 0 | H133: 0 | I133: 0 | J133: 0 | K133: 0 | L133: 0 | M133: 0 | N133: 0 | O133: 3996930.66 | P133: 0 | Q133: 475059 | R133: 330683.6 | S133: 1290342.4 | T133: 852108.88 | U133: 0 | V133: 0 | W133: 0 | X133: 305.76 | Y133: 0 | Z133: 0 | AA133: 4084.02 | AB133: 4084.02 | AC133: 0 | AD133: 15930.42 | AE133: 8636.64 | AF133: 36241.86 | AG133: 0 | AH133: 0 | AI133: 0 | AJ133: 0 | AK133: 0 | AL133: 9295257.52 | AM133: 8992249.14 | AN133: 3252774.59 | AO133: 36175.04 | AP133: 476059.24 | AQ133: 528920.44 | AR133: 573093.66 | AS133: 629471.53 | AT133: =SUM(AP133:AS133) -> 2207544.87
A134: 131 | B134: г.п. Одинцово | C134: г.Одинцово, Можайское шоссе, 40 | D134: ЖЭУ-6,7 | E134: 1779482.41 | F134: 0 | G134: 0 | H134: 0 | I134: 105.25 | J134: 0 | K134: 0 | L134: 0 | M134: 0 | N134: 0 | O134: 1715.82 | P134: 0 | Q134: 240.92 | R134: 101.7 | S134: 309.24 | T134: 357.17 | U134: 0 | V134: 0 | W134: 0 | X134: 201.83 | Y134: 0 | Z134: 0 | AA134: 1539.61 | AB134: 1539.61 | AC134: 0 | AD134: 5997.05 | AE134: 3252.82 | AF134: 119701.79 | AG134: 0 | AH134: 0 | AI134: 0 | AJ134: 0 | AK134: 0 | AL134: 1914545.22 | AM134: 2066310.99 | AN134: 1319227.77 | AO134: 37396.01 | AP134: 392389.78 | AQ134: 417988.35 | AR134: 448709.57 | AS134: 529747.66 | AT134: 1788835.36
A135: 132 | B135: г.п. Одинцово | C135: г.Одинцово, Можайское шоссе, 41 | D135: ЖЭУ-1,2,3 | E135: 1246816.5 | F135: 0 | G135: 0 | H135: 0 | I135: 72.33 | J135: 0 | K135: 0 | L135: 0 | M135: 0 | N135: 0 | O135: 356.97 | P135: 0 | Q135: 95.6 | R135: 69.23 | S135: 210.48 | T135: 171.83 | U135: 0 | V135: 0 | W135: 0 | X135: 43.85 | Y135: 0 | Z135: 0 | AA135: 2453.04 | AB135: 2453.04 | AC135: 0 | AD135: 9571.08 | AE135: 5189.88 | AF135: 21690.29 | AG135: 0 | AH135: 0 | AI135: 0 | AJ135: 0 | AK135: 0 | AL135: 1289194.12 | AM135: 1254429.59 | AN135: 309656.81 | AO135: 13025.95 | AP135: 249348.16 | AQ135: 297288.17 | AR135: 313077.32 | AS135: 334691.22 | AT135: 1194404.87
A136: 133 | B136: г.п. Одинцово | C136: г.Одинцово, Можайское шоссе, 42 | D136: ЖЭУ-6,7 | E136: 3949051.76 | F136: 0 | G136: 70.28 | H136: 0 | I136: 53.42 | J136: 0 | K136: 0 | L136: 0 | M136: 0 | N136: 0 | O136: 4202453.5 | P136: 0 | Q136: 471368.64 | R136: 323463.21 | S136: 1261223.53 | T136: 840530.42 | U136: 0 | V136: 0 | W136: 0 | X136: 477.85 | Y136: 0 | Z136: 0 | AA136: 6510.37 | AB136: 6510.37 | AC136: 0 | AD136: 25366.82 | AE136: 13768.07 | AF136: 505531.61 | AG136: 0 | AH136: 0 | AI136: 0 | AJ136: 0 | AK136: 0 | AL136: 11606379.85 | AM136: 11501465.4 | AN136: 2969303.51 | AO136: 57206.6 | AP136: 874706.17 | AQ136: 937275.86 | AR136: 984752.03 | AS136: 1061807.63 | AT136: 3858541.69
A137: 134 | B137: г.п. Одинцово | C137: г.Одинцово, Можайское шоссе, 44 | D137: ЖЭУ-6,7 | E137: 2583911.73 | F137: 0 | G137: 0 | H137: 0 | I137: 0 | J137: 0 | K137: 0 | L137: 0 | M137: 0 | N137: 0 | O137: 3133841.47 | P137: 0 | Q137: 266262.69 | R137: 203624.64 | S137: 809642.17 | T137: 496907.84 | U137: 0 | V137: 0 | W137: 0 | X137: 0 | Y137: 0 | Z137: 0 | AA137: 2892.35 | AB137: 2892.35 | AC137: 0 | AD137: 11270.4 | AE137: 6117.24 | AF137: 168407.63 | AG137: 0 | AH137: 0 | AI137: 0 | AJ137: 0 | AK137: 0 | AL137: 7685770.51 | AM137: 7598049.06 | AN137: 888552.47 | AO137: 34650.22 | AP137: 566609.46 | AQ137: 607448.2 | AR137: 671932.53 | AS137: 702944.11 | AT137: 2548934.3
A138: 135 | B138: г.п. Одинцово | C138: г.Одинцово, Можайское шоссе, 46 | D138: ЖЭУ-6,7 | E138: 4904211.05 | F138: 0 | G138: -280.55 | H138: 0 | I138: -1413.07 | J138: 0 | K138: 0 | L138: 0 | M138: 0 | N138: 0 | O138: 5919636.62 | P138: 0 | Q138: 581638.53 | R138: 427635.14 | S138: 1667370.64 | T138: 1067026.65 | U138: 0 | V138: 0 | W138: 0 | X138: -584.01 | Y138: 0 | Z138: 0 | AA138: 4621.4 | AB138: 4621.4 | AC138: 0 | AD138: 18009.07 | AE138: 9774.67 | AF138: 356790.35 | AG138: 0 | AH138: 0 | AI138: 0 | AJ138: 0 | AK138: 0 | AL138: 14959057.89 | AM138: 14715798.18 | AN138: 5889430.7 | AO138: 31619.11 | AP138: 1036645.6 | AQ138: 1105695.36 | AR138: 1314941.51 | AS138: 1333085.68 | AT138: 4790368.15
A139: 136 | B139: г.п. Одинцово | C139: г.Одинцово, Можайское шоссе, 48 | D139: ЖЭУ-6,7 | E139: 1574752.33 | F139: 0 | G139: 0 | H139: 0 | I139: 39.71 | J139: 0 | K139: 0 | L139: 0 | M139: 0 | N139: 0 | O139: 1898266.24 | P139: 0 | Q139: 171035.99 | R139: 127562.52 | S139: 496940.33 | T139: 315733.29 | U139: 0 | V139: 0 | W139: 0 | X139: 106.82 | Y139: 0 | Z139: 0 | AA139: 2868.12 | AB139: 2868.12 | AC139: 0 | AD139: 11188.56 | AE139: 6067.32 | AF139: 129953.13 | AG139: 0 | AH139: 0 | AI139: 0 | AJ139: 0 | AK139: 0 | AL139: 4737382.48 | AM139: 4759023.17 | AN139: 788252.95 | AO139: 9131.96 | AP139: 333527.93 | AQ139: 388409.29 | AR139: 433551.05 | AS139: 415534.31 | AT139: 1571022.58
A140: 137 | B140: г.п. Одинцово | C140: г.Одинцово, Можайское шоссе, 52 | D140: ЖЭУ-6,7 | E140: 1574572.37 | F140: 0 | G140: 0 | H140: 0 | I140: 0 | J140: 0 | K140: 0 | L140: 0 | M140: 0 | N140: 0 | O140: 1460880.18 | P140: 0 | Q140: 200623.95 | R140: 135553.91 | S140: 528277.96 | T140: 355492.12 | U140: 0 | V140: 0 | W140: 0 | X140: 0 | Y140: 0 | Z140: 0 | AA140: 2821.09 | AB140: 2821.09 | AC140: 0 | AD140: 11003.61 | AE140: 5967.24 | AF140: 127767.05 | AG140: 0 | AH140: 0 | AI140: 0 | AJ140: 0 | AK140: 0 | AL140: 4405780.57 | AM140: 4394649.15 | AN140: 487780.77 | AO140: 10010.6 | AP140: 321639.96 | AQ140: 395283.81 | AR140: 390272.5 | AS140: 441449.64 | AT140: 1548645.91
A141: 138 | B141: г.п. Одинцово | C141: г.Одинцово, Можайское шоссе, 54 | D141: ЖЭУ-6,7 | E141: 976095.51 | F141: 0 | G141: 0 | H141: 0 | I141: 23.62 | J141: 0 | K141: 0 | L141: 0 | M141: 0 | N141: 0 | O141: 1316317.98 | P141: 0 | Q141: 185367.36 | R141: 127298.82 | S141: 496415.31 | T141: 330711.21 | U141: 0 | V141: 0 | W141: 0 | X141: 14.33 | Y141: 0 | Z141: 0 | AA141: 2263.72 | AB141: 2263.72 | AC141: 0 | AD141: 8828.66 | AE141: 4786.34 | AF141: 19976.44 | AG141: 0 | AH141: 0 | AI141: 0 | AJ141: 0 | AK141: 0 | AL141: 3470363.02 | AM141: 3496607.16 | AN141: 351880.15 | AO141: 39432.58 | AP141: 204461.27 | AQ141: 227389.41 | AR141: 265450.11 | AS141: 264583.9 | AT141: 961884.69
A142: 139 | B142: г.п. Одинцово | C142: г.Одинцово, Можайское шоссе, 58 | D142: ЖЭУ-6,7 | E142: 1554224.81 | F142: 0 | G142: 0 | H142: 0 | I142: 10.28 | J142: 0 | K142: 0 | L142: 0 | M142: 0 | N142: 0 | O142: 1441965.37 | P142: 0 | Q142: 216335.25 | R142: 142594.54 | S142: 555941.08 | T142: 379566.89 | U142: 0 | V142: 0 | W142: 0 | X142: -78.73 | Y142: 0 | Z142: 0 | AA142: 2976 | AB142: 2976 | AC142: 0 | AD142: 11608.56 | AE142: 6294.24 | AF142: 134456.66 | AG142: 0 | AH142: 0 | AI142: 0 | AJ142: 0 | AK142: 0 | AL142: 4448870.95 | AM142: 4476428.61 | AN142: 1104121.82 | AO142: 9441.35 | AP142: 315890.19 | AQ142: 364888.52 | AR142: 391562.85 | AS142: 471281.38 | AT142: 1543622.94
A143: 140 | B143: г.п. Одинцово | C143: г.Одинцово, Можайское шоссе, 62 | D143: ЖЭУ-6,7 | E143: 3589400.56 | F143: 0 | G143: 0 | H143: 0 | I143: -150.56 | J143: 0 | K143: 0 | L143: 0 | M143: 0 | N143: 0 | O143: 3330295.89 | P143: 0 | Q143: 515358.29 | R143: 334952.2 | S143: 1306654.34 | T143: 899248.6 | U143: 0 | V143: 0 | W143: 0 | X143: -165.41 | Y143: 0 | Z143: 0 | AA143: 7480.54 | AB143: 7480.54 | AC143: 0 | AD143: 29179.81 | AE143: 15821.87 | AF143: 338497.16 | AG143: 0 | AH143: 0 | AI143: 0 | AJ143: 0 | AK143: 0 | AL143: 10374053.83 | AM143: 10307696.84 | AN143: 2289204.69 | AO143: 53812.45 | AP143: 829236.6 | AQ143: 872666.96 | AR143: 862196.81 | AS143: 988713.79 | AT143: 3552814.16
A144: 141 | B144: г.п. Одинцово | C144: г.Одинцово, Можайское шоссе, 64 | D144: ЖЭУ-6,7 | E144: 1718480.95 | F144: 0 | G144: 0 | H144: 0 | I144: 26.13 | J144: 0 | K144: 0 | L144: 0 | M144: 0 | N144: 0 | O144: 360 | P144: 0 | Q144: 118.33 | R144: 65.75 | S144: 199.92 | T144: 191.9 | U144: 0 | V144: 0 | W144: 0 | X144: 31.69 | Y144: 0 | Z144: 0 | AA144: 2838.72 | AB144: 2838.72 | AC144: 0 | AD144: 11065.08 | AE144: 6006.6 | AF144: 220473.4 | AG144: 0 | AH144: 0 | AI144: 0 | AJ144: 0 | AK144: 0 | AL144: 1962697.19 | AM144: 2012345.55 | AN144: 200275.65 | AO144: 14068.54 | AP144: 384256.35 | AQ144: 450559.15 | AR144: 438397.75 | AS144: 485751.01 | AT144: 1758964.26
A145: 142 | B145: г.п. Одинцово | C145: г.Одинцово, Можайское шоссе, 66 | D145: ЖЭУ-6,7 | E145: 3666576.86 | F145: 0 | G145: 0 | H145: 0 | I145: 127.38 | J145: 0 | K145: 0 | L145: 0 | M145: 0 | N145: 0 | O145: 3401828.06 | P145: 0 | Q145: 484114.03 | R145: 332611.78 | S145: 1296669.44 | T145: 863643.02 | U145: 0 | V145: 0 | W145: 0 | X145: 79.89 | Y145: 0 | Z145: 0 | AA145: 10055.54 | AB145: 10055.54 | AC145: 0 | AD145: 39215.67 | AE145: 21265.01 | AF145: 455332.29 | AG145: 0 | AH145: 0 | AI145: 0 | AJ145: 0 | AK145: 0 | AL145: 10581574.51 | AM145: 10628545.38 | AN145: 2263063.37 | AO145: 64252.52 | AP145: 776194.97 | AQ145: 882026.62 | AR145: 866474.72 | AS145: 1061045.18 | AT145: 3585741.49
A146: 143 | B146: г.п. Одинцово | C146: г.Одинцово, Можайское шоссе, 70 | D146: ЖЭУ-6,7 | E146: 3578227.02 | F146: 0 | G146: -1941.76 | H146: 0 | I146: -663.12 | J146: 689.87 | K146: 0 | L146: 0 | M146: 0 | N146: 0 | O146: 4328119.93 | P146: 0 | Q146: 515405.41 | R146: 314458.59 | S146: 1229365.66 | T146: 877780.1 | U146: 0 | V146: 0 | W146: 0 | X146: -2002.87 | Y146: 0 | Z146: 0 | AA146: 7524.71 | AB146: 7524.71 | AC146: 0 | AD146: 29299.93 | AE146: 15913.32 | AF146: 340663.87 | AG146: 0 | AH146: 0 | AI146: 0 | AJ146: 0 | AK146: 0 | AL146: 11240365.37 | AM146: 11111303.38 | AN146: 3747459.03 | AO146: 74969.71 | AP146: 743200.47 | AQ146: 842439.17 | AR146: 897350.33 | AS146: 1019967.28 | AT146: 3502957.25
A147: 144 | B147: г.п. Одинцово | C147: г.Одинцово, Можайское шоссе, 76 | D147: ЖЭУ-6,7 | E147: 1135462.42 | F147: 0 | G147: 0 | H147: 0 | I147: 22.86 | J147: 0 | K147: 0 | L147: 0 | M147: 0 | N147: 0 | O147: 1319421.36 | P147: 0 | Q147: 163308.82 | R147: 112171.55 | S147: 437381.09 | T147: 291319.81 | U147: 0 | V147: 0 | W147: 0 | X147: 13.86 | Y147: 0 | Z147: 0 | AA147: 2797.21 | AB147: 2797.21 | AC147: 0 | AD147: 10912.8 | AE147: 5917.56 | AF147: 126718.62 | AG147: 0 | AH147: 0 | AI147: 0 | AJ147: 0 | AK147: 0 | AL147: 3608245.17 | AM147: 3526956.09 | AN147: 1327254.71 | AO147: 21479.81 | AP147: 248771.77 | AQ147: 265286.51 | AR147: 279194.61 | AS147: 293277.85 | AT147: 1086530.74
A148: 145 | B148: г.п. Одинцово | C148: г.Одинцово, Можайское шоссе, 80 | D148: ЖЭУ-6,7 | E148: 1229359.95 | F148: 0 | G148: -668.2 | H148: 0 | I148: -218.75 | J148: 0 | K148: 0 | L148: 0 | M148: 0 | N148: 0 | O148: 2155003.78 | P148: 0 | Q148: 296491.45 | R148: 221688.59 | S148: 864662.99 | T148: 547869.41 | U148: 0 | V148: 0 | W148: 0 | X148: -144.99 | Y148: 0 | Z148: 0 | AA148: 1362.85 | AB148: 1362.22 | AC148: 0 | AD148: 5315.49 | AE148: 2881.9 | AF148: 12042.58 | AG148: 0 | AH148: 0 | AI148: 0 | AJ148: 0 | AK148: 0 | AL148: 5337009.27 | AM148: 5110867.73 | AN148: 2495605.78 | AO148: 13061.78 | AP148: 245197.71 | AQ148: 316797.33 | AR148: 319848.07 | AS148: 311489.84 | AT148: 1193332.95
A149: 146 | B149: г.п. Одинцово | C149: г.Одинцово, Можайское шоссе, 82 | D149: ЖЭУ-6,7 | E149: 1757165.35 | F149: 0 | G149: 0 | H149: 0 | I149: 0 | J149: 0 | K149: 0 | L149: 0 | M149: 0 | N149: 0 | O149: 2369720.07 | P149: 0 | Q149: 347453.21 | R149: 264373.84 | S149: 1030886.94 | T149: 647006.54 | U149: 0 | V149: 0 | W149: 0 | X149: 0 | Y149: 0 | Z149: 0 | AA149: 2724.72 | AB149: 2724.72 | AC149: 0 | AD149: 10628.77 | AE149: 5761.08 | AF149: 24082.32 | AG149: 0 | AH149: 0 | AI149: 0 | AJ149: 0 | AK149: 0 | AL149: 6462527.56 | AM149: 6110096.88 | AN149: 2623836.73 | AO149: 61792.87 | AP149: 350977.24 | AQ149: 398941.8 | AR149: 413821.34 | AS149: 462879.23 | AT149: 1626619.61
A150: 147 | B150: г.п. Одинцово | C150: г.Одинцово, Можайское шоссе, 84 | D150: ЖЭУ-6,7 | E150: 1761551.44 | F150: 0 | G150: 0 | H150: 0 | I150: 395.13 | J150: 0 | K150: 0 | L150: 0 | M150: 0 | N150: 0 | O150: 2375641.59 | P150: 0 | Q150: 378697.91 | R150: 269000.27 | S150: 1048940.8 | T150: 684938.81 | U150: 0 | V150: 0 | W150: 0 | X150: -73.28 | Y150: 0 | Z150: 0 | AA150: 2824.68 | AB150: 2824.68 | AC150: 0 | AD150: 11022.01 | AE150: 5970.74 | AF150: 24973 | AG150: 0 | AH150: 0 | AI150: 0 | AJ150: 0 | AK150: 0 | AL150: 6566707.78 | AM150: 6340314.31 | AN150: 3324751.13 | AO150: 28916.99 | AP150: 363473.29 | AQ150: 379381.59 | AR150: 444331.91 | AS150: 495150.81 | AT150: 1682337.6
A151: 148 | B151: г.п. Одинцово | C151: г.Одинцово, Можайское шоссе, 86 | D151: ЖЭУ-6,7 | E151: 1194471.4 | F151: 0 | G151: 0 | H151: 0 | I151: -1562.8 | J151: 0 | K151: 0 | L151: 0 | M151: 0 | N151: 0 | O151: 1614940.6 | P151: 0 | Q151: 300125.72 | R151: 212144.41 | S151: 826553.2 | T151: 541688.2 | U151: 0 | V151: 0 | W151: 0 | X151: 442.93 | Y151: 0 | Z151: 0 | AA151: 3910.17 | AB151: 3910.17 | AC151: 0 | AD151: 15192.32 | AE151: 8268.53 | AF151: 33014.89 | AG151: 0 | AH151: 0 | AI151: 0 | AJ151: -116988.74 | AK151: 0 | AL151: 4636111 | AM151: 4912051.92 | AN151: 2586843.83 | AO151: 44395.95 | AP151: 242638.92 | AQ151: 308407.18 | AR151: 306956.54 | AS151: 340977.05 | AT151: 1198979.69
A152: 149 | B152: г.п. Одинцово | C152: г.Одинцово, Можайское шоссе, 88 | D152: ЖЭУ-6,7 | E152: 1207291.09 | F152: 0 | G152: 0 | H152: 0 | I152: -74.07 | J152: 0 | K152: -80 | L152: 0 | M152: 0 | N152: 0 | O152: 1662151.32 | P152: 0 | Q152: 256524.26 | R152: 179316.82 | S152: 698165.42 | T152: 460824.71 | U152: 0 | V152: 0 | W152: 0 | X152: 524.49 | Y152: 0 | Z152: 0 | AA152: 2737.06 | AB152: 2737.06 | AC152: 0 | AD152: 10713.41 | AE152: 5789.15 | AF152: 23996.45 | AG152: 0 | AH152: 0 | AI152: -745.09 | AJ152: -61047.31 | AK152: 0 | AL152: 4448824.77 | AM152: 4082717.19 | AN152: 1971965.77 | AO152: 15806.19 | AP152: 269699.02 | AQ152: 239166.1 | AR152: 258387.02 | AS152: 342727.56 | AT152: 1109979.7
A153: 150 | B153: г.п. Одинцово | C153: г.Одинцово, Можайское шоссе, 90 | D153: ЖЭУ-6,7 | E153: 1766081.34 | F153: 0 | G153: 0 | H153: 0 | I153: 0 | J153: 0 | K153: 0 | L153: 0 | M153: 0 | N153: 0 | O153: 2381830.43 | P153: 0 | Q153: 349749.76 | R153: 259376.04 | S153: 1011227.41 | T153: 644141.11 | U153: 0 | V153: 0 | W153: 0 | X153: 0 | Y153: 0 | Z153: 0 | AA153: 2844.84 | AB153: 2844.84 | AC153: 0 | AD153: 11100.24 | AE153: 6017.4 | AF153: 25153.08 | AG153: 0 | AH153: 0 | AI153: 0 | AJ153: 0 | AK153: 0 | AL153: 6460366.49 | AM153: 6317708.64 | AN153: 3069431.8 | AO153: 19116.93 | AP153: 404620.52 | AQ153: 392702.16 | AR153: 425337.68 | AS153: 472929.04 | AT153: 1695589.4
A154: 151 | B154: г.п. Одинцово | C154: г.Одинцово, Можайское шоссе, 92 | D154: ЖЭУ-6,7 | E154: 1761225.65 | F154: 0 | G154: 0 | H154: 0 | I154: 45.73 | J154: 0 | K154: 0 | L154: 0 | M154: 0 | N154: 0 | O154: 0 | P154: 0 | Q154: 393865.65 | R154: 0 | S154: 0 | T154: 707655.46 | U154: 0 | V154: 0 | W154: 0 | X154: 0 | Y154: 0 | Z154: 0 | AA154: 4477.26 | AB154: 4477.26 | AC154: 0 | AD154: 17462.65 | AE154: 9467.8 | AF154: 39573.16 | AG154: 0 | AH154: 0 | AI154: 0 | AJ154: 0 | AK154: 0 | AL154: 2938250.62 | AM154: 2949596.27 | AN154: 1323054.06 | AO154: 55188.94 | AP154: 396294.14 | AQ154: 423089.61 | AR154: 439236.38 | AS154: 463793.47 | AT154: 1722413.6
A155: 152 | B155: г.п. Одинцово | C155: г.Одинцово, Можайское шоссе, 94 | D155: ЖЭУ-6,7 | E155: 1082460.94 | F155: 0 | G155: -544.74 | H155: 0 | I155: -105.18 | J155: 0 | K155: 0 | L155: 0 | M155: 0 | N155: 0 | O155: 1897075.45 | P155: 0 | Q155: 204351.77 | R155: 146049.16 | S155: 569524.2 | T155: 370545.27 | U155: 0 | V155: 0 | W155: 0 | X155: -51.55 | Y155: 0 | Z155: 0 | AA155: 1980.83 | AB155: 1980.83 | AC155: 0 | AD155: 7725.81 | AE155: 4188.7 | AF155: 17549.52 | AG155: 0 | AH155: 0 | AI155: 0 | AJ155: 0 | AK155: 0 | AL155: 4302731.01 | AM155: 4181235.39 | AN155: 849798.45 | AO155: 24217.04 | AP155: 218088.1 | AQ155: 262923.48 | AR155: 267283.38 | AS155: 298505.39 | AT155: 1046800.35
A156: 153 | B156: г.п. Одинцово | C156: г.Одинцово, Можайское шоссе, 100 | D156: ЖЭУ-6,7 | E156: 1092607.12 | F156: 0 | G156: -1515.45 | H156: 0 | I156: 0 | J156: -861.97 | K156: 0 | L156: 0 | M156: 0 | N156: 0 | O156: 1301036.13 | P156: 0 | Q156: 179981.57 | R156: 130701.25 | S156: 510010.37 | T156: 328567.46 | U156: 0 | V156: 0 | W156: 0 | X156: 161.94 | Y156: 0 | Z156: 0 | AA156: 2367.04 | AB156: 2365.68 | AC156: 0 | AD156: 9226.67 | AE156: 4999.87 | AF156: 20915.19 | AG156: 0 | AH156: 0 | AI156: 0 | AJ156: 0 | AK156: 0 | AL156: 3580562.87 | AM156: 3492227.23 | AN156: 646786.42 | AO156: 2899.69 | AP156: 233500.73 | AQ156: 258387.31 | AR156: 270183.28 | AS156: 290163.64 | AT156: 1052234.96
A157: 154 | B157: г.п. Одинцово | C157: г.Одинцово, Можайское шоссе, 102 | D157: ЖЭУ-6,7 | E157: 1095281.49 | F157: 0 | G157: 0 | H157: 0 | I157: 81.65 | J157: 0 | K157: 0 | L157: 0 | M157: 0 | N157: 0 | O157: 1326974.43 | P157: 0 | Q157: 206516.23 | R157: 149237.56 | S157: 581737.32 | T157: 376598.53 | U157: 0 | V157: 0 | W157: 0 | X157: 49.52 | Y157: 0 | Z157: 0 | AA157: 1839.6 | AB157: 1839.6 | AC157: 0 | AD157: 7176.24 | AE157: 3890.28 | AF157: 16267.12 | AG157: 0 | AH157: 0 | AI157: 0 | AJ157: 0 | AK157: 0 | AL157: 3767489.57 | AM157: 3996779.65 | AN157: 1742856.78 | AO157: 11987.27 | AP157: 254781.32 | AQ157: 319088.63 | AR157: 277946.75 | AS157: 301284.58 | AT157: 1153101.28
A158: 155 | B158: г.п. Одинцово | C158: г.Одинцово, Можайское шоссе, 104 | D158: ЖЭУ-6,7 | E158: 1204480.44 | F158: 0 | G158: 0 | H158: 0 | I158: 0 | J158: 0 | K158: 0 | L158: 0 | M158: 0 | N158: 0 | O158: 1693872.21 | P158: 0 | Q158: 265178.11 | R158: 176220.16 | S158: 687063.85 | T158: 466775.2 | U158: 0 | V158: 0 | W158: 0 | X158: 0 | Y158: 0 | Z158: 0 | AA158: 1858.56 | AB158: 1858.56 | AC158: 0 | AD158: 7248.84 | AE158: 3930.36 | AF158: 16426.2 | AG158: 0 | AH158: 0 | AI158: 0 | AJ158: -62492.03 | AK158: 0 | AL158: 4462420.46 | AM158: 4563779.03 | AN158: 1655263.23 | AO158: 25197.9 | AP158: 288832.37 | AQ158: 291223.93 | AR158: 286039.42 | AS158: 311359.76 | AT158: 1177455.48
A159: 156 | B159: г.п. Одинцово | C159: г.Одинцово, Можайское шоссе, 106 | D159: ЖЭУ-6,7 | E159: 1195761.55 | F159: 0 | G159: 0 | H159: 0 | I159: -20.25 | J159: 0 | K159: 0 | L159: 0 | M159: 0 | N159: 0 | O159: -248.36 | P159: 0 | Q159: 271214.58 | R159: -19.5 | S159: -66.06 | T159: 496232.61 | U159: 0 | V159: 0 | W159: 0 | X159: -12.28 | Y159: 0 | Z159: 0 | AA159: 1742.4 | AB159: 1742.4 | AC159: 0 | AD159: 6797.04 | AE159: 3684.84 | AF159: 15399.49 | AG159: 0 | AH159: 0 | AI159: 0 | AJ159: 0 | AK159: 0 | AL159: 1992208.46 | AM159: 1776189.22 | AN159: 1712007.79 | AO159: 30173.5 | AP159: 231926.99 | AQ159: 278296.39 | AR159: 276917.35 | AS159: 292634.26 | AT159: 1079774.99
A160: 157 | B160: г.п. Одинцово | C160: г.Одинцово, Можайское шоссе, 108 | D160: ЖЭУ-6,7 | E160: 1158903.37 | F160: 0 | G160: 0 | H160: 0 | I160: -1354.38 | J160: 0 | K160: -59.3 | L160: 0 | M160: 0 | N160: 0 | O160: -54377.85 | P160: 0 | Q160: 234964.89 | R160: -7917.91 | S160: -26685.38 | T160: 428265.92 | U160: 0 | V160: 0 | W160: 0 | X160: -4872.03 | Y160: 0 | Z160: 0 | AA160: 1742.16 | AB160: 1742.16 | AC160: 0 | AD160: 6796.2 | AE160: 3684.84 | AF160: 15011.5 | AG160: 0 | AH160: 0 | AI160: 0 | AJ160: -158028.63 | AK160: 0 | AL160: 1597815.56 | AM160: 2050210.79 | AN160: 1340466.73 | AO160: 32245.8 | AP160: 304038.96 | AQ160: 270314.29 | AR160: 278915.39 | AS160: 335990.96 | AT160: 1189259.6
A161: 158 | B161: г.п. Одинцово | C161: г.Одинцово, Можайское шоссе, 108А | D161: ЖЭУ-6,7 | E161: 2394156.91 | F161: 0 | G161: 0 | H161: 0 | I161: 0 | J161: 0 | K161: 0 | L161: 0 | M161: 0 | N161: 0 | O161: 2137.37 | P161: 0 | Q161: 233386.55 | R161: 120.4 | S161: 408.85 | T161: 434128.61 | U161: 0 | V161: 0 | W161: 0 | X161: 0 | Y161: 0 | Z161: 0 | AA161: 2050.56 | AB161: 2050.56 | AC161: 0 | AD161: 7998.72 | AE161: 4337.28 | AF161: 69726.19 | AG161: 0 | AH161: 0 | AI161: 0 | AJ161: 0 | AK161: 0 | AL161: 3150502 | AM161: 3199568.44 | AN161: 312477.31 | AO161: 33986.81 | AP161: 489173.11 | AQ161: 583127.23 | AR161: 597808.25 | AS161: 694199.52 | AT161: 2364308.11
A162: 159 | B162: г.п. Одинцово | C162: г.Одинцово, Можайское шоссе, 110 | D162: ЖЭУ-6,7 | E162: 880111.62 | F162: 0 | G162: 0 | H162: 0 | I162: 47.25 | J162: 0 | K162: 0 | L162: 0 | M162: 0 | N162: 0 | O162: 523.93 | P162: 0 | Q162: 33133.88 | R162: 23249.66 | S162: 90591 | T162: 59621.83 | U162: 0 | V162: 0 | W162: 0 | X162: 28.65 | Y162: 0 | Z162: 0 | AA162: 1770.6 | AB162: 1770.6 | AC162: 0 | AD162: 6909.36 | AE162: 3745.56 | AF162: 15657.74 | AG162: 0 | AH162: 0 | AI162: 0 | AJ162: 0 | AK162: 0 | AL162: 1117161.68 | AM162: 1295604.63 | AN162: 163631.69 | AO162: 6942.57 | AP162: 192788.93 | AQ162: 221882.84 | AR162: 212792.78 | AS162: 245692.34 | AT162: 873156.89
A163: 160 | B163: г.п. Одинцово | C163: г.Одинцово, Можайское шоссе, 112 | D163: ЖЭУ-6,7 | E163: 706942.38 | F163: 0 | G163: 0 | H163: 0 | I163: 0 | J163: 0 | K163: 0 | L163: 0 | M163: 0 | N163: 0 | O163: 0 | P163: 0 | Q163: 34152.08 | R163: 23446.56 | S163: 91357.41 | T163: 60906.84 | U163: 0 | V163: 0 | W163: 0 | X163: 0 | Y163: 0 | Z163: 0 | AA163: 1159.2 | AB163: 1159.2 | AC163: 0 | AD163: 4521.72 | AE163: 2451.48 | AF163: 10245.36 | AG163: 0 | AH163: 0 | AI163: 0 | AJ163: 0 | AK163: 0 | AL163: 936342.23 | AM163: 780532.49 | AN163: 404488.14 | AO163: 7428.48 | AP163: -1756.39 | AQ163: 129416.66 | AR163: 169468.72 | AS163: 183842.21 | AT163: 480971.2
A164: 161 | B164: г.п. Одинцово | C164: г.Одинцово, Можайское шоссе, 114 | D164: ЖЭУ-6,7 | E164: 959967.96 | F164: 0 | G164: 0 | H164: 0 | I164: 0 | J164: 0 | K164: 0 | L164: 0 | M164: 0 | N164: 0 | O164: 1294616.47 | P164: 0 | Q164: 208343.4 | R164: 139914.42 | S164: 545602.79 | T164: 368283.29 | U164: 0 | V164: 0 | W164: 0 | X164: 0 | Y164: 0 | Z164: 0 | AA164: 1796.88 | AB164: 1796.88 | AC164: 0 | AD164: 7011.72 | AE164: 3801.96 | AF164: 15887.4 | AG164: 0 | AH164: 0 | AI164: 0 | AJ164: 0 | AK164: 0 | AL164: 3547023.17 | AM164: 3393684.73 | AN164: 2535860.04 | AO164: 19302.47 | AP164: 217080.46 | AQ164: 219470.83 | AR164: 232069.68 | AS164: 246939.4 | AT164: 915560.37
A165: 162 | B165: г.п. Одинцово | C165: г.Одинцово, Можайское шоссе, 116 | D165: ЖЭУ-6,7 | E165: 1748913.52 | F165: 0 | G165: 0 | H165: 0 | I165: 0.05 | J165: 0 | K165: 0 | L165: 0 | M165: 0 | N165: 0 | O165: 2395202.49 | P165: 0 | Q165: 377560.66 | R165: 241146.97 | S165: 940363.12 | T165: 654314.17 | U165: 0 | V165: 0 | W165: 0 | X165: 0.06 | Y165: 0 | Z165: 0 | AA165: 3047.76 | AB165: 3047.76 | AC165: 0 | AD165: 11889.96 | AE165: 6445.32 | AF165: 26956.34 | AG165: 0 | AH165: 0 | AI165: 0 | AJ165: 0 | AK165: 0 | AL165: 6408888.18 | AM165: 6153992.65 | AN165: 2774457.33 | AO165: 21523.32 | AP165: 360353.92 | AQ165: 391817.19 | AR165: 425335.22 | AS165: 487640.35 | AT165: 1665146.68
A166: 163 | B166: г.п. Одинцово | C166: г.Одинцово, Можайское шоссе, 118 | D166: ЖЭУ-6,7 | E166: 1706818.65 | F166: 0 | G166: 0 | H166: 0 | I166: -2074.25 | J166: 0 | K166: 0 | L166: 0 | M166: 0 | N166: 0 | O166: 2305481.15 | P166: 0 | Q166: 419625.74 | R166: 284812.03 | S166: 1118122.31 | T166: 745049.84 | U166: 0 | V166: 0 | W166: 0 | X166: -4316.75 | Y166: 0 | Z166: 0 | AA166: 2778.27 | AB166: 2783.43 | AC166: 0 | AD166: 10954.79 | AE166: 5959.32 | AF166: 24332.32 | AG166: 0 | AH166: 0 | AI166: 0 | AJ166: 0 | AK166: 0 | AL166: 6620326.85 | AM166: 7036565.01 | AN166: 1847190.69 | AO166: 40442.69 | AP166: 381149.42 | AQ166: 492394.06 | AR166: 406821.78 | AS166: 495878.75 | AT166: 1776244.01
A167: 164 | B167: г.п. Одинцово | C167: г.Одинцово, Можайское шоссе, 120 | D167: ЖЭУ-6,7 | E167: 169135.98 | F167: 0 | G167: 0 | H167: 0 | I167: 0 | J167: 0 | K167: 0 | L167: 0 | M167: 0 | N167: 0 | O167: 0 | P167: 0 | Q167: 102732.39 | R167: 0 | S167: 0 | T167: 108639.5 | U167: 0 | V167: 0 | W167: 0 | X167: 0 | Y167: 0 | Z167: 0 | AA167: 341.88 | AB167: 0 | AC167: 0 | AD167: 0 | AE167: 361.44 | AF167: 3927.36 | AG167: 0 | AH167: 0 | AI167: 0 | AJ167: 0 | AK167: 0 | AL167: 385138.55 | AM167: 413259.23 | AN167: 464609.72 | AO167: 346.62 | AP167: 47247.27 | AQ167: 38490.99 | AR167: 39713.97 | AS167: 40930.35 | AT167: 166382.58
A168: 165 | B168: г.п. Одинцово | C168: г.Одинцово, Можайское шоссе, 130 | D168: ЖЭУ-6,7 | E168: 1987664.91 | F168: 0 | G168: 0 | H168: 0 | I168: 0 | J168: 0 | K168: 0 | L168: 0 | M168: 0 | N168: 0 | O168: 1854719.2 | P168: 0 | Q168: 251751.58 | R168: 162764.77 | S168: 634565.84 | T168: 438359.36 | U168: 0 | V168: 0 | W168: 0 | X168: 0 | Y168: 0 | Z168: 0 | AA168: 2288.68 | AB168: 2288.68 | AC168: 0 | AD168: 8918.77 | AE168: 4841 | AF168: 133336.98 | AG168: 0 | AH168: 0 | AI168: 0 | AJ168: 0 | AK168: 0 | AL168: 5481499.77 | AM168: 5541440.95 | AN168: 1435102.94 | AO168: 47966.83 | AP168: 420997.53 | AQ168: 490301.76 | AR168: 482899.5 | AS168: 562789.84 | AT168: 1956988.63
A169: 166 | B169: г.п. Одинцово | C169: г.Одинцово, Можайское шоссе, 132 | D169: ЖЭУ-6,7 | E169: 1976942.24 | F169: 0 | G169: 0 | H169: 0 | I169: 205.87 | J169: 0 | K169: 0 | L169: 0 | M169: 0 | N169: 0 | O169: -1846.11 | P169: 0 | Q169: 42852.13 | R169: 879.69 | S169: 2641.22 | T169: 75166.53 | U169: 0 | V169: 0 | W169: 0 | X169: -35.46 | Y169: 0 | Z169: 0 | AA169: 2384.2 | AB169: 2384.2 | AC169: 0 | AD169: 9293.29 | AE169: 5040.22 | AF169: 185047.72 | AG169: 0 | AH169: 0 | AI169: 0 | AJ169: 0 | AK169: 0 | AL169: 2300955.74 | AM169: 2405029.81 | AN169: 446276.72 | AO169: 20865.94 | AP169: 430548.79 | AQ169: 487928.89 | AR169: 488244.11 | AS169: 536083.4 | AT169: 1942805.19
A170: 167 | B170: г.п. Одинцово | C170: г.Одинцово, Можайское шоссе, 134 | D170: ЖЭУ-6,7 | E170: 1904313.52 | F170: 0 | G170: 0 | H170: 0 | I170: 0 | J170: 0 | K170: 0 | L170: 0 | M170: 0 | N170: 0 | O170: 0 | P170: 0 | Q170: 1.06 | R170: 1.06 | S170: 2.12 | T170: 1.06 | U170: 0 | V170: 0 | W170: 0 | X170: 1.06 | Y170: 0 | Z170: 0 | AA170: 2233.69 | AB170: 2233.69 | AC170: 0 | AD170: 8702.27 | AE170: 4722.89 | AF170: 173377.25 | AG170: 0 | AH170: 0 | AI170: 0 | AJ170: 0 | AK170: 0 | AL170: 2095589.67 | AM170: 2142881.68 | AN170: 1418120.93 | AO170: 29717.91 | AP170: 405296.99 | AQ170: 441745.82 | AR170: 484601.27 | AS170: 506057.06 | AT170: 1837701.14
A171: 168 | B171: г.п. Одинцово | C171: г.Одинцово, Можайское шоссе, 136 | D171: ЖЭУ-6,7 | E171: 4880302.21 | F171: 0 | G171: 0 | H171: 0 | I171: 0 | J171: 0 | K171: 0 | L171: 0 | M171: 0 | N171: 0 | O171: 4555494.01 | P171: 0 | Q171: 556735.73 | R171: 382939.37 | S171: 1493186.22 | T171: 993715.05 | U171: 0 | V171: 0 | W171: 0 | X171: 0 | Y171: 0 | Z171: 0 | AA171: 3170.2 | AB171: 3170.21 | AC171: 0 | AD171: 12351.13 | AE171: 6702.67 | AF171: 184618.62 | AG171: 0 | AH171: 0 | AI171: 0 | AJ171: 0 | AK171: 0 | AL171: 13072385.42 | AM171: 12710096.43 | AN171: 3996064.38 | AO171: 57815.17 | AP171: 1072029.89 | AQ171: 1110624.55 | AR171: 1196046.28 | AS171: 1329303 | AT171: 4708003.72
A172: 169 | B172: г.п. Одинцово | C172: г.Одинцово, Молодежная, 1А | D172: ЖЭУ-1,2,3 | E172: 1314909.64 | F172: 0 | G172: 0 | H172: 0 | I172: 0 | J172: 0 | K172: -3.91 | L172: 0 | M172: 0 | N172: 0 | O172: -1989.91 | P172: 0 | Q172: 518.98 | R172: 375.81 | S172: 1073.64 | T172: 907.44 | U172: 0 | V172: 0 | W172: 0 | X172: 0 | Y172: 0 | Z172: 0 | AA172: 7651.92 | AB172: 7651.92 | AC172: 0 | AD172: 29853.36 | AE172: 16185.24 | AF172: 49798.5 | AG172: 0 | AH172: 0 | AI172: 0 | AJ172: 0 | AK172: 0 | AL172: 1426932.63 | AM172: 1655111.82 | AN172: 1262642.09 | AO172: 18074.45 | AP172: 321571.88 | AQ172: 326565.07 | AR172: 339792.92 | AS172: 373096.21 | AT172: 1361026.08
A173: 170 | B173: г.п. Одинцово | C173: г.Одинцово, Молодежная, 1Б | D173: ЖЭУ-1,2,3 | E173: 1237098.51 | F173: 0 | G173: 0 | H173: 0 | I173: 0 | J173: 0 | K173: 0 | L173: 0 | M173: 0 | N173: 0 | O173: -4429.64 | P173: 0 | Q173: -608.25 | R173: -440.46 | S173: -1338.82 | T173: -1094.35 | U173: 0 | V173: 0 | W173: 0 | X173: 0 | Y173: 0 | Z173: 0 | AA173: 6822.96 | AB173: 6822.96 | AC173: 0 | AD173: 26615.3 | AE173: 14430.02 | AF173: 45174.29 | AG173: 0 | AH173: 0 | AI173: 0 | AJ173: 0 | AK173: 0 | AL173: 1329052.52 | AM173: 1284822.14 | AN173: 1093868.53 | AO173: 60531.67 | AP173: 271023.12 | AQ173: 268132.74 | AR173: 299690.01 | AS173: 301043.82 | AT173: 1139889.69
A174: 171 | B174: г.п. Одинцово | C174: г.Одинцово, Неделина, 5 | D174: ЖЭУ-1,2,3 | E174: 2005436.15 | F174: 0 | G174: 0 | H174: 0 | I174: -33.64 | J174: 0 | K174: 0 | L174: 0 | M174: 0 | N174: 0 | O174: 2417942.58 | P174: 0 | Q174: 227492.65 | R174: 137165.41 | S174: 534412.09 | T174: 385592.57 | U174: 0 | V174: 0 | W174: 0 | X174: -65.44 | Y174: 0 | Z174: 0 | AA174: 2553.12 | AB174: 2553.12 | AC174: 0 | AD174: 9920.9 | AE174: 5402.16 | AF174: 198260.57 | AG174: 0 | AH174: 0 | AI174: 0 | AJ174: 0 | AK174: 0 | AL174: 5926632.24 | AM174: 5937135.2 | AN174: 733208.05 | AO174: 8813.87 | AP174: 442311.97 | AQ174: 518779.43 | AR174: 501237.23 | AS174: 557005.19 | AT174: 2019333.82
A175: 172 | B175: г.п. Одинцово | C175: г.Одинцово, Неделина, 7 | D175: ЖЭУ-1,2,3 | E175: 2016264.96 | F175: 0 | G175: 0 | H175: 0 | I175: 0 | J175: 0 | K175: 0 | L175: 0 | M175: 0 | N175: 0 | O175: 0 | P175: 0 | Q175: 0 | R175: 0 | S175: 0 | T175: 0 | U175: 0 | V175: 0 | W175: 0 | X175: 0 | Y175: 0 | Z175: 0 | AA175: 2679.24 | AB175: 2679.24 | AC175: 0 | AD175: 10441.08 | AE175: 5666.16 | AF175: 208005.24 | AG175: 0 | AH175: 0 | AI175: 0 | AJ175: 0 | AK175: 0 | AL175: 2245735.92 | AM175: 2134749.92 | AN175: 571218.22 | AO175: 26881.27 | AP175: 424374.14 | AQ175: 457453.76 | AR175: 493586.72 | AS175: 539809.56 | AT175: 1915224.18
A176: 173 | B176: г.п. Одинцово | C176: г.Одинцово, Ново-Спортивная, 10 | D176: ЖЭУ-5 | E176: 6831392.23 | F176: 0 | G176: -3304.41 | H176: 0 | I176: 0 | J176: 0 | K176: 0 | L176: 0 | M176: 0 | N176: 0 | O176: 8285337.88 | P176: 0 | Q176: 615701.37 | R176: 416444.66 | S176: 1626434.78 | T176: 1091621.54 | U176: 0 | V176: 0 | W176: 0 | X176: 0 | Y176: 0 | Z176: 0 | AA176: 7257.48 | AB176: 7257.48 | AC176: 0 | AD176: 28267.79 | AE176: 15349.45 | AF176: 492487.08 | AG176: 0 | AH176: 0 | AI176: 0 | AJ176: 0 | AK176: 0 | AL176: 19414247.33 | AM176: 19038874.38 | AN176: 2033788.26 | AO176: 92557.73 | AP176: 1459671.17 | AQ176: 1612894.98 | AR176: 1721503.93 | AS176: 1856540.85 | AT176: 6650610.93
A177: 174 | B177: г.п. Одинцово | C177: г.Одинцово, Ново-Спортивная, 16 к.1 | D177: ЖЭУ-5 | E177: 1982846.88 | F177: 0 | G177: 0 | H177: 0 | I177: 0 | J177: 0 | K177: 0 | L177: 0 | M177: 0 | N177: 0 | O177: 2404383.48 | P177: 0 | Q177: 0 | R177: 167534.97 | S177: 653490.05 | T177: 0 | U177: 0 | V177: 0 | W177: 0 | X177: 0 | Y177: 0 | Z177: 0 | AA177: 1946.88 | AB177: 1946.88 | AC177: 0 | AD177: 7585.44 | AE177: 4116.96 | AF177: 113399.64 | AG177: 0 | AH177: 0 | AI177: 0 | AJ177: 0 | AK177: 0 | AL177: 5337251.18 | AM177: 5104708.28 | AN177: 1593234.12 | AO177: 8918.46 | AP177: 416382.75 | AQ177: 453513.27 | AR177: 475877.67 | AS177: 549610.4 | AT177: 1895384.09
A178: 175 | B178: г.п. Одинцово | C178: г.Одинцово, Ново-Спортивная, 16 к.2 | D178: ЖЭУ-5 | E178: 2002454.69 | F178: 0 | G178: 0 | H178: 0 | I178: 0 | J178: 0 | K178: 0 | L178: 0 | M178: 0 | N178: 0 | O178: 1593267.82 | P178: 0 | Q178: -337.44 | R178: 178206.31 | S178: 695150.15 | T178: -748.36 | U178: 0 | V178: 0 | W178: 0 | X178: 0 | Y178: 0 | Z178: 0 | AA178: 1965.9 | AB178: 1965.9 | AC178: 0 | AD178: 7662.93 | AE178: 4158.83 | AF178: 114559.59 | AG178: 0 | AH178: 0 | AI178: 0 | AJ178: 0 | AK178: 0 | AL178: 4598306.32 | AM178: 4686362.76 | AN178: 809117.98 | AO178: 11169.94 | AP178: 444493.54 | AQ178: 467326.32 | AR178: 483708.26 | AS178: 564119.36 | AT178: 1959647.48
A179: 176 | B179: г.п. Одинцово | C179: г.Одинцово, Ново-Спортивная, 18 | D179: ЖЭУ-5 | E179: 3966094.43 | F179: 0 | G179: 0 | H179: 0 | I179: 0 | J179: 0 | K179: -72.86 | L179: 0 | M179: 0 | N179: 0 | O179: 3152707.79 | P179: 0 | Q179: -1997.78 | R179: 351795.41 | S179: 1374494.21 | T179: -3520.65 | U179: 0 | V179: 0 | W179: 0 | X179: 0 | Y179: 0 | Z179: 0 | AA179: 5158.77 | AB179: 5158.77 | AC179: 0 | AD179: 20103 | AE179: 10910.76 | AF179: 298945.87 | AG179: 0 | AH179: 0 | AI179: -2295.82 | AJ179: -44837.77 | AK179: 0 | AL179: 9132644.13 | AM179: 9825118.96 | AN179: 1000241.81 | AO179: 20824.01 | AP179: 874116.24 | AQ179: 954213.9 | AR179: 1088299.56 | AS179: 1102811.59 | AT179: 4019441.29
A180: 177 | B180: г.п. Одинцово | C180: г.Одинцово, Ново-Спортивная, 20 | D180: ЖЭУ-5 | E180: 3977455.1 | F180: 0 | G180: 0 | H180: 0 | I180: 0 | J180: 0 | K180: 0 | L180: 0 | M180: 0 | N180: 0 | O180: 4167772.94 | P180: 0 | Q180: 511276.94 | R180: 342294.37 | S180: 1334844.1 | T180: 902670.8 | U180: 0 | V180: 0 | W180: 0 | X180: 0 | Y180: 0 | Z180: 0 | AA180: 4827.52 | AB180: 4827.52 | AC180: 0 | AD180: 18812.51 | AE180: 10211.41 | AF180: 281255.53 | AG180: 0 | AH180: 0 | AI180: 0 | AJ180: 0 | AK180: 0 | AL180: 11556248.74 | AM180: 11143979.32 | AN180: 2733532.14 | AO180: 62252.17 | AP180: 861636.98 | AQ180: 865767.91 | AR180: 1026294.6 | AS180: 1090877.79 | AT180: 3844577.28
A181: 178 | B181: г.п. Одинцово | C181: г.Одинцово, Садовая, 22 корп.А | D181: ЖЭУ-1,2,3 | E181: 7260771.22 | F181: 0 | G181: -5277.1 | H181: 0 | I181: 0 | J181: 0 | K181: 0 | L181: 0 | M181: 0 | N181: 0 | O181: 0 | P181: -77819.44 | Q181: -11049.22 | R181: 533768.05 | S181: 2095221.33 | T181: -26355.94 | U181: 0 | V181: 0 | W181: 0 | X181: 0 | Y181: 0 | Z181: 0 | AA181: 12053.78 | AB181: 11968.37 | AC181: 0 | AD181: 46942.35 | AE181: 25773.75 | AF181: 879015.71 | AG181: 0 | AH181: 0 | AI181: 0 | AJ181: 0 | AK181: 0 | AL181: 10745012.86 | AM181: 11111865.38 | AN181: 2673386.71 | AO181: 172937.65 | AP181: 1646751.75 | AQ181: 1841301.65 | AR181: 1791704.74 | AS181: 2038819.07 | AT181: 7318577.21
A182: 179 | B182: г.п. Одинцово | C182: г.Одинцово, Садовая, 24 | D182: ЖЭУ-1,2,3 | E182: 11390318.21 | F182: 0 | G182: 962.38 | H182: 0 | I182: 0 | J182: 0 | K182: 0 | L182: 0 | M182: 0 | N182: 0 | O182: 1617989.42 | P182: -2295487.62 | Q182: -26627.9 | R182: 714839.76 | S182: 2803804.92 | T182: -46925.63 | U182: -9950.31 | V182: 480.74 | W182: 4506.31 | X182: 0 | Y182: 0 | Z182: 0 | AA182: 10093.53 | AB182: 10379.85 | AC182: 0 | AD182: 42414.98 | AE182: 23299.19 | AF182: 742462.75 | AG182: 0 | AH182: 0 | AI182: 0 | AJ182: 0 | AK182: 0 | AL182: 14982560.58 | AM182: 16502560.66 | AN182: 6343889.36 | AO182: 436966.1 | AP182: 2602372.57 | AQ182: 3005939.01 | AR182: 3106894.75 | AS182: 3235088.37 | AT182: 11950294.7
A183: 180 | B183: г.п. Одинцово | C183: г.Одинцово, Садовая, 26 | D183: ЖЭУ-1,2,3 | E183: 1778314.49 | F183: 0 | G183: 0 | H183: 0 | I183: -43.92 | J183: 0 | K183: -19.53 | L183: 0 | M183: 0 | N183: 0 | O183: -585.81 | P183: 0 | Q183: 242314.78 | R183: -16.73 | S183: -50.81 | T183: 423446.97 | U183: 0 | V183: 0 | W183: 0 | X183: -44.85 | Y183: 0 | Z183: 0 | AA183: 1302.66 | AB183: 1300.32 | AC183: 0 | AD183: 5080.79 | AE183: 2752.49 | AF183: 101163.13 | AG183: 0 | AH183: 0 | AI183: 0 | AJ183: 0 | AK183: 0 | AL183: 2554913.98 | AM183: 2587633.69 | AN183: 988571.56 | AO183: 21525.91 | AP183: 440519.19 | AQ183: 384227.64 | AR183: 412042.94 | AS183: 530240.42 | AT183: 1767030.19
A184: 181 | B184: г.п. Одинцово | C184: г.Одинцово, Садовая, 30 | D184: ЖЭУ-1,2,3 | E184: 1772129.99 | F184: 0 | G184: -3960.84 | H184: 0 | I184: -2634.37 | J184: -1796.73 | K184: -80 | L184: 0 | M184: 0 | N184: 0 | O184: -61448.18 | P184: 0 | Q184: -5630.87 | R184: -4077.54 | S184: -12077.3 | T184: -10031.48 | U184: 0 | V184: 0 | W184: 0 | X184: -2524.9 | Y184: 0 | Z184: 0 | AA184: 1941.46 | AB184: 1941.46 | AC184: 0 | AD184: 7566.67 | AE184: 4106.82 | AF184: 146483.87 | AG184: 0 | AH184: 0 | AI184: -4175.36 | AJ184: -131752.13 | AK184: 0 | AL184: 1693980.57 | AM184: 2047926.24 | AN184: 1023922.18 | AO184: 23979.71 | AP184: 402624.4 | AQ184: 448412.74 | AR184: 505944.44 | AS184: 503461.78 | AT184: 1860443.36
A185: 182 | B185: г.п. Одинцово | C185: г.Одинцово, Садовая, 32 | D185: ЖЭУ-1,2,3 | E185: 2688909.62 | F185: 0 | G185: 0 | H185: 0 | I185: 0 | J185: 0 | K185: 0 | L185: 0 | M185: 0 | N185: 0 | O185: 2513285.56 | P185: 0 | Q185: 334163.14 | R185: 226532.24 | S185: 883490.66 | T185: 592944.29 | U185: 0 | V185: 0 | W185: 0 | X185: 0 | Y185: 0 | Z185: 0 | AA185: 3440.8 | AB185: 3440.8 | AC185: 0 | AD185: 13414.25 | AE185: 7279.18 | AF185: 200381.57 | AG185: 0 | AH185: 0 | AI185: 68.73 | AJ185: 1362.41 | AK185: 0 | AL185: 7468713.25 | AM185: 7344821.27 | AN185: 1597461.58 | AO185: 27709.06 | AP185: 567179.87 | AQ185: 648176.35 | AR185: 657761.03 | AS185: 779386.27 | AT185: 2652503.52
A186: 183 | B186: г.п. Одинцово | C186: г.Одинцово, Северная, 4 | D186: ЖЭУ-1,2,3 | E186: 2169918.72 | F186: 0 | G186: -0.03 | H186: 0 | I186: 0 | J186: 0 | K186: 0 | L186: 0 | M186: 0 | N186: 0 | O186: 2013228.38 | P186: 0 | Q186: 241257.65 | R186: 166515.66 | S186: 648508.57 | T186: 431028.66 | U186: 0 | V186: 0 | W186: 0 | X186: 302.89 | Y186: 0 | Z186: 0 | AA186: 2395.33 | AB186: 2395.33 | AC186: 0 | AD186: 9333.96 | AE186: 5065.68 | AF186: 187035.07 | AG186: 0 | AH186: 0 | AI186: 0 | AJ186: 0 | AK186: 0 | AL186: 5876985.87 | AM186: 5891902.62 | AN186: 849383.73 | AO186: 26644.44 | AP186: 455036.51 | AQ186: 527563.91 | AR186: 529591.19 | AS186: 623323.83 | AT186: 2135515.44
A187: 184 | B187: г.п. Одинцово | C187: г.Одинцово, Северная, 6 | D187: ЖЭУ-1,2,3 | E187: 1854938.88 | F187: 0 | G187: 0 | H187: 0 | I187: 0 | J187: 0 | K187: 0 | L187: 0 | M187: 0 | N187: 0 | O187: 1725567.28 | P187: 0 | Q187: 238229.98 | R187: 157604.2 | S187: 614442.9 | T187: 418582.98 | U187: 0 | V187: 0 | W187: 0 | X187: 43.95 | Y187: 0 | Z187: 0 | AA187: 1941.72 | AB187: 1941.72 | AC187: 0 | AD187: 7566.24 | AE187: 4107.24 | AF187: 150748.08 | AG187: 0 | AH187: 0 | AI187: 0 | AJ187: 0 | AK187: 0 | AL187: 5175715.17 | AM187: 5433436.9 | AN187: 423813.02 | AO187: 20130.15 | AP187: 397281.99 | AQ187: 454382.12 | AR187: 514423.37 | AS187: 559163.78 | AT187: 1925251.26
A188: 185 | B188: г.п. Одинцово | C188: г.Одинцово, Северная, 8 | D188: ЖЭУ-1,2,3 | E188: 2127862.12 | F188: 0 | G188: -1774.29 | H188: 0 | I188: -3250.06 | J188: 0 | K188: 0 | L188: 0 | M188: 0 | N188: 0 | O188: 1974396.15 | P188: 0 | Q188: 259396.61 | R188: 181800.18 | S188: 715330.08 | T188: 466909.1 | U188: 0 | V188: 0 | W188: 0 | X188: -3989.44 | Y188: 0 | Z188: 0 | AA188: 2395.04 | AB188: 2395.04 | AC188: 0 | AD188: 9332.49 | AE188: 5063.64 | AF188: 182711.25 | AG188: 0 | AH188: 0 | AI188: 0 | AJ188: -84906.68 | AK188: 0 | AL188: 5833671.23 | AM188: 5984119.42 | AN188: 2169259.82 | AO188: 90350.92 | AP188: 448605.94 | AQ188: 567162.16 | AR188: 548446.23 | AS188: 570445.1 | AT188: 2134659.43
A189: 186 | B189: г.п. Одинцово | C189: г.Одинцово, Северная, 12 | D189: ЖЭУ-1,2,3 | E189: 2817097.03 | F189: 0 | G189: 0 | H189: 0 | I189: -4.86 | J189: 0 | K189: 0 | L189: 0 | M189: 0 | N189: 0 | O189: 2613588.33 | P189: 0 | Q189: 274616.66 | R189: 177898.04 | S189: 693565.09 | T189: 478533.47 | U189: 0 | V189: 0 | W189: 0 | X189: -61.02 | Y189: 0 | Z189: 0 | AA189: 4099.92 | AB189: 4099.92 | AC189: 0 | AD189: 15974.16 | AE189: 8670.24 | AF189: 318225.13 | AG189: 0 | AH189: 0 | AI189: 0 | AJ189: 0 | AK189: 0 | AL189: 7406302.11 | AM189: 7724101.89 | AN189: 1518194.86 | AO189: 29139.98 | AP189: 641673.74 | AQ189: 718082.09 | AR189: 703755.65 | AS189: 795363.49 | AT189: 2858874.97
A190: 187 | B190: г.п. Одинцово | C190: г.Одинцово, Северная, 14 | D190: ЖЭУ-1,2,3 | E190: 2165317.32 | F190: 0 | G190: 0 | H190: 0 | I190: 0 | J190: 0 | K190: 0 | L190: 0 | M190: 0 | N190: 0 | O190: 1891825.29 | P190: 0 | Q190: 243409.86 | R190: 155673.34 | S190: 606983.55 | T190: 422063.57 | U190: 0 | V190: 0 | W190: 0 | X190: 0 | Y190: 0 | Z190: 0 | AA190: 3917.8 | AB190: 3917.8 | AC190: 0 | AD190: 15266.78 | AE190: 8286.81 | AF190: 304204.62 | AG190: 0 | AH190: 0 | AI190: 0 | AJ190: 0 | AK190: 0 | AL190: 5820866.74 | AM190: 5831282.8 | AN190: 527502.14 | AO190: 35155.77 | AP190: 460718.53 | AQ190: 511913.69 | AR190: 565140.72 | AS190: 606639.13 | AT190: 2144412.07
A191: 188 | B191: г.п. Одинцово | C191: г.Одинцово, Северная, 16 | D191: ЖЭУ-1,2,3 | E191: 2167183.21 | F191: 0 | G191: 0 | H191: 0 | I191: -143.4 | J191: 0 | K191: 0 | L191: 0 | M191: 0 | N191: 0 | O191: 2056559.93 | P191: 0 | Q191: 275094.89 | R191: 183640.93 | S191: 716269.92 | T191: 485128.01 | U191: 0 | V191: 0 | W191: 0 | X191: -64.98 | Y191: 0 | Z191: 0 | AA191: 3693.46 | AB191: 3693.46 | AC191: 0 | AD191: 14397.33 | AE191: 7812.63 | AF191: 286726.04 | AG191: 0 | AH191: 0 | AI191: 0 | AJ191: 0 | AK191: 0 | AL191: 6199991.43 | AM191: 6130799.78 | AN191: 1619832.25 | AO191: 14059.96 | AP191: 465100.08 | AQ191: 564076.22 | AR191: 529692.16 | AS191: 589638.97 | AT191: 2148507.43
A192: 189 | B192: г.п. Одинцово | C192: г.Одинцово, Северная, 24 | D192: ЖЭУ-1,2,3 | E192: 2790105.02 | F192: 0 | G192: 0 | H192: 0 | I192: 140.15 | J192: 0 | K192: 0 | L192: 0 | M192: 0 | N192: 0 | O192: 2216393.89 | P192: 0 | Q192: -406.1 | R192: 204190.14 | S192: 797153.32 | T192: -727.29 | U192: 0 | V192: 0 | W192: 0 | X192: -346.72 | Y192: 0 | Z192: 0 | AA192: 4121.18 | AB192: 4121.18 | AC192: 0 | AD192: 16058.36 | AE192: 8714.4 | AF192: 320005.16 | AG192: 0 | AH192: 0 | AI192: 0 | AJ192: 0 | AK192: 0 | AL192: 6359522.69 | AM192: 6807249.11 | AN192: 736351.91 | AO192: 33880.6 | AP192: 576131.21 | AQ192: 741092.42 | AR192: 754827.73 | AS192: 782304.17 | AT192: 2854355.53
A193: 190 | B193: г.п. Одинцово | C193: г.Одинцово, Северная, 26 | D193: ЖЭУ-1,2,3 | E193: 2776767.41 | F193: 0 | G193: 0 | H193: 0 | I193: 127.38 | J193: 0 | K193: 0 | L193: 0 | M193: 0 | N193: 0 | O193: 2575669.16 | P193: 0 | Q193: 261718.4 | R193: 170125.14 | S193: 662863.22 | T193: 456653.91 | U193: 0 | V193: 0 | W193: 0 | X193: 138.12 | Y193: 0 | Z193: 0 | AA193: 2139.64 | AB193: 2043.13 | AC193: 0 | AD193: 15917.65 | AE193: 8638.66 | AF193: 317224.85 | AG193: 0 | AH193: 0 | AI193: 0 | AJ193: 0 | AK193: 0 | AL193: 7250026.67 | AM193: 7380403.56 | AN193: 1111127.92 | AO193: 33327.93 | AP193: 647184.67 | AQ193: 695213.94 | AR193: 691949.46 | AS193: 762706.78 | AT193: 2797054.85
A194: 191 | B194: г.п. Одинцово | C194: г.Одинцово, Северная, 28 | D194: ЖЭУ-1,2,3 | E194: 2786687.98 | F194: 0 | G194: 0 | H194: 0 | I194: 0 | J194: 0 | K194: 0 | L194: 0 | M194: 0 | N194: 0 | O194: 2585452.79 | P194: 0 | Q194: 290109.72 | R194: 214989.73 | S194: 817435.45 | T194: 534136.11 | U194: 0 | V194: 0 | W194: 0 | X194: 11.89 | Y194: 0 | Z194: 0 | AA194: 6786.44 | AB194: 6786.44 | AC194: 0 | AD194: 26444.29 | AE194: 14353.16 | AF194: 526849.02 | AG194: 0 | AH194: 0 | AI194: 0 | AJ194: 0 | AK194: 0 | AL194: 7810043.02 | AM194: 7631348.51 | AN194: 1426080.86 | AO194: 14129.64 | AP194: 574098.8 | AQ194: 632107.67 | AR194: 721598.47 | AS194: 747139.24 | AT194: 2674944.18
A195: 192 | B195: г.п. Одинцово | C195: г.Одинцово, Северная, 30 | D195: ЖЭУ-1,2,3 | E195: 2180674.36 | F195: 0 | G195: 0 | H195: 0 | I195: -121.5 | J195: 0 | K195: 0 | L195: 0 | M195: 0 | N195: 0 | O195: -1705.34 | P195: 0 | Q195: 284227.9 | R195: -96.85 | S195: -294.49 | T195: 488613.18 | U195: 0 | V195: 0 | W195: 0 | X195: -73.68 | Y195: 0 | Z195: 0 | AA195: 3878.96 | AB195: 3878.96 | AC195: 0 | AD195: 15118.93 | AE195: 8205.18 | AF195: 301263.52 | AG195: 0 | AH195: 0 | AI195: 0 | AJ195: 0 | AK195: 0 | AL195: 3283569.13 | AM195: 3161752.33 | AN195: 2465586.91 | AO195: 24908.2 | AP195: 535470.06 | AQ195: 470373.86 | AR195: 504885.26 | AS195: 579895.13 | AT195: 2090624.31
A196: 193 | B196: г.п. Одинцово | C196: г.Одинцово, Северная, 32 | D196: ЖЭУ-1,2,3 | E196: 3253925.28 | F196: 0 | G196: 0 | H196: 0 | I196: 0 | J196: 0 | K196: 0 | L196: 0 | M196: 0 | N196: 0 | O196: 3945813.56 | P196: 0 | Q196: 334300.98 | R196: 254020.79 | S196: 990882.87 | T196: 622184.55 | U196: 0 | V196: 0 | W196: 0 | X196: 0 | Y196: 0 | Z196: 0 | AA196: 4775.38 | AB196: 4775.38 | AC196: 0 | AD196: 18610.43 | AE196: 10100.54 | AF196: 278194.9 | AG196: 0 | AH196: 0 | AI196: 200.73 | AJ196: 1868.99 | AK196: 0 | AL196: 9719654.38 | AM196: 9677620.03 | AN196: 1355613.66 | AO196: 17394.78 | AP196: 700832.16 | AQ196: 751352.62 | AR196: 865684.42 | AS196: 882863.76 | AT196: 3200732.96
A197: =A196+1 -> 194 | B197: г.п. Одинцово | C197: г.Одинцово, Северная, 36 | D197: ЖЭУ-1,2,3 | E197: 10576970.45 | F197: 0 | G197: 1116.45 | H197: 0 | I197: 0 | J197: 0 | K197: 0 | L197: 0 | M197: 0 | N197: 0 | O197: 1222494.78 | P197: -1372208.12 | Q197: -12236.78 | R197: 683736.08 | S197: 2679030.35 | T197: -18422.59 | U197: -50705.76 | V197: -15493.08 | W197: 6550.35 | X197: 0 | Y197: 0 | Z197: 0 | AA197: 10284.96 | AB197: 10297.4 | AC197: 0 | AD197: 33867.03 | AE197: 18996.97 | AF197: 735159.5 | AG197: 0 | AH197: 0 | AI197: 0 | AJ197: 0 | AK197: 0 | AL197: 14509437.99 | AM197: 14611343.64 | AN197: 6200553.54 | AO197: 1466707.33 | AP197: 2881395.94 | AQ197: 2594251.74 | AR197: 2694190.93 | AS197: 2853157.31 | AT197: =SUM(AP197:AS197) -> 11022995.92
A198: 195 | B198: г.п. Одинцово | C198: г.Одинцово, Северная, 42 | D198: ЖЭУ-1,2,3 | E198: 1260408.54 | F198: 0 | G198: 0 | H198: 0 | I198: 0 | J198: 0 | K198: 0 | L198: 0 | M198: 0 | N198: 0 | O198: 2208717.84 | P198: 0 | Q198: 240696.52 | R198: 179254.62 | S198: 698924.25 | T198: 444094.71 | U198: 0 | V198: 0 | W198: 0 | X198: 0 | Y198: 0 | Z198: 0 | AA198: 3719.76 | AB198: 3719.76 | AC198: 0 | AD198: 14508.24 | AE198: 7866 | AF198: 32875.2 | AG198: 0 | AH198: 0 | AI198: 0 | AJ198: 0 | AK198: 0 | AL198: 5094785.44 | AM198: 5072593.36 | AN198: 1210080.96 | AO198: 25937.62 | AP198: 274692.5 | AQ198: 309601.63 | AR198: 315644.82 | AS198: 337758.91 | AT198: 1237697.86
A199: 196 | B199: г.п. Одинцово | C199: г.Одинцово, Северная, 44 | D199: ЖЭУ-1,2,3 | E199: 2478158.07 | F199: 0 | G199: 0 | H199: 0 | I199: -135.11 | J199: 0 | K199: 0 | L199: 0 | M199: 0 | N199: 0 | O199: 4345766.63 | P199: 0 | Q199: 594342.48 | R199: 437082.23 | S199: 1705030.36 | T199: 1090793.9 | U199: 0 | V199: 0 | W199: 0 | X199: -702.92 | Y199: 0 | Z199: 0 | AA199: 3931.29 | AB199: 3931.29 | AC199: 0 | AD199: 15336.98 | AE199: 8315.3 | AF199: 34673.58 | AG199: 0 | AH199: 0 | AI199: 0 | AJ199: 0 | AK199: 0 | AL199: 10716524.08 | AM199: 10741520.86 | AN199: 2597368.03 | AO199: 28043.06 | AP199: 575641.24 | AQ199: 590844.26 | AR199: 611587.96 | AS199: 669877.73 | AT199: 2447951.19
A200: 197 | B200: г.п. Одинцово | C200: г.Одинцово, Северная, 46 | D200: ЖЭУ-1,2,3 | E200: 1248164.4 | F200: 0 | G200: 0 | H200: 0 | I200: 25.31 | J200: 0 | K200: 0 | L200: 0 | M200: 0 | N200: 0 | O200: 2187088.95 | P200: 0 | Q200: 316078.97 | R200: 236465.41 | S200: 922019.78 | T200: 584312.86 | U200: 0 | V200: 0 | W200: 0 | X200: 43.86 | Y200: 0 | Z200: 0 | AA200: 1876.56 | AB200: 1876.56 | AC200: 0 | AD200: 7322.16 | AE200: 3971.28 | AF200: 16728.96 | AG200: 0 | AH200: 0 | AI200: 0 | AJ200: 0 | AK200: 0 | AL200: 5525975.06 | AM200: 5238204.35 | AN200: 2518903.88 | AO200: 13430.82 | AP200: 256958 | AQ200: 318458.84 | AR200: 310352.9 | AS200: 343403.89 | AT200: 1229173.63
... 341 more rows

Sheet отчёт (hidden)
A1: № п/п | B1: Адрес | C1: Общая площадь МКД, м2 | D1: в т.ч. | F1: Площадь МОП, м2 | G1: Средняя площадь жилых и нежилых помещений за 2023г., м2 | H1: Средняя площадь жилых и нежилых помещений за 2023г., м2 ДЛЯ МУСОРОПРОВОДОВ | I1: Количество лифтов | K1: Расчёт доли начислений на обслуживание лифтов по МКД | L1: в т.ч. | O1: ИТП / ОДПУ (Отопление) | P1: ЖЭУ | Q1: Уборка придомовой территории | R1: Уборка лестничных клеток | S1: Обслуживание МП | T1: Обслуживание газового хозяйства | U1: Размер платы на содержание ж/ф, руб./м2 | V1: Количество досок по рекламе | X1: Текущий ремонт ОИ МКД | Y1: в т.ч. | AW1: Содержание ОИ МКД | AX1: в т.ч. | BI1: Работы по управлению МКД | BJ1: в т.ч. | BP1: в т.ч. 26 | BS1: в т.ч. 91.02 | BW1: Услуги ЕИРЦ | BX1: Уборка придомовой территории | BY1: Уборка лестничных клеток | BZ1: Обслуживание мусоропроводов | CA1: Обслуживание и содержание лифтов | CB1: в т.ч. | CG1: Обслуживание газового хозяйства | CH1: в т.ч. | CK1: РАСХОДЫ ВСЕГО, руб. | CL1: Факт размера платы на содержание ж/ф, руб./м2 | CM1: Начисления населению по услуге "Содержание ж/ф" за 2023г. | CN1: Холодное в/с ОДН | CO1: Горячая вода (носитель) ОДН | CP1: Горячее в/с (носитель) ОДН | CQ1: Горячее в/с (энергия) ОДН | CR1: Водоотведение ОДН | CS1: Электроснабжение ОДН | CT1: Начисления по нежилым помещениям за 2023г. | CU1: Реклама | CV1: Прибыль/Убыток | CX1: Оплачено населением по услуге "Содержание ж/ф" за 2023г. | CY1: Задолженность населения за 2023г.
D2: площадь жилых помещений, м2 | E2: площадь нежилых помещений, м2 | I2: пассажирских | J2: грузовых | L2: Фонд УЖХ | M2: ВНИИССОК | N2: Усово-Тупик | Y2: Списание материалов | Z2: Списание материалов по ЖЭУ | AA2: Списание материалов (база) | AB2: Списание материалов (РСГ) | AC2: Ремонт кровли | AD2: Ремонт козырька | AE2: Ремонт фасада | AF2: Ремонт цоколя | AG2: Ремонт откосов | AH2: Ремонт отмостки | AI2: Ремонт водосточных труб | AJ2: Ремонт устройства отливов | AK2: Герметизация межпанельных швов | AL2: Ремонт балкона | AM2: Откидной пандус для дет. колясок | AN2: Ремонт входных групп | AO2: Ремонт крыльца | AP2: Ремонт МОП | AQ2: Установка дверей | AR2: Замена окон | AS2: Установка зеркал | AT2: Ремонт вентиляции | AU2: Монтаж/Демонтаж | AV2: Электромонтажные работы | AX2: Зарплата ЖЭУ | AY2: Зарплата АДС | AZ2: Техническое обслуживание ИТП | BA2: Проверка теплосчётчиков | BB2: Мытьё окон с применением альпинистского снаряжения | BC2: Очистка кровли от снега, наледи и сосулек | BD2: Уборка снега | BE2: Промывка системы канализации | BF2: Тех. обслуживание систем противопожарной защиты зданий | BG2: Проверка вентиляционных каналов | BH2: Прочие СОИ | BJ2: Работы по звысканию дебиторской задолженности | BK2: Юридические услуги | BL2: Услуги по доставке ЕПД | BM2: Прочие | BN2: Зарплата АУП | BO2: Зарплата ПТБ, РСГ | BP2: Прочие | BQ2: Зарплата АУП | BR2: Юридические услуги | BS2: Госпошлина, услуги банка | BT2: Прочие | BU2: Прочие ИТП | BV2: Пени, штрафы | CB2: Обслуживание и содержание лифтов | CC2: Обслуживание и содержание лифтов | CD2: Обслуживание и содержание лифтов (ВНИИССОК) | CE2: Обслуживание и содержание лифтов (Усово-Тупик) | CF2: Страхование лифтов и др. имущества | CH2: Обслуживание газового хозяйства | CI2: Обслуживание газового хозяйства
V4: шт. | W4: %
A5: 1 | B5: г.Одинцово, 1-я Вокзальная, 41 | C5: 599.6 | D5: 599.6 | E5: 0 | F5: 47.8 | G5: 599.6 | I5: 0 | J5: 0 | K5: 0 | L5: 0 | O5: нет | P5: ЖЭУ-6,7 | Q5: 6.92 | R5: 3.15 | S5: 0 | T5: 0.26 | U5: 31 | W5: 0 | X5: 32673.6516 | Y5: 30100.04 | Z5: 1936.141753 | AA5: 377.3014814 | AB5: 260.1683694 | AC5: 0 | AD5: 0 | AE5: 0 | AF5: 0 | AG5: 0 | AH5: 0 | AI5: 0 | AJ5: 0 | AK5: 0 | AL5: 0 | AM5: 0 | AN5: 0 | AO5: 0 | AP5: 0 | AQ5: 0 | AR5: 0 | AS5: 0 | AT5: 0 | AU5: 0 | AV5: 0 | AW5: 71823.51416 | AX5: 57518.25205 | AY5: 3840.520172 | AZ5: 0 | BA5: 0 | BB5: 0 | BC5: 8992.776 | BD5: 257.5837187 | BE5: 0 | BF5: 337.5150047 | BG5: 168.9859391 | BH5: 707.8812725 | BI5: 89456.47321 | BJ5: 633.5771854 | BK5: 901.5430156 | BL5: 967.1380465 | BM5: 958.4594924 | BN5: 16121.37661 | BO5: 9255.397447 | BP5: 7593.334451 | BQ5: 41198.09177 | BR5: 1537.484705 | BS5: 1707.081664 | BT5: 8516.534554 | BU5: 0 | BV5: 66.45426925 | BW5: 10280.78596 | BX5: 36473.55363 | BY5: 32076.46039 | BZ5: 0 | CA5: 0 | CB5: 0 | CC5: 0 | CD5: 0 | CE5: 0 | CF5: 0 | CG5: 9492.610243 | CH5: 2700 | CI5: 6792.610243 | CK5: 282277.0492 | CL5: 39.23129992 | CM5: 205377.82 | CN5: 298.32 | CO5: 298.32 | CP5: 0 | CQ5: 1163.51 | CR5: 630.61 | CS5: 2545.14 | CT5: 0 | CU5: 0 | CV5: -76899.22918 | CW5: 0 | CX5: =SUMIF('2023 (2)'!$C:$C,$B:$B,'2023 (2)'!$AT:$AT) -> 210807.65 | CY5: 299948.23
A6: 2 | B6: г.Одинцово, 1-я Вокзальная, 43 | C6: 464.76 | D6: 464.76 | E6: 0 | F6: 59.3 | G6: 464.76 | I6: 0 | J6: 0 | K6: 0 | L6: 0 | O6: нет | P6: ЖЭУ-6,7 | Q6: 6.92 | R6: 3.15 | S6: 0 | T6: 0.26 | U6: 31 | W6: 0 | X6: 55789.31582 | Y6: 29941.37 | Z6: 1500.735893 | AA6: 292.452696 | AB6: 201.6608595 | AC6: 6209.1 | AD6: 0 | AE6: 0 | AF6: 0 | AG6: 0 | AH6: 0 | AI6: 0 | AJ6: 0 | AK6: 0 | AL6: 0 | AM6: 0 | AN6: 0 | AO6: 0 | AP6: 0 | AQ6: 0 | AR6: 0 | AS6: 0 | AT6: 17643.99637 | AU6: 0 | AV6: 0 | AW6: 54898.32921 | AX6: 44583.36028 | AY6: 2976.851493 | AZ6: 0 | BA6: 0 | BB6: 0 | BC6: 6197.172 | BD6: 199.6574535 | BE6: 0 | BF6: 261.6135316 | BG6: 130.983831 | BH6: 548.6906274 | BI6: 69339.21029 | BJ6: 491.0962853 | BK6: 698.8010873 | BL6: 749.6448941 | BM6: 742.9180015 | BN6: 12495.94895 | BO6: 7174.013538 | BP6: 5885.72068 | BQ6: 31933.33077 | BR6: 1191.730139 | BS6: 1323.187582 | BT6: 6601.308538 | BU6: 0 | BV6: 51.50981684 | BW6: 7968.809344 | BX6: 28271.26215 | BY6: 24863.00155 | BZ6: 0 | CA6: 0 | CB6: 0 | CC6: 0 | CD6: 0 | CE6: 0 | CF6: 0 | CG6: 6615.065938 | CH6: 1350 | CI6: 5265.065938 | CK6: 247744.9943 | CL6: 44.42167181 | CM6: 165751.98 | CN6: 328.01 | CO6: 371.35 | CP6: 0 | CQ6: 1449.43 | CR6: 785.89 | CS6: 3305.91 | CT6: 0 | CU6: 0 | CV6: -81993.0143 | CW6: 0 | CX6: =SUMIF('2023 (2)'!$C:$C,$B:$B,'2023 (2)'!$AT:$AT) -> 128632.2 | CY6: 254350.88
A7: 3 | B7: г.Одинцово, 1-я Вокзальная, 45 | C7: 490.28 | D7: 490.28 | E7: 0 | F7: 67.7 | G7: 490.28 | I7: 0 | J7: 0 | K7: 0 | L7: 0 | O7: нет | P7: ЖЭУ-6,7 | Q7: 6.92 | R7: 3.15 | S7: 0 | T7: 0.26 | U7: 31 | W7: 0 | X7: 33039.97675 | Y7: 30935.59 | Z7: 1583.141392 | AA7: 308.5112914 | AB7: 212.7340696 | AC7: 0 | AD7: 0 | AE7: 0 | AF7: 0 | AG7: 0 | AH7: 0 | AI7: 0 | AJ7: 0 | AK7: 0 | AL7: 0 | AM7: 0 | AN7: 0 | AO7: 0 | AP7: 0 | AQ7: 0 | AR7: 0 | AS7: 0 | AT7: 0 | AU7: 0 | AV7: 0 | AW7: 57572.51273 | AX7: 47031.43531 | AY7: 3140.31059 | AZ7: 0 | BA7: 0 | BB7: 0 | BC7: 6197.172 | BD7: 210.6206565 | BE7: 0 | BF7: 275.9787466 | BG7: 138.1761612 | BH7: 578.8192633 | BI7: 73146.63056 | BJ7: 518.0624123 | BK7: 737.1722977 | BL7: 790.807941 | BM7: 783.7116743 | BN7: 13182.10228 | BO7: 7567.93906 | BP7: 6208.905962 | BQ7: 33686.79191 | BR7: 1257.168114 | BS7: 1395.843893 | BT7: 6963.786793 | BU7: 0 | BV7: 54.33822403 | BW7: 8406.377152 | BX7: 29823.63888 | BY7: 26228.23049 | BZ7: 0 | CA7: 0 | CB7: 0 | CC7: 0 | CD7: 0 | CE7: 0 | CF7: 0 | CG7: 6904.171031 | CH7: 1350 | CI7: 5554.171031 | CK7: 235121.5376 | CL7: 39.96381958 | CM7: 174853.44 | CN7: 422.41 | CO7: 422.41 | CP7: 0 | CQ7: 1647.97 | CR7: 893.62 | CS7: 3734.26 | CT7: 0 | CU7: 0 | CV7: -60268.09759 | CW7: 0 | CX7: =SUMIF('2023 (2)'!$C:$C,$B:$B,'2023 (2)'!$AT:$AT) -> 153861.19 | CY7: 52308.98
A8: 4 | B8: г.Одинцово, 1-я Вокзальная, 46 | C8: 1544.17 | D8: 1279.77 | E8: 264.4 | F8: 217.8 | G8: 1544.17 | I8: 0 | J8: 0 | K8: 0 | L8: 0 | O8: нет | P8: ЖЭУ-6,7 | Q8: 6.92 | R8: 3.15 | S8: 0 | T8: 0.26 | U8: 31 | W8: 0 | X8: 22838.54832 | Y8: 16210.64 | Z8: 4986.210826 | AA8: 971.6771658 | AB8: 670.0203317 | AC8: 0 | AD8: 0 | AE8: 0 | AF8: 0 | AG8: 0 | AH8: 0 | AI8: 0 | AJ8: 0 | AK8: 0 | AL8: 0 | AM8: 0 | AN8: 0 | AO8: 0 | AP8: 0 | AQ8: 0 | AR8: 0 | AS8: 0 | AT8: 0 | AU8: 0 | AV8: 0 | AW8: 164994.2483 | AX8: 148128.6846 | AY8: 9890.62047 | AZ8: 0 | BA8: 0 | BB8: 0 | BC8: 3184.14 | BD8: 663.3639943 | BE8: 0 | BF8: 869.2137171 | BG8: 435.1951595 | BH8: 1823.030395 | BI8: 230380.2572 | BJ8: 1631.672586 | BK8: 2321.77398 | BL8: 2490.703064 | BM8: 2468.352892 | BN8: 41517.92215 | BO8: 23835.73562 | BP8: 19555.36901 | BQ8: 106098.8282 | BR8: 3959.535953 | BS8: 4396.304691 | BT8: 21932.91722 | BU8: 0 | BV8: 171.1419095 | BW8: 26476.45306 | BX8: 93931.56655 | BY8: 82607.58479 | BZ8: 0 | CA8: 0 | CB8: 0 | CC8: 0 | CD8: 0 | CE8: 0 | CF8: 0 | CG8: 20873.24109 | CH8: 3380.004 | CI8: 17493.23709 | CK8: 642101.8993 | CL8: 34.65194351 | CM8: 408656.19 | CN8: 1120.26 | CO8: 1120.26 | CP8: 0 | CQ8: 4369.79 | CR8: 2369.36 | CS8: 8770.85 | CT8: 65689.1409 | CU8: 0 | CV8: -167756.5684 | CW8: 0 | CX8: =SUMIF('2023 (2)'!$C:$C,$B:$B,'2023 (2)'!$AT:$AT) -> 297667.32 | CY8: 4349286.81
A9: 5 | B9: г.Одинцово, 1-я Вокзальная, 47 | C9: 543.3 | D9: 543.3 | E9: 0 | F9: 84.8 | G9: 543.3 | I9: 0 | J9: 0 | K9: 0 | L9: 0 | O9: нет | P9: ЖЭУ-6,7 | Q9: 6.92 | R9: 3.15 | S9: 0 | T9: 0.26 | U9: 31 | W9: 0 | X9: 15157.96995 | Y9: 12826.01 | Z9: 1754.345922 | AA9: 341.8744077 | AB9: 235.7396182 | AC9: 0 | AD9: 0 | AE9: 0 | AF9: 0 | AG9: 0 | AH9: 0 | AI9: 0 | AJ9: 0 | AK9: 0 | AL9: 0 | AM9: 0 | AN9: 0 | AO9: 0 | AP9: 0 | AQ9: 0 | AR9: 0 | AS9: 0 | AT9: 0 | AU9: 0 | AV9: 0 | AW9: 78529.93953 | AX9: 52117.52225 | AY9: 3479.910956 | AZ9: 0 | BA9: 0 | BB9: 0 | BC9: 21598.752 | BD9: 233.3976558 | BE9: 0 | BF9: 305.8237192 | BG9: 153.1188471 | BH9: 641.4141017 | BI9: 81056.8744 | BJ9: 574.0868659 | BK9: 816.8917952 | BL9: 876.3277195 | BM9: 868.4640464 | BN9: 14607.64495 | BO9: 8386.353291 | BP9: 6880.351247 | BQ9: 37329.7586 | BR9: 1393.121148 | BS9: 1546.793642 | BT9: 7716.866617 | BU9: 0 | BV9: 60.21448379 | BW9: 9315.461995 | BX9: 33048.83536 | BY9: 29064.61129 | BZ9: 0 | CA9: 0 | CB9: 0 | CC9: 0 | CD9: 0 | CE9: 0 | CF9: 0 | CG9: 8174.807783 | CH9: 2019.996 | CI9: 6154.811783 | CK9: 254348.5003 | CL9: 39.01289961 | CM9: 192379.9 | CN9: 528.55 | CO9: 528.55 | CP9: 0 | CQ9: 2061.97 | CR9: 1117.9 | CS9: 4673.03 | CT9: 0 | CU9: 0 | CV9: -61968.60031 | CW9: 0 | CX9: =SUMIF('2023 (2)'!$C:$C,$B:$B,'2023 (2)'!$AT:$AT) -> 159502.06 | CY9: 37030.44
A10: 6 | B10: г.Одинцово, 1-я Вокзальная, 48 | C10: 724.96 | D10: 724.96 | E10: 0 | F10: 94.7 | G10: 724.96 | I10: 0 | J10: 0 | K10: 0 | L10: 0 | O10: нет | P10: ЖЭУ-6,7 | Q10: 6.92 | R10: 3.15 | S10: 0 | T10: 0.26 | U10: 31 | W10: 0 | X10: 23467.43357 | Y10: 20355.75 | Z10: 2340.936167 | AA10: 456.1849266 | AB10: 314.5624767 | AC10: 0 | AD10: 0 | AE10: 0 | AF10: 0 | AG10: 0 | AH10: 0 | AI10: 0 | AJ10: 0 | AK10: 0 | AL10: 0 | AM10: 0 | AN10: 0 | AO10: 0 | AP10: 0 | AQ10: 0 | AR10: 0 | AS10: 0 | AT10: 0 | AU10: 0 | AV10: 0 | AW10: 82619.25118 | AX10: 69543.74918 | AY10: 4643.468152 | AZ10: 0 | BA10: 0 | BB10: 0 | BC10: 6652.32 | BD10: 311.4374462 | BE10: 0 | BF10: 408.0801831 | BG10: 204.3162882 | BH10: 855.8799322 | BI10: 108159.3809 | BJ10: 766.0408877 | BK10: 1090.031062 | BL10: 1169.340224 | BM10: 1158.847221 | BN10: 19491.91659 | BO10: 11190.44852 | BP10: 9180.893502 | BQ10: 49811.48867 | BR10: 1858.930807 | BS10: 2063.985862 | BT10: 10297.10956 | BU10: 0 | BV10: 80.34804375 | BW10: 12430.21779 | BX10: 44099.17851 | BY10: 38782.77305 | BZ10: 0 | CA10: 0 | CB10: 0 | CC10: 0 | CD10: 0 | CE10: 0 | CF10: 0 | CG10: 10072.75971 | CH10: 1860 | CI10: 8212.75971 | CK10: 319630.9948 | CL10: 36.7412219 | CM10: 258549.84 | CN10: 591.11 | CO10: 591.11 | CP10: 0 | CQ10: 2305.33 | CR10: 1249.93 | CS10: 5223.35 | CT10: 0 | CU10: 0 | CV10: -61081.15476 | CW10: 0 | CX10: =SUMIF('2023 (2)'!$C:$C,$B:$B,'2023 (2)'!$AT:$AT) -> 227557.55 | CY10: 150880.68
A11: 7 | B11: г.Одинцово, 1-я Вокзальная, 50 | C11: 1102.18 | D11: 1102.18 | E11: 0 | F11: 139.9 | G11: 1102.18 | I11: 0 | J11: 0 | K11: 0 | L11: 0 | O11: нет | P11: ЖЭУ-6,7 | Q11: 6.92 | R11: 3.15 | S11: 0 | T11: 0.26 | U11: 31 | W11: 0 | X11: 39618.01259 | Y11: 12208.82 | Z11: 3559.00053 | AA11: 693.5526131 | AB11: 478.2394485 | AC11: 14472.34 | AD11: 0 | AE11: 0 | AF11: 0 | AG11: 0 | AH11: 0 | AI11: 0 | AJ11: 0 | AK11: 8206.06 | AL11: 0 | AM11: 0 | AN11: 0 | AO11: 0 | AP11: 0 | AQ11: 0 | AR11: 0 | AS11: 0 | AT11: 0 | AU11: 0 | AV11: 0 | AW11: 135508.5203 | AX11: 105729.5981 | AY11: 7059.613948 | AZ11: 0 | BA11: 0 | BB11: 0 | BC11: 20013.552 | BD11: 473.4883641 | BE11: 0 | BF11: 620.4174247 | BG11: 310.6286231 | BH11: 1301.221783 | BI11: 164438.1849 | BJ11: 1164.636595 | BK11: 1657.209274 | BL11: 1777.785544 | BM11: 1761.832694 | BN11: 29634.18758 | BO11: 17013.19873 | BP11: 13958.00761 | BQ11: 75730.00798 | BR11: 2826.192282 | BS11: 3137.944076 | BT11: 15655.02678 | BU11: 0 | BV11: 122.1557146 | BW11: 18898.05982 | BX11: 67045.39916 | BY11: 58962.69698 | BZ11: 0 | CA11: 0 | CB11: 0 | CC11: 0 | CD11: 0 | CE11: 0 | CF11: 0 | CG11: 15526.11868 | CH11: 3039.996 | CI11: 12486.12268 | CK11: 499996.9924 | CL11: 37.80364009 | CM11: 393081.49 | CN11: 873.12 | CO11: 873.12 | CP11: 0 | CQ11: 3405.36 | CR11: 1846.56 | CS11: 7716.84 | CT11: 0 | CU11: 0 | CV11: -106915.5024 | CW11: 0 | CX11: =SUMIF('2023 (2)'!$C:$C,$B:$B,'2023 (2)'!$AT:$AT) -> 304842.98 | CY11: 2466008.81
A12: 8 | B12: г.Одинцово, 1-я Вокзальная, 52 | C12: 1647.35 | D12: 1311.85 | E12: 335.5 | F12: 230.1 | G12: 1647.35 | I12: 0 | J12: 0 | K12: 0 | L12: 0 | O12: нет | P12: ЖЭУ-6,7 | Q12: 6.92 | R12: 3.15 | S12: 0 | T12: 0.26 | U12: 31 | W12: 0 | X12: 92242.58584 | Y12: 6920.04 | Z12: 5319.384786 | AA12: 1036.603728 | AB12: 714.7904657 | AC12: 14087.31 | AD12: 0 | AE12: 37704.57 | AF12: 0 | AG12: 0 | AH12: 0 | AI12: 0 | AJ12: 0 | AK12: 2986.14 | AL12: 0 | AM12: 0 | AN12: 0 | AO12: 0 | AP12: 0 | AQ12: 0 | AR12: 0 | AS12: 0 | AT12: 23473.74686 | AU12: 0 | AV12: 0 | AW12: 197903.2769 | AX12: 158026.5052 | AY12: 10551.50251 | AZ12: 0 | BA12: 0 | BB12: 0 | BC12: 25281.168 | BD12: 707.689358 | BE12: 0 | BF12: 927.2937674 | BG12: 464.2744944 | BH12: 1944.843586 | BI12: 245774.0513 | BJ12: 1740.699427 | BK12: 2476.912753 | BL12: 2657.129521 | BM12: 2633.285932 | BN12: 44292.11101 | BO12: 25428.41725 | BP12: 20862.04054 | BQ12: 113188.253 | BR12: 4224.108454 | BS12: 4690.061672 | BT12: 23398.4543 | BU12: 0 | BV12: 182.5774524 | BW12: 28245.58498 | BX12: 100207.9863 | BY12: 88127.3466 | BZ12: 0 | CA12: 0 | CB12: 0 | CC12: 0 | CD12: 0 | CE12: 0 | CF12: 0 | CG12: 22042.12289 | CH12: 3380.004 | CI12: 18662.11889 | CK12: 774542.9547 | CL12: 39.18125852 | CM12: 467858.22 | CN12: 1143.24 | CO12: 1143.24 | CP12: 0 | CQ12: 4460.28 | CR12: 2418 | CS12: 10107.24 | CT12: 70078.42807 | CU12: 0 | CV12: -236606.3067 | CW12: 0 | CX12: =SUMIF('2023 (2)'!$C:$C,$B:$B,'2023 (2)'!$AT:$AT) -> 451081.16 | CY12: 248006.58
A13: 9 | B13: г.Одинцово, 1-я Вокзальная, 53 | C13: 553.4 | D13: 553.4 | E13: 0 | F13: 82.8 | G13: 553.4 | I13: 0 | J13: 0 | K13: 0 | L13: 0 | O13: нет | P13: ЖЭУ-6,7 | Q13: 6.92 | R13: 3.15 | S13: 0 | T13: 0.26 | U13: 31 | W13: 0 | X13: 17712.23131 | Y13: 15336.92 | Z13: 1786.959384 | AA13: 348.2298863 | AB13: 240.1220407 | AC13: 0 | AD13: 0 | AE13: 0 | AF13: 0 | AG13: 0 | AH13: 0 | AI13: 0 | AJ13: 0 | AK13: 0 | AL13: 0 | AM13: 0 | AN13: 0 | AO13: 0 | AP13: 0 | AQ13: 0 | AR13: 0 | AS13: 0 | AT13: 0 | AU13: 0 | AV13: 0 | AW13: 98488.66786 | AX13: 53086.39207 | AY13: 3544.60284 | AZ13: 0 | BA13: 0 | BB13: 0 | BC13: 40499.124 | BD13: 237.736541 | BE13: 0 | BF13: 311.509012 | BG13: 155.9653414 | BH13: 653.3380524 | BI13: 82563.72961 | BJ13: 584.7591968 | BK13: 832.0778933 | BL13: 892.6187373 | BM13: 884.6088777 | BN13: 14879.2025 | BO13: 8542.256416 | BP13: 7008.257647 | BQ13: 38023.72245 | BR13: 1419.019406 | BS13: 1575.548687 | BT13: 7860.32392 | BU13: 0 | BV13: 61.33387692 | BW13: 9488.637342 | BX13: 33663.21644 | BY13: 29604.92525 | BZ13: 0 | CA13: 0 | CB13: 0 | CC13: 0 | CD13: 0 | CE13: 0 | CF13: 0 | CG13: 8289.226335 | CH13: 2019.996 | CI13: 6269.230335 | CK13: 279810.6341 | CL13: 42.13507923 | CM13: 152160.18 | CN13: 516.95 | CO13: 516.95 | CP13: 0 | CQ13: 2015.52 | CR13: 1092.6 | CS13: 4021.63 | CT13: 0 | CU13: 0 | CV13: -127650.4541 | CW13: 0 | CX13: =SUMIF('2023 (2)'!$C:$C,$B:$B,'2023 (2)'!$AT:$AT) -> 187524.45 | CY13: 39398
A14: 10 | B14: г.Одинцово, Баковская, 2 | C14: 2262.31 | D14: 2262.31 | E14: 0 | F14: 484.5 | G14: 2262.31 | H14: 2262.31 | I14: 1 | J14: 0 | K14: 0.001778163281 | L14: 0.002530851813 | O14: ОДПУ | P14: ЖЭУ-6,7 | Q14: 6.91 | R14: 3.15 | S14: 1.81 | T14: 0.26 | U14: 45.06 | V14: 1 | W14: 0.002409638554 | X14: 58235.73899 | Y14: 48525.42 | Z14: 7305.124834 | AA14: 1423.570571 | AB14: 981.6235885 | AC14: 0 | AD14: 0 | AE14: 0 | AF14: 0 | AG14: 0 | AH14: 0 | AI14: 0 | AJ14: 0 | AK14: 0 | AL14: 0 | AM14: 0 | AN14: 0 | AO14: 0 | AP14: 0 | AQ14: 0 | AR14: 0 | AS14: 0 | AT14: 0 | AU14: 0 | AV14: 0 | AW14: 241441.2917 | AX14: 217018.2068 | AY14: 14490.40559 | AZ14: 0 | BA14: 4378.904692 | BB14: 0 | BC14: 0 | BD14: 971.871619 | BE14: 0 | BF14: 1273.45492 | BG14: 637.5893595 | BH14: 2670.858708 | BI14: 337522.1379 | BJ14: 2390.507008 | BK14: 3401.550667 | BL14: 3649.042818 | BM14: 3616.298356 | BN14: 60826.47018 | BO14: 34920.91094 | BP14: 28649.89403 | BQ14: 155441.7194 | BR14: 5800.979025 | BS14: 6440.87378 | BT14: 32133.15758 | BU14: 0 | BV14: 250.7340858 | BW14: 38789.73463 | BX14: 137615.8858 | BY14: 121025.5122 | BZ14: 23040.1066 | CA14: 78818.98146 | CB14: 2596.14 | CC14: 75655.15917 | CD14: 0 | CE14: 0 | CF14: 567.6822951 | CG14: 34748.73596 | CH14: 9120 | CI14: 25628.73596 | CK14: 1071238.125 | CL14: 39.45959827 | CM14: 1175012.54 | CN14: 2796.15 | CO14: 2796.15 | CP14: 0 | CQ14: 10906.1 | CR14: 5915.23 | CS14: 126655.35 | CT14: 0 | CU14: 886.5542169 | CV14: 104660.969 | CW14: 0.09687333971 | CX14: =SUMIF('2023 (2)'!$C:$C,$B:$B,'2023 (2)'!$AT:$AT) -> 1170064.27 | CY14: 538059.45
A15: 11 | B15: г.Одинцово, Баковская, 4 | C15: 2252 | D15: 2252 | E15: 0 | F15: 485.9 | G15: 2252 | H15: 2252 | I15: 1 | J15: 0 | K15: 0.001778163281 | L15: 0.002530851813 | O15: ОДПУ | P15: ЖЭУ-6,7 | Q15: 6.91 | R15: 3.15 | S15: 1.81 | T15: 0.26 | U15: 45.06 | V15: 1 | W15: 0.002409638554 | X15: 28964.31627 | Y15: 19298.25 | Z15: 7271.83327 | AA15: 1417.082949 | AB15: 977.1500463 | AC15: 0 | AD15: 0 | AE15: 0 | AF15: 0 | AG15: 0 | AH15: 0 | AI15: 0 | AJ15: 0 | AK15: 0 | AL15: 0 | AM15: 0 | AN15: 0 | AO15: 0 | AP15: 0 | AQ15: 0 | AR15: 0 | AS15: 0 | AT15: 0 | AU15: 0 | AV15: 0 | AW15: 240340.974 | AX15: 216029.1922 | AY15: 14424.36862 | AZ15: 0 | BA15: 4358.948759 | BB15: 0 | BC15: 0 | BD15: 967.4425194 | BE15: 0 | BF15: 1267.651418 | BG15: 634.6836806 | BH15: 2658.686834 | BI15: 335983.9521 | BJ15: 2379.612778 | BK15: 3386.048818 | BL15: 3632.413076 | BM15: 3599.81784 | BN15: 60549.26639 | BO15: 34761.76626 | BP15: 28519.32819 | BQ15: 154733.3266 | BR15: 5774.542288 | BS15: 6411.520858 | BT15: 31986.71751 | BU15: 0 | BV15: 249.5914182 | BW15: 38612.95861 | BX15: 136988.7304 | BY15: 120473.964 | BZ15: 22935.10618 | CA15: 78816.39437 | CB15: 2596.14 | CC15: 75655.15917 | CD15: 0 | CE15: 0 | CF15: 565.0952029 | CG15: 34631.93841 | CH15: 9120 | CI15: 25511.93841 | CK15: 1037748.334 | CL15: 38.40098928 | CM15: 1167436.8 | CN15: 2798.52 | CO15: 2798.52 | CP15: 0 | CQ15: 10916.64 | CR15: 5919.72 | CS15: 126749.4 | CT15: 0 | CU15: 886.5542169 | CV15: 130575.0199 | CW15: 0.124971018 | CX15: =SUMIF('2023 (2)'!$C:$C,$B:$B,'2023 (2)'!$AT:$AT) -> 1138280.84 | CY15: 595719.32
A16: 12 | B16: г.Одинцово, Баковская, 8 | C16: 2252.28 | D16: 2252.28 | E16: 0 | F16: 485.9 | G16: 2252.28 | H16: 2252.28 | I16: 1 | J16: 0 | K16: 0.001778163281 | L16: 0.002530851813 | O16: ОДПУ | P16: ЖЭУ-6,7 | Q16: 6.91 | R16: 3.15 | S16: 1.81 | T16: 0.26 | U16: 45.06 | V16: 1 | W16: 0.002409638554 | X16: 30713.93809 | Y16: 21046.67 | Z16: 7272.737406 | AA16: 1417.25914 | AB16: 977.2715392 | AC16: 0 | AD16: 0 | AE16: 0 | AF16: 0 | AG16: 0 | AH16: 0 | AI16: 0 | AJ16: 0 | AK16: 0 | AL16: 0 | AM16: 0 | AN16: 0 | AO16: 0 | AP16: 0 | AQ16: 0 | AR16: 0 | AS16: 0 | AT16: 0 | AU16: 0 | AV16: 0 | AW16: 240370.8565 | AX16: 216056.0519 | AY16: 14426.16206 | AZ16: 0 | BA16: 4359.490724 | BB16: 0 | BC16: 0 | BD16: 967.5628053 | BE16: 0 | BF16: 1267.809031 | BG16: 634.7625933 | BH16: 2659.017399 | BI16: 336025.7263 | BJ16: 2379.908644 | BK16: 3386.469819 | BL16: 3632.864709 | BM16: 3600.265419 | BN16: 60556.79472 | BO16: 34766.08833 | BP16: 28522.87411 | BQ16: 154752.5652 | BR16: 5775.26026 | BS16: 6412.318027 | BT16: 31990.69454 | BU16: 0 | BV16: 249.6224509 | BW16: 38617.75951 | BX16: 137005.7628 | BY16: 120488.943 | BZ16: 22937.95779 | CA16: 78816.46463 | CB16: 2596.14 | CC16: 75655.15917 | CD16: 0 | CE16: 0 | CF16: 565.1654634 | CG16: 34635.1104 | CH16: 9120 | CI16: 25515.1104 | CK16: 1039612.519 | CL16: 38.46518931 | CM16: 1170197.31 | CN16: 2799.04 | CO16: 2799.04 | CP16: 0 | CQ16: 10919.8 | CR16: 5920.87 | CS16: 126783.19 | CT16: 0 | CU16: 886.5542169 | CV16: 131471.3453 | CW16: 0.1256090983 | CX16: =SUMIF('2023 (2)'!$C:$C,$B:$B,'2023 (2)'!$AT:$AT) -> 1110027.8 | CY16: 1284901.65
A17: 13 | B17: г.Одинцово, БЗРИ, 1 | C17: 546.06 | D17: 546.06 | E17: 0 | F17: 89.7 | G17: 546.06 | I17: 0 | J17: 0 | K17: 0 | L17: 0 | O17: нет | P17: ЖЭУ-6,7 | Q17: 6.92 | R17: 3.15 | S17: 0 | T17: 0.26 | U17: 31 | W17: 0 | X17: 30318.88646 | Y17: 27975.08 | Z17: 1763.258115 | AA17: 343.6111524 | AB17: 236.9371911 | AC17: 0 | AD17: 0 | AE17: 0 | AF17: 0 | AG17: 0 | AH17: 0 | AI17: 0 | AJ17: 0 | AK17: 0 | AL17: 0 | AM17: 0 | AN17: 0 | AO17: 0 | AP17: 0 | AQ17: 0 | AR17: 0 | AS17: 0 | AT17: 0 | AU17: 0 | AV17: 0 | AW17: 69506.20293 | AX17: 52382.28271 | AY17: 3497.589135 | AZ17: 0 | BA17: 0 | BB17: 0 | BC17: 12285.8012 | BD17: 234.5833313 | BE17: 0 | BF17: 307.377324 | BG17: 153.896701 | BH17: 644.6725278 | BI17: 81468.6487 | BJ17: 577.0032652 | BK17: 821.0416596 | BL17: 880.7795224 | BM17: 872.8759013 | BN17: 14681.85275 | BO17: 8428.956521 | BP17: 6915.303887 | BQ17: 37519.39625 | BR17: 1400.198296 | BS17: 1554.651456 | BT17: 7756.06881 | BU17: 0 | BV17: 60.52037736 | BW17: 9362.785159 | BX17: 33216.72564 | BY17: 29212.26144 | BZ17: 0 | CA17: 0 | CB17: 0 | CC17: 0 | CD17: 0 | CE17: 0 | CF17: 0 | CG17: 7536.078635 | CH17: 1350 | CI17: 6186.078635 | CK17: 260621.589 | CL17: 39.77303913 | CM17: 194746.74 | CN17: 559.92 | CO17: 559.92 | CP17: 0 | CQ17: 2183.4 | CR17: 1184.04 | CS17: 4947.96 | CT17: 0 | CU17: 0 | CV17: -65874.84896 | CW17: 0 | CX17: =SUMIF('2023 (2)'!$C:$C,$B:$B,'2023 (2)'!$AT:$AT) -> 196842.45 | CY17: 33744.93
A18: 14 | B18: г.Одинцово, БЗРИ, 2 | C18: 560.68 | D18: 560.68 | E18: 0 | F18: 100 | G18: 560.68 | I18: 0 | J18: 0 | K18: 0 | L18: 0 | O18: нет | P18: ЖЭУ-6,7 | Q18: 6.92 | R18: 3.15 | S18: 0 | T18: 0.26 | U18: 31 | W18: 0 | X18: 189012.7286 | Y18: 34661.47 | Z18: 1810.466908 | AA18: 352.8108649 | AB18: 243.2808561 | AC18: 7807.05 | AD18: 0 | AE18: 4606 | AF18: 0 | AG18: 0 | AH18: 0 | AI18: 0 | AJ18: 0 | AK18: 0 | AL18: 0 | AM18: 0 | AN18: 0 | AO18: 0 | AP18: 139531.65 | AQ18: 0 | AR18: 0 | AS18: 0 | AT18: 0 | AU18: 0 | AV18: 0 | AW18: 67750.14858 | AX18: 53784.74576 | AY18: 3591.232238 | AZ18: 0 | BA18: 0 | BB18: 0 | BC18: 8997.749861 | BD18: 240.863975 | BE18: 0 | BF18: 315.606926 | BG18: 158.017072 | BH18: 661.9327416 | BI18: 83649.8589 | BJ18: 592.4517283 | BK18: 843.0239126 | BL18: 904.3611739 | BM18: 896.2459443 | BN18: 15074.93902 | BO18: 8654.630155 | BP18: 7100.451568 | BQ18: 38523.9261 | BR18: 1437.686665 | BS18: 1596.275095 | BT18: 7963.726808 | BU18: 0 | BV18: 62.14072662 | BW18: 9613.46076 | BX18: 34106.05745 | BY18: 29994.37927 | BZ18: 0 | CA18: 0 | CB18: 0 | CC18: 0 | CD18: 0 | CE18: 0 | CF18: 0 | CG18: 7701.70232 | CH18: 1350 | CI18: 6351.70232 | CK18: 421828.3359 | CL18: 62.69594301 | CM18: 199960.92 | CN18: 624.24 | CO18: 624.24 | CP18: 0 | CQ18: 2434.44 | CR18: 1319.88 | CS18: 5515.68 | CT18: 0 | CU18: 0 | CV18: -221867.4159 | CW18: 0 | CX18: =SUMIF('2023 (2)'!$C:$C,$B:$B,'2023 (2)'!$AT:$AT) -> 250620.47 | CY18: 190925.44
A19: 15 | B19: г.Одинцово, БЗРИ, 4 | C19: 642.2 | D19: 642.2 | E19: 0 | F19: 65.4 | G19: 642.2 | I19: 0 | J19: 0 | K19: 0 | L19: 0 | O19: нет | P19: ЖЭУ-6,7 | Q19: 6.92 | R19: 3.15 | S19: 0 | T19: 0.26 | U19: 31 | W19: 0 | X19: 30642.94993 | Y19: 18559.92 | Z19: 2073.699523 | AA19: 404.1077575 | AB19: 278.6526464 | AC19: 0 | AD19: 9326.57 | AE19: 0 | AF19: 0 | AG19: 0 | AH19: 0 | AI19: 0 | AJ19: 0 | AK19: 0 | AL19: 0 | AM19: 0 | AN19: 0 | AO19: 0 | AP19: 0 | AQ19: 0 | AR19: 0 | AS19: 0 | AT19: 0 | AU19: 0 | AV19: 0 | AW19: 83333.60421 | AX19: 61604.77229 | AY19: 4113.37901 | AZ19: 0 | BA19: 0 | BB19: 0 | BC19: 16038.90767 | BD19: 275.8843632 | BE19: 0 | BF19: 361.4945564 | BG19: 180.9919448 | BH19: 758.1743716 | BI19: 95812.1199 | BJ19: 678.5911748 | BK19: 965.5952712 | BL19: 1035.850656 | BM19: 1026.555514 | BN19: 17266.75794 | BO19: 9912.969047 | BP19: 8132.820855 | BQ19: 44125.10762 | BR19: 1646.718942 | BS19: 1828.365317 | BT19: 9121.611892 | BU19: 0 | BV19: 71.17566996 | BW19: 11011.20871 | BX19: 39064.9035 | BY19: 34355.40837 | BZ19: 0 | CA19: 0 | CB19: 0 | CC19: 0 | CD19: 0 | CE19: 0 | CF19: 0 | CG19: 9975.207302 | CH19: 2700 | CI19: 7275.207302 | CK19: 304195.4019 | CL19: 39.47308755 | CM19: 229034.28 | CN19: 408 | CO19: 408 | CP19: 0 | CQ19: 1592.04 | CR19: 863.04 | CS19: 3607.2 | CT19: 0 | CU19: 0 | CV19: -75161.12192 | CW19: 0 | CX19: =SUMIF('2023 (2)'!$C:$C,$B:$B,'2023 (2)'!$AT:$AT) -> 196019.7 | CY19: 627482.41
A20: 16 | B20: г.Одинцово, БЗРИ, 5 | C20: 646.8 | D20: 646.8 | E20: 0 | F20: 65.4 | G20: 646.8 | I20: 0 | J20: 0 | K20: 0 | L20: 0 | O20: нет | P20: ЖЭУ-6,7 | Q20: 6.92 | R20: 3.15 | S20: 0 | T20: 0.26 | U20: 31 | W20: 0 | X20: 28345.38411 | Y20: 9561.58 | Z20: 2088.553179 | AA20: 407.0023319 | AB20: 280.6486012 | AC20: 0 | AD20: 0 | AE20: 16007.6 | AF20: 0 | AG20: 0 | AH20: 0 | AI20: 0 | AJ20: 0 | AK20: 0 | AL20: 0 | AM20: 0 | AN20: 0 | AO20: 0 | AP20: 0 | AQ20: 0 | AR20: 0 | AS20: 0 | AT20: 0 | AU20: 0 | AV20: 0 | AW20: 70627.95233 | AX20: 62046.03974 | AY20: 4142.84264 | AZ20: 0 | BA20: 0 | BB20: 0 | BC20: 2851.232114 | BD20: 277.8604891 | BE20: 0 | BF20: 364.0838976 | BG20: 182.288368 | BH20: 763.6050818 | BI20: 96498.41039 | BJ20: 683.4518404 | BK20: 972.511712 | BL20: 1043.270328 | BM20: 1033.908605 | BN20: 17390.43761 | BO20: 9983.974431 | BP20: 8191.075255 | BQ20: 44441.17037 | BR20: 1658.514188 | BS20: 1841.461674 | BT20: 9186.948882 | BU20: 0 | BV20: 71.68549257 | BW20: 11090.08065 | BX20: 39344.72062 | BY20: 34601.49196 | BZ20: 0 | CA20: 0 | CB20: 0 | CC20: 0 | CD20: 0 | CE20: 0 | CF20: 0 | CG20: 10027.31872 | CH20: 2700 | CI20: 7327.318721 | CK20: 290535.3588 | CL20: 37.43240553 | CM20: 230674.86 | CN20: 408.12 | CO20: 408.12 | CP20: 0 | CQ20: 1592.04 | CR20: 863.52 | CS20: 3607.2 | CT20: 0 | CU20: 0 | CV20: -59860.49878 | CW20: 0 | CX20: =SUMIF('2023 (2)'!$C:$C,$B:$B,'2023 (2)'!$AT:$AT) -> 244481.82 | CY20: 143725.29
A21: 17 | B21: г.Одинцово, БЗРИ, 6 | C21: 633 | D21: 633 | E21: 0 | F21: 65.4 | G21: 633 | I21: 0 | J21: 0 | K21: 0 | L21: 0 | O21: нет | P21: ЖЭУ-6,7 | Q21: 6.92 | R21: 3.15 | S21: 0 | T21: 0.26 | U21: 31 | W21: 0 | X21: 15836.16156 | Y21: 13119.19 | Z21: 2043.992211 | AA21: 398.3186087 | AB21: 274.6607368 | AC21: 0 | AD21: 0 | AE21: 0 | AF21: 0 | AG21: 0 | AH21: 0 | AI21: 0 | AJ21: 0 | AK21: 0 | AL21: 0 | AM21: 0 | AN21: 0 | AO21: 0 | AP21: 0 | AQ21: 0 | AR21: 0 | AS21: 0 | AT21: 0 | AU21: 0 | AV21: 0 | AW21: 82045.24397 | AX21: 60722.2374 | AY21: 4054.451749 | AZ21: 0 | BA21: 0 | BB21: 0 | BC21: 15714.59478 | BD21: 271.9321114 | BE21: 0 | BF21: 356.3158738 | BG21: 178.3990985 | BH21: 747.3129511 | BI21: 94439.53893 | BJ21: 668.8698438 | BK21: 951.7623897 | BL21: 1021.011313 | BM21: 1011.849331 | BN21: 17019.39859 | BO21: 9770.958279 | BP21: 8016.312054 | BQ21: 43492.98213 | BR21: 1623.12845 | BS21: 1802.172603 | BT21: 8990.937913 | BU21: 0 | BV21: 70.15602474 | BW21: 10853.46483 | BX21: 38505.26925 | BY21: 33863.2412 | BZ21: 0 | CA21: 0 | CB21: 0 | CC21: 0 | CD21: 0 | CE21: 0 | CF21: 0 | CG21: 9870.984463 | CH21: 2700 | CI21: 7170.984463 | CK21: 285413.9042 | CL21: 37.57423699 | CM21: 225753.18 | CN21: 408 | CO21: 408 | CP21: 0 | CQ21: 1592.04 | CR21: 863.16 | CS21: 3607.56 | CT21: 0 | CU21: 0 | CV21: -59660.7242 | CW21: 0 | CX21: =SUMIF('2023 (2)'!$C:$C,$B:$B,'2023 (2)'!$AT:$AT) -> 219984.76 | CY21: 211824.28
A22: 18 | B22: г.Одинцово, БЗРИ, 7 | C22: 604.8 | D22: 604.8 | E22: 0 | F22: 67.4 | G22: 604.8 | I22: 0 | J22: 0 | K22: 0 | L22: 0 | O22: нет | P22: ЖЭУ-6,7 | Q22: 6.92 | R22: 3.15 | S22: 0 | T22: 0.26 | U22: 31 | W22: 0 | X22: 16752.70112 | Y22: 14156.77 | Z22: 1952.932843 | AA22: 380.573609 | AB22: 262.4246661 | AC22: 0 | AD22: 0 | AE22: 0 | AF22: 0 | AG22: 0 | AH22: 0 | AI22: 0 | AJ22: 0 | AK22: 0 | AL22: 0 | AM22: 0 | AN22: 0 | AO22: 0 | AP22: 0 | AQ22: 0 | AR22: 0 | AS22: 0 | AT22: 0 | AU22: 0 | AV22: 0 | AW22: 85588.39246 | AX22: 58017.07612 | AY22: 3873.826884 | AZ22: 0 | BA22: 0 | BB22: 0 | BC22: 22212.75798 | BD22: 259.8176002 | BE22: 0 | BF22: 340.4420861 | BG22: 170.4514609 | BH22: 714.0203362 | BI22: 90232.27985 | BJ22: 639.0718507 | BK22: 909.3616008 | BL22: 975.5255012 | BM22: 966.7716828 | BN22: 16261.18842 | BO22: 9335.664403 | BP22: 7659.187252 | BQ22: 41555.38009 | BR22: 1550.818462 | BS22: 1721.886241 | BT22: 8590.39376 | BU22: 0 | BV22: 67.03059046 | BW22: 10369.94554 | BX22: 36789.86863 | BY22: 32354.64183 | BZ22: 0 | CA22: 0 | CB22: 0 | CC22: 0 | CD22: 0 | CE22: 0 | CF22: 0 | CG22: 9551.518804 | CH22: 2700 | CI22: 6851.518804 | CK22: 281639.3482 | CL22: 38.80612713 | CM22: 215695.68 | CN22: 420.6 | CO22: 420.6 | CP22: 0 | CQ22: 1640.76 | CR22: 889.56 | CS22: 3717.72 | CT22: 0 | CU22: 0 | CV22: -65943.66824 | CW22: 0 | CX22: =SUMIF('2023 (2)'!$C:$C,$B:$B,'2023 (2)'!$AT:$AT) -> 228900.78 | CY22: 343415.64
A23: 19 | B23: г.Одинцово, БЗРИ, 8 | C23: 1021.96 | D23: 1021.96 | E23: 0 | F23: 90.7 | G23: 1021.96 | I23: 0 | J23: 0 | K23: 0 | L23: 0 | O23: нет | P23: ЖЭУ-6,7 | Q23: 6.92 | R23: 3.15 | S23: 0 | T23: 0.26 | U23: 31 | W23: 0 | X23: 39324.95117 | Y23: 25611.91 | Z23: 3299.965688 | AA23: 643.0737525 | AB23: 443.4317324 | AC23: 0 | AD23: 9326.57 | AE23: 0 | AF23: 0 | AG23: 0 | AH23: 0 | AI23: 0 | AJ23: 0 | AK23: 0 | AL23: 0 | AM23: 0 | AN23: 0 | AO23: 0 | AP23: 0 | AQ23: 0 | AR23: 0 | AS23: 0 | AT23: 0 | AU23: 0 | AV23: 0 | AW23: 123128.8469 | AX23: 98034.27763 | AY23: 6545.793854 | AZ23: 0 | BA23: 0 | BB23: 0 | BC23: 16039.9524 | BD23: 439.0264463 | BE23: 0 | BF23: 575.2615647 | BG23: 288.0201307 | BH23: 1206.514919 | BI23: 152469.8755 | BJ23: 1079.870814 | BK23: 1536.592562 | BL23: 1648.392925 | BM23: 1633.601172 | BN23: 27477.32162 | BO23: 15774.92658 | BP23: 12942.10153 | BQ23: 70218.14853 | BR23: 2620.493444 | BS23: 2909.554998 | BT23: 14515.60649 | BU23: 0 | BV23: 113.2648516 | BW23: 17522.60177 | BX23: 62165.63186 | BY23: 54671.21324 | BZ23: 0 | CA23: 0 | CB23: 0 | CC23: 0 | CD23: 0 | CE23: 0 | CF23: 0 | CG23: 13597.34084 | CH23: 2019.996 | CI23: 11577.34484 | CK23: 462880.4613 | CL23: 37.7445025 | CM23: 364471.86 | CN23: 566.16 | CO23: 566.16 | CP23: 0 | CQ23: 2208 | CR23: 1197.12 | CS23: 5002.56 | CT23: 0 | CU23: 0 | CV23: -98408.60133 | CW23: 0 | CX23: =SUMIF('2023 (2)'!$C:$C,$B:$B,'2023 (2)'!$AT:$AT) -> 368822.51 | CY23: 88427.28
A24: 20 | B24: г.Одинцово, Буденовское шоссе, 9 | C24: 385.6 | D24: 385.6 | E24: 0 | F24: 54.9 | G24: 385.6 | I24: 0 | J24: 0 | K24: 0 | L24: 0 | O24: нет | P24: ЖЭУ-13 | Q24: 4.93 | R24: 2.42 | S24: 0 | T24: 0.26 | U24: 25.05 | W24: 0 | X24: 409.9539267 | Y24: 0 | Z24: 0 | AA24: 242.640846 | AB24: 167.3130808 | AC24: 0 | AD24: 0 | AE24: 0 | AF24: 0 | AG24: 0 | AH24: 0 | AI24: 0 | AJ24: 0 | AK24: 0 | AL24: 0 | AM24: 0 | AN24: 0 | AO24: 0 | AP24: 0 | AQ24: 0 | AR24: 0 | AS24: 0 | AT24: 0 | AU24: 0 | AV24: 0 | AW24: 262854.9943 | AX24: 259438.5589 | AY24: 2469.820844 | AZ24: 0 | BA24: 0 | BB24: 0 | BC24: 0 | BD24: 165.6509039 | BE24: 0 | BF24: 217.0543459 | BG24: 108.6740796 | BH24: 455.2351879 | BI24: 57529.04614 | BJ24: 407.4505715 | BK24: 579.7781635 | BL24: 621.9620259 | BM24: 616.3808877 | BN24: 10367.58309 | BO24: 5952.103495 | BP24: 4883.238433 | BQ24: 26494.30318 | BR24: 988.7493368 | BS24: 1097.81636 | BT24: 5476.94417 | BU24: 0 | BV24: 42.73643466 | BW24: 6611.526128 | BX24: 23455.97445 | BY24: 20628.22403 | BZ24: 0 | CA24: 0 | CB24: 0 | CC24: 0 | CD24: 0 | CE24: 0 | CF24: 0 | CG24: 5718.296381 | CH24: 1350 | CI24: 4368.296381 | CK24: 377208.0154 | CL24: 81.51971286 | CM24: 0 | CN24: 0 | CO24: 0 | CP24: 0 | CQ24: 0 | CR24: 0 | CS24: 0 | CT24: 0 | CU24: 0 | CV24: -377208.0154 | CW24: 0 | CX24: =SUMIF('2023 (2)'!$C:$C,$B:$B,'2023 (2)'!$AT:$AT) -> 0 | CY24: 0
A25: 21 | B25: г.Одинцово, Буденовское шоссе, 11 | C25: 385.6 | D25: 385.6 | E25: 0 | F25: 54.9 | G25: 385.6 | I25: 0 | J25: 0 | K25: 0 | L25: 0 | O25: нет | P25: ЖЭУ-13 | Q25: 4.93 | R25: 2.42 | S25: 0 | T25: 0.26 | U25: 25.05 | W25: 0 | X25: 409.9539267 | Y25: 0 | Z25: 0 | AA25: 242.640846 | AB25: 167.3130808 | AC25: 0 | AD25: 0 | AE25: 0 | AF25: 0 | AG25: 0 | AH25: 0 | AI25: 0 | AJ25: 0 | AK25: 0 | AL25: 0 | AM25: 0 | AN25: 0 | AO25: 0 | AP25: 0 | AQ25: 0 | AR25: 0 | AS25: 0 | AT25: 0 | AU25: 0 | AV25: 0 | AW25: 262854.9943 | AX25: 259438.5589 | AY25: 2469.820844 | AZ25: 0 | BA25: 0 | BB25: 0 | BC25: 0 | BD25: 165.6509039 | BE25: 0 | BF25: 217.0543459 | BG25: 108.6740796 | BH25: 455.2351879 | BI25: 57529.04614 | BJ25: 407.4505715 | BK25: 579.7781635 | BL25: 621.9620259 | BM25: 616.3808877 | BN25: 10367.58309 | BO25: 5952.103495 | BP25: 4883.238433 | BQ25: 26494.30318 | BR25: 988.7493368 | BS25: 1097.81636 | BT25: 5476.94417 | BU25: 0 | BV25: 42.73643466 | BW25: 6611.526128 | BX25: 23455.97445 | BY25: 20628.22403 | BZ25: 0 | CA25: 0 | CB25: 0 | CC25: 0 | CD25: 0 | CE25: 0 | CF25: 0 | CG25: 5718.296381 | CH25: 1350 | CI25: 4368.296381 | CK25: 377208.0154 | CL25: 81.51971286 | CM25: 0 | CN25: 0 | CO25: 0 | CP25: 0 | CQ25: 0 | CR25: 0 | CS25: 0 | CT25: 0 | CU25: 0 | CV25: -377208.0154 | CW25: 0 | CX25: =SUMIF('2023 (2)'!$C:$C,$B:$B,'2023 (2)'!$AT:$AT) -> 0 | CY25: 0
A26: 22 | B26: г.Одинцово, бульвар маршала Крылова, 1 | C26: 10450.3 | D26: 9759.6 | E26: 690.7 | F26: 2001.5 | G26: 10450.3 | H26: 10450.3 | I26: 5 | J26: 0 | K26: 0.008890816404 | L26: 0.01265425907 | O26: нет | P26: ЖЭУ-5 | Q26: 6.91 | R26: 3.15 | S26: 1.81 | T26: 0.26 | U26: 45.06 | V26: 4 | W26: 0.009638554217 | X26: 224633.4443 | Y26: 33816.73 | Z26: 27953.95875 | AA26: 6575.906724 | AB26: 4534.418796 | AC26: 46549.42 | AD26: 26276.98 | AE26: 0 | AF26: 0 | AG26: 0 | AH26: 0 | AI26: 0 | AJ26: 0 | AK26: 78926.03 | AL26: 0 | AM26: 0 | AN26: 0 | AO26: 0 | AP26: 0 | AQ26: 0 | AR26: 0 | AS26: 0 | AT26: 0 | AU26: 0 | AV26: 0 | AW26: 662872.42 | AX26: 570282.2373 | AY26: 66935.60366 | AZ26: 0 | BA26: 0 | BB26: 0 | BC26: 0 | BD26: 4489.371474 | BE26: 0 | BF26: 5882.47674 | BG26: 2945.219746 | BH26: 12337.51111 | BI26: 1559117.715 | BJ26: 11042.48109 | BK26: 15712.80016 | BL26: 16856.04191 | BM26: 16704.78525 | BN26: 280976.0207 | BO26: 161310.3401 | BP26: 132342.6001 | BQ26: 718032.7191 | BR26: 26796.49169 | BS26: 29752.36076 | BT26: 148432.857 | BU26: 0 | BV26: 1158.217228 | BW26: 179181.6169 | BX26: 635689.7556 | BY26: 559053.7592 | BZ26: 106429.2807 | CA26: 393878.7935 | CB26: 12980.7 | CC26: 378275.7958 | CD26: 0 | CE26: 0 | CF26: 2622.29769 | CG26: 148786.9453 | CH26: 30399.996 | CI26: 118386.9493 | CK26: 4469643.731 | CL26: 35.64206873 | CM26: 5060285.67 | CN26: 10770.02 | CO26: 10770.02 | CP26: 0 | CQ26: 42007.4 | CR26: 22771.45 | CS26: 487624.77 | CT26: 444556.7711 | CU26: 3546.216867 | CV26: 1038744.927 | CW26: 0.1321451943 | CX26: =SUMIF('2023 (2)'!$C:$C,$B:$B,'2023 (2)'!$AT:$AT) -> 4969778.25 | CY26: 2240530.85
A27: 23 | B27: г.Одинцово, бульвар маршала Крылова, 3 | C27: 3844.53 | D27: 3633.53 | E27: 211 | F27: 808.1 | G27: 3844.53 | H27: 3844.53 | I27: 2 | J27: 0 | K27: 0.003556326562 | L27: 0.005061703626 | O27: ОДПУ | P27: ЖЭУ-5 | Q27: 6.91 | R27: 3.15 | S27: 1.81 | T27: 0.26 | U27: 45.06 | V27: 2 | W27: 0.004819277108 | X27: 33945.54416 | Y27: 19574.3 | Z27: 10283.89932 | AA27: 2419.190901 | AB27: 1668.153938 | AC27: 0 | AD27: 0 | AE27: 0 | AF27: 0 | AG27: 0 | AH27: 0 | AI27: 0 | AJ27: 0 | AK27: 0 | AL27: 0 | AM27: 0 | AN27: 0 | AO27: 0 | AP27: 0 | AQ27: 0 | AR27: 0 | AS27: 0 | AT27: 0 | AU27: 0 | AV27: 0 | AW27: 251303.6106 | AX27: 209799.4478 | AY27: 24624.74152 | AZ27: 0 | BA27: 7441.433958 | BB27: 0 | BC27: 0 | BD27: 1651.581611 | BE27: 0 | BF27: 2164.086993 | BG27: 1083.508193 | BH27: 4538.810521 | BI27: 573579.211 | BJ27: 4062.385751 | BK27: 5780.53564 | BL27: 6201.119469 | BM27: 6145.474103 | BN27: 103367.4383 | BO27: 59343.98457 | BP27: 48687.12825 | BQ27: 264154.9362 | BR27: 9858.082177 | BS27: 10945.50812 | BT27: 54606.52533 | BU27: 0 | BV27: 426.093115 | BW27: 65918.59581 | BX27: 233862.0266 | BY27: 205668.6362 | BZ27: 39153.95372 | CA27: 157467.3077 | CB27: 5192.28 | CC27: 151310.3183 | CD27: 0 | CE27: 0 | CF27: 964.7093519 | CG27: 55043.02511 | CH27: 11490 | CI27: 43553.02511 | CK27: 1615941.911 | CL27: 35.02686308 | CM27: 1881886.23 | CN27: 4400.87 | CO27: 4400.87 | CP27: 0 | CQ27: 17159.52 | CR27: 9303.74 | CS27: 199068.62 | CT27: 163546.6774 | CU27: 1773.108434 | CV27: 431264.105 | CW27: 0.1645754203 | CX27: =SUMIF('2023 (2)'!$C:$C,$B:$B,'2023 (2)'!$AT:$AT) -> 1900821.49 | CY27: 1177422.79
A28: 24 | B28: г.Одинцово, бульвар маршала Крылова, 27 | C28: 8950.8 | D28: 8950.8 | E28: 0 | F28: 1174.4 | G28: 8950.8 | H28: 8950.8 | I28: 4 | J28: 0 | K28: 0.007364538265 | L28: 0.01048191424 | O28: ОДПУ | P28: ЖЭУ-5 | Q28: 6.91 | R28: 3.15 | S28: 1.81 | T28: 0 | U28: 44.8 | V28: 4 | W28: 0.009638554217 | X28: 292770.2208 | Y28: 63238.95 | Z28: 23942.88145 | AA28: 5632.338393 | AB28: 3883.780921 | AC28: 0 | AD28: 0 | AE28: 0 | AF28: 0 | AG28: 0 | AH28: 0 | AI28: 0 | AJ28: 0 | AK28: 0 | AL28: 0 | AM28: 0 | AN28: 0 | AO28: 0 | AP28: 196072.27 | AQ28: 0 | AR28: 0 | AS28: 0 | AT28: 0 | AU28: 0 | AV28: 0 | AW28: 585082.795 | AX28: 488453.1783 | AY28: 57331.10066 | AZ28: 0 | BA28: 17325.07929 | BB28: 0 | BC28: 0 | BD28: 3845.197381 | BE28: 0 | BF28: 5038.407778 | BG28: 2522.613982 | BH28: 10567.21764 | BI28: 1335401.935 | BJ28: 9458.009791 | BK28: 13458.19083 | BL28: 14437.3903 | BM28: 14307.83727 | BN28: 240659.1357 | BO28: 138164.1285 | BP28: 113352.932 | BQ28: 615003.135 | BR28: 22951.49783 | BS28: 25483.23308 | BT28: 127134.4188 | BU28: 0 | BV28: 992.0261394 | BW28: 153471.079 | BX28: 544475.4566 | BY28: 478835.86 | BZ28: 91157.88118 | CA28: 326514.9953 | CB28: 10931.424 | CC28: 313337.5437 | CD28: 0 | CE28: 0 | CF28: 2246.027594 | CG28: 0 | CH28: 0 | CI28: 0 | CK28: 3807710.223 | CL28: 35.4503715 | CM28: 4606124.92 | CN28: 3962.81 | CO28: 3962.81 | CP28: 0 | CQ28: 15452.71 | CR28: 8380.15 | CS28: 230947.61 | CT28: 0 | CU28: 3546.216867 | CV28: 801960.9138 | CW28: 0.2096836813 | CX28: =SUMIF('2023 (2)'!$C:$C,$B:$B,'2023 (2)'!$AT:$AT) -> 4686797.68 | CY28: 599209.35
A29: 25 | B29: г.Одинцово, Верхне-Пролетарская, 1 корп.1 | C29: 3811.9 | D29: 3811.9 | E29: 0 | F29: 523.44 | G29: 3811.9 | H29: 3811.9 | I29: 1 | J29: 1 | K29: 0.003828338119 | L29: 0.005448856454 | O29: ОДПУ | P29: ЖЭУ-8 | Q29: 5.4 | R29: 2.67 | S29: 1.54 | T29: 0.22 | U29: 36.75 | W29: 0 | X29: 225727.2841 | Y29: 167339.84 | Z29: 12679.94013 | AA29: 2398.658301 | AB29: 1653.995676 | AC29: 0 | AD29: 22712.3 | AE29: 12018.6 | AF29: 0 | AG29: 0 | AH29: 0 | AI29: 6923.95 | AJ29: 0 | AK29: 0 | AL29: 0 | AM29: 0 | AN29: 0 | AO29: 0 | AP29: 0 | AQ29: 0 | AR29: 0 | AS29: 0 | AT29: 0 | AU29: 0 | AV29: 0 | AW29: 622118.8424 | AX29: 580966.9414 | AY29: 24415.7419 | AZ29: 0 | BA29: 7378.275655 | BB29: 0 | BC29: 0 | BD29: 1637.564005 | BE29: 0 | BF29: 2145.719557 | BG29: 1074.312044 | BH29: 4500.287896 | BI29: 568711.0244 | BJ29: 4027.906726 | BK29: 5731.474018 | BL29: 6148.488191 | BM29: 6093.315108 | BN29: 102490.1192 | BO29: 58840.30942 | BP29: 48273.90193 | BQ29: 261912.952 | BR29: 9774.412855 | BS29: 10852.6094 | BT29: 54143.05882 | BU29: 0 | BV29: 422.4766994 | BW29: 65359.11941 | BX29: 231877.1499 | BY29: 203923.0476 | BZ29: 38821.6391 | CA29: 169852.6614 | CB29: 6012.6 | CC29: 162883.5399 | CD29: 0 | CE29: 0 | CF29: 956.5214937 | CG29: 57203.36989 | CH29: 14019.996 | CI29: 43183.37389 | CK29: 2183594.138 | CL29: 47.73634623 | CM29: 1681049.98 | CN29: 1758.47 | CO29: 1758.47 | CP29: 0 | CQ29: 6853.68 | CR29: 3718.93 | CS29: 136542 | CT29: 0 | CU29: 0 | CV29: -502544.1582 | CW29: 0 | CX29: =SUMIF('2023 (2)'!$C:$C,$B:$B,'2023 (2)'!$AT:$AT) -> 1646496.54 | CY29: 438778.77
A30: 26 | B30: г.Одинцово, Верхне-Пролетарская, 1 корп.2 | C30: 3817.2 | D30: 3785.3 | E30: 31.9 | F30: 524.16 | G30: 3817.2 | H30: 3817.2 | I30: 1 | J30: 1 | K30: 0.003828338119 | L30: 0.005448856454 | O30: ОДПУ | P30: ЖЭУ-8 | Q30: 5.4 | R30: 2.67 | S30: 1.54 | T30: 0.22 | U30: 36.75 | W30: 0 | X30: 112239.4488 | Y30: 83464.99 | Z30: 12697.5701 | AA30: 2401.993354 | AB30: 1656.295363 | AC30: 0 | AD30: 0 | AE30: 12018.6 | AF30: 0 | AG30: 0 | AH30: 0 | AI30: 0 | AJ30: 0 | AK30: 0 | AL30: 0 | AM30: 0 | AN30: 0 | AO30: 0 | AP30: 0 | AQ30: 0 | AR30: 0 | AS30: 0 | AT30: 0 | AU30: 0 | AV30: 0 | AW30: 622983.8257 | AX30: 581774.7078 | AY30: 24449.68913 | AZ30: 0 | BA30: 7388.534282 | BB30: 0 | BC30: 0 | BD30: 1639.840846 | BE30: 0 | BF30: 2148.702928 | BG30: 1075.805749 | BH30: 4506.545019 | BI30: 569501.7504 | BJ30: 4033.507058 | BK30: 5739.442961 | BL30: 6157.036943 | BM30: 6101.787149 | BN30: 102632.6197 | BO30: 58922.11997 | BP30: 48341.02113 | BQ30: 262277.1112 | BR30: 9788.00303 | BS30: 10867.69868 | BT30: 54218.33839 | BU30: 0 | BV30: 423.0641037 | BW30: 65449.99361 | BX30: 232199.5479 | BY30: 204206.5787 | BZ30: 38875.61604 | CA30: 169853.9913 | CB30: 6012.6 | CC30: 162883.5399 | CD30: 0 | CE30: 0 | CF30: 957.8514247 | CG30: 57433.41531 | CH30: 14190 | CI30: 43243.41531 | CK30: 2072744.168 | CL30: 45.25009972 | CM30: 1671731.49 | CN30: 1748.87 | CO30: 1748.87 | CP30: 0 | CQ30: 6812.42 | CR30: 3698.13 | CS30: 135740.43 | CT30: 162384.0566 | CU30: 0 | CV30: -238628.6212 | CW30: 0 | CX30: =SUMIF('2023 (2)'!$C:$C,$B:$B,'2023 (2)'!$AT:$AT) -> 1656508.83 | CY30: 197534.4
A31: 27 | B31: г.Одинцово, Верхне-Пролетарская, 3 к.1 | C31: 3908.8 | D31: 3876.8 | E31: 32 | F31: 802.06 | G31: 3908.8 | H31: 3908.8 | I31: 1 | J31: 1 | K31: 0.003828338119 | L31: 0.005448856454 | O31: нет | P31: ЖЭУ-8 | Q31: 5.4 | R31: 2.67 | S31: 1.54 | T31: 0 | U31: 36.54 | V31: 1 | W31: 0.002409638554 | X31: 118990.5232 | Y31: 94956.58 | Z31: 13002.2692 | AA31: 2459.63314 | AB31: 1696.040897 | AC31: 0 | AD31: 0 | AE31: 0 | AF31: 0 | AG31: 0 | AH31: 0 | AI31: 0 | AJ31: 0 | AK31: 0 | AL31: 0 | AM31: 0 | AN31: 0 | AO31: 0 | AP31: 0 | AQ31: 0 | AR31: 0 | AS31: 6876 | AT31: 0 | AU31: 0 | AV31: 0 | AW31: 630367.5142 | AX31: 595735.3499 | AY31: 25036.39968 | AZ31: 0 | BA31: 0 | BB31: 0 | BC31: 0 | BD31: 1679.191527 | BE31: 0 | BF31: 2200.264593 | BG31: 1101.621479 | BH31: 4614.686988 | BI31: 583167.8827 | BJ31: 4130.297702 | BK31: 5877.170346 | BL31: 6304.785183 | BM31: 6248.209579 | BN31: 105095.4585 | BO31: 60336.05327 | BP31: 49501.04354 | BQ31: 268570.8824 | BR31: 10022.88228 | BS31: 11128.487 | BT31: 55519.39671 | BU31: 0 | BV31: 433.2162235 | BW31: 67020.57398 | BX31: 237771.5584 | BY31: 209106.8518 | BZ31: 39808.50046 | CA31: 169876.9766 | CB31: 6012.6 | CC31: 162883.5399 | CD31: 0 | CE31: 0 | CF31: 980.836647 | CG31: 0 | CH31: 0 | CI31: 0 | CK31: 2056110.381 | CL31: 43.8350726 | CM31: 1621568.589 | CN31: 2549.934017 | CO31: 2549.934017 | CP31: 0 | CQ31: 9935.728042 | CR31: 5392.379891 | CS31: 148532.4109 | CT31: 166280.7294 | CU31: 886.5542169 | CV31: -267374.5089 | CW31: 0 | CX31: 1624509.635 | CY31: 622600.8025
A32: 28 | B32: г.Одинцово, Верхне-Пролетарская, 3 к.2 | C32: 4187.5 | D32: 3783.2 | E32: 404.3 | F32: 859.24 | G32: 4187.5 | H32: 4187.5 | I32: 1 | J32: 1 | K32: 0.003828338119 | L32: 0.005448856454 | O32: нет | P32: ЖЭУ-8 | Q32: 5.4 | R32: 2.67 | S32: 1.54 | T32: 0 | U32: 36.54 | V32: 1 | W32: 0.002409638554 | X32: 148114.5958 | Y32: 129733.28 | Z32: 13929.33951 | AA32: 2635.006594 | AB32: 1816.969724 | AC32: 0 | AD32: 0 | AE32: 0 | AF32: 0 | AG32: 0 | AH32: 0 | AI32: 0 | AJ32: 0 | AK32: 0 | AL32: 0 | AM32: 0 | AN32: 0 | AO32: 0 | AP32: 0 | AQ32: 0 | AR32: 0 | AS32: 0 | AT32: 0 | AU32: 0 | AV32: 0 | AW32: 675313.1308 | AX32: 638211.6705 | AY32: 26821.51137 | AZ32: 0 | BA32: 0 | BB32: 0 | BC32: 0 | BD32: 1798.918983 | BE32: 0 | BF32: 2357.1449 | BG32: 1180.167812 | BH32: 4943.717193 | BI32: 624748.1347 | BJ32: 4424.790633 | BK32: 6296.216441 | BL32: 6754.320496 | BM32: 6693.711015 | BN32: 112588.8335 | BO32: 64638.05339 | BP32: 53030.50036 | BQ32: 287720.1622 | BR32: 10737.52035 | BS32: 11921.95541 | BT32: 59477.96605 | BU32: 0 | BV32: 464.104824 | BW32: 71799.1848 | BX32: 254724.8262 | BY32: 224016.3073 | BZ32: 42646.87262 | CA32: 169946.9109 | CB32: 6012.6 | CC32: 162883.5399 | CD32: 0 | CE32: 0 | CF32: 1050.770942 | CG32: 0 | CH32: 0 | CI32: 0 | CK32: 2211309.963 | CL32: 44.00616842 | CM32: 1737187.491 | CN32: 2731.745983 | CO32: 2731.745983 | CP32: 0 | CQ32: 10644.15196 | CR32: 5776.860109 | CS32: 159122.8691 | CT32: 178136.6543 | CU32: 886.5542169 | CV32: -295099.2634 | CW32: 0 | CX32: 1740338.235 | CY32: 666992.6475
A33: 29 | B33: г.Одинцово, Верхне-Пролетарская, 29 | C33: 1596.9 | D33: 1545.9 | E33: 51 | F33: 87.4 | G33: 1596.9 | I33: 0 | J33: 0 | K33: 0 | L33: 0 | O33: нет | P33: ЖЭУ-8 | Q33: 4 | R33: 2.05 | S33: 0 | T33: 0.22 | U33: 20.44 | V33: 2 | W33: 0.004819277108 | X33: 136040.8811 | Y33: 110196.62 | Z33: 5311.943228 | AA33: 1004.857798 | AB33: 692.9000484 | AC33: 0 | AD33: 18834.56 | AE33: 0 | AF33: 0 | AG33: 0 | AH33: 0 | AI33: 0 | AJ33: 0 | AK33: 0 | AL33: 0 | AM33: 0 | AN33: 0 | AO33: 0 | AP33: 0 | AQ33: 0 | AR33: 0 | AS33: 0 | AT33: 0 | AU33: 0 | AV33: 0 | AW33: 306617.2985 | AX33: 243381.5443 | AY33: 10228.36335 | AZ33: 0 | BA33: 0 | BB33: 0 | BC33: 49087.14 | BD33: 686.0164117 | BE33: 0 | BF33: 898.8954486 | BG33: 450.0561144 | BH33: 1885.282862 | BI33: 238247.2349 | BJ33: 1687.390606 | BK33: 2401.057441 | BL33: 2575.755081 | BM33: 2552.6417 | BN33: 42935.66763 | BO33: 24649.67342 | BP33: 20223.14174 | BQ33: 109721.8691 | BR33: 4094.745373 | BS33: 4546.4288 | BT33: 22681.87797 | BU33: 0 | BV33: 176.9860283 | BW33: 27380.56554 | BX33: 97139.12239 | BY33: 85428.45162 | BZ33: 0 | CA33: 0 | CB33: 0 | CC33: 0 | CD33: 0 | CE33: 0 | CF33: 0 | CG33: 24850.58856 | CH33: 6759.996 | CI33: 18090.59256 | CK33: 915704.1426 | CL33: 47.78550852 | CM33: 379227.36 | CN33: 406.2 | CO33: 0 | CP33: 0 | CQ33: 0 | CR33: 429.24 | CS33: 4667.28 | CT33: 67932.2802 | CU33: 1773.108434 | CV33: -466771.394 | CW33: 0 | CX33: =SUMIF('2023 (2)'!$C:$C,$B:$B,'2023 (2)'!$AT:$AT) -> 439103.09 | CY33: 33160.81
A34: 30 | B34: г.Одинцово, Верхне-Пролетарская, 31 | C34: 2617.3 | D34: 2539.3 | E34: 78 | F34: 193.2 | G34: 2617.3 | I34: 0 | J34: 0 | K34: 0 | L34: 0 | O34: нет | P34: ЖЭУ-8 | Q34: 4 | R34: 2.05 | S34: 0 | T34: 0.22 | U34: 20.44 | V34: 4 | W34: 0.009638554217 | X34: 152890.9448 | Y34: 90179.82 | Z34: 8706.211417 | AA34: 1646.949912 | AB34: 1135.654892 | AC34: 0 | AD34: 0 | AE34: 0 | AF34: 0 | AG34: 0 | AH34: 0 | AI34: 30056.1 | AJ34: 0 | AK34: 0 | AL34: 0 | AM34: 0 | AN34: 0 | AO34: 0 | AP34: 0 | AQ34: 0 | AR34: 0 | AS34: 0 | AT34: 21166.20855 | AU34: 0 | AV34: 0 | AW34: 429368.5535 | AX34: 398899.4401 | AY34: 16764.16519 | AZ34: 0 | BA34: 0 | BB34: 0 | BC34: 7279.704 | BD34: 1124.372694 | BE34: 0 | BF34: 1473.278889 | BG34: 737.6365885 | BH34: 3089.956062 | BI34: 390484.3685 | BJ34: 2765.613021 | BK34: 3935.304428 | BL34: 4221.63177 | BM34: 4183.749215 | BN34: 70371.0457 | BO34: 40400.51991 | BP34: 33145.48742 | BQ34: 179832.8312 | BR34: 6711.238691 | BS34: 7451.542425 | BT34: 37175.3267 | BU34: 0 | BV34: 290.0779835 | BW34: 44876.41943 | BX34: 159209.8597 | BY34: 140016.2104 | BZ34: 0 | CA34: 0 | CB34: 0 | CC34: 0 | CD34: 0 | CE34: 0 | CF34: 0 | CG34: 40450.26483 | CH34: 10800 | CI34: 29650.26483 | CK34: 1357296.621 | CL34: 43.21554723 | CM34: 622839.24 | CN34: 899.4 | CO34: 0 | CP34: 0 | CQ34: 0 | CR34: 951.24 | CS34: 10338.72 | CT34: 111340.1947 | CU34: 3546.216867 | CV34: -619570.9696 | CW34: 0 | CX34: =SUMIF('2023 (2)'!$C:$C,$B:$B,'2023 (2)'!$AT:$AT) -> 607842.97 | CY34: 750572.27
A35: 31 | B35: г.Одинцово, Верхне-Пролетарская, 33 | C35: 794.16 | D35: 794.16 | E35: 0 | F35: 96 | G35: 794.16 | I35: 0 | J35: 0 | K35: 0 | L35: 0 | O35: нет | P35: ЖЭУ-8 | Q35: 4 | R35: 2.05 | S35: 0 | T35: 0.22 | U35: 16.23 | W35: 0 | X35: 80298.33929 | Y35: 76812.32 | Z35: 2641.701318 | AA35: 499.7293938 | AB35: 344.5885794 | AC35: 0 | AD35: 0 | AE35: 0 | AF35: 0 | AG35: 0 | AH35: 0 | AI35: 0 | AJ35: 0 | AK35: 0 | AL35: 0 | AM35: 0 | AN35: 0 | AO35: 0 | AP35: 0 | AQ35: 0 | AR35: 0 | AS35: 0 | AT35: 0 | AU35: 0 | AV35: 0 | AW35: 140924.204 | AX35: 121036.9386 | AY35: 5086.703635 | AZ35: 0 | BA35: 0 | BB35: 0 | BC35: 12850.968 | BD35: 341.1652536 | BE35: 0 | BF35: 447.0328821 | BG35: 223.8190017 | BH35: 937.5767034 | BI35: 118483.577 | BJ35: 839.162204 | BK35: 1194.078388 | BL35: 1280.95789 | BM35: 1269.463293 | BN35: 21352.48907 | BO35: 12258.61647 | BP35: 10057.24231 | BQ35: 54566.17171 | BR35: 2036.372337 | BS35: 2261.000624 | BT35: 11280.00514 | BU35: 0 | BV35: 88.01754914 | BW35: 13616.72611 | BX35: 48308.60131 | BY35: 42484.72612 | BZ35: 0 | CA35: 0 | CB35: 0 | CC35: 0 | CD35: 0 | CE35: 0 | CF35: 0 | CG35: 11016.69272 | CH35: 2019.996 | CI35: 8996.696716 | CK35: 455132.8666 | CL35: 47.75830926 | CM35: 154670.64 | CN35: 460.68 | CO35: 0 | CP35: 0 | CQ35: 0 | CR35: 487.56 | CS35: 5295.24 | CT35: 0 | CU35: 0 | CV35: -300462.2266 | CW35: 0 | CX35: =SUMIF('2023 (2)'!$C:$C,$B:$B,'2023 (2)'!$AT:$AT) -> 141155.55 | CY35: 318048.53
A36: 32 | B36: г.Одинцово, Верхне-Пролетарская, 37 | C36: 3900.4 | D36: 3900.4 | E36: 0 | F36: 628 | G36: 3900.4 | H36: 3900.4 | I36: 1 | J36: 1 | K36: 0.003807432706 | L36: 0.005419101874 | O36: ОДПУ | P36: ЖЭУ-8 | Q36: 5.4 | R36: 2.67 | S36: 1.54 | T36: 0 | U36: 36.54 | W36: 0 | X36: 134806.7609 | Y36: 117685.69 | Z36: 12974.32736 | AA36: 2454.347395 | AB36: 1692.39611 | AC36: 0 | AD36: 0 | AE36: 0 | AF36: 0 | AG36: 0 | AH36: 0 | AI36: 0 | AJ36: 0 | AK36: 0 | AL36: 0 | AM36: 0 | AN36: 0 | AO36: 0 | AP36: 0 | AQ36: 0 | AR36: 0 | AS36: 0 | AT36: 0 | AU36: 0 | AV36: 0 | AW36: 636562.4316 | AX36: 594455.1164 | AY36: 24982.59653 | AZ36: 0 | BA36: 7549.575373 | BB36: 0 | BC36: 0 | BD36: 1675.58295 | BE36: 0 | BF36: 2195.536231 | BG36: 1099.254098 | BH36: 4604.770039 | BI36: 581914.6566 | BJ36: 4121.421704 | BK36: 5864.540324 | BL36: 6291.236218 | BM36: 6234.782195 | BN36: 104869.6086 | BO36: 60206.39127 | BP36: 49394.66593 | BQ36: 267993.7244 | BR36: 10001.34314 | BS36: 11104.57192 | BT36: 55400.08568 | BU36: 0 | BV36: 432.2852431 | BW36: 66876.54696 | BX36: 237260.588 | BY36: 208657.4818 | BZ36: 39722.95211 | CA36: 169532.2983 | CB36: 6559.488 | CC36: 161994.0815 | CD36: 0 | CE36: 0 | CF36: 978.7288319 | CG36: 0 | CH36: 0 | CI36: 0 | CK36: 2075333.716 | CL36: 44.34018981 | CM36: 1710247.2 | CN36: 2109.72 | CO36: 2109.72 | CP36: 0 | CQ36: 8222.17 | CR36: 4462.68 | CS36: 122923.2 | CT36: 0 | CU36: 0 | CV36: -365086.5162 | CW36: 0 | CX36: =SUMIF('2023 (2)'!$C:$C,$B:$B,'2023 (2)'!$AT:$AT) -> 1686518.26 | CY36: 1601635.89
A37: 33 | B37: г.Одинцово, Верхне-Пролетарская, 43 | C37: 330.3 | D37: 330.3 | E37: 0 | F37: 148.6 | G37: 330.3 | I37: 0 | J37: 0 | K37: 0 | L37: 0 | O37: нет | P37: ЖЭУ-8 | Q37: 4 | R37: 2.05 | S37: 0 | T37: 0 | U37: 16.02 | W37: 0 | X37: 23411.4843 | Y37: 15535.06 | Z37: 1098.713037 | AA37: 207.8430276 | AB37: 143.3182328 | AC37: 6426.55 | AD37: 0 | AE37: 0 | AF37: 0 | AG37: 0 | AH37: 0 | AI37: 0 | AJ37: 0 | AK37: 0 | AL37: 0 | AM37: 0 | AN37: 0 | AO37: 0 | AP37: 0 | AQ37: 0 | AR37: 0 | AS37: 0 | AT37: 0 | AU37: 0 | AV37: 0 | AW37: 53267.08707 | AX37: 50340.61248 | AY37: 2115.616766 | AZ37: 0 | BA37: 0 | BB37: 0 | BC37: 0 | BD37: 141.8944335 | BE37: 0 | BF37: 185.9259607 | BG37: 93.0888187 | BH37: 389.9486063 | BI37: 49278.64093 | BJ37: 349.0169185 | BK37: 496.6305171 | BL37: 532.764671 | BM37: 527.9839398 | BN37: 8880.738316 | BO37: 5098.495292 | BP37: 4182.919228 | BQ37: 22694.6793 | BR37: 846.9499635 | BS37: 940.3753727 | BT37: 4691.479925 | BU37: 0 | BV37: 36.60748021 | BW37: 5663.348236 | BX37: 20092.08599 | BY37: 17669.87136 | BZ37: 0 | CA37: 0 | CB37: 0 | CC37: 0 | CD37: 0 | CE37: 0 | CF37: 0 | CG37: 0 | CH37: 0 | CI37: 0 | CK37: 169382.5179 | CL37: 42.73451354 | CM37: 63496.68 | CN37: 713.52 | CO37: 0 | CP37: 0 | CQ37: 0 | CR37: 754.33 | CS37: 6150.37 | CT37: 0 | CU37: 0 | CV37: -105885.8379 | CW37: 0 | CX37: =SUMIF('2023 (2)'!$C:$C,$B:$B,'2023 (2)'!$AT:$AT) -> 58233.28 | CY37: 134476
A38: 34 | B38: г.Одинцово, Верхне-Пролетарская, 45 | C38: 331.2 | D38: 331.2 | E38: 0 | F38: 41.4 | G38: 331.2 | I38: 0 | J38: 0 | K38: 0 | L38: 0 | O38: нет | P38: ЖЭУ-8 | Q38: 4 | R38: 2.05 | S38: 0 | T38: 0 | U38: 16.02 | W38: 0 | X38: 26931.16491 | Y38: 25477.34 | Z38: 1101.706805 | AA38: 208.4093573 | AB38: 143.7087457 | AC38: 0 | AD38: 0 | AE38: 0 | AF38: 0 | AG38: 0 | AH38: 0 | AI38: 0 | AJ38: 0 | AK38: 0 | AL38: 0 | AM38: 0 | AN38: 0 | AO38: 0 | AP38: 0 | AQ38: 0 | AR38: 0 | AS38: 0 | AT38: 0 | AU38: 0 | AV38: 0 | AW38: 53412.229 | AX38: 50477.78037 | AY38: 2121.381389 | AZ38: 0 | BA38: 0 | BB38: 0 | BC38: 0 | BD38: 142.2810668 | BE38: 0 | BF38: 186.432571 | BG38: 93.34246671 | BH38: 391.0111365 | BI38: 49412.91515 | BJ38: 349.9679183 | BK38: 497.9837338 | BL38: 534.2163459 | BM38: 529.4225882 | BN38: 8904.936513 | BO38: 5112.387649 | BP38: 4194.316828 | BQ38: 22756.51767 | BR38: 849.2577291 | BS38: 942.9377034 | BT38: 4704.263249 | BU38: 0 | BV38: 36.70722811 | BW38: 5678.779703 | BX38: 20146.83282 | BY38: 17718.01815 | BZ38: 0 | CA38: 0 | CB38: 0 | CC38: 0 | CD38: 0 | CE38: 0 | CF38: 0 | CG38: 0 | CH38: 0 | CI38: 0 | CK38: 173299.9397 | CL38: 43.60405086 | CM38: 63669.84 | CN38: 198.96 | CO38: 0 | CP38: 0 | CQ38: 0 | CR38: 210.36 | CS38: 1713.48 | CT38: 0 | CU38: 0 | CV38: -109630.0997 | CW38: 0 | CX38: =SUMIF('2023 (2)'!$C:$C,$B:$B,'2023 (2)'!$AT:$AT) -> 58702.28 | CY38: 7955.32
A39: 35 | B39: г.Одинцово, Верхне-Пролетарская, 67 | C39: 169.6 | D39: 169.6 | E39: 0 | F39: 11.9 | G39: 28.26666667 | I39: 0 | J39: 0 | K39: 0 | L39: 0 | O39: нет | P39: ЖЭУ-8 | Q39: 4 | R39: 2.05 | S39: 0 | T39: 0 | U39: 16.02 | W39: 0 | X39: 124.0784543 | Y39: 0 | Z39: 94.02650673 | AA39: 17.78694998 | AB39: 12.26499762 | AC39: 0 | AD39: 0 | AE39: 0 | AF39: 0 | AG39: 0 | AH39: 0 | AI39: 0 | AJ39: 0 | AK39: 0 | AL39: 0 | AM39: 0 | AN39: 0 | AO39: 0 | AP39: 0 | AQ39: 0 | AR39: 0 | AS39: 0 | AT39: 0 | AU39: 0 | AV39: 0 | AW39: 4558.531621 | AX39: 4308.087535 | AY39: 181.0518738 | AZ39: 0 | BA39: 0 | BB39: 0 | BC39: 0 | BD39: 12.14315063 | BE39: 0 | BF39: 15.91131443 | BG39: 7.966426305 | BH39: 33.37132083 | BI39: 4217.205319 | BJ39: 29.86843747 | BK39: 42.5010272 | BL39: 45.59334353 | BM39: 45.18421445 | BN39: 760.0026332 | BO39: 436.3229395 | BP39: 357.9690691 | BQ39: 1942.182667 | BR39: 72.4809334 | BS39: 80.47616471 | BT39: 401.4910664 | BU39: 0 | BV39: 3.132823011 | BW39: 484.6623579 | BX39: 1719.455941 | BY39: 1512.1658 | BZ39: 0 | CA39: 0 | CB39: 0 | CC39: 0 | CD39: 0 | CE39: 0 | CF39: 0 | CG39: 0 | CH39: 0 | CI39: 0 | CK39: 12616.09949 | CL39: 37.19368955 | CM39: -1306.94 | CN39: -1.34 | CO39: 0 | CP39: 0 | CQ39: 0 | CR39: -1.4 | CS39: -13.12 | CT39: 0 | CU39: 0 | CV39: -13923.03949 | CW39: 0 | CX39: =SUMIF('2023 (2)'!$C:$C,$B:$B,'2023 (2)'!$AT:$AT) -> 1994.49 | CY39: 17173.52
A40: 36 | B40: г.Одинцово, Вокзальная, 7 | C40: 10785.62 | D40: 10785.62 | E40: 0 | F40: 980.8 | G40: 10785.62 | H40: 10785.62 | I40: 6 | J40: 0 | K40: 0.01009652454 | L40: 0.01437033805 | O40: нет | P40: ЖЭУ-6,7 | Q40: 6.91 | R40: 3.15 | S40: 1.81 | T40: 0.26 | U40: 45.06 | V40: 6 | W40: 0.01445783133 | X40: 130612.8008 | Y40: 69318.61 | Z40: 34827.36694 | AA40: 6786.908613 | AB40: 4679.915223 | AC40: 0 | AD40: 0 | AE40: 0 | AF40: 0 | AG40: 0 | AH40: 0 | AI40: 0 | AJ40: 0 | AK40: 0 | AL40: 0 | AM40: 15000 | AN40: 0 | AO40: 0 | AP40: 0 | AQ40: 0 | AR40: 0 | AS40: 0 | AT40: 0 | AU40: 0 | AV40: 0 | AW40: 1251335.451 | AX40: 1034639.776 | AY40: 69083.37421 | AZ40: 0 | BA40: 0 | BB40: 0 | BC40: 0 | BD40: 4633.422463 | BE40: 121134.54 | BF40: 6071.22846 | BG40: 3039.723357 | BH40: 12733.38627 | BI40: 1609145.308 | BJ40: 11396.80247 | BK40: 16216.97862 | BL40: 17396.9037 | BM40: 17240.79365 | BN40: 289991.7311 | BO40: 166486.3239 | BP40: 136589.0926 | BQ40: 741072.3191 | BR40: 27656.31385 | BS40: 30707.02824 | BT40: 153195.6395 | BU40: 0 | BV40: 1195.38108 | BW40: 184931.0385 | BX40: 656087.2072 | BY40: 576992.1826 | BZ40: 109844.2895 | CA40: 447858.0997 | CB40: 15576.84 | CC40: 429574.82 | CD40: 0 | CE40: 0 | CF40: 2706.439664 | CG40: 158685.6492 | CH40: 36500.004 | CI40: 122185.6452 | CK40: 5125492.026 | CL40: 39.60127795 | CM40: 5591215.58 | CN40: 5649.83 | CO40: 5649.83 | CP40: 0 | CQ40: 22036.65 | CR40: 11948.08 | CS40: 255883.57 | CT40: 0 | CU40: 5319.325301 | CV40: 471042.8793 | CW40: 0.09086416516 | CX40: =SUMIF('2023 (2)'!$C:$C,$B:$B,'2023 (2)'!$AT:$AT) -> 5510130.25 | CY40: 4498614.56
A41: 37 | B41: г.Одинцово, Вокзальная, 9 | C41: 10772.68 | D41: 10772.68 | E41: 0 | F41: 1031.6 | G41: 10772.68 | H41: 10772.68 | I41: 6 | J41: 0 | K41: 0.01009652454 | L41: 0.01437033805 | O41: ОДПУ | P41: ЖЭУ-6,7 | Q41: 6.91 | R41: 3.15 | S41: 1.81 | T41: 0.26 | U41: 45.06 | V41: 6 | W41: 0.01445783133 | X41: 589720.4295 | Y41: 110970.34 | Z41: 34785.58296 | AA41: 6778.766049 | AB41: 4674.300516 | AC41: 195972.04 | AD41: 0 | AE41: 0 | AF41: 0 | AG41: 0 | AH41: 0 | AI41: 0 | AJ41: 0 | AK41: 0 | AL41: 0 | AM41: 15000 | AN41: 0 | AO41: 0 | AP41: 221539.4 | AQ41: 0 | AR41: 0 | AS41: 0 | AT41: 0 | AU41: 0 | AV41: 0 | AW41: 1149696.449 | AX41: 1033398.471 | AY41: 69000.49174 | AZ41: 0 | BA41: 20851.49206 | BB41: 0 | BC41: 0 | BD41: 4627.863534 | BE41: 0 | BF41: 6063.94453 | BG41: 3036.076462 | BH41: 12718.10945 | BI41: 1607214.743 | BJ41: 11383.12921 | BK41: 16197.52237 | BL41: 17376.03184 | BM41: 17220.10908 | BN41: 289643.8148 | BO41: 166286.5827 | BP41: 136425.2204 | BQ41: 740183.2208 | BR41: 27623.13331 | BS41: 30670.18762 | BT41: 153011.8437 | BU41: 0 | BV41: 1193.946927 | BW41: 184709.1683 | BX41: 655300.0695 | BY41: 576299.9388 | BZ41: 109712.5043 | CA41: 447854.8526 | CB41: 15576.84 | CC41: 429574.82 | CD41: 0 | CE41: 0 | CF41: 2703.192624 | CG41: 158539.0576 | CH41: 36500.004 | CI41: 122039.0536 | CK41: 5479047.213 | CL41: 42.38381421 | CM41: 5557073.07 | CN41: 5942.84 | CO41: 6762.48 | CP41: 0 | CQ41: 23177.96 | CR41: 12567.24 | CS41: 269260.28 | CT41: 0 | CU41: 5319.325301 | CV41: 83345.18271 | CW41: 0.01424077114 | CX41: =SUMIF('2023 (2)'!$C:$C,$B:$B,'2023 (2)'!$AT:$AT) -> 5337330.01 | CY41: 6617956.82
A42: 38 | B42: г.Одинцово, Вокзальная, 11 | C42: 10745.8 | D42: 10719.1 | E42: 26.7 | F42: 907.7 | G42: 10745.8 | H42: 10745.8 | I42: 6 | J42: 0 | K42: 0.01038275211 | L42: 0.01477772446 | O42: ОДПУ | P42: ЖЭУ-6,7 | Q42: 6.91 | R42: 3.15 | S42: 1.81 | T42: 0.26 | U42: 45.06 | V42: 6 | W42: 0.01445783133 | X42: 1045554.294 | Y42: 42904.36 | Z42: 34698.78595 | AA42: 6761.851667 | AB42: 4662.637197 | AC42: 0 | AD42: 0 | AE42: 0 | AF42: 0 | AG42: 0 | AH42: 0 | AI42: 0 | AJ42: 0 | AK42: 0 | AL42: 0 | AM42: 0 | AN42: 0 | AO42: 0 | AP42: 294488.53 | AQ42: 0 | AR42: 0 | AS42: 0 | AT42: 662038.129 | AU42: 0 | AV42: 0 | AW42: 1146827.726 | AX42: 1030819.935 | AY42: 68828.32165 | AZ42: 0 | BA42: 20799.4634 | BB42: 0 | BC42: 0 | BD42: 4616.316086 | BE42: 0 | BF42: 6048.813771 | BG42: 3028.500842 | BH42: 12686.37521 | BI42: 1603204.419 | BJ42: 11354.72601 | BK42: 16157.1063 | BL42: 17332.67515 | BM42: 17177.14145 | BN42: 288921.0954 | BO42: 165871.6643 | BP42: 136084.8121 | BQ42: 738336.315 | BR42: 27554.20805 | BS42: 30593.65934 | BT42: 152630.0484 | BU42: 0 | BV42: 1190.967789 | BW42: 184248.2818 | BX42: 653664.9642 | BY42: 574861.9547 | BZ42: 109438.7496 | CA42: 460026.1751 | CB42: 15576.84 | CC42: 441752.8875 | CD42: 0 | CE42: 0 | CF42: 2696.447616 | CG42: 158234.5456 | CH42: 36500.004 | CI42: 121734.5416 | CK42: 5936061.11 | CL42: 46.03396296 | CM42: 5558112.07 | CN42: 5214.46 | CO42: 5214.58 | CP42: 0 | CQ42: 20342.89 | CR42: 11030.29 | CS42: 236962.38 | CT42: 457127.3696 | CU42: 5319.325301 | CV42: 84497.65516 | CW42: -0.06367000487 | CX42: =SUMIF('2023 (2)'!$C:$C,$B:$B,'2023 (2)'!$AT:$AT) -> 5462603.02 | CY42: 3581093.78
A43: 39 | B43: г.Одинцово, Вокзальная, 13 | C43: 4054.4 | D43: 3427.5 | E43: 626.9 | F43: 442.5 | G43: 4054.4 | H43: 4054.4 | I43: 2 | J43: 0 | K43: 0.003708982375 | L43: 0.00527897796 | O43: нет | P43: ЖЭУ-6,7 | Q43: 6.91 | R43: 3.15 | S43: 1.81 | T43: 0.26 | U43: 45.06 | V43: 1 | W43: 0.002409638554 | X43: 99629.23305 | Y43: 29692.68 | Z43: 13091.88313 | AA43: 2551.252712 | AB43: 1759.217206 | AC43: 0 | AD43: 0 | AE43: 0 | AF43: 0 | AG43: 0 | AH43: 0 | AI43: 0 | AJ43: 0 | AK43: 52534.2 | AL43: 0 | AM43: 0 | AN43: 0 | AO43: 0 | AP43: 0 | AQ43: 0 | AR43: 0 | AS43: 0 | AT43: 0 | AU43: 0 | AV43: 0 | AW43: 469578.0676 | AX43: 388929.288 | AY43: 25968.98763 | AZ43: 0 | BA43: 0 | BB43: 0 | BC43: 0 | BD43: 1741.740209 | BE43: 44726.592 | BF43: 2282.222873 | BG43: 1142.65609 | BH43: 4786.580773 | BI43: 604890.4686 | BJ43: 4284.148333 | BK43: 6096.090731 | BL43: 6539.633915 | BM43: 6480.95091 | BN43: 109010.189 | BO43: 62583.52804 | BP43: 51344.92195 | BQ43: 278574.9554 | BR43: 10396.22747 | BS43: 11543.01517 | BT43: 57587.45446 | BU43: 0 | BV43: 449.3532175 | BW43: 69517.04235 | BX43: 246628.3786 | BY43: 216895.9323 | BZ43: 41291.33859 | CA43: 164835.307 | CB43: 6012.6 | CC43: 157805.3348 | CD43: 0 | CE43: 0 | CF43: 1017.37211 | CG43: 59450.55598 | CH43: 13520.004 | CI43: 45930.55198 | CK43: 1972716.324 | CL43: 40.54682 | CM43: 1783002.81 | CN43: 1258.68 | CO43: 1258.68 | CP43: 0 | CQ43: 4902.81 | CR43: 2664.76 | CS43: 97654.88 | CT43: 172474.5675 | CU43: 886.5542169 | CV43: -16352.39234 | CW43: 0 | CX43: =SUMIF('2023 (2)'!$C:$C,$B:$B,'2023 (2)'!$AT:$AT) -> 1734752.82 | CY43: 781507.57
A44: 40 | B44: г.Одинцово, Вокзальная, 17 | C44: 3567.1 | D44: 3567.1 | E44: 0 | F44: 685.7 | G44: 3567.1 | H44: 3567.1 | I44: 2 | J44: 0 | K44: 0.003682269133 | L44: 0.005240957122 | O44: нет | P44: ЖЭУ-6,7 | Q44: 6.91 | R44: 3.15 | S44: 1.81 | T44: 0.26 | U44: 45.06 | V44: 2 | W44: 0.004819277108 | X44: 256786.7471 | Y44: 31804.16 | Z44: 11518.36432 | AA44: 2244.616602 | AB44: 1547.776168 | AC44: 0 | AD44: 0 | AE44: 0 | AF44: 0 | AG44: 0 | AH44: 56780.78 | AI44: 0 | AJ44: 0 | AK44: 152891.05 | AL44: 0 | AM44: 0 | AN44: 0 | AO44: 0 | AP44: 0 | AQ44: 0 | AR44: 0 | AS44: 0 | AT44: 0 | AU44: 0 | AV44: 0 | AW44: 373788.4024 | AX44: 342183.7173 | AY44: 22847.76435 | AZ44: 0 | BA44: 0 | BB44: 0 | BC44: 0 | BD44: 1532.399738 | BE44: 0 | BF44: 2007.92157 | BG44: 1005.319786 | BH44: 4211.279665 | BI44: 532188.4349 | BJ44: 3769.234786 | BK44: 5363.399084 | BL44: 5753.632631 | BM44: 5702.002761 | BN44: 95908.20965 | BO44: 55061.58812 | BP44: 45173.75471 | BQ44: 245092.9172 | BR44: 9146.70062 | BS44: 10155.65544 | BT44: 50665.99468 | BU44: 0 | BV44: 395.3452699 | BW44: 61161.7605 | BX44: 216986.0126 | BY44: 190827.1212 | BZ44: 36328.51566 | CA44: 163029.5776 | CB44: 5465.712 | CC44: 156668.7718 | CD44: 0 | CE44: 0 | CF44: 895.0937381 | CG44: 53590.13609 | CH44: 13179.996 | CI44: 40410.14009 | CK44: 1884686.708 | CL44: 44.0293868 | CM44: 1847470.18 | CN44: 2301.52 | CO44: 2301.52 | CP44: 0 | CQ44: 8973.42 | CR44: 4868.8 | CS44: 178747.55 | CT44: 0 | CU44: 1773.108434 | CV44: -35443.41952 | CW44: 0 | CX44: =SUMIF('2023 (2)'!$C:$C,$B:$B,'2023 (2)'!$AT:$AT) -> 1741251.21 | CY44: 1920618.7
A45: 41 | B45: г.Одинцово, Вокзальная, 51 | C45: 21973.2 | D45: 20211.4 | E45: 1761.8 | F45: 3728 | G45: 21973.2 | H45: 21973.2 | I45: 8 | J45: 8 | K45: 0.03273388523 | L45: 0.04658999186 | O45: нет | P45: ЖЭУ-6,7 | Q45: 6.91 | R45: 3.15 | S45: 1.81 | T45: 0 | U45: 44.8 | V45: 8 | W45: 0.01927710843 | X45: 614515.02 | Y45: 145505.25 | Z45: 70952.68508 | AA45: 13826.75269 | AB45: 9534.242184 | AC45: 0 | AD45: 0 | AE45: 33309.05 | AF45: 0 | AG45: 0 | AH45: 0 | AI45: 0 | AJ45: 0 | AK45: 0 | AL45: 0 | AM45: 15000 | AN45: 0 | AO45: 0 | AP45: 326387.04 | AQ45: 0 | AR45: 0 | AS45: 0 | AT45: 0 | AU45: 0 | AV45: 0 | AW45: 2302522.308 | AX45: 2107838.652 | AY45: 140741.3573 | AZ45: 0 | BA45: 0 | BB45: 0 | BC45: 0 | BD45: 9439.523964 | BE45: 0 | BF45: 12368.72031 | BG45: 6192.73155 | BH45: 25941.32218 | BI45: 3278260.469 | BJ45: 23218.34258 | BK45: 33038.33387 | BL45: 35442.15764 | BM45: 35124.11961 | BN45: 590790.9148 | BO45: 339177.2835 | BP45: 278268.6067 | BQ45: 1509763.025 | BR45: 56343.32709 | BS45: 62558.45032 | BT45: 312100.5955 | BU45: 0 | BV45: 2435.311789 | BW45: 376754.1128 | BX45: 1336625.565 | BY45: 1175487.791 | BZ45: 223782.2714 | CA45: 1447157.035 | CB45: 48921.192 | CC45: 1392722.099 | CD45: 0 | CE45: 0 | CF45: 5513.7433 | CG45: 0 | CH45: 0 | CI45: 0 | CK45: 10755104.57 | CL45: 40.78872054 | CM45: 10421788.92 | CN45: 14306.03 | CO45: 14306.03 | CP45: 0 | CQ45: 47693.04 | CR45: 27146.55 | CS45: 674091.45 | CT45: 934742.0497 | CU45: 7092.433735 | CV45: 608518.833 | CW45: -0.03099139095 | CX45: =SUMIF('2023 (2)'!$C:$C,$B:$B,'2023 (2)'!$AT:$AT) -> 10114868.87 | CY45: 5965455.58
A46: 42 | B46: г.Одинцово, Вокзальная, 69 | C46: 644.9 | D46: 644.9 | E46: 0 | F46: 62.2 | G46: 644.9 | I46: 0 | J46: 0 | K46: 0 | L46: 0 | O46: нет | P46: ЖЭУ-6,7 | Q46: 6.92 | R46: 3.15 | S46: 0 | T46: 0.26 | U46: 31 | W46: 0 | X46: 16383.76891 | Y46: 13615.72 | Z46: 2082.417973 | AA46: 405.8067468 | AB46: 279.8241851 | AC46: 0 | AD46: 0 | AE46: 0 | AF46: 0 | AG46: 0 | AH46: 0 | AI46: 0 | AJ46: 0 | AK46: 0 | AL46: 0 | AM46: 0 | AN46: 0 | AO46: 0 | AP46: 0 | AQ46: 0 | AR46: 0 | AS46: 0 | AT46: 0 | AU46: 0 | AV46: 0 | AW46: 77491.48348 | AX46: 61863.7771 | AY46: 4130.67288 | AZ46: 0 | BA46: 0 | BB46: 0 | BC46: 9913.86 | BD46: 277.0442632 | BE46: 0 | BF46: 363.0143871 | BG46: 181.7528888 | BH46: 761.3619624 | BI46: 96214.94258 | BJ46: 681.4441742 | BK46: 969.6549212 | BL46: 1040.205681 | BM46: 1030.871459 | BN46: 17339.35253 | BO46: 9954.64612 | BP46: 8167.013655 | BQ46: 44310.62271 | BR46: 1653.642239 | BS46: 1836.05231 | BT46: 9159.961865 | BU46: 0 | BV46: 71.47491367 | BW46: 11057.50311 | BX46: 39229.14398 | BY46: 34499.84874 | BZ46: 0 | CA46: 0 | CB46: 0 | CC46: 0 | CD46: 0 | CE46: 0 | CF46: 0 | CG46: 10005.79444 | CH46: 2700 | CI46: 7305.794439 | CK46: 284882.4852 | CL46: 36.81222996 | CM46: 229997.22 | CN46: 388.2 | CO46: 388.2 | CP46: 0 | CQ46: 1513.56 | CR46: 820.8 | CS46: 3430.8 | CT46: 0 | CU46: 0 | CV46: -54885.26524 | CW46: 0 | CX46: =SUMIF('2023 (2)'!$C:$C,$B:$B,'2023 (2)'!$AT:$AT) -> 220819.28 | CY46: 27457.35
A47: 43 | B47: г.Одинцово, Глазынинская, 2 | C47: 1486.2 | D47: 1376.2 | E47: 110 | F47: 88.8 | G47: 1486.2 | I47: 0 | J47: 0 | K47: 0 | L47: 0 | O47: нет | P47: ЖЭУ-8 | Q47: 4 | R47: 2.05 | S47: 0 | T47: 0.22 | U47: 20.44 | W47: 0 | X47: 93880.8459 | Y47: 27601.89 | Z47: 4943.709704 | AA47: 935.1992357 | AB47: 644.8669622 | AC47: 0 | AD47: 0 | AE47: 18987.27 | AF47: 40767.91 | AG47: 0 | AH47: 0 | AI47: 0 | AJ47: 0 | AK47: 0 | AL47: 0 | AM47: 0 | AN47: 0 | AO47: 0 | AP47: 0 | AQ47: 0 | AR47: 0 | AS47: 0 | AT47: 0 | AU47: 0 | AV47: 0 | AW47: 347270.1215 | AX47: 226509.8949 | AY47: 9519.314675 | AZ47: 0 | BA47: 0 | BB47: 0 | BC47: 107592.42 | BD47: 638.4605117 | BE47: 0 | BF47: 836.5823882 | BG47: 418.8574095 | BH47: 1754.59164 | BI47: 221731.5051 | BJ47: 1570.417633 | BK47: 2234.611791 | BL47: 2397.199074 | BM47: 2375.687955 | BN47: 39959.28939 | BO47: 22940.91342 | BP47: 18821.23693 | BQ47: 102115.7505 | BR47: 3810.890208 | BS47: 4231.262122 | BT47: 21109.52911 | BU47: 0 | BV47: 164.7170363 | BW47: 25482.49515 | BX47: 90405.26251 | BY47: 79506.39665 | BZ47: 0 | CA47: 0 | CB47: 0 | CC47: 0 | CD47: 0 | CE47: 0 | CF47: 0 | CG47: 21396.51992 | CH47: 4560 | CI47: 16836.51992 | CK47: 879673.1468 | CL47: 49.32451592 | CM47: 338301.94 | CN47: 394.83 | CO47: 0 | CP47: 0 | CQ47: 0 | CR47: 417.54 | CS47: 4536.38 | CT47: 63223.09151 | CU47: 0 | CV47: -478148.1152 | CW47: 0 | CX47: =SUMIF('2023 (2)'!$C:$C,$B:$B,'2023 (2)'!$AT:$AT) -> 324911.49 | CY47: 19148.94
A48: 44 | B48: г.Одинцово, Глазынинская, 4 | C48: 879.9 | D48: 879.9 | E48: 0 | F48: 88.8 | G48: 879.9 | I48: 0 | J48: 0 | K48: 0 | L48: 0 | O48: нет | P48: ЖЭУ-8 | Q48: 4 | R48: 2.05 | S48: 0 | T48: 0.22 | U48: 20.44 | W48: 0 | X48: 91600.04085 | Y48: 87737.66 | Z48: 2926.907663 | AA48: 553.6817437 | AB48: 381.7914413 | AC48: 0 | AD48: 0 | AE48: 0 | AF48: 0 | AG48: 0 | AH48: 0 | AI48: 0 | AJ48: 0 | AK48: 0 | AL48: 0 | AM48: 0 | AN48: 0 | AO48: 0 | AP48: 0 | AQ48: 0 | AR48: 0 | AS48: 0 | AT48: 0 | AU48: 0 | AV48: 0 | AW48: 202582.3476 | AX48: 134104.4654 | AY48: 5635.880085 | AZ48: 0 | BA48: 0 | BB48: 0 | BC48: 60681.924 | BD48: 377.9985226 | BE48: 0 | BF48: 495.2959516 | BG48: 247.9832019 | BH48: 1038.80042 | BI48: 131275.4349 | BJ48: 929.7607828 | BK48: 1322.994829 | BL48: 1419.254115 | BM48: 1406.518525 | BN48: 23657.77065 | BO48: 13582.09509 | BP48: 11143.05368 | BQ48: 60457.30644 | BR48: 2256.22547 | BS48: 2505.10533 | BT48: 12497.82981 | BU48: 0 | BV48: 97.52019931 | BW48: 15086.8305 | BX48: 53524.14916 | BY48: 47071.51017 | BZ48: 0 | CA48: 0 | CB48: 0 | CC48: 0 | CD48: 0 | CE48: 0 | CF48: 0 | CG48: 13008.00426 | CH48: 3039.996 | CI48: 9968.008261 | CK48: 554148.3174 | CL48: 52.4821303 | CM48: 215821.68 | CN48: 426 | CO48: 0 | CP48: 0 | CQ48: 0 | CR48: 450.6 | CS48: 4897.92 | CT48: 0 | CU48: 0 | CV48: -338326.6374 | CW48: 0 | CX48: =SUMIF('2023 (2)'!$C:$C,$B:$B,'2023 (2)'!$AT:$AT) -> 219121.52 | CY48: 5898.77
A49: 45 | B49: г.Одинцово, Глазынинская, 10 | C49: 886.63 | D49: 886.63 | E49: 0 | F49: 89.5 | G49: 886.63 | I49: 0 | J49: 0 | K49: 0 | L49: 0 | O49: нет | P49: ЖЭУ-8 | Q49: 4 | R49: 2.05 | S49: 0 | T49: 0.22 | U49: 20.44 | W49: 0 | X49: 84300.35264 | Y49: 54783.79 | Z49: 2949.294398 | AA49: 557.9166319 | AB49: 384.7116099 | AC49: 0 | AD49: 0 | AE49: 0 | AF49: 0 | AG49: 0 | AH49: 0 | AI49: 25624.64 | AJ49: 0 | AK49: 0 | AL49: 0 | AM49: 0 | AN49: 0 | AO49: 0 | AP49: 0 | AQ49: 0 | AR49: 0 | AS49: 0 | AT49: 0 | AU49: 0 | AV49: 0 | AW49: 196469.6187 | AX49: 135130.1763 | AY49: 5678.986658 | AZ49: 0 | BA49: 0 | BB49: 0 | BC49: 53483.856 | BD49: 380.8896807 | BE49: 0 | BF49: 499.0842705 | BG49: 249.8799253 | BH49: 1046.745785 | BI49: 132279.5077 | BJ49: 936.8721478 | BK49: 1333.113882 | BL49: 1430.109416 | BM49: 1417.276417 | BN49: 23838.71939 | BO49: 13685.97905 | BP49: 11228.2824 | BQ49: 60919.71998 | BR49: 2273.482429 | BS49: 2524.26587 | BT49: 12593.42067 | BU49: 0 | BV49: 98.26609196 | BW49: 15202.22358 | BX49: 53933.53377 | BY49: 47431.54115 | BZ49: 0 | CA49: 0 | CB49: 0 | CC49: 0 | CD49: 0 | CE49: 0 | CF49: 0 | CG49: 13084.24553 | CH49: 3039.996 | CI49: 10044.24953 | CK49: 542701.0231 | CL49: 51.0078446 | CM49: 217472.88 | CN49: 429.48 | CO49: 0 | CP49: 0 | CQ49: 0 | CR49: 454.56 | CS49: 4936.56 | CT49: 0 | CU49: 0 | CV49: -325228.1431 | CW49: 0 | CX49: =SUMIF('2023 (2)'!$C:$C,$B:$B,'2023 (2)'!$AT:$AT) -> 219690.71 | CY49: 41229.91
A50: 46 | B50: г.Одинцово, Глазынинская, 12 | C50: 885.3 | D50: 885.3 | E50: 0 | F50: 88.8 | G50: 885.3 | I50: 0 | J50: 0 | K50: 0 | L50: 0 | O50: нет | P50: ЖЭУ-8 | Q50: 4 | R50: 2.05 | S50: 0 | T50: 0.22 | U50: 20.44 | W50: 0 | X50: 73162.98451 | Y50: 69276.9 | Z50: 2944.870274 | AA50: 557.0797224 | AB50: 384.1345187 | AC50: 0 | AD50: 0 | AE50: 0 | AF50: 0 | AG50: 0 | AH50: 0 | AI50: 0 | AJ50: 0 | AK50: 0 | AL50: 0 | AM50: 0 | AN50: 0 | AO50: 0 | AP50: 0 | AQ50: 0 | AR50: 0 | AS50: 0 | AT50: 0 | AU50: 0 | AV50: 0 | AW50: 157882.7552 | AX50: 134927.4727 | AY50: 5670.467825 | AZ50: 0 | BA50: 0 | BB50: 0 | BC50: 15111.48 | BD50: 380.3183226 | BE50: 0 | BF50: 498.3356131 | BG50: 249.5050899 | BH50: 1045.175601 | BI50: 132081.0803 | BJ50: 935.4667815 | BK50: 1331.114129 | BL50: 1427.964164 | BM50: 1415.150415 | BN50: 23802.95983 | BO50: 13665.44923 | BP50: 11211.43928 | BQ50: 60828.33662 | BR50: 2270.072064 | BS50: 2520.479314 | BT50: 12574.52975 | BU50: 0 | BV50: 98.11868673 | BW50: 15179.4193 | BX50: 53852.63013 | BY50: 47360.3909 | BZ50: 0 | CA50: 0 | CB50: 0 | CC50: 0 | CD50: 0 | CE50: 0 | CF50: 0 | CG50: 13069.17854 | CH50: 3039.996 | CI50: 10029.18254 | CK50: 492588.4388 | CL50: 46.36737441 | CM50: 217064.72 | CN50: 426.28 | CO50: 0 | CP50: 0 | CQ50: 0 | CR50: 451.12 | CS50: 4898.24 | CT50: 0 | CU50: 0 | CV50: -275523.7188 | CW50: 0 | CX50: =SUMIF('2023 (2)'!$C:$C,$B:$B,'2023 (2)'!$AT:$AT) -> 207613.2 | CY50: 42328.07
A51: 47 | B51: г.Одинцово, Глазынинская, 14 | C51: 1380.65 | D51: 1380.65 | E51: 0 | F51: 142.2 | G51: 1380.65 | I51: 0 | J51: 0 | K51: 0 | L51: 0 | O51: нет | P51: ЖЭУ-8 | Q51: 4 | R51: 2.05 | S51: 0 | T51: 0.22 | U51: 20.44 | W51: 0 | X51: 88042.027 | Y51: 51458.18 | Z51: 4592.607188 | AA51: 868.7813382 | AB51: 599.0684776 | AC51: 24344.56 | AD51: 0 | AE51: 0 | AF51: 0 | AG51: 0 | AH51: 0 | AI51: 6178.83 | AJ51: 0 | AK51: 0 | AL51: 0 | AM51: 0 | AN51: 0 | AO51: 0 | AP51: 0 | AQ51: 0 | AR51: 0 | AS51: 0 | AT51: 0 | AU51: 0 | AV51: 0 | AW51: 355115.3069 | AX51: 210423.1506 | AY51: 8843.25246 | AZ51: 0 | BA51: 0 | BB51: 0 | BC51: 132459.528 | BD51: 593.1170135 | BE51: 0 | BF51: 777.1682642 | BG51: 389.1101348 | BH51: 1629.980452 | BI51: 205984.1223 | BJ51: 1458.886493 | BK51: 2075.909547 | BL51: 2226.949873 | BM51: 2206.966475 | BN51: 37121.37861 | BO51: 21311.64857 | BP51: 17484.55172 | BQ51: 94863.48465 | BR51: 3540.240591 | BS51: 3930.75767 | BT51: 19610.32927 | BU51: 0 | BV51: 153.0188239 | BW51: 23672.72704 | BX51: 83984.67614 | BY51: 73859.84829 | BZ51: 0 | CA51: 0 | CB51: 0 | CC51: 0 | CD51: 0 | CE51: 0 | CF51: 0 | CG51: 20370.79341 | CH51: 4730.004 | CI51: 15640.78941 | CK51: 851029.5011 | CL51: 51.366476 | CM51: 340867.88 | CN51: 682.65 | CO51: 0 | CP51: 0 | CQ51: 0 | CR51: 721.99 | CS51: 7843.64 | CT51: 0 | CU51: 0 | CV51: -510161.6211 | CW51: 0 | CX51: =SUMIF('2023 (2)'!$C:$C,$B:$B,'2023 (2)'!$AT:$AT) -> 331675.58 | CY51: 68369.06
A52: 48 | B52: г.Одинцово, Глазынинская, 20 | C52: 379.15 | D52: 379.15 | E52: 0 | F52: 160.9 | G52: 379.15 | I52: 0 | J52: 0 | K52: 0 | L52: 0 | O52: нет | P52: ЖЭУ-8 | Q52: 5.31 | R52: 2.67 | S52: 0 | T52: 0.22 | U52: 25.29 | W52: 0 | X52: 66544.75469 | Y52: 31557.06 | Z52: 1261.208138 | AA52: 238.5821493 | AB52: 164.514405 | AC52: 0 | AD52: 0 | AE52: 18819.44 | AF52: 0 | AG52: 0 | AH52: 0 | AI52: 14503.95 | AJ52: 0 | AK52: 0 | AL52: 0 | AM52: 0 | AN52: 0 | AO52: 0 | AP52: 0 | AQ52: 0 | AR52: 0 | AS52: 0 | AT52: 0 | AU52: 0 | AV52: 0 | AW52: 133538.9683 | AX52: 57785.78027 | AY52: 2428.50771 | AZ52: 0 | BA52: 0 | BB52: 0 | BC52: 72393.9 | BD52: 162.8800316 | BE52: 0 | BF52: 213.4236391 | BG52: 106.8562689 | BH52: 447.6203877 | BI52: 56566.74753 | BJ52: 400.6350731 | BK52: 570.0801107 | BL52: 611.5583561 | BM52: 606.0705746 | BN52: 10194.16268 | BO52: 5852.541598 | BP52: 4801.555632 | BQ52: 26051.12824 | BR52: 972.2103502 | BS52: 1079.45299 | BT52: 5385.330347 | BU52: 0 | BV52: 42.02157469 | BW52: 6500.93395 | BX52: 23063.62218 | BY52: 20283.17204 | BZ52: 0 | CA52: 0 | CB52: 0 | CC52: 0 | CD52: 0 | CE52: 0 | CF52: 0 | CG52: 5305.231108 | CH52: 1010.004 | CI52: 4295.227108 | CK52: 311803.4298 | CL52: 68.53123869 | CM52: 115064.4 | CN52: 1003.8 | CO52: 1003.8 | CP52: 0 | CQ52: 3916.68 | CR52: 2123.4 | CS52: 8875.44 | CT52: 0 | CU52: 0 | CV52: -196739.0298 | CW52: 0 | CX52: =SUMIF('2023 (2)'!$C:$C,$B:$B,'2023 (2)'!$AT:$AT) -> 110542.1 | CY52: 73905.45
A53: 49 | B53: г.Одинцово, Глазынинская, 22 | C53: 502.68 | D53: 502.68 | E53: 0 | F53: 65.2 | G53: 502.68 | I53: 0 | J53: 0 | K53: 0 | L53: 0 | O53: нет | P53: ЖЭУ-8 | Q53: 4 | R53: 2.05 | S53: 0 | T53: 0.22 | U53: 20.44 | W53: 0 | X53: 36207.54802 | Y53: 20553.02 | Z53: 1672.119495 | AA53: 316.3140572 | AB53: 218.1144695 | AC53: 0 | AD53: 0 | AE53: 13447.98 | AF53: 0 | AG53: 0 | AH53: 0 | AI53: 0 | AJ53: 0 | AK53: 0 | AL53: 0 | AM53: 0 | AN53: 0 | AO53: 0 | AP53: 0 | AQ53: 0 | AR53: 0 | AS53: 0 | AT53: 0 | AU53: 0 | AV53: 0 | AW53: 96178.08408 | AX53: 76612.83404 | AY53: 3219.73429 | AZ53: 0 | BA53: 0 | BB53: 0 | BC53: 15111.48 | BD53: 215.9476046 | BE53: 0 | BF53: 282.95871 | BG53: 141.670867 | BH53: 593.4585692 | BI53: 74996.63101 | BJ53: 531.1650759 | BK53: 755.8166162 | BL53: 810.8087945 | BM53: 803.5330514 | BN53: 13515.49966 | BO53: 7759.344878 | BP53: 6365.939563 | BQ53: 34538.78714 | BR53: 1288.963995 | BS53: 1431.147116 | BT53: 7139.912591 | BU53: 0 | BV53: 55.71252846 | BW53: 8618.98847 | BX53: 30577.92851 | BY53: 26891.58624 | BZ53: 0 | CA53: 0 | CB53: 0 | CC53: 0 | CD53: 0 | CE53: 0 | CF53: 0 | CG53: 7194.645292 | CH53: 1500 | CI53: 5694.645292 | CK53: 280665.4116 | CL53: 46.52817757 | CM53: 123297.24 | CN53: 312.72 | CO53: 0 | CP53: 0 | CQ53: 0 | CR53: 331.08 | CS53: 3596.4 | CT53: 0 | CU53: 0 | CV53: -157368.1716 | CW53: 0 | CX53: =SUMIF('2023 (2)'!$C:$C,$B:$B,'2023 (2)'!$AT:$AT) -> 111173.15 | CY53: 230716.39
A54: 50 | B54: г.Одинцово, Глазынинская, 24 | C54: 758.99 | D54: 758.99 | E54: 0 | F54: 99.8 | G54: 758.99 | I54: 0 | J54: 0 | K54: 0 | L54: 0 | O54: нет | P54: ЖЭУ-8 | Q54: 4 | R54: 2.05 | S54: 0 | T54: 0.22 | U54: 20.44 | W54: 0 | X54: 52363.52819 | Y54: 49031.89 | Z54: 2524.711498 | AA54: 477.5984847 | AB54: 329.3282032 | AC54: 0 | AD54: 0 | AE54: 0 | AF54: 0 | AG54: 0 | AH54: 0 | AI54: 0 | AJ54: 0 | AK54: 0 | AL54: 0 | AM54: 0 | AN54: 0 | AO54: 0 | AP54: 0 | AQ54: 0 | AR54: 0 | AS54: 0 | AT54: 0 | AU54: 0 | AV54: 0 | AW54: 137512.8921 | AX54: 115676.7226 | AY54: 4861.434965 | AZ54: 0 | BA54: 0 | BB54: 0 | BC54: 15111.48 | BD54: 326.0564821 | BE54: 0 | BF54: 427.2356794 | BG54: 213.9070012 | BH54: 896.055382 | BI54: 113236.4386 | BJ54: 801.999246 | BK54: 1141.197687 | BL54: 1224.229663 | BM54: 1213.244113 | BN54: 20406.87731 | BO54: 11715.734 | BP54: 9611.849425 | BQ54: 52149.66589 | BR54: 1946.189987 | BS54: 2160.870433 | BT54: 10780.46124 | BU54: 0 | BV54: 84.11962277 | BW54: 13013.69869 | BX54: 46169.21692 | BY54: 40603.25662 | BZ54: 0 | CA54: 0 | CB54: 0 | CC54: 0 | CD54: 0 | CE54: 0 | CF54: 0 | CG54: 10618.26693 | CH54: 2019.996 | CI54: 8598.270928 | CK54: 413517.2981 | CL54: 45.40214606 | CM54: 186165 | CN54: 478.92 | CO54: 0 | CP54: 0 | CQ54: 0 | CR54: 506.88 | CS54: 5504.52 | CT54: 0 | CU54: 0 | CV54: -227352.2981 | CW54: 0 | CX54: =SUMIF('2023 (2)'!$C:$C,$B:$B,'2023 (2)'!$AT:$AT) -> 184367.52 | CY54: 23735.34
A55: 51 | B55: г.Одинцово, Говорова, 8 | C55: 5789.939806 | D55: 5758.699806 | E55: 31.24 | F55: 1030.12 | G55: 5789.939806 | H55: 5789.939806 | I55: 3 | J55: 0 | K55: 0.005239080652 | L55: 0.007456759967 | O55: ОДПУ | P55: ЖЭУ-5 | Q55: 6.91 | R55: 3.15 | S55: 1.81 | T55: 0.26 | U55: 45.06 | V55: 3 | W55: 0.007228915663 | X55: 300441.6439 | Y55: 29366.54 | Z55: 15487.76002 | AA55: 3643.350344 | AB55: 2512.273513 | AC55: 0 | AD55: 60622.73 | AE55: 0 | AF55: 0 | AG55: 0 | AH55: 0 | AI55: 0 | AJ55: 0 | AK55: 188808.99 | AL55: 0 | AM55: 0 | AN55: 0 | AO55: 0 | AP55: 0 | AQ55: 0 | AR55: 0 | AS55: 0 | AT55: 0 | AU55: 0 | AV55: 0 | AW55: 378468.3118 | AX55: 315962.2046 | AY55: 37085.35794 | AZ55: 0 | BA55: 11206.94979 | BB55: 0 | BC55: 0 | BD55: 2487.315255 | BE55: 0 | BF55: 3259.158707 | BG55: 1631.785216 | BH55: 6835.54029 | BI55: 863821.8732 | BJ55: 6118.034967 | BK55: 8705.603391 | BL55: 9339.01113 | BM55: 9255.208085 | BN55: 155673.4493 | BO55: 89373.239 | BP55: 73323.79821 | BQ55: 397822.6676 | BR55: 14846.47081 | BS55: 16484.15623 | BT55: 82238.52973 | BU55: 0 | BV55: 641.7048346 | BW55: 99274.73628 | BX55: 352200.934 | BY55: 309741.1188 | BZ55: 58966.64487 | CA55: 229551.2734 | CB55: 5192.28 | CC55: 222906.1217 | CD55: 0 | CE55: 0 | CF55: 1452.871763 | CG55: 83291.73522 | CH55: 17700 | CI55: 65591.73522 | CK55: 2675758.271 | CL55: 38.51160175 | CM55: 2985465.56 | CN55: 9352.53 | CO55: 9352.52 | CP55: 0 | CQ55: 26425.14 | CR55: 15914.88 | CS55: 270032.37 | CT55: 246304.5984 | CU55: 2659.662651 | CV55: 558671.5496 | CW55: 0.1157456157 | CX55: =SUMIF('2023 (2)'!$C:$C,$B:$B,'2023 (2)'!$AT:$AT) -> 3027953.12 | CY55: 1078903.55
A56: 52 | B56: г.Одинцово, Говорова, 8 А | C56: 5804.9 | D56: 5804.9 | E56: 0 | F56: 1032.78 | G56: 5804.9 | H56: 5804.9 | I56: 3 | J56: 0 | K56: 0.005334489843 | L56: 0.007592555439 | O56: ОДПУ | P56: ЖЭУ-5 | Q56: 6.91 | R56: 3.15 | S56: 1.81 | T56: 0.26 | U56: 45.06 | V56: 3 | W56: 0.007228915663 | X56: 312195.3366 | Y56: 21815.38 | Z56: 15527.77769 | AA56: 3652.764126 | AB56: 2518.764789 | AC56: 92262 | AD56: 21243.63 | AE56: 0 | AF56: 0 | AG56: 0 | AH56: 0 | AI56: 0 | AJ56: 0 | AK56: 0 | AL56: 0 | AM56: 0 | AN56: 155175.02 | AO56: 0 | AP56: 0 | AQ56: 0 | AR56: 0 | AS56: 0 | AT56: 0 | AU56: 0 | AV56: 0 | AW56: 379446.2078 | AX56: 316778.5957 | AY56: 37181.18003 | AZ56: 0 | BA56: 11235.90659 | BB56: 0 | BC56: 0 | BD56: 2493.742043 | BE56: 0 | BF56: 3267.579804 | BG56: 1636.001464 | BH56: 6853.202133 | BI56: 866053.8381 | BJ56: 6133.842901 | BK56: 8728.09715 | BL56: 9363.141504 | BM56: 9279.121927 | BN56: 156075.6823 | BO56: 89604.16385 | BP56: 73513.2541 | BQ56: 398850.5719 | BR56: 14884.8315 | BS56: 16526.74841 | BT56: 82451.01974 | BU56: 0 | BV56: 643.3628878 | BW56: 99531.24486 | BX56: 353110.9597 | BY56: 310541.4358 | BZ56: 59119.00438 | CA56: 238806.6632 | CB56: 10384.56 | CC56: 226965.4775 | CD56: 0 | CE56: 0 | CF56: 1456.62573 | CG56: 83461.21281 | CH56: 17700 | CI56: 65761.21281 | CK56: 2702265.903 | CL56: 38.79288623 | CM56: 3011636.57 | CN56: 3813.72 | CO56: 3813.72 | CP56: 0 | CQ56: 14864.13 | CR56: 8080.98 | CS56: 269618.84 | CT56: 0 | CU56: 2659.662651 | CV56: 312030.3294 | CW56: 0.1144856494 | CX56: =SUMIF('2023 (2)'!$C:$C,$B:$B,'2023 (2)'!$AT:$AT) -> 2895534.74 | CY56: 1581620.73
A57: 53 | B57: г.Одинцово, Говорова, 38 | C57: 10302.9 | D57: 9629.6 | E57: 673.3 | F57: 1358.8 | G57: 10302.9 | H57: 10302.9 | I57: 6 | J57: 0 | K57: 0.01255808498 | L57: 0.01787386596 | O57: нет | P57: ЖЭУ-5 | Q57: 6.91 | R57: 3.15 | S57: 1.81 | T57: 0 | U57: 44.8 | V57: 3 | W57: 0.007228915663 | X57: 352600.7181 | Y57: 23105.4 | Z57: 27559.67213 | AA57: 6483.154492 | AB57: 4470.461462 | AC57: 0 | AD57: 152582.79 | AE57: 0 | AF57: 0 | AG57: 0 | AH57: 0 | AI57: 0 | AJ57: 0 | AK57: 37678.89 | AL57: 0 | AM57: 0 | AN57: 0 | AO57: 0 | AP57: 100720.35 | AQ57: 0 | AR57: 0 | AS57: 0 | AT57: 0 | AU57: 0 | AV57: 0 | AW57: 653522.6985 | AX57: 562238.4871 | AY57: 65991.48646 | AZ57: 0 | BA57: 0 | BB57: 0 | BC57: 0 | BD57: 4426.049526 | BE57: 0 | BF57: 5799.505239 | BG57: 2903.677839 | BH57: 12163.49227 | BI57: 1537126.581 | BJ57: 10886.72846 | BK57: 15491.17334 | BL57: 16618.28982 | BM57: 16469.16662 | BN57: 277012.8937 | BO57: 159035.0807 | BP57: 130475.9265 | BQ57: 707904.9694 | BR57: 26418.53097 | BS57: 29332.70792 | BT57: 146339.2326 | BU57: 0 | BV57: 1141.880738 | BW57: 176654.2856 | BX57: 626723.4417 | BY57: 551168.3851 | BZ57: 104928.1108 | CA57: 556570.1166 | CB57: 19678.464 | CC57: 534306.342 | CD57: 0 | CE57: 0 | CF57: 2585.310553 | CG57: 0 | CH57: 0 | CI57: 0 | CK57: 4559294.337 | CL57: 36.87711176 | CM57: 4964121.58 | CN57: 4269.22 | CO57: 4269.22 | CP57: 0 | CQ57: 16641.55 | CR57: 9032.87 | CS57: 248805.08 | CT57: 438286.3608 | CU57: 2659.662651 | CV57: 845773.2664 | CW57: 0.08879164471 | CX57: =SUMIF('2023 (2)'!$C:$C,$B:$B,'2023 (2)'!$AT:$AT) -> 4918450.42 | CY57: 2258886.54
A58: 54 | B58: г.Одинцово, Говорова, 40 | C58: 4904.3 | D58: 4904.3 | E58: 0 | F58: 536.8 | G58: 4904.3 | H58: 4904.3 | I58: 2 | J58: 0 | K58: 0.003505389542 | L58: 0.004989205195 | O58: нет | P58: ЖЭУ-5 | Q58: 6.91 | R58: 3.15 | S58: 1.81 | T58: 0 | U58: 44.8 | V58: 2 | W58: 0.004819277108 | X58: 58730.9522 | Y58: 40398.18 | Z58: 13118.72386 | AA58: 3086.056797 | AB58: 2127.991551 | AC58: 0 | AD58: 0 | AE58: 0 | AF58: 0 | AG58: 0 | AH58: 0 | AI58: 0 | AJ58: 0 | AK58: 0 | AL58: 0 | AM58: 0 | AN58: 0 | AO58: 0 | AP58: 0 | AQ58: 0 | AR58: 0 | AS58: 0 | AT58: 0 | AU58: 0 | AV58: 0 | AW58: 311084.3908 | AX58: 267632.0466 | AY58: 31412.71361 | AZ58: 0 | BA58: 0 | BB58: 0 | BC58: 0 | BD58: 2106.850954 | BE58: 0 | BF58: 2760.631817 | BG58: 1382.184358 | BH58: 5789.963517 | BI58: 731690.096 | BJ58: 5182.209123 | BK58: 7373.978338 | BL58: 7910.498868 | BM58: 7839.51449 | BN58: 131861.3531 | BO58: 75702.54453 | BP58: 62108.05562 | BQ58: 336970.9831 | BR58: 12575.52742 | BS58: 13962.70948 | BT58: 69659.17347 | BU58: 0 | BV58: 543.5484868 | BW58: 84089.49063 | BX58: 298327.6335 | BY58: 262362.5495 | BZ58: 49946.99878 | CA58: 155839.4609 | CB58: 5465.712 | CC58: 149143.1111 | CD58: 0 | CE58: 0 | CF58: 1230.637835 | CG58: 0 | CH58: 0 | CI58: 0 | CK58: 1952071.572 | CL58: 33.1693883 | CM58: 2527676.16 | CN58: 1803.6 | CO58: 1803.6 | CP58: 0 | CQ58: 7028.64 | CR58: 3815.03 | CS58: 105071.41 | CT58: 0 | CU58: 1773.108434 | CV58: 577377.6961 | CW58: 0.2948685877 | CX58: =SUMIF('2023 (2)'!$C:$C,$B:$B,'2023 (2)'!$AT:$AT) -> 2459894.96 | CY58: 1275828.01
A59: 55 | B59: г.Одинцово, Комсомольская, 2 | C59: 3072.3 | D59: 3018.9 | E59: 53.4 | F59: 530.6 | G59: 3072.3 | H59: 3072.3 | I59: 1 | J59: 0 | K59: 0.001554211165 | L59: 0.002212101772 | O59: ОДПУ | P59: ЖЭУ-8 | Q59: 5.4 | R59: 2.67 | S59: 1.54 | T59: 0.22 | U59: 36.75 | W59: 0 | X59: 163817.1196 | Y59: 150331.05 | Z59: 10219.72771 | AA59: 1933.261076 | AB59: 1333.080856 | AC59: 0 | AD59: 0 | AE59: 0 | AF59: 0 | AG59: 0 | AH59: 0 | AI59: 0 | AJ59: 0 | AK59: 0 | AL59: 0 | AM59: 0 | AN59: 0 | AO59: 0 | AP59: 0 | AQ59: 0 | AR59: 0 | AS59: 0 | AT59: 0 | AU59: 0 | AV59: 0 | AW59: 501412.8701 | AX59: 468245.4246 | AY59: 19678.50254 | AZ59: 0 | BA59: 5946.713265 | BB59: 0 | BC59: 0 | BD59: 1319.837323 | BE59: 0 | BF59: 1729.398514 | BG59: 865.8697478 | BH59: 3627.124139 | BI59: 458367.4494 | BJ59: 3246.396242 | BK59: 4619.430632 | BL59: 4955.534056 | BM59: 4911.065875 | BN59: 82604.57865 | BO59: 47423.87855 | BP59: 38907.60746 | BQ59: 211095.5593 | BR59: 7877.942394 | BS59: 8746.942954 | BT59: 43638.00719 | BU59: 0 | BV59: 340.5060897 | BW59: 52677.8831 | BX59: 186887.423 | BY59: 164357.0868 | BZ59: 31289.31027 | CA59: 69357.07044 | CB59: 2459.424 | CC59: 66126.71305 | CD59: 0 | CE59: 0 | CF59: 770.9333889 | CG59: 46974.76793 | CH59: 12170.004 | CI59: 34804.76393 | CK59: 1675140.981 | CL59: 45.43667015 | CM59: 1331337.11 | CN59: 3003.36 | CO59: 3003.36 | CP59: 0 | CQ59: 11714.28 | CR59: 6352.19 | CS59: 136003.81 | CT59: 130695.9387 | CU59: 0 | CV59: -213107.9319 | CW59: 0 | CX59: =SUMIF('2023 (2)'!$C:$C,$B:$B,'2023 (2)'!$AT:$AT) -> 1330008.27 | CY59: 797783.62
A60: 56 | B60: г.Одинцово, Комсомольская, 4 | C60: 4398.8 | D60: 3854.6 | E60: 544.2 | F60: 1214.2 | G60: 4398.8 | H60: 4398.8 | I60: 1 | J60: 1 | K60: 0.004042443262 | L60: 0.005753591343 | O60: нет | P60: ЖЭУ-8 | Q60: 5.4 | R60: 2.67 | S60: 1.54 | T60: 0 | U60: 36.54 | V60: 1 | W60: 0.002409638554 | X60: 268989.9115 | Y60: 249681.08 | Z60: 14632.20983 | AA60: 2767.96824 | AB60: 1908.653474 | AC60: 0 | AD60: 0 | AE60: 0 | AF60: 0 | AG60: 0 | AH60: 0 | AI60: 0 | AJ60: 0 | AK60: 0 | AL60: 0 | AM60: 0 | AN60: 0 | AO60: 0 | AP60: 0 | AQ60: 0 | AR60: 0 | AS60: 0 | AT60: 0 | AU60: 0 | AV60: 0 | AW60: 709389.2298 | AX60: 670415.6409 | AY60: 28174.91683 | AZ60: 0 | BA60: 0 | BB60: 0 | BC60: 0 | BD60: 1889.691898 | BE60: 0 | BF60: 2476.085728 | BG60: 1239.718728 | BH60: 5193.175686 | BI60: 656272.7391 | BJ60: 4648.064248 | BK60: 6613.921643 | BL60: 7095.141492 | BM60: 7031.473674 | BN60: 118270.0324 | BO60: 67899.67027 | BP60: 55706.40358 | BQ60: 302238.4357 | BR60: 11279.33242 | BS60: 12523.53373 | BT60: 62479.20647 | BU60: 0 | BV60: 487.5234149 | BW60: 75422.15023 | BX60: 267578.1649 | BY60: 235320.1033 | BZ60: 44798.82108 | CA60: 179109.4213 | CB60: 6012.6 | CC60: 171993.0288 | CD60: 0 | CE60: 0 | CF60: 1103.79253 | CG60: 0 | CH60: 0 | CI60: 0 | CK60: 2436880.541 | CL60: 46.16563118 | CM60: 1690164.48 | CN60: 3495.12 | CO60: 3495.12 | CP60: 0 | CQ60: 13617.6 | CR60: 7391.76 | CS60: 203578.44 | CT60: 187125.3767 | CU60: 886.5542169 | CV60: -558704.1303 | CW60: 0 | CX60: =SUMIF('2023 (2)'!$C:$C,$B:$B,'2023 (2)'!$AT:$AT) -> 1683500.81 | CY60: 568479.39
A61: 57 | B61: г.Одинцово, Комсомольская, 6 | C61: 7902.2 | D61: 7770.8 | E61: 131.4 | F61: 1429.18 | G61: 7902.2 | H61: 7902.2 | I61: 4 | J61: 0 | K61: 0.006731016362 | L61: 0.009580225364 | O61: ОДПУ | P61: ЖЭУ-8 | Q61: 5.4 | R61: 2.67 | S61: 1.54 | T61: 0.22 | U61: 36.75 | V61: 4 | W61: 0.009638554217 | X61: 490344.0539 | Y61: 162975.66 | Z61: 26285.95265 | AA61: 4972.501279 | AB61: 3428.790007 | AC61: 0 | AD61: 292681.15 | AE61: 0 | AF61: 0 | AG61: 0 | AH61: 0 | AI61: 0 | AJ61: 0 | AK61: 0 | AL61: 0 | AM61: 0 | AN61: 0 | AO61: 0 | AP61: 0 | AQ61: 0 | AR61: 0 | AS61: 0 | AT61: 0 | AU61: 0 | AV61: 0 | AW61: 1289673.789 | AX61: 1204364.481 | AY61: 50614.67395 | AZ61: 0 | BA61: 15295.41958 | BB61: 0 | BC61: 0 | BD61: 3394.726588 | BE61: 0 | BF61: 4448.15055 | BG61: 2227.085871 | BH61: 9329.251821 | BI61: 1178957.543 | BJ61: 8349.989383 | BK61: 11881.54306 | BL61: 12746.0278 | BM61: 12631.6521 | BN61: 212465.5474 | BO61: 121977.9882 | BP61: 100073.4615 | BQ61: 542954.571 | BR61: 20262.69453 | BS61: 22497.83309 | BT61: 112240.4259 | BU61: 0 | BV61: 875.8087499 | BW61: 135491.7058 | BX61: 480689.3186 | BY61: 422739.5018 | BZ61: 80478.59506 | CA61: 298750.6754 | CB61: 10384.56 | CC61: 286383.2133 | CD61: 0 | CE61: 0 | CF61: 1982.902004 | CG61: 116870.6255 | CH61: 27350.004 | CI61: 89520.62152 | CK61: 4493995.808 | CL61: 47.39182135 | CM61: 3426928.07 | CN61: 8095.56 | CO61: 8095.56 | CP61: 0 | CQ61: 31576.56 | CR61: 17120.88 | CS61: 366610.44 | CT61: 336160.351 | CU61: 3546.216867 | CV61: -727361.1699 | CW61: 0 | CX61: =SUMIF('2023 (2)'!$C:$C,$B:$B,'2023 (2)'!$AT:$AT) -> 3519433.32 | CY61: 1169560.05
A62: 58 | B62: г.Одинцово, Комсомольская, 7 | C62: 6108.44 | D62: 5292.14 | E62: 816.3 | F62: 984.8 | G62: 6108.44 | H62: 6108.44 | I62: 1 | J62: 1 | K62: 0.004568230624 | L62: 0.006501942134 | O62: нет | P62: ЖЭУ-8 | Q62: 5.4 | R62: 2.67 | S62: 1.54 | T62: 0 | U62: 36.54 | V62: 1 | W62: 0.002409638554 | X62: 275389.1925 | Y62: 239808.78 | Z62: 20319.17246 | AA62: 3843.768281 | AB62: 2650.471771 | AC62: 0 | AD62: 0 | AE62: 0 | AF62: 0 | AG62: 0 | AH62: 0 | AI62: 0 | AJ62: 0 | AK62: 0 | AL62: 0 | AM62: 0 | AN62: 0 | AO62: 0 | AP62: 0 | AQ62: 0 | AR62: 0 | AS62: 8767 | AT62: 0 | AU62: 0 | AV62: 0 | AW62: 998273.6536 | AX62: 930979.7485 | AY62: 39125.39533 | AZ62: 0 | BA62: 0 | BB62: 0 | BC62: 13172.82 | BD62: 2624.140579 | BE62: 0 | BF62: 3438.442554 | BG62: 1721.548482 | BH62: 7211.558173 | BI62: 911340.0587 | BJ62: 6454.583426 | BK62: 9184.492025 | BL62: 9852.743043 | BM62: 9764.330056 | BN62: 164236.9275 | BO62: 94289.59303 | BP62: 77357.28468 | BQ62: 419706.5905 | BR62: 15663.1639 | BS62: 17390.93715 | BT62: 86762.40883 | BU62: 0 | BV62: 677.0045304 | BW62: 104735.7642 | BX62: 371575.24 | BY62: 326779.7426 | BZ62: 62210.35524 | CA62: 203002.7682 | CB62: 7106.376 | CC62: 194363.5991 | CD62: 0 | CE62: 0 | CF62: 1532.793136 | CG62: 0 | CH62: 0 | CI62: 0 | CK62: 3253306.775 | CL62: 44.38267347 | CM62: 2320152.13 | CN62: 2866.99 | CO62: 2866.99 | CP62: 0 | CQ62: 11171.15 | CR62: 6061.42 | CS62: 166999.71 | CT62: 259853.6274 | CU62: 886.5542169 | CV62: -672414.4634 | CW62: 0 | CX62: =SUMIF('2023 (2)'!$C:$C,$B:$B,'2023 (2)'!$AT:$AT) -> 2226245.02 | CY62: 1729475.07
A63: 59 | B63: г.Одинцово, Комсомольская, 7а | C63: 5301.46 | D63: 5301.46 | E63: 0 | F63: 996.3 | G63: 5301.46 | H63: 5301.46 | I63: 1 | J63: 1 | K63: 0.004568230624 | L63: 0.006501942134 | O63: нет | P63: ЖЭУ-8 | Q63: 5.4 | R63: 2.67 | S63: 1.54 | T63: 0 | U63: 36.54 | V63: 1 | W63: 0.002409638554 | X63: 266263.449 | Y63: 131392.2 | Z63: 17634.82657 | AA63: 3335.971834 | AB63: 2300.320553 | AC63: 0 | AD63: 0 | AE63: 0 | AF63: 0 | AG63: 0 | AH63: 0 | AI63: 0 | AJ63: 0 | AK63: 111600.13 | AL63: 0 | AM63: 0 | AN63: 0 | AO63: 0 | AP63: 0 | AQ63: 0 | AR63: 0 | AS63: 0 | AT63: 0 | AU63: 0 | AV63: 0 | AW63: 854960.1314 | AX63: 807988.9297 | AY63: 33956.57784 | AZ63: 0 | BA63: 0 | BB63: 0 | BC63: 0 | BD63: 2277.467948 | BE63: 0 | BF63: 2984.19329 | BG63: 1494.116406 | BH63: 6258.846316 | BI63: 790943.82 | BJ63: 5601.874758 | BK63: 7971.137818 | BL63: 8551.106851 | BM63: 8474.374017 | BN63: 142539.7486 | BO63: 81833.08764 | BP63: 67137.68989 | BQ63: 364259.5657 | BR63: 13593.91872 | BS63: 15093.43755 | BT63: 75300.31234 | BU63: 0 | BV63: 587.5661278 | BW63: 90899.22538 | BX63: 322486.8005 | BY63: 283609.1923 | BZ63: 53991.8064 | CA63: 202800.2724 | CB63: 7106.376 | CC63: 194363.5991 | CD63: 0 | CE63: 0 | CF63: 1330.297342 | CG63: 0 | CH63: 0 | CI63: 0 | CK63: 2865954.697 | CL63: 45.04977084 | CM63: 2323064.04 | CN63: 3347.13 | CO63: 3347.13 | CP63: 0 | CQ63: 13046.04 | CR63: 7079.21 | CS63: 195015.35 | CT63: 0 | CU63: 886.5542169 | CV63: -542004.1031 | CW63: 0 | CX63: =SUMIF('2023 (2)'!$C:$C,$B:$B,'2023 (2)'!$AT:$AT) -> 2259629.18 | CY63: 1465472.39
A64: 60 | B64: г.Одинцово, Комсомольская, 9 | C64: 5275.39 | D64: 5275.39 | E64: 0 | F64: 932.6 | G64: 5275.39 | H64: 5275.39 | I64: 1 | J64: 1 | K64: 0.004285421217 | L64: 0.006099420775 | O64: ОДПУ | P64: ЖЭУ-8 | Q64: 5.4 | R64: 2.67 | S64: 1.54 | T64: 0 | U64: 36.54 | V64: 1 | W64: 0.002409638554 | X64: 332488.8929 | Y64: 163731.13 | Z64: 17548.10708 | AA64: 3319.567148 | AB64: 2289.008696 | AC64: 0 | AD64: 0 | AE64: 0 | AF64: 0 | AG64: 0 | AH64: 0 | AI64: 0 | AJ64: 0 | AK64: 145601.08 | AL64: 0 | AM64: 0 | AN64: 0 | AO64: 0 | AP64: 0 | AQ64: 0 | AR64: 0 | AS64: 0 | AT64: 0 | AU64: 0 | AV64: 0 | AW64: 860966.846 | AX64: 804015.6334 | AY64: 33789.59591 | AZ64: 0 | BA64: 10210.99232 | BB64: 0 | BC64: 0 | BD64: 2266.268469 | BE64: 0 | BF64: 2969.51848 | BG64: 1486.769068 | BH64: 6228.068356 | BI64: 787054.3432 | BJ64: 5574.327465 | BK64: 7931.939642 | BL64: 8509.056669 | BM64: 8432.70117 | BN64: 141838.8075 | BO64: 81430.67235 | BP64: 66807.53941 | BQ64: 362468.3144 | BR64: 13527.07045 | BS64: 15019.21537 | BT64: 74930.02205 | BU64: 0 | BV64: 584.6767636 | BW64: 90452.22723 | BX64: 320900.9674 | BY64: 282214.5403 | BZ64: 53726.30098 | CA64: 190214.2071 | CB64: 6559.488 | CC64: 182330.9635 | CD64: 0 | CE64: 0 | CF64: 1323.755587 | CG64: 0 | CH64: 0 | CI64: 0 | CK64: 2918018.325 | CL64: 46.09482782 | CM64: 2313153.72 | CN64: 3134.4 | CO64: 3134.4 | CP64: 0 | CQ64: 12209.89 | CR64: 6627 | CS64: 182543.88 | CT64: 0 | CU64: 886.5542169 | CV64: -603978.0509 | CW64: 0 | CX64: =SUMIF('2023 (2)'!$C:$C,$B:$B,'2023 (2)'!$AT:$AT) -> 2265190.38 | CY64: 618103.23
A65: 61 | B65: г.Одинцово, Красногорское шоссе, 4 | C65: 4404.8 | D65: 4242.8 | E65: 162 | F65: 1118.2 | G65: 4404.8 | H65: 4404.8 | I65: 1 | J65: 1 | K65: 0.004568230624 | L65: 0.006501942134 | O65: ОДПУ | P65: ЖЭУ-5 | Q65: 6.91 | R65: 3.15 | S65: 1.81 | T65: 0 | U65: 44.8 | W65: 0 | X65: 114100.4304 | Y65: 29334.84 | Z65: 11782.58974 | AA65: 2771.743772 | AB65: 1911.256893 | AC65: 0 | AD65: 0 | AE65: 0 | AF65: 0 | AG65: 0 | AH65: 0 | AI65: 0 | AJ65: 0 | AK65: 0 | AL65: 0 | AM65: 0 | AN65: 0 | AO65: 0 | AP65: 0 | AQ65: 68300 | AR65: 0 | AS65: 0 | AT65: 0 | AU65: 0 | AV65: 0 | AW65: 279400.633 | AX65: 240373.8839 | AY65: 28213.34765 | AZ65: 0 | BA65: 0 | BB65: 0 | BC65: 0 | BD65: 1892.269454 | BE65: 0 | BF65: 2479.46313 | BG65: 1241.409714 | BH65: 5200.259221 | BI65: 1045564.414 | BJ65: 4654.404246 | BK65: 6622.943087 | BL65: 7104.819325 | BM65: 7041.064663 | BN65: 118431.3537 | BO65: 67992.28598 | BP65: 55782.38758 | BQ65: 302650.6915 | BR65: 11294.71753 | BS65: 12540.61593 | BT65: 62564.42863 | BU65: 388396.5138 | BV65: 488.1884009 | BW65: 75525.02668 | BX65: 267943.1438 | BY65: 235641.0819 | BZ65: 44859.92705 | CA65: 202575.2732 | CB65: 7106.376 | CC65: 194363.5991 | CD65: 0 | CE65: 0 | CF65: 1105.298113 | CG65: 0 | CH65: 0 | CI65: 0 | CK65: 2265609.93 | CL65: 42.86251987 | CM65: 2183134.64 | CN65: 3619.45 | CO65: 3619.45 | CP65: 0 | CQ65: 14102.2 | CR65: 7653.8 | CS65: 188879.78 | CT65: 187380.6173 | CU65: 0 | CV65: 104905.3269 | CW65: -0.03640312893 | CX65: =SUMIF('2023 (2)'!$C:$C,$B:$B,'2023 (2)'!$AT:$AT) -> 2096708.23 | CY65: 738483.88
A66: 62 | B66: г.Одинцово, Любы Новоселовой бульвар, 1 к.1 | C66: 3066.8 | D66: 3066.8 | E66: 0 | F66: 397.54 | G66: 3066.8 | H66: 3066.8 | I66: 1 | J66: 0 | K66: 0.001778163281 | L66: 0.002530851813 | O66: ОДПУ | P66: ЖЭУ-1,2,3 | Q66: 6.91 | R66: 3.15 | S66: 1.81 | T66: 0.26 | U66: 45.06 | V66: 1 | W66: 0.002409638554 | X66: 1520714.633 | Y66: 17121.09514 | Z66: 6559.237327 | AA66: 1929.800172 | AB66: 1330.694388 | AC66: 0 | AD66: 12351.67975 | AE66: 0 | AF66: 0 | AG66: 0 | AH66: 0 | AI66: 0 | AJ66: 0 | AK66: 0 | AL66: 0 | AM66: 0 | AN66: 0 | AO66: 0 | AP66: 1077489.026 | AQ66: 0 | AR66: 0 | AS66: 0 | AT66: 403933.0997 | AU66: 0 | AV66: 0 | AW66: 244456.8064 | AX66: 211348.7369 | AY66: 19643.27429 | AZ66: 0 | BA66: 5936.06752 | BB66: 0 | BC66: 0 | BD66: 1317.474564 | BE66: 0 | BF66: 1726.302562 | BG66: 864.3196766 | BH66: 3620.630898 | BI66: 457546.8846 | BJ66: 3240.584576 | BK66: 4611.160974 | BL66: 4946.66271 | BM66: 4902.274135 | BN66: 82456.70078 | BO66: 47338.98081 | BP66: 38837.95546 | BQ66: 210717.6581 | BR66: 7863.839383 | BS66: 8731.284266 | BT66: 43559.88688 | BU66: 0 | BV66: 339.8965192 | BW66: 52583.57969 | BX66: 186552.859 | BY66: 164062.8564 | BZ66: 31233.29646 | CA66: 80126.76482 | CB66: 3702.052382 | CC66: 75655.15917 | CD66: 0 | CE66: 0 | CF66: 769.5532719 | CG66: 46433.24772 | CH66: 11690.79092 | CI66: 34742.45679 | CK66: 2783710.928 | CL66: 75.64102995 | CM66: 1548293.593 | CN66: 2229.995407 | CO66: 2229.995407 | CP66: 0 | CQ66: 8697.500394 | CR66: 4716.310106 | CS66: 100931.3975 | CT66: 0 | CU66: 886.5542169 | CV66: -1234530.78 | CW66: 0 | CX66: 1534656.71 | CY66: 587560.0646
A67: 63 | B67: г.Одинцово, Любы Новоселовой бульвар, 1 к.2 | C67: 3045.4 | D67: 2884.8 | E67: 160.6 | F67: 394.76 | G67: 3045.4 | H67: 3045.4 | I67: 1 | J67: 0 | K67: 0.001778163281 | L67: 0.002530851813 | O67: ОДПУ | P67: ЖЭУ-1,2,3 | Q67: 6.91 | R67: 3.15 | S67: 1.81 | T67: 0.26 | U67: 45.06 | V67: 1 | W67: 0.002409638554 | X67: 1510103.151 | Y67: 17001.62486 | Z67: 6513.467247 | AA67: 1916.334109 | AB67: 1321.408859 | AC67: 0 | AD67: 12265.49025 | AE67: 0 | AF67: 0 | AG67: 0 | AH67: 0 | AI67: 0 | AJ67: 0 | AK67: 0 | AL67: 0 | AM67: 0 | AN67: 0 | AO67: 0 | AP67: 1069970.354 | AQ67: 0 | AR67: 0 | AS67: 0 | AT67: 401114.4717 | AU67: 0 | AV67: 0 | AW67: 242750.9972 | AX67: 209873.9544 | AY67: 19506.20436 | AZ67: 0 | BA67: 5894.645893 | BB67: 0 | BC67: 0 | BD67: 1308.281283 | BE67: 0 | BF67: 1714.256496 | BG67: 858.2884907 | BH67: 3595.36629 | BI67: 454354.1419 | BJ67: 3217.971915 | BK67: 4578.984489 | BL67: 4912.145108 | BM67: 4868.066274 | BN67: 81881.32143 | BO67: 47008.65141 | BP67: 38566.94586 | BQ67: 209247.2793 | BR67: 7808.965846 | BS67: 8670.357736 | BT67: 43255.92784 | BU67: 0 | BV67: 337.5247358 | BW67: 52216.65371 | BX67: 185251.1011 | BY67: 162918.0328 | BZ67: 31015.35185 | CA67: 80095.56215 | CB67: 3676.219618 | CC67: 75655.15917 | CD67: 0 | CE67: 0 | CF67: 764.1833619 | CG67: 46109.23849 | CH67: 11609.21308 | CI67: 34500.02541 | CK67: 2764814.23 | CL67: 75.65547574 | CM67: 1537489.667 | CN67: 2214.434593 | CO67: 2214.434593 | CP67: 0 | CQ67: 8636.809606 | CR67: 4683.399894 | CS67: 100227.1025 | CT67: 129551.6101 | CU67: 886.5542169 | CV67: -1096886.399 | CW67: 0 | CX67: 1523947.94 | CY67: 583460.0954
A68: 64 | B68: г.Одинцово, Любы Новоселовой бульвар, 2 корп.1 | C68: 2826.5 | D68: 2826.5 | E68: 0 | F68: 514.3 | G68: 2826.5 | H68: 2826.5 | I68: 1 | J68: 0 | K68: 0.001715194768 | L68: 0.002441229011 | O68: ОДПУ | P68: ЖЭУ-1,2,3 | Q68: 6.91 | R68: 3.15 | S68: 1.81 | T68: 0.26 | U68: 45.06 | V68: 1 | W68: 0.002409638554 | X68: 160213.1436 | Y68: 137922.5765 | Z68: 6045.286391 | AA68: 1778.590122 | AB68: 1226.427445 | AC68: 0 | AD68: 13240.26314 | AE68: 0 | AF68: 0 | AG68: 0 | AH68: 0 | AI68: 0 | AJ68: 0 | AK68: 0 | AL68: 0 | AM68: 0 | AN68: 0 | AO68: 0 | AP68: 0 | AQ68: 0 | AR68: 0 | AS68: 0 | AT68: 0 | AU68: 0 | AV68: 0 | AW68: 225302.3227 | AX68: 194788.4456 | AY68: 18104.11986 | AZ68: 0 | BA68: 5470.945234 | BB68: 0 | BC68: 0 | BD68: 1214.243464 | BE68: 0 | BF68: 1591.037626 | BG68: 796.5956587 | BH68: 3336.935318 | BI68: 421695.6663 | BJ68: 2986.667636 | BK68: 4249.852124 | BL68: 4559.065524 | BM68: 4518.155029 | BN68: 75995.78217 | BO68: 43629.72129 | BP68: 35794.79624 | BQ68: 194206.8152 | BR68: 7247.665976 | BS68: 8047.141965 | BT68: 40146.73936 | BU68: 0 | BV68: 313.2638293 | BW68: 48463.37811 | BX68: 171935.4558 | BY68: 151207.6639 | BZ68: 28786.0025 | CA68: 76135.15157 | CB68: 2449.8465 | CC68: 72976.05037 | CD68: 0 | CE68: 0 | CF68: 709.2547029 | CG68: 44142.81307 | CH68: 12122.61152 | CI68: 32020.20156 | CK68: 1327881.598 | CL68: 39.14976112 | CM68: 1462736.69 | CN68: 2957.85 | CO68: 2957.85 | CP68: 0 | CQ68: 11542.69 | CR68: 6250.59 | CS68: 134024.12 | CT68: 0 | CU68: 886.5542169 | CV68: 135741.6466 | CW68: 0.1015565639 | CX68: =SUMIF('2023 (2)'!$C:$C,$B:$B,'2023 (2)'!$AT:$AT) -> 1403300.46 | CY68: 1008382.45
A69: 65 | B69: г.Одинцово, Любы Новоселовой бульвар, 2 корп.2 | C69: 2848.6 | D69: 2848.6 | E69: 0 | F69: 471.5 | G69: 2848.6 | H69: 2848.6 | I69: 1 | J69: 0 | K69: 0.001715194768 | L69: 0.002441229011 | O69: ОДПУ | P69: ЖЭУ-1,2,3 | Q69: 6.91 | R69: 3.15 | S69: 1.81 | T69: 0.26 | U69: 45.06 | V69: 1 | W69: 0.002409638554 | X69: 161465.8273 | Y69: 139000.9735 | Z69: 6092.553622 | AA69: 1792.496665 | AB69: 1236.016706 | AC69: 0 | AD69: 13343.78686 | AE69: 0 | AF69: 0 | AG69: 0 | AH69: 0 | AI69: 0 | AJ69: 0 | AK69: 0 | AL69: 0 | AM69: 0 | AN69: 0 | AO69: 0 | AP69: 0 | AQ69: 0 | AR69: 0 | AS69: 0 | AT69: 0 | AU69: 0 | AV69: 0 | AW69: 227063.9294 | AX69: 196311.4686 | AY69: 18245.67338 | AZ69: 0 | BA69: 5513.721774 | BB69: 0 | BC69: 0 | BD69: 1223.73746 | BE69: 0 | BF69: 1603.477722 | BG69: 802.8241264 | BH69: 3363.026339 | BI69: 424992.8445 | BJ69: 3010.019964 | BK69: 4283.081111 | BL69: 4594.712207 | BM69: 4553.481838 | BN69: 76589.98234 | BO69: 43970.85585 | BP69: 36074.67064 | BQ69: 195725.2905 | BR69: 7304.334442 | BS69: 8110.061419 | BT69: 40460.64098 | BU69: 0 | BV69: 315.7131944 | BW69: 48842.30635 | BX69: 173279.7946 | BY69: 152389.9351 | BZ69: 29011.07614 | CA69: 76159.85214 | CB69: 2469.0015 | CC69: 72976.05037 | CD69: 0 | CE69: 0 | CF69: 714.8002642 | CG69: 44487.95942 | CH69: 12217.39648 | CI69: 32270.56294 | CK69: 1337693.525 | CL69: 39.13306902 | CM69: 1476558.71 | CN69: 2715.72 | CO69: 2715.72 | CP69: 0 | CQ69: 10593.12 | CR69: 5744.16 | CS69: 122992.32 | CT69: 0 | CU69: 886.5542169 | CV69: 139751.7392 | CW69: 0.103809417 | CX69: =SUMIF('2023 (2)'!$C:$C,$B:$B,'2023 (2)'!$AT:$AT) -> 1398777.98 | CY69: 826250.63
A70: 66 | B70: г.Одинцово, Любы Новоселовой бульвар, 2А | C70: 9513.2 | D70: 9513.2 | E70: 0 | F70: 2004.8 | G70: 9513.2 | H70: 9513.2 | I70: 5 | J70: 0 | K70: 0.008890816404 | L70: 0.01265425907 | O70: ОДПУ | P70: ЖЭУ-1,2,3 | Q70: 6.91 | R70: 3.15 | S70: 1.81 | T70: 0.26 | U70: 45.06 | V70: 5 | W70: 0.01204819277 | X70: 330801.3648 | Y70: 95219.2 | Z70: 20346.7251 | AA70: 5986.231577 | AB70: 4127.808091 | AC70: 0 | AD70: 0 | AE70: 0 | AF70: 0 | AG70: 0 | AH70: 0 | AI70: 0 | AJ70: 0 | AK70: 76096.16 | AL70: 0 | AM70: 0 | AN70: 78493.3 | AO70: 0 | AP70: 43931.94 | AQ70: 0 | AR70: 0 | AS70: 6600 | AT70: 0 | AU70: 0 | AV70: 0 | AW70: 758303.9294 | AX70: 655602.8446 | AY70: 60933.34973 | AZ70: 0 | BA70: 18413.65512 | BB70: 0 | BC70: 0 | BD70: 4086.800255 | BE70: 0 | BF70: 5354.982893 | BG70: 2681.115804 | BH70: 11231.18099 | BI70: 1419308.407 | BJ70: 10052.27899 | BK70: 14303.80089 | BL70: 15344.52579 | BM70: 15206.83263 | BN70: 255780.3202 | BO70: 146845.3085 | BP70: 120475.1656 | BQ70: 653645.2411 | BR70: 24393.59489 | BS70: 27084.40507 | BT70: 135122.5759 | BU70: 0 | BV70: 1054.357495 | BW70: 163114.031 | BX70: 578686.1413 | BY70: 508922.2531 | BZ70: 96885.54712 | CA70: 393643.6467 | CB70: 12980.7 | CC70: 378275.7958 | CD70: 0 | CE70: 0 | CF70: 2387.150837 | CG70: 137470.9469 | CH70: 29700 | CI70: 107770.9469 | CK70: 4387136.267 | CL70: 38.43025364 | CM70: 4917512.53 | CN70: 11482.79 | CO70: 11482.79 | CP70: 0 | CQ70: 44801.07 | CR70: 24293.59 | CS70: 519643.95 | CT70: 0 | CU70: 4432.771084 | CV70: 534809.0336 | CW70: 0.120893501 | CX70: =SUMIF('2023 (2)'!$C:$C,$B:$B,'2023 (2)'!$AT:$AT) -> 4778322.21 | CY70: 4825014.12
A71: 67 | B71: г.Одинцово, Любы Новоселовой бульвар, 4 корп.1 | C71: 2869.6 | D71: 2869.6 | E71: 0 | F71: 487.4 | G71: 2869.6 | H71: 2869.6 | I71: 1 | J71: 0 | K71: 0.001715194768 | L71: 0.002441229011 | O71: ОДПУ | P71: ЖЭУ-1,2,3 | Q71: 6.91 | R71: 3.15 | S71: 1.81 | T71: 0.26 | U71: 45.06 | V71: 1 | W71: 0.002409638554 | X71: 533779.1746 | Y71: 59806.67159 | Z71: 6137.468186 | AA71: 1805.711026 | AB71: 1245.128674 | AC71: 0 | AD71: 10887.05512 | AE71: 0 | AF71: 0 | AG71: 0 | AH71: 0 | AI71: 0 | AJ71: 0 | AK71: 0 | AL71: 0 | AM71: 0 | AN71: 0 | AO71: 0 | AP71: 54735.19668 | AQ71: 0 | AR71: 0 | AS71: 0 | AT71: 399161.9433 | AU71: 0 | AV71: 0 | AW71: 228737.8543 | AX71: 197758.6851 | AY71: 18380.18126 | AZ71: 0 | BA71: 5554.369165 | BB71: 0 | BC71: 0 | BD71: 1232.758905 | BE71: 0 | BF71: 1615.298628 | BG71: 808.7425799 | BH71: 3387.818712 | BI71: 428125.9098 | BJ71: 3032.209958 | BK71: 4314.656167 | BL71: 4628.58462 | BM71: 4587.050299 | BN71: 77154.60694 | BO71: 44295.01086 | BP71: 36340.61465 | BQ71: 197168.1857 | BR71: 7358.182305 | BS71: 8169.849136 | BT71: 40758.91854 | BU71: 0 | BV71: 318.0406455 | BW71: 49202.3739 | BX71: 174557.2206 | BY71: 153513.3601 | BZ71: 29224.94702 | CA71: 76157.64577 | CB71: 2461.525595 | CC71: 72976.05037 | CD71: 0 | CE71: 0 | CF71: 720.0698021 | CG71: 44688.86625 | CH71: 12180.40335 | CI71: 32508.4629 | CK71: 1717987.352 | CL71: 49.89044212 | CM71: 1487602.31 | CN71: 2807.04 | CO71: 2807.04 | CP71: 0 | CQ71: 10950.25 | CR71: 5937.73 | CS71: 127075.08 | CT71: 0 | CU71: 886.5542169 | CV71: -229498.4882 | CW71: 0 | CX71: =SUMIF('2023 (2)'!$C:$C,$B:$B,'2023 (2)'!$AT:$AT) -> 1448238.72 | CY71: 825360.94
A72: 68 | B72: г.Одинцово, Любы Новоселовой бульвар, 4 корп.2 | C72: 2864.7 | D72: 2864.7 | E72: 0 | F72: 487.4 | G72: 2864.7 | H72: 2864.7 | I72: 1 | J72: 0 | K72: 0.001715194768 | L72: 0.002441229011 | O72: ОДПУ | P72: ЖЭУ-1,2,3 | Q72: 6.91 | R72: 3.15 | S72: 1.81 | T72: 0.26 | U72: 45.06 | V72: 1 | W72: 0.002409638554 | X72: 532867.7172 | Y72: 59704.54841 | Z72: 6126.988121 | AA72: 1802.627675 | AB72: 1243.002548 | AC72: 0 | AD72: 10868.46488 | AE72: 0 | AF72: 0 | AG72: 0 | AH72: 0 | AI72: 0 | AJ72: 0 | AK72: 0 | AL72: 0 | AM72: 0 | AN72: 0 | AO72: 0 | AP72: 54641.73332 | AQ72: 0 | AR72: 0 | AS72: 0 | AT72: 398480.3523 | AU72: 0 | AV72: 0 | AW72: 228347.2718 | AX72: 197421.0012 | AY72: 18348.79609 | AZ72: 0 | BA72: 5544.884774 | BB72: 0 | BC72: 0 | BD72: 1230.653901 | BE72: 0 | BF72: 1612.540417 | BG72: 807.3616074 | BH72: 3382.033825 | BI72: 427394.8612 | BJ72: 3027.032293 | BK72: 4307.288654 | BL72: 4620.681057 | BM72: 4579.217658 | BN72: 77022.8612 | BO72: 44219.3747 | BP72: 36278.56105 | BQ72: 196831.5101 | BR72: 7345.617803 | BS72: 8155.898669 | BT72: 40689.32044 | BU72: 0 | BV72: 317.4975736 | BW72: 49118.35814 | BX72: 174259.1546 | BY72: 153251.2276 | BZ72: 29175.04382 | CA72: 76152.21302 | CB72: 2457.322405 | CC72: 72976.05037 | CD72: 0 | CE72: 0 | CF72: 718.8402432 | CG72: 44612.55755 | CH72: 12159.60465 | CI72: 32452.95291 | CK72: 1715178.405 | CL72: 49.89406701 | CM72: 1488782.91 | CN72: 2807.28 | CO72: 2807.28 | CP72: 0 | CQ72: 10950.24 | CR72: 5937.96 | CS72: 129700.24 | CT72: 0 | CU72: 886.5542169 | CV72: -225508.9408 | CW72: 0 | CX72: =SUMIF('2023 (2)'!$C:$C,$B:$B,'2023 (2)'!$AT:$AT) -> 1526985.39 | CY72: 471493.45
A73: 69 | B73: г.Одинцово, Любы Новоселовой бульвар, 4А | C73: 6521.8 | D73: 6015.2 | E73: 506.6 | F73: 1729.2 | G73: 6521.8 | H73: 6521.8 | I73: 2 | J73: 2 | K73: 0.008092853923 | L73: 0.01151852265 | O73: ОДПУ | P73: ЖЭУ-1,2,3 | Q73: 6.91 | R73: 3.15 | S73: 1.81 | T73: 0 | U73: 44.8 | V73: 2 | W73: 0.004819277108 | X73: 197838.3997 | Y73: 176955.94 | Z73: 13948.75244 | AA73: 4103.877254 | AB73: 2829.830005 | AC73: 0 | AD73: 0 | AE73: 0 | AF73: 0 | AG73: 0 | AH73: 0 | AI73: 0 | AJ73: 0 | AK73: 0 | AL73: 0 | AM73: 0 | AN73: 0 | AO73: 0 | AP73: 0 | AQ73: 0 | AR73: 0 | AS73: 0 | AT73: 0 | AU73: 0 | AV73: 0 | AW73: 519857.3106 | AX73: 449450.304 | AY73: 41773.02278 | AZ73: 0 | BA73: 12623.53109 | BB73: 0 | BC73: 0 | BD73: 2801.716973 | BE73: 0 | BF73: 3671.123011 | BG73: 1838.046194 | BH73: 7699.566516 | BI73: 973010.7187 | BJ73: 6891.367057 | BK73: 9806.009405 | BL73: 10519.48117 | BM73: 10425.08525 | BN73: 175350.8906 | BO73: 100670.1986 | BP73: 82592.07576 | BQ73: 448108.2636 | BR73: 16723.09498 | BS73: 18567.78718 | BT73: 92633.64752 | BU73: 0 | BV73: 722.8176337 | BW73: 111823.2653 | BX73: 396719.85 | BY73: 348893.0276 | BZ73: 66420.14898 | CA73: 359080.5387 | CB73: 13118.976 | CC73: 344325.045 | CD73: 0 | CE73: 0 | CF73: 1636.517715 | CG73: 0 | CH73: 0 | CI73: 0 | CK73: 2973643.26 | CL73: 37.99619813 | CM73: 3097773.73 | CN73: 9231.15 | CO73: 9231.23 | CP73: 0 | CQ73: 36013.79 | CR73: 19513.46 | CS73: 313748.9 | CT73: 277438.0017 | CU73: 1773.108434 | CV73: 403341.5806 | CW73: 0.04174356492 | CX73: =SUMIF('2023 (2)'!$C:$C,$B:$B,'2023 (2)'!$AT:$AT) -> 2954250.84 | CY73: 1796971.42
A74: 70 | B74: г.Одинцово, Любы Новоселовой бульвар, 9 к.1 | C74: 3038 | D74: 3038 | E74: 0 | F74: 359.49 | G74: 3038 | H74: 3038 | I74: 1 | J74: 0 | K74: 0.001715194768 | L74: 0.002441229011 | O74: ОДПУ | P74: ЖЭУ-1,2,3 | Q74: 6.91 | R74: 3.15 | S74: 1.81 | T74: 0.26 | U74: 45.06 | V74: 1 | W74: 0.002409638554 | X74: 61087.38863 | Y74: 51359.87282 | Z74: 6497.640211 | AA74: 1911.677619 | AB74: 1318.197975 | AC74: 0 | AD74: 0 | AE74: 0 | AF74: 0 | AG74: 0 | AH74: 0 | AI74: 0 | AJ74: 0 | AK74: 0 | AL74: 0 | AM74: 0 | AN74: 0 | AO74: 0 | AP74: 0 | AQ74: 0 | AR74: 0 | AS74: 0 | AT74: 0 | AU74: 0 | AV74: 0 | AW74: 242161.1379 | AX74: 209363.9829 | AY74: 19458.80634 | AZ74: 0 | BA74: 5880.322527 | BB74: 0 | BC74: 0 | BD74: 1305.102297 | BE74: 0 | BF74: 1710.091034 | BG74: 856.2029404 | BH74: 3586.62993 | BI74: 453250.1094 | BJ74: 3210.152584 | BK74: 4567.858041 | BL74: 4900.209115 | BM74: 4856.237388 | BN74: 81682.35848 | BO74: 46894.42536 | BP74: 38473.23226 | BQ74: 208738.8305 | BR74: 7789.990885 | BS74: 8649.289683 | BT74: 43150.82051 | BU74: 0 | BV74: 336.7045863 | BW74: 52089.77276 | BX74: 184800.9605 | BY74: 162522.1592 | BZ74: 30939.98782 | CA74: 76191.94556 | CB74: 2453.568709 | CC74: 72976.05037 | CD74: 0 | CE74: 0 | CF74: 762.3264771 | CG74: 46557.22417 | CH74: 12141.03018 | CI74: 34416.19399 | CK74: 1309600.686 | CL74: 35.92277502 | CM74: 1574899.2 | CN74: 2070.6 | CO74: 2070.6 | CP74: 0 | CQ74: 8077.09 | CR74: 4379.16 | CS74: 93776.2 | CT74: 0 | CU74: 886.5542169 | CV74: 266185.0682 | CW74: 0.2025796999 | CX74: =SUMIF('2023 (2)'!$C:$C,$B:$B,'2023 (2)'!$AT:$AT) -> 1452274.38 | CY74: 473353.79
A75: 71 | B75: г.Одинцово, Любы Новоселовой бульвар, 9 к.2 | C75: 3052.5 | D75: 3052.5 | E75: 0 | F75: 361.21 | G75: 3052.5 | H75: 3052.5 | I75: 1 | J75: 0 | K75: 0.001715194768 | L75: 0.002441229011 | O75: ОДПУ | P75: ЖЭУ-1,2,3 | Q75: 6.91 | R75: 3.15 | S75: 1.81 | T75: 0.26 | U75: 45.06 | V75: 1 | W75: 0.002409638554 | X75: 61378.95122 | Y75: 51605.00718 | Z75: 6528.652648 | AA75: 1920.801821 | AB75: 1324.489572 | AC75: 0 | AD75: 0 | AE75: 0 | AF75: 0 | AG75: 0 | AH75: 0 | AI75: 0 | AJ75: 0 | AK75: 0 | AL75: 0 | AM75: 0 | AN75: 0 | AO75: 0 | AP75: 0 | AQ75: 0 | AR75: 0 | AS75: 0 | AT75: 0 | AU75: 0 | AV75: 0 | AW75: 243316.9432 | AX75: 210363.2514 | AY75: 19551.68083 | AZ75: 0 | BA75: 5908.388582 | BB75: 0 | BC75: 0 | BD75: 1311.33139 | BE75: 0 | BF75: 1718.253088 | BG75: 860.2894916 | BH75: 3603.748473 | BI75: 455413.4164 | BJ75: 3225.474247 | BK75: 4589.659865 | BL75: 4923.59721 | BM75: 4879.415611 | BN75: 82072.21832 | BO75: 47118.24668 | BP75: 38656.86026 | BQ75: 209735.1153 | BR75: 7827.171552 | BS75: 8690.571678 | BT75: 43356.77406 | BU75: 0 | BV75: 338.3116359 | BW75: 52338.39083 | BX75: 185682.9927 | BY75: 163297.8575 | BZ75: 31087.66058 | CA75: 76207.29463 | CB75: 2465.279291 | CC75: 72976.05037 | CD75: 0 | CE75: 0 | CF75: 765.9649675 | CG75: 46779.43607 | CH75: 12198.97782 | CI75: 34580.45825 | CK75: 1315502.943 | CL75: 35.91326626 | CM75: 1582993.07 | CN75: 2081.4 | CO75: 2081.4 | CP75: 0 | CQ75: 8117.06 | CR75: 4401.3 | CS75: 94321.07 | CT75: 0 | CU75: 886.5542169 | CV75: 268376.6811 | CW75: 0.2033367757 | CX75: =SUMIF('2023 (2)'!$C:$C,$B:$B,'2023 (2)'!$AT:$AT) -> 1512789.1 | CY75: 229538.9
A76: 72 | B76: г.Одинцово, Любы Новоселовой бульвар, 10 А | C76: 3103.7 | D76: 3103.7 | E76: 0 | F76: 798.9 | G76: 3103.7 | H76: 3103.7 | I76: 2 | J76: 0 | K76: 0.003556326562 | L76: 0.002441229011 | O76: нет | P76: ЖЭУ-1,2,3 | Q76: 6.91 | R76: 3.15 | S76: 1.81 | T76: 0.26 | U76: 45.06 | V76: 2 | W76: 0.004819277108 | X76: 169118.9137 | Y76: 151077.03 | Z76: 6638.158631 | AA76: 1953.019693 | AB76: 1346.705417 | AC76: 0 | AD76: 0 | AE76: 0 | AF76: 0 | AG76: 0 | AH76: 0 | AI76: 0 | AJ76: 0 | AK76: 0 | AL76: 0 | AM76: 0 | AN76: 0 | AO76: 0 | AP76: 0 | AQ76: 0 | AR76: 0 | AS76: 8104 | AT76: 0 | AU76: 0 | AV76: 0 | AW76: 241390.6408 | AX76: 213891.703 | AY76: 19879.62384 | AZ76: 0 | BA76: 0 | BB76: 0 | BC76: 0 | BD76: 1333.326531 | BE76: 0 | BF76: 1747.073582 | BG76: 874.7192449 | BH76: 3664.194639 | BI76: 463052.1279 | BJ76: 3279.575567 | BK76: 4666.642858 | BL76: 5006.181379 | BM76: 4961.258717 | BN76: 83448.82686 | BO76: 47908.56747 | BP76: 39305.25707 | BQ76: 213253.031 | BR76: 7958.457771 | BS76: 8836.339825 | BT76: 44084.00316 | BU76: 0 | BV76: 343.9861832 | BW76: 53216.26982 | BX76: 188797.479 | BY76: 166036.8748 | BZ76: 31609.09816 | CA76: 78947.14297 | CB76: 5192.28 | CC76: 72976.05037 | CD76: 0 | CE76: 0 | CF76: 778.8126027 | CG76: 46650.48101 | CH76: 11490 | CI76: 35160.48101 | CK76: 1438819.028 | CL76: 38.63182192 | CM76: 1606130.51 | CN76: 4601.04 | CO76: 4601.04 | CP76: 0 | CQ76: 17948.76 | CR76: 9732.96 | CS76: 208270.07 | CT76: 0 | CU76: 1773.108434 | CV76: 169084.5903 | CW76: 0.1162838957 | CX76: =SUMIF('2023 (2)'!$C:$C,$B:$B,'2023 (2)'!$AT:$AT) -> 1518961.43 | CY76: 2879571.03
A77: 73 | B77: г.Одинцово, Любы Новоселовой бульвар, 10 к.1 | C77: 2889 | D77: 2889 | E77: 0 | F77: 457.14 | G77: 2889 | H77: 2889 | I77: 1 | J77: 0 | K77: 0.001715194768 | L77: 0.002441229011 | O77: ИТП ГВС | P77: ЖЭУ-1,2,3 | Q77: 6.91 | R77: 3.15 | S77: 1.81 | T77: 0.26 | U77: 45.06 | V77: 1 | W77: 0.002409638554 | X77: 145437.6766 | Y77: 78046.69 | Z77: 6178.960688 | AA77: 1817.918579 | AB77: 1253.546396 | AC77: 42507.99 | AD77: 0 | AE77: 0 | AF77: 0 | AG77: 0 | AH77: 0 | AI77: 0 | AJ77: 0 | AK77: 0 | AL77: 0 | AM77: 0 | AN77: 0 | AO77: 0 | AP77: 15632.57096 | AQ77: 0 | AR77: 0 | AS77: 0 | AT77: 0 | AU77: 0 | AV77: 0 | AW77: 224692.3225 | AX77: 199095.6374 | AY77: 18504.44092 | AZ77: 0 | BA77: 0 | BB77: 0 | BC77: 0 | BD77: 1241.093001 | BE77: 0 | BF77: 1626.218893 | BG77: 814.2101036 | BH77: 3410.722142 | BI77: 431020.2653 | BJ77: 3052.709287 | BK77: 4343.825504 | BL77: 4659.876278 | BM77: 4618.061163 | BN77: 77676.21252 | BO77: 44594.46835 | BP77: 36586.29625 | BQ77: 198501.1459 | BR77: 7407.927474 | BS77: 8225.081598 | BT77: 41034.47019 | BU77: 0 | BV77: 320.1907669 | BW77: 49535.00774 | BX77: 175737.3189 | BY77: 154551.1909 | BZ77: 29422.52298 | CA77: 76160.41222 | CB77: 2459.424 | CC77: 72976.05037 | CD77: 0 | CE77: 0 | CF77: 724.9378513 | CG77: 44898.24115 | CH77: 12170.004 | CI77: 32728.23715 | CK77: 1331454.958 | CL77: 38.40587742 | CM77: 1499027.6 | CN77: 1682.68 | CO77: 1653.79 | CP77: 0 | CQ77: 6450.04 | CR77: 3558.67 | CS77: 119621.69 | CT77: 0 | CU77: 886.5542169 | CV77: 168459.1959 | CW77: 0.1258567859 | CX77: =SUMIF('2023 (2)'!$C:$C,$B:$B,'2023 (2)'!$AT:$AT) -> 1451570.71 | CY77: 544404.82
A78: 74 | B78: г.Одинцово, Любы Новоселовой бульвар, 10 к.2 | C78: 2857.2 | D78: 2857.2 | E78: 0 | F78: 452.56 | G78: 2857.2 | H78: 2857.2 | I78: 1 | J78: 0 | K78: 0.001715194768 | L78: 0.005061703626 | O78: ИТП ГВС | P78: ЖЭУ-1,2,3 | Q78: 6.91 | R78: 3.15 | S78: 1.81 | T78: 0.26 | U78: 45.06 | V78: 1 | W78: 0.002409638554 | X78: 182347.4128 | Y78: 121883.24 | Z78: 6110.947205 | AA78: 1797.90826 | AB78: 1239.748274 | AC78: 35855.07 | AD78: 0 | AE78: 0 | AF78: 0 | AG78: 0 | AH78: 0 | AI78: 0 | AJ78: 0 | AK78: 0 | AL78: 0 | AM78: 0 | AN78: 0 | AO78: 0 | AP78: 15460.49904 | AQ78: 0 | AR78: 0 | AS78: 0 | AT78: 0 | AU78: 0 | AV78: 0 | AW78: 222219.0737 | AX78: 196904.1382 | AY78: 18300.75756 | AZ78: 0 | BA78: 0 | BB78: 0 | BC78: 0 | BD78: 1227.431957 | BE78: 0 | BF78: 1608.318665 | BG78: 805.247874 | BH78: 3373.179406 | BI78: 426275.9093 | BJ78: 3019.107295 | BK78: 4296.011848 | BL78: 4608.583766 | BM78: 4567.228922 | BN78: 76821.20956 | BO78: 44103.60505 | BP78: 36183.58104 | BQ78: 196316.1904 | BR78: 7326.386424 | BS78: 8134.545913 | BT78: 40582.79274 | BU78: 0 | BV78: 316.666341 | BW78: 48989.76258 | BX78: 173802.931 | BY78: 152850.0044 | BZ78: 29098.66136 | CA78: 154486.7006 | CB78: 2459.424 | CC78: 151310.3183 | CD78: 0 | CE78: 0 | CF78: 716.9582654 | CG78: 44537.99264 | CH78: 12170.004 | CI78: 32367.98864 | CK78: 1434608.448 | CL78: 41.84190957 | CM78: 1482256.12 | CN78: 1803.72 | CO78: 1781.13 | CP78: 0 | CQ78: 6948.02 | CR78: 3814.95 | CS78: 118067.35 | CT78: 0 | CU78: 886.5542169 | CV78: 48534.22588 | CW78: 0.03321301482 | CX78: =SUMIF('2023 (2)'!$C:$C,$B:$B,'2023 (2)'!$AT:$AT) -> 1474569.95 | CY78: 911208.99
A79: 75 | B79: г.Одинцово, Любы Новоселовой бульвар, 11 к.1 | C79: 3039 | D79: 3039 | E79: 0 | F79: 338.66 | G79: 3039 | H79: 3039 | I79: 1 | J79: 0 | K79: 0.001715194768 | L79: 0.002441229011 | O79: ОДПУ | P79: ЖЭУ-1,2,3 | Q79: 6.91 | R79: 3.15 | S79: 1.81 | T79: 0.26 | U79: 45.06 | V79: 1 | W79: 0.002409638554 | X79: 9730.717753 | Y79: 0 | Z79: 6499.779 | AA79: 1912.306875 | AB79: 1318.631879 | AC79: 0 | AD79: 0 | AE79: 0 | AF79: 0 | AG79: 0 | AH79: 0 | AI79: 0 | AJ79: 0 | AK79: 0 | AL79: 0 | AM79: 0 | AN79: 0 | AO79: 0 | AP79: 0 | AQ79: 0 | AR79: 0 | AS79: 0 | AT79: 0 | AU79: 0 | AV79: 0 | AW79: 242240.8487 | AX79: 209432.8979 | AY79: 19465.21148 | AZ79: 0 | BA79: 5882.258117 | BB79: 0 | BC79: 0 | BD79: 1305.53189 | BE79: 0 | BF79: 1710.653935 | BG79: 856.4847715 | BH79: 3587.810519 | BI79: 453399.303 | BJ79: 3211.20925 | BK79: 4569.361615 | BL79: 4901.822087 | BM79: 4857.835886 | BN79: 81709.24536 | BO79: 46909.86131 | BP79: 38485.89626 | BQ79: 208807.5398 | BR79: 7792.555068 | BS79: 8652.136717 | BT79: 43165.0242 | BU79: 0 | BV79: 336.8154173 | BW79: 52106.91883 | BX79: 184861.7903 | BY79: 162575.6556 | BZ79: 30950.17215 | CA79: 74974.76656 | CB79: 1236.138783 | CC79: 72976.05037 | CD79: 0 | CE79: 0 | CF79: 762.5774075 | CG79: 46661.13005 | CH79: 12233.60749 | CI79: 34427.52256 | CK79: 1257501.303 | CL79: 34.48232157 | CM79: 1569673.05 | CN79: 1950.05 | CO79: 1950.05 | CP79: 0 | CQ79: 7605.45 | CR79: 4124.49 | CS79: 88001.35 | CT79: 0 | CU79: 886.5542169 | CV79: 313058.3013 | CW79: 0.248247653 | CX79: =SUMIF('2023 (2)'!$C:$C,$B:$B,'2023 (2)'!$AT:$AT) -> 1555882.72 | CY79: 406051.67
A80: 76 | B80: г.Одинцово, Любы Новоселовой бульвар, 11 к.2 | C80: 3007.4 | D80: 3007.4 | E80: 0 | F80: 335.14 | G80: 3007.4 | H80: 3007.4 | I80: 1 | J80: 0 | K80: 0.001715194768 | L80: 0.002441229011 | O80: ОДПУ | P80: ЖЭУ-1,2,3 | Q80: 6.91 | R80: 3.15 | S80: 1.81 | T80: 0.26 | U80: 45.06 | V80: 1 | W80: 0.002409638554 | X80: 9629.536219 | Y80: 0 | Z80: 6432.193275 | AA80: 1892.422407 | AB80: 1304.920537 | AC80: 0 | AD80: 0 | AE80: 0 | AF80: 0 | AG80: 0 | AH80: 0 | AI80: 0 | AJ80: 0 | AK80: 0 | AL80: 0 | AM80: 0 | AN80: 0 | AO80: 0 | AP80: 0 | AQ80: 0 | AR80: 0 | AS80: 0 | AT80: 0 | AU80: 0 | AV80: 0 | AW80: 239721.9902 | AX80: 207255.1817 | AY80: 19262.80915 | AZ80: 0 | BA80: 5821.093472 | BB80: 0 | BC80: 0 | BD80: 1291.956764 | BE80: 0 | BF80: 1692.866286 | BG80: 847.5789081 | BH80: 3550.503901 | BI80: 448684.7857 | BJ80: 3177.818591 | BK80: 4521.848674 | BL80: 4850.85217 | BM80: 4807.323344 | BN80: 80859.61978 | BO80: 46422.08519 | BP80: 38085.71386 | BQ80: 206636.3262 | BR80: 7711.526855 | BS80: 8562.170439 | BT80: 42716.18749 | BU80: 0 | BV80: 333.3131577 | BW80: 51565.10289 | BX80: 182939.5683 | BY80: 160885.1684 | BZ80: 30628.34739 | CA80: 74953.9836 | CB80: 1223.285217 | CC80: 72976.05037 | CD80: 0 | CE80: 0 | CF80: 754.6480076 | CG80: 46175.94028 | CH80: 12106.40051 | CI80: 34069.53977 | CK80: 1245184.423 | CL80: 34.50334794 | CM80: 1560111.33 | CN80: 1930.92 | CO80: 1930.92 | CP80: 0 | CQ80: 7532.16 | CR80: 4083.74 | CS80: 87377.91 | CT80: 0 | CU80: 886.5542169 | CV80: 315813.4612 | CW80: 0.2529158742 | CX80: =SUMIF('2023 (2)'!$C:$C,$B:$B,'2023 (2)'!$AT:$AT) -> 1518120.81 | CY80: 561368
A81: 77 | B81: г.Одинцово, Любы Новоселовой бульвар, 12 | C81: 6944.01 | D81: 6944.01 | E81: 0 | F81: 706.4 | G81: 6944.01 | I81: 0 | J81: 0 | K81: 0 | L81: 0 | O81: ОДПУ | P81: ЖЭУ-1,2,3 | Q81: 6.92 | R81: 3.15 | S81: 0 | T81: 0.26 | U81: 31 | W81: 0 | X81: 175443.1239 | Y81: 55292.25 | Z81: 14851.77044 | AA81: 4369.555137 | AB81: 3013.028283 | AC81: 0 | AD81: 0 | AE81: 0 | AF81: 0 | AG81: 0 | AH81: 0 | AI81: 4707.38 | AJ81: 0 | AK81: 7263.64 | AL81: 0 | AM81: 0 | AN81: 0 | AO81: 85945.5 | AP81: 0 | AQ81: 0 | AR81: 0 | AS81: 0 | AT81: 0 | AU81: 0 | AV81: 0 | AW81: 661178.6816 | AX81: 478546.9357 | AY81: 44477.33569 | AZ81: 0 | BA81: 13440.75656 | BB81: 0 | BC81: 107666.712 | BD81: 2983.095262 | BE81: 0 | BF81: 3908.785136 | BG81: 1957.038111 | BH81: 8198.023074 | BI81: 1036001.742 | BJ81: 7337.502186 | BK81: 10440.83342 | BL81: 11200.49411 | BM81: 11099.98716 | BN81: 186702.8025 | BO81: 107187.4123 | BP81: 87938.94324 | BQ81: 477118.014 | BR81: 17805.71909 | BS81: 19769.83346 | BT81: 98630.58891 | BU81: 0 | BV81: 769.6115914 | BW81: 119062.5092 | BX81: 422402.8037 | BY81: 371479.756 | BZ81: 0 | CA81: 0 | CB81: 0 | CC81: 0 | CD81: 0 | CE81: 0 | CF81: 0 | CG81: 105705.6956 | CH81: 27039.996 | CI81: 78665.69956 | CK81: 2891274.312 | CL81: 34.69746242 | CM81: 2476769.84 | CN81: 4412.5 | CO81: 4412.5 | CP81: 0 | CQ81: 17211.21 | CR81: 9324.3 | CS81: 38934.1 | CT81: 0 | CU81: 0 | CV81: -414504.4719 | CW81: 0 | CX81: =SUMIF('2023 (2)'!$C:$C,$B:$B,'2023 (2)'!$AT:$AT) -> 2533262.77 | CY81: 2602744.27
A82: 78 | B82: г.Одинцово, Любы Новоселовой бульвар, 12 корп.А | C82: 6622.8 | D82: 5469.6 | E82: 1153.2 | F82: 1385.2 | G82: 6622.8 | H82: 6622.8 | I82: 1 | J82: 1 | K82: 0.004831124305 | L82: 0.00687611753 | O82: ИТП | P82: ЖЭУ-1,2,3 | Q82: 5.4 | R82: 2.67 | S82: 1.54 | T82: 0 | U82: 36.54 | W82: 0 | X82: 251863.5864 | Y82: 211294.82 | Z82: 14164.77011 | AA82: 4167.43204 | AB82: 2873.65423 | AC82: 0 | AD82: 0 | AE82: 0 | AF82: 0 | AG82: 0 | AH82: 0 | AI82: 0 | AJ82: 0 | AK82: 19362.91 | AL82: 0 | AM82: 0 | AN82: 0 | AO82: 0 | AP82: 0 | AQ82: 0 | AR82: 0 | AS82: 0 | AT82: 0 | AU82: 0 | AV82: 0 | AW82: 515089.0666 | AX82: 456410.7261 | AY82: 42419.94162 | AZ82: 0 | BA82: 0 | BB82: 0 | BC82: 0 | BD82: 2845.105825 | BE82: 0 | BF82: 3727.975939 | BG82: 1866.511137 | BH82: 7818.806023 | BI82: 1572049.583 | BJ82: 6998.090366 | BK82: 9957.870387 | BL82: 10682.39135 | BM82: 10586.53357 | BN82: 178066.466 | BO82: 102229.2298 | BP82: 83871.13977 | BQ82: 455047.9022 | BR82: 16982.07756 | BS82: 18855.33763 | BT82: 94068.22056 | BU82: 583970.3123 | BV82: 734.011565 | BW82: 113555.0188 | BX82: 402863.6607 | BY82: 354296.1672 | BZ82: 67448.76608 | CA82: 214590.5539 | CB82: 7379.808 | CC82: 205548.8842 | CD82: 0 | CE82: 0 | CF82: 1661.861683 | CG82: 0 | CH82: 0 | CI82: 0 | CK82: 3491756.403 | CL82: 43.93605427 | CM82: 2399507.4 | CN82: 3150.14 | CO82: 3150.14 | CP82: 0 | CQ82: 12271.3 | CR82: 6664.99 | CS82: 223995.99 | CT82: 281734.5515 | CU82: 0 | CV82: -810514.4512 | CW82: 0 | CX82: =SUMIF('2023 (2)'!$C:$C,$B:$B,'2023 (2)'!$AT:$AT) -> 2611042.2 | CY82: 329495.35
A83: 79 | B83: г.Одинцово, Любы Новоселовой бульвар, 13 | C83: 3447.6 | D83: 2670.2 | E83: 777.4 | F83: 329.4 | G83: 3447.6 | I83: 0 | J83: 0 | K83: 0 | L83: 0 | O83: ОДПУ | P83: ЖЭУ-1,2,3 | Q83: 6.92 | R83: 3.15 | S83: 0 | T83: 0.26 | U83: 31 | V83: 4 | W83: 0.009638554217 | X83: 319084.3689 | Y83: 3660.53 | Z83: 7373.688081 | AA83: 2169.420593 | AB83: 1495.924733 | AC83: 0 | AD83: 0 | AE83: 0 | AF83: 0 | AG83: 0 | AH83: 0 | AI83: 0 | AJ83: 0 | AK83: 0 | AL83: 0 | AM83: 0 | AN83: 0 | AO83: 0 | AP83: 0 | AQ83: 0 | AR83: 0 | AS83: 0 | AT83: 304384.8055 | AU83: 0 | AV83: 0 | AW83: 388361.2569 | AX83: 237591.5956 | AY83: 22082.35047 | AZ83: 0 | BA83: 6673.140205 | BB83: 0 | BC83: 113550.612 | BD83: 1481.063424 | BE83: 0 | BF83: 1940.654987 | BG83: 971.6409668 | BH83: 4070.199258 | BI83: 514359.8016 | BJ83: 3642.963149 | BK83: 5183.721982 | BL83: 5560.88247 | BM83: 5510.982231 | BN83: 92695.22682 | BO83: 53216.99173 | BP83: 43660.4067 | BQ83: 236882.1567 | BR83: 8840.280636 | BS83: 9815.434862 | BT83: 48968.65332 | BU83: 0 | BV83: 382.1009651 | BW83: 59112.80466 | BX83: 209716.8504 | BY83: 184434.2976 | BZ83: 0 | CA83: 0 | CB83: 0 | CC83: 0 | CD83: 0 | CE83: 0 | CF83: 0 | CG83: 48516.37204 | CH83: 9459.996 | CI83: 39056.37604 | CK83: 1723585.752 | CL83: 41.66148799 | CM83: 952300.14 | CN83: 1294.68 | CO83: 1294.68 | CP83: 0 | CQ83: 5049.96 | CR83: 2738.16 | CS83: 11443.92 | CT83: 146661.2369 | CU83: 3546.216867 | CV83: -621078.1583 | CW83: 0 | CX83: =SUMIF('2023 (2)'!$C:$C,$B:$B,'2023 (2)'!$AT:$AT) -> 682798.51 | CY83: 709972.75
A84: 80 | B84: г.Одинцово, Любы Новоселовой бульвар, 15 | C84: 3176.2 | D84: 3176.2 | E84: 0 | F84: 326.8 | G84: 3176.2 | I84: 0 | J84: 0 | K84: 0 | L84: 0 | O84: ОДПУ | P84: ЖЭУ-1,2,3 | Q84: 6.92 | R84: 3.15 | S84: 0 | T84: 0.26 | U84: 31 | V84: 4 | W84: 0.009638554217 | X84: 108994.7949 | Y84: 98824.77 | Z84: 6793.220815 | AA84: 1998.640703 | AB84: 1378.1634 | AC84: 0 | AD84: 0 | AE84: 0 | AF84: 0 | AG84: 0 | AH84: 0 | AI84: 0 | AJ84: 0 | AK84: 0 | AL84: 0 | AM84: 0 | AN84: 0 | AO84: 0 | AP84: 0 | AQ84: 0 | AR84: 0 | AS84: 0 | AT84: 0 | AU84: 0 | AV84: 0 | AW84: 311515.2901 | AX84: 218888.0456 | AY84: 20343.99628 | AZ84: 0 | BA84: 6147.82107 | BB84: 0 | BC84: 58338.132 | BD84: 1364.471994 | BE84: 0 | BF84: 1787.883852 | BG84: 895.1520011 | BH84: 3749.787354 | BI84: 473868.6628 | BJ84: 3356.183883 | BK84: 4775.651978 | BL84: 5123.121853 | BM84: 5077.149833 | BN84: 85398.12607 | BO84: 49027.67407 | BP84: 40223.39707 | BQ84: 218234.4547 | BR84: 8144.361108 | BS84: 9042.7498 | BT84: 45113.77093 | BU84: 0 | BV84: 352.0214309 | BW84: 54459.36018 | BX84: 193207.6401 | BY84: 169915.3661 | BZ84: 0 | CA84: 0 | CB84: 0 | CC84: 0 | CD84: 0 | CE84: 0 | CF84: 0 | CG84: 47811.79829 | CH84: 11829.996 | CI84: 35981.80229 | CK84: 1359772.912 | CL84: 35.67609388 | CM84: 1118708.59 | CN84: 2039.46 | CO84: 2039.46 | CP84: 0 | CQ84: 7955.59 | CR84: 4313.55 | CS84: 18495.63 | CT84: 0 | CU84: 3546.216867 | CV84: -237518.1056 | CW84: 0 | CX84: =SUMIF('2023 (2)'!$C:$C,$B:$B,'2023 (2)'!$AT:$AT) -> 982958.43 | CY84: 2601742.31
A85: 81 | B85: г.Одинцово, Маршала Бирюзова, 2 | C85: 10284.4 | D85: 10284.4 | E85: 0 | F85: 1304.9 | G85: 10284.4 | H85: 10284.4 | I85: 5 | J85: 0 | K85: 0.008699998024 | L85: 0.01238266812 | O85: ОДПУ | P85: ЖЭУ-1,2,3 | Q85: 6.91 | R85: 3.15 | S85: 1.81 | T85: 0.26 | U85: 45.06 | V85: 5 | W85: 0.01204819277 | X85: 347707.7165 | Y85: 63596.04 | Z85: 21996.15898 | AA85: 6471.513269 | AB85: 4462.434253 | AC85: 65870.71 | AD85: 0 | AE85: 5414.26 | AF85: 0 | AG85: 0 | AH85: 0 | AI85: 0 | AJ85: 0 | AK85: 0 | AL85: 0 | AM85: 15000 | AN85: 0 | AO85: 0 | AP85: 164896.6 | AQ85: 0 | AR85: 0 | AS85: 0 | AT85: 0 | AU85: 0 | AV85: 0 | AW85: 819776.8292 | AX85: 708750.1466 | AY85: 65872.99142 | AZ85: 0 | BA85: 19906.38216 | BB85: 0 | BC85: 0 | BD85: 4418.102063 | BE85: 0 | BF85: 5789.091584 | BG85: 2898.463963 | BH85: 12141.65137 | BI85: 1534366.499 | BJ85: 10867.18013 | BK85: 15463.35722 | BL85: 16588.44984 | BM85: 16439.5944 | BN85: 276515.4863 | BO85: 158749.5155 | BP85: 130241.6425 | BQ85: 706633.8475 | BR85: 26371.09357 | BS85: 29280.03779 | BT85: 146076.4643 | BU85: 0 | BV85: 1139.830365 | BW85: 176337.0833 | BX85: 625598.0902 | BY85: 550178.7012 | BZ85: 104739.7007 | CA85: 385718.4525 | CB85: 12980.7 | CC85: 370157.0842 | CD85: 0 | CE85: 0 | CF85: 2580.668341 | CG85: 146007.5357 | CH85: 29499.996 | CI85: 116507.5397 | CK85: 4690430.609 | CL85: 38.00603024 | CM85: 5324401.16 | CN85: 4289.31 | CO85: 7518.75 | CP85: 0 | CQ85: 29324.98 | CR85: 15896.12 | CS85: 340428.2 | CT85: 0 | CU85: 4432.771084 | CV85: 638403.3224 | CW85: 0.1351625478 | CX85: =SUMIF('2023 (2)'!$C:$C,$B:$B,'2023 (2)'!$AT:$AT) -> 5094025.14 | CY85: 3018689.13
A86: 82 | B86: г.Одинцово, Маршала Бирюзова, 2а | C86: 22940.10717 | D86: 22219.20717 | E86: 720.9 | F86: 5560 | G86: 22940.10717 | H86: 22940.10717 | I86: 4 | J86: 6 | K86: 0.02834187163 | L86: 0.04033885863 | O86: ИТП | P86: ЖЭУ-1,2,3 | Q86: 5.4 | R86: 2.67 | S86: 1.54 | T86: 0 | U86: 36.54 | V86: 3 | W86: 0.007228915663 | X86: 839253.2735 | Y86: 524184.51 | Z86: 49064.04305 | AA86: 14435.18416 | AB86: 9953.786316 | AC86: 38683.16 | AD86: 0 | AE86: 0 | AF86: 0 | AG86: 0 | AH86: 0 | AI86: 194391.98 | AJ86: 8540.61 | AK86: 0 | AL86: 0 | AM86: 0 | AN86: 0 | AO86: 0 | AP86: 0 | AQ86: 0 | AR86: 0 | AS86: 0 | AT86: 0 | AU86: 0 | AV86: 0 | AW86: 1948547.722 | AX86: 1580919.093 | AY86: 146934.5302 | AZ86: 0 | BA86: 0 | BB86: 117291.12 | BC86: 0 | BD86: 9854.900122 | BE86: 0 | BF86: 60000 | BG86: 6465.23608 | BH86: 27082.84232 | BI86: 5445277.815 | BJ86: 24240.04091 | BK86: 34492.15043 | BL86: 37001.75189 | BM86: 36669.71893 | BN86: 616788.0373 | BO86: 354102.4172 | BP86: 290513.5192 | BQ86: 1576198.533 | BR86: 58822.65495 | BS86: 65311.26803 | BT86: 325834.2485 | BU86: 2022761 | BV86: 2542.475081 | BW86: 393332.7747 | BX86: 1395442.343 | BY86: 1227213.874 | BZ86: 233629.5709 | CA86: 1258218.541 | CB86: 46606.2 | CC86: 1205855.971 | CD86: 0 | CE86: 0 | CF86: 5756.369678 | CG86: 0 | CH86: 0 | CI86: 0 | CK86: 12740915.91 | CL86: 46.2832621 | CM86: 9594776.62 | CN86: 758.24 | CO86: 590.25 | CP86: 0 | CQ86: 8999.8 | CR86: 4451.52 | CS86: 198589.91 | CT86: 975874.3741 | CU86: 2659.662651 | CV86: -2167605.257 | CW86: 0 | CX86: =SUMIF('2023 (2)'!$C:$C,$B:$B,'2023 (2)'!$AT:$AT) -> 9786808.29 | CY86: 3446953.76
A87: 83 | B87: г.Одинцово, Маршала Бирюзова, 4 | C87: 3520.6 | D87: 3520.6 | E87: 0 | F87: 328.2 | G87: 3520.6 | I87: 0 | J87: 0 | K87: 0 | L87: 0 | O87: ОДПУ | P87: ЖЭУ-1,2,3 | Q87: 6.92 | R87: 3.15 | S87: 0 | T87: 0.26 | U87: 31 | V87: 4 | W87: 0.009638554217 | X87: 176456.4856 | Y87: 98365.51 | Z87: 7529.81966 | AA87: 2215.35623 | AB87: 1527.599668 | AC87: 66818.2 | AD87: 0 | AE87: 0 | AF87: 0 | AG87: 0 | AH87: 0 | AI87: 0 | AJ87: 0 | AK87: 0 | AL87: 0 | AM87: 0 | AN87: 0 | AO87: 0 | AP87: 0 | AQ87: 0 | AR87: 0 | AS87: 0 | AT87: 0 | AU87: 0 | AV87: 0 | AW87: 423736.1147 | AX87: 242622.3957 | AY87: 22549.92548 | AZ87: 0 | BA87: 6814.438278 | BB87: 0 | BC87: 74774.292 | BD87: 1512.423683 | BE87: 68332.296 | BF87: 1981.746707 | BG87: 992.2146385 | BH87: 4156.382268 | BI87: 525250.9332 | BJ87: 3720.099798 | BK87: 5293.48289 | BL87: 5678.62943 | BM87: 5627.672596 | BN87: 94657.96947 | BO87: 54343.8163 | BP87: 44584.8787 | BQ87: 241897.9351 | BR87: 9027.466066 | BS87: 10023.26835 | BT87: 50005.52293 | BU87: 0 | BV87: 390.1916283 | BW87: 60364.46806 | BX87: 214157.4264 | BY87: 188339.5371 | BZ87: 0 | CA87: 0 | CB87: 0 | CC87: 0 | CD87: 0 | CE87: 0 | CF87: 0 | CG87: 53403.36561 | CH87: 13520.004 | CI87: 39883.36161 | CK87: 1641708.331 | CL87: 38.85957722 | CM87: 1255622.64 | CN87: 2048.64 | CO87: 2048.64 | CP87: 0 | CQ87: 7989.72 | CR87: 4330.2 | CS87: 18103.2 | CT87: 0 | CU87: 3546.216867 | CV87: -382539.4739 | CW87: 0 | CX87: =SUMIF('2023 (2)'!$C:$C,$B:$B,'2023 (2)'!$AT:$AT) -> 1218167.6 | CY87: 1816546.01
A88: 84 | B88: г.Одинцово, Маршала Бирюзова, 6 | C88: 3523.58 | D88: 3523.58 | E88: 0 | F88: 313.8 | G88: 3523.58 | I88: 0 | J88: 0 | K88: 0 | L88: 0 | O88: ОДПУ | P88: ЖЭУ-1,2,3 | Q88: 6.92 | R88: 3.15 | S88: 0 | T88: 0.26 | U88: 31 | V88: 4 | W88: 0.009638554217 | X88: 60159.49736 | Y88: 48877.18 | Z88: 7536.19325 | AA88: 2217.231411 | AB88: 1528.8927 | AC88: 0 | AD88: 0 | AE88: 0 | AF88: 0 | AG88: 0 | AH88: 0 | AI88: 0 | AJ88: 0 | AK88: 0 | AL88: 0 | AM88: 0 | AN88: 0 | AO88: 0 | AP88: 0 | AQ88: 0 | AR88: 0 | AS88: 0 | AT88: 0 | AU88: 0 | AV88: 0 | AW88: 361252.8207 | AX88: 242827.7626 | AY88: 22569.01279 | AZ88: 0 | BA88: 6820.206336 | BB88: 0 | BC88: 80385.756 | BD88: 1513.703869 | BE88: 0 | BF88: 1983.42415 | BG88: 993.0544953 | BH88: 4159.900424 | BI88: 525695.5301 | BJ88: 3723.248664 | BK88: 5297.963541 | BL88: 5683.436087 | BM88: 5632.436121 | BN88: 94738.09239 | BO88: 54389.81544 | BP88: 44622.61742 | BQ88: 242102.6888 | BR88: 9035.107334 | BS88: 10031.75252 | BT88: 50047.84994 | BU88: 0 | BV88: 390.5219046 | BW88: 60415.56336 | BX88: 214338.6993 | BY88: 188498.9565 | BZ88: 0 | CA88: 0 | CB88: 0 | CC88: 0 | CD88: 0 | CE88: 0 | CF88: 0 | CG88: 53437.12475 | CH88: 13520.004 | CI88: 39917.12075 | CK88: 1463798.192 | CL88: 34.61910405 | CM88: 1243372.56 | CN88: 1958.88 | CO88: 1958.88 | CP88: 0 | CQ88: 7639.32 | CR88: 4139.76 | CS88: 17456.81 | CT88: 0 | CU88: 3546.216867 | CV88: -216879.4151 | CW88: 0 | CX88: =SUMIF('2023 (2)'!$C:$C,$B:$B,'2023 (2)'!$AT:$AT) -> 1342668.24 | CY88: 1677854.31
A89: 85 | B89: г.Одинцово, Маршала Бирюзова, 8 | C89: 3477.26 | D89: 3477.26 | E89: 0 | F89: 363.6 | G89: 3477.26 | I89: 0 | J89: 0 | K89: 0 | L89: 0 | O89: ОДПУ | P89: ЖЭУ-1,2,3 | Q89: 6.92 | R89: 3.15 | S89: 0 | T89: 0.26 | U89: 31 | V89: 4 | W89: 0.009638554217 | X89: 291012.5932 | Y89: 33116.36 | Z89: 7437.124555 | AA89: 2188.084305 | AB89: 1508.794303 | AC89: 215769.84 | AD89: 0 | AE89: 0 | AF89: 0 | AG89: 0 | AH89: 0 | AI89: 9972.08 | AJ89: 0 | AK89: 21020.31 | AL89: 0 | AM89: 0 | AN89: 0 | AO89: 0 | AP89: 0 | AQ89: 0 | AR89: 0 | AS89: 0 | AT89: 0 | AU89: 0 | AV89: 0 | AW89: 361445.5366 | AX89: 239635.6166 | AY89: 22272.32684 | AZ89: 0 | BA89: 6730.549805 | BB89: 0 | BC89: 84270.672 | BD89: 1493.80514 | BE89: 0 | BF89: 1957.350609 | BG89: 980.0000778 | BH89: 4105.215533 | BI89: 518784.8833 | BJ89: 3674.303875 | BK89: 5228.317989 | BL89: 5608.723221 | BM89: 5558.393687 | BN89: 93492.69185 | BO89: 53674.82209 | BP89: 44036.02094 | BQ89: 238920.0743 | BR89: 8916.334333 | BS89: 9899.877894 | BT89: 49389.93486 | BU89: 0 | BV89: 385.3882126 | BW89: 59621.35722 | BX89: 211521.0625 | BY89: 186021.0017 | BZ89: 0 | CA89: 0 | CB89: 0 | CC89: 0 | CD89: 0 | CE89: 0 | CF89: 0 | CG89: 52912.38541 | CH89: 13520.004 | CI89: 39392.38141 | CK89: 1681318.82 | CL89: 40.29319109 | CM89: 1232012.92 | CN89: 2268.79 | CO89: 2268.79 | CP89: 0 | CQ89: 8850.77 | CR89: 4798.68 | CS89: 19947.35 | CT89: 0 | CU89: 3546.216867 | CV89: -445759.683 | CW89: 0 | CX89: =SUMIF('2023 (2)'!$C:$C,$B:$B,'2023 (2)'!$AT:$AT) -> 1260911.33 | CY89: 1579854.56
A90: 86 | B90: г.Одинцово, Маршала Бирюзова, 10 к.1 | C90: 3071.9 | D90: 3071.9 | E90: 0 | F90: 340.85 | G90: 3071.9 | H90: 3071.9 | I90: 1 | J90: 0 | K90: 0.001715194768 | L90: 0.002441229011 | O90: ОДПУ | P90: ЖЭУ-1,2,3 | Q90: 6.91 | R90: 3.15 | S90: 1.81 | T90: 0.26 | U90: 45.06 | V90: 1 | W90: 0.002409638554 | X90: 137405.9771 | Y90: 41760.93558 | Z90: 6570.145149 | AA90: 1933.009374 | AB90: 1332.907295 | AC90: 0 | AD90: 4903.991555 | AE90: 0 | AF90: 0 | AG90: 0 | AH90: 0 | AI90: 0 | AJ90: 0 | AK90: 0 | AL90: 0 | AM90: 0 | AN90: 80904.98814 | AO90: 0 | AP90: 0 | AQ90: 0 | AR90: 0 | AS90: 0 | AT90: 0 | AU90: 0 | AV90: 0 | AW90: 244863.331 | AX90: 211700.2038 | AY90: 19675.94049 | AZ90: 0 | BA90: 5945.939029 | BB90: 0 | BC90: 0 | BD90: 1319.665486 | BE90: 0 | BF90: 1729.173354 | BG90: 865.7570153 | BH90: 3626.651903 | BI90: 458307.7719 | BJ90: 3245.973575 | BK90: 4618.829202 | BL90: 4954.888867 | BM90: 4910.426475 | BN90: 82593.8239 | BO90: 47417.70417 | BP90: 38902.54186 | BQ90: 211068.0755 | BR90: 7876.916721 | BS90: 8745.80414 | BT90: 43632.32571 | BU90: 0 | BV90: 340.4617573 | BW90: 52671.02467 | BX90: 186863.091 | BY90: 164335.6882 | BZ90: 31285.23654 | CA90: 76356.82971 | CB90: 2609.946318 | CC90: 72976.05037 | CD90: 0 | CE90: 0 | CF90: 770.8330168 | CG90: 47034.95679 | CH90: 12234.72429 | CI90: 34800.2325 | CK90: 1399123.907 | CL90: 37.95490052 | CM90: 1569314.08 | CN90: 1937.69 | CO90: 1937.69 | CP90: 0 | CQ90: 7579.98 | CR90: 4098.17 | CS90: 87872.36 | CT90: 0 | CU90: 886.5542169 | CV90: 171076.7272 | CW90: 0.1216405296 | CX90: =SUMIF('2023 (2)'!$C:$C,$B:$B,'2023 (2)'!$AT:$AT) -> 1551180.98 | CY90: 763961.37
A91: 87 | B91: г.Одинцово, Маршала Бирюзова, 10 к.2 | C91: 3039.4 | D91: 3039.4 | E91: 0 | F91: 337.25 | G91: 3039.4 | H91: 3039.4 | I91: 1 | J91: 0 | K91: 0.001715194768 | L91: 0.002441229011 | O91: ОДПУ | P91: ЖЭУ-1,2,3 | Q91: 6.91 | R91: 3.15 | S91: 1.81 | T91: 0.26 | U91: 45.06 | V91: 1 | W91: 0.002409638554 | X91: 135952.2533 | Y91: 41319.11442 | Z91: 6500.634515 | AA91: 1912.558577 | AB91: 1318.80544 | AC91: 0 | AD91: 4852.108445 | AE91: 0 | AF91: 0 | AG91: 0 | AH91: 0 | AI91: 0 | AJ91: 0 | AK91: 0 | AL91: 0 | AM91: 0 | AN91: 80049.03186 | AO91: 0 | AP91: 0 | AQ91: 0 | AR91: 0 | AS91: 0 | AT91: 0 | AU91: 0 | AV91: 0 | AW91: 242272.7329 | AX91: 209460.464 | AY91: 19467.77353 | AZ91: 0 | BA91: 5883.032353 | BB91: 0 | BC91: 0 | BD91: 1305.703727 | BE91: 0 | BF91: 1710.879095 | BG91: 856.597504 | BH91: 3588.282755 | BI91: 453458.9804 | BJ91: 3211.631917 | BK91: 4569.963045 | BL91: 4902.467276 | BM91: 4858.475285 | BN91: 81720.00012 | BO91: 46916.03569 | BP91: 38490.96186 | BQ91: 208835.0235 | BR91: 7793.580742 | BS91: 8653.275531 | BT91: 43170.70568 | BU91: 0 | BV91: 336.8597497 | BW91: 52113.77726 | BX91: 184886.1222 | BY91: 162597.0542 | BZ91: 30954.24588 | CA91: 76321.06183 | CB91: 2582.333682 | CC91: 72976.05037 | CD91: 0 | CE91: 0 | CF91: 762.6777796 | CG91: 46537.3377 | CH91: 12105.28371 | CI91: 34432.05399 | CK91: 1385093.566 | CL91: 37.9760689 | CM91: 1574867.02 | CN91: 1942.32 | CO91: 1942.32 | CP91: 0 | CQ91: 7577.52 | CR91: 4108.55 | CS91: 87953.46 | CT91: 0 | CU91: 886.5542169 | CV91: 190660.0085 | CW91: 0.1370112886 | CX91: =SUMIF('2023 (2)'!$C:$C,$B:$B,'2023 (2)'!$AT:$AT) -> 1516065.39 | CY91: 1157646.33
A92: 88 | B92: г.Одинцово, Маршала Бирюзова, 12 | C92: 8990.7 | D92: 8990.7 | E92: 0 | F92: 835.8 | G92: 8990.7 | H92: 8990.7 | I92: 6 | J92: 0 | K92: 0.01066897969 | L92: 0.01518511088 | O92: ОДПУ | P92: ЖЭУ-1,2,3 | Q92: 6.91 | R92: 3.15 | S92: 1.81 | T92: 0.26 | U92: 45.06 | V92: 6 | W92: 0.01445783133 | X92: 149066.0473 | Y92: 40834.46 | Z92: 19229.20798 | AA92: 5657.445679 | AB92: 3901.09366 | AC92: 0 | AD92: 79443.84 | AE92: 0 | AF92: 0 | AG92: 0 | AH92: 0 | AI92: 0 | AJ92: 0 | AK92: 0 | AL92: 0 | AM92: 0 | AN92: 0 | AO92: 0 | AP92: 0 | AQ92: 0 | AR92: 0 | AS92: 0 | AT92: 0 | AU92: 0 | AV92: 0 | AW92: 862016.5193 | AX92: 619594.7205 | AY92: 57586.66563 | AZ92: 0 | BA92: 17402.30933 | BB92: 0 | BC92: 0 | BD92: 3862.338126 | BE92: 145361.436 | BF92: 5060.867499 | BG92: 2533.859044 | BH92: 10614.32314 | BI92: 1341354.759 | BJ92: 9500.170781 | BK92: 13518.18344 | BL92: 14501.74789 | BM92: 14371.61734 | BN92: 241731.9224 | BO92: 138780.0231 | BP92: 113858.2256 | BQ92: 617744.6358 | BR92: 23053.80877 | BS92: 25596.82974 | BT92: 127701.1461 | BU92: 0 | BV92: 996.4482964 | BW92: 154155.2074 | BX92: 546902.566 | BY92: 480970.3676 | BZ92: 91564.23585 | CA92: 471763.8347 | CB92: 15576.84 | CC92: 453930.955 | CD92: 0 | CE92: 0 | CF92: 2256.039716 | CG92: 135311.7654 | CH92: 33459.996 | CI92: 101851.7694 | CK92: 4233105.303 | CL92: 39.2359633 | CM92: 4589927.41 | CN92: 4771.32 | CO92: 4778.24 | CP92: 0 | CQ92: 18672.78 | CR92: 10148.54 | CS92: 216092.13 | CT92: 0 | CU92: 5319.325301 | CV92: 362141.4326 | CW92: 0.08429322725 | CX92: =SUMIF('2023 (2)'!$C:$C,$B:$B,'2023 (2)'!$AT:$AT) -> 4766878.84 | CY92: 3497211.78
A93: 89 | B93: г.Одинцово, Маршала Бирюзова, 14 | C93: 3242.2 | D93: 2712.7 | E93: 529.5 | F93: 305.5 | G93: 3242.2 | I93: 0 | J93: 0 | K93: 0 | L93: 0 | O93: ОДПУ | P93: ЖЭУ-1,2,3 | Q93: 6.92 | R93: 3.15 | S93: 0 | T93: 0.26 | U93: 31 | V93: 4 | W93: 0.009638554217 | X93: 73714.29344 | Y93: 34248.74 | Z93: 6934.380873 | AA93: 2040.171553 | AB93: 1406.801013 | AC93: 0 | AD93: 29084.2 | AE93: 0 | AF93: 0 | AG93: 0 | AH93: 0 | AI93: 0 | AJ93: 0 | AK93: 0 | AL93: 0 | AM93: 0 | AN93: 0 | AO93: 0 | AP93: 0 | AQ93: 0 | AR93: 0 | AS93: 0 | AT93: 0 | AU93: 0 | AV93: 0 | AW93: 458651.993 | AX93: 223436.4402 | AY93: 20766.73533 | AZ93: 0 | BA93: 6275.570012 | BB93: 0 | BC93: 200213.928 | BD93: 1392.825105 | BE93: 0 | BF93: 1825.03527 | BG93: 913.7528549 | BH93: 3827.70624 | BI93: 483715.4393 | BJ93: 3425.923866 | BK93: 4874.887867 | BL93: 5229.578009 | BM93: 5182.650711 | BN93: 87172.66052 | BO93: 50046.44697 | BP93: 41059.22108 | BQ93: 222769.268 | BR93: 8313.59725 | BS93: 9230.654052 | BT93: 46051.2147 | BU93: 0 | BV93: 359.3362771 | BW93: 55591.00107 | BX93: 197222.4075 | BY93: 173446.1305 | BZ93: 0 | CA93: 0 | CB93: 0 | CC93: 0 | CD93: 0 | CE93: 0 | CF93: 0 | CG93: 47879.49188 | CH93: 11150.004 | CI93: 36729.48788 | CK93: 1490220.757 | CL93: 38.30271515 | CM93: 967568.64 | CN93: 1594.68 | CO93: 1594.68 | CP93: 0 | CQ93: 6222.48 | CR93: 3373.26 | CS93: 14098.8 | CT93: 137923.5011 | CU93: 3546.216867 | CV93: -381182.3989 | CW93: 0 | CX93: =SUMIF('2023 (2)'!$C:$C,$B:$B,'2023 (2)'!$AT:$AT) -> 980338.21 | CY93: 1434283.52
A94: 90 | B94: г.Одинцово, Маршала Бирюзова, 16 | C94: 3473.5 | D94: 3473.5 | E94: 0 | F94: 325.6 | G94: 3473.5 | I94: 0 | J94: 0 | K94: 0 | L94: 0 | O94: ОДПУ | P94: ЖЭУ-1,2,3 | Q94: 6.92 | R94: 3.15 | S94: 0 | T94: 0.26 | U94: 31 | V94: 4 | W94: 0.009638554217 | X94: 102935.9838 | Y94: 91814.02 | Z94: 7429.08271 | AA94: 2185.718305 | AB94: 1507.162827 | AC94: 0 | AD94: 0 | AE94: 0 | AF94: 0 | AG94: 0 | AH94: 0 | AI94: 0 | AJ94: 0 | AK94: 0 | AL94: 0 | AM94: 0 | AN94: 0 | AO94: 0 | AP94: 0 | AQ94: 0 | AR94: 0 | AS94: 0 | AT94: 0 | AU94: 0 | AV94: 0 | AW94: 356786.9443 | AX94: 239376.4959 | AY94: 22248.24352 | AZ94: 0 | BA94: 6723.271987 | BB94: 0 | BC94: 79911.792 | BD94: 1492.189872 | BE94: 0 | BF94: 1955.234104 | BG94: 978.9403928 | BH94: 4100.776518 | BI94: 518223.9154 | BJ94: 3670.330809 | BK94: 5222.664551 | BL94: 5602.658446 | BM94: 5552.383333 | BN94: 93391.59716 | BO94: 53616.78291 | BP94: 43988.4043 | BQ94: 238661.7274 | BR94: 8906.693001 | BS94: 9889.173046 | BT94: 49336.52898 | BU94: 0 | BV94: 384.971488 | BW94: 59556.88798 | BX94: 211292.3424 | BY94: 185819.8552 | BZ94: 0 | CA94: 0 | CB94: 0 | CC94: 0 | CD94: 0 | CE94: 0 | CF94: 0 | CG94: 52869.78999 | CH94: 13520.004 | CI94: 39349.78599 | CK94: 1487485.719 | CL94: 35.68652462 | CM94: 1239586.72 | CN94: 2031.44 | CO94: 2031.44 | CP94: 0 | CQ94: 7927.71 | CR94: 4300.39 | CS94: 17971.08 | CT94: 0 | CU94: 3546.216867 | CV94: -244352.7822 | CW94: 0 | CX94: =SUMIF('2023 (2)'!$C:$C,$B:$B,'2023 (2)'!$AT:$AT) -> 1333604.61 | CY94: 446880.73
A95: 91 | B95: г.Одинцово, Маршала Бирюзова, 18 | C95: 3480.2 | D95: 3480.2 | E95: 0 | F95: 307.7 | G95: 3480.2 | I95: 0 | J95: 0 | K95: 0 | L95: 0 | O95: ОДПУ | P95: ЖЭУ-1,2,3 | Q95: 6.92 | R95: 3.15 | S95: 0 | T95: 0.26 | U95: 31 | V95: 4 | W95: 0.009638554217 | X95: 66058.93689 | Y95: 29318.71 | Z95: 7443.412594 | AA95: 2189.934316 | AB95: 1510.069978 | AC95: 19253 | AD95: 0 | AE95: 0 | AF95: 0 | AG95: 0 | AH95: 0 | AI95: 6343.81 | AJ95: 0 | AK95: 0 | AL95: 0 | AM95: 0 | AN95: 0 | AO95: 0 | AP95: 0 | AQ95: 0 | AR95: 0 | AS95: 0 | AT95: 0 | AU95: 0 | AV95: 0 | AW95: 338519.31 | AX95: 239838.2269 | AY95: 22291.15794 | AZ95: 0 | BA95: 6736.24044 | BB95: 0 | BC95: 61110.096 | BD95: 1495.068142 | BE95: 0 | BF95: 1959.005536 | BG95: 980.8286613 | BH95: 4108.686465 | BI95: 519223.5124 | BJ95: 3677.410474 | BK95: 5232.738497 | BL95: 5613.465359 | BM95: 5563.093271 | BN95: 93571.73929 | BO95: 53720.2038 | BP95: 44073.2531 | BQ95: 239122.0797 | BR95: 8923.873034 | BS95: 9908.248175 | BT95: 49431.69372 | BU95: 0 | BV95: 385.7140557 | BW95: 59671.76667 | BX95: 211699.9021 | BY95: 186178.2813 | BZ95: 0 | CA95: 0 | CB95: 0 | CC95: 0 | CD95: 0 | CE95: 0 | CF95: 0 | CG95: 52945.69141 | CH95: 13520.004 | CI95: 39425.68741 | CK95: 1434297.401 | CL95: 34.34422832 | CM95: 1236261.17 | CN95: 1920.37 | CO95: 1920.37 | CP95: 0 | CQ95: 7489.32 | CR95: 4062.6 | CS95: 16857.55 | CT95: 0 | CU95: 3546.216867 | CV95: -194490.014 | CW95: 0 | CX95: =SUMIF('2023 (2)'!$C:$C,$B:$B,'2023 (2)'!$AT:$AT) -> 1230869.94 | CY95: 410970.25
A96: 92 | B96: г.Одинцово, Маршала Бирюзова, 20 | C96: 3501.57 | D96: 3501.57 | E96: 0 | F96: 302.8 | G96: 3501.57 | I96: 0 | J96: 0 | K96: 0 | L96: 0 | O96: ОДПУ | P96: ЖЭУ-1,2,3 | Q96: 6.92 | R96: 3.15 | S96: 0 | T96: 0.26 | U96: 31 | V96: 4 | W96: 0.009638554217 | X96: 294339.3725 | Y96: 32548.93 | Z96: 7489.11851 | AA96: 2203.381502 | AB96: 1519.34249 | AC96: 208489.02 | AD96: 36546.99 | AE96: 0 | AF96: 0 | AG96: 0 | AH96: 0 | AI96: 5542.59 | AJ96: 0 | AK96: 0 | AL96: 0 | AM96: 0 | AN96: 0 | AO96: 0 | AP96: 0 | AQ96: 0 | AR96: 0 | AS96: 0 | AT96: 0 | AU96: 0 | AV96: 0 | AW96: 409596.4199 | AX96: 241310.9419 | AY96: 22428.03572 | AZ96: 0 | BA96: 6777.603999 | BB96: 0 | BC96: 55628.868 | BD96: 1504.248536 | BE96: 74854.92 | BF96: 1971.034715 | BG96: 986.8513923 | BH96: 4133.915656 | BI96: 522411.7793 | BJ96: 3699.991436 | BK96: 5264.869875 | BL96: 5647.934572 | BM96: 5597.253177 | BN96: 94146.31204 | BO96: 54050.07011 | BP96: 44343.88278 | BQ96: 240590.3972 | BR96: 8978.669645 | BS96: 9969.089294 | BT96: 49735.22665 | BU96: 0 | BV96: 388.0825143 | BW96: 60038.17827 | BX96: 212999.8352 | BY96: 187321.5 | BZ96: 0 | CA96: 0 | CB96: 0 | CC96: 0 | CD96: 0 | CE96: 0 | CF96: 0 | CG96: 53017.77893 | CH96: 13350 | CI96: 39667.77893 | CK96: 1739724.864 | CL96: 41.40344817 | CM96: 1248799.8 | CN96: 1889.52 | CO96: 1889.52 | CP96: 0 | CQ96: 7370.88 | CR96: 3995.87 | CS96: 16714.58 | CT96: 0 | CU96: 3546.216867 | CV96: -487378.8473 | CW96: 0 | CX96: =SUMIF('2023 (2)'!$C:$C,$B:$B,'2023 (2)'!$AT:$AT) -> 1195978.41 | CY96: 643224.69
A97: 93 | B97: г.Одинцово, Маршала Бирюзова, 24 корп.1 | C97: 3661.5 | D97: 3513.8 | E97: 147.7 | F97: 431 | G97: 3661.5 | H97: 3661.5 | I97: 2 | J97: 0 | K97: 0.003708982375 | L97: 0.00527897796 | O97: нет | P97: ЖЭУ-1,2,3 | Q97: 6.91 | R97: 3.15 | S97: 1.81 | T97: 0.26 | U97: 45.06 | V97: 1 | W97: 0.002409638554 | X97: 43234.4442 | Y97: 22921.53427 | Z97: 7831.174994 | AA97: 2304.018303 | AB97: 1588.736632 | AC97: 0 | AD97: 0 | AE97: 0 | AF97: 0 | AG97: 0 | AH97: 0 | AI97: 0 | AJ97: 0 | AK97: 8588.98 | AL97: 0 | AM97: 0 | AN97: 0 | AO97: 0 | AP97: 0 | AQ97: 0 | AR97: 0 | AS97: 0 | AT97: 0 | AU97: 0 | AV97: 0 | AW97: 284773.6029 | AX97: 252332.5291 | AY97: 23452.40929 | AZ97: 0 | BA97: 0 | BB97: 0 | BC97: 0 | BD97: 1572.953279 | BE97: 0 | BF97: 2061.059356 | BG97: 1031.924643 | BH97: 4322.727284 | BI97: 546272.3093 | BJ97: 3868.984096 | BK97: 5505.336477 | BL97: 5905.897193 | BM97: 5852.900986 | BN97: 98446.33165 | BO97: 56518.74208 | BP97: 46369.23631 | BQ97: 251579.0744 | BR97: 9388.759586 | BS97: 10424.41546 | BT97: 52006.82333 | BU97: 0 | BV97: 405.8077165 | BW97: 62780.34989 | BX97: 222728.3466 | BY97: 195877.1843 | BZ97: 37289.9162 | CA97: 164736.7164 | CB97: 6012.6 | CC97: 157805.3348 | CD97: 0 | CE97: 0 | CF97: 918.7815654 | CG97: 55669.55705 | CH97: 14190 | CI97: 41479.55705 | CK97: 1613362.427 | CL97: 36.71906839 | CM97: 1854962.91 | CN97: 1390.65 | CO97: 1390.65 | CP97: 0 | CQ97: 5420.8 | CR97: 2941.77 | CS97: 107993.61 | CT97: 155760.5636 | CU97: 886.5542169 | CV97: 398247.601 | CW97: 0.1497496652 | CX97: =SUMIF('2023 (2)'!$C:$C,$B:$B,'2023 (2)'!$AT:$AT) -> 1859078.49 | CY97: 897118.95
A98: 94 | B98: г.Одинцово, Маршала Бирюзова, 24 корп.2 | C98: 3644.4 | D98: 3644.4 | E98: 0 | F98: 441.1 | G98: 3644.4 | H98: 3644.4 | I98: 2 | J98: 0 | K98: 0.003708982375 | L98: 0.00527897796 | O98: нет | P98: ЖЭУ-1,2,3 | Q98: 6.91 | R98: 3.15 | S98: 1.81 | T98: 0.26 | U98: 45.06 | V98: 1 | W98: 0.002409638554 | X98: 74666.41236 | Y98: 22814.48573 | Z98: 7794.601706 | AA98: 2293.258037 | AB98: 1581.316887 | AC98: 0 | AD98: 0 | AE98: 0 | AF98: 0 | AG98: 0 | AH98: 0 | AI98: 0 | AJ98: 0 | AK98: 40182.75 | AL98: 0 | AM98: 0 | AN98: 0 | AO98: 0 | AP98: 0 | AQ98: 0 | AR98: 0 | AS98: 0 | AT98: 0 | AU98: 0 | AV98: 0 | AW98: 283443.6484 | AX98: 251154.0814 | AY98: 23342.88144 | AZ98: 0 | BA98: 0 | BB98: 0 | BC98: 0 | BD98: 1565.607246 | BE98: 0 | BF98: 2051.433761 | BG98: 1027.105331 | BH98: 4302.539209 | BI98: 543721.099 | BJ98: 3850.915101 | BK98: 5479.62536 | BL98: 5878.315371 | BM98: 5825.566668 | BN98: 97986.56591 | BO98: 56254.78729 | BP98: 46152.68191 | BQ98: 250404.1455 | BR98: 9344.912041 | BS98: 10375.73118 | BT98: 51763.94018 | BU98: 0 | BV98: 403.9125064 | BW98: 62487.15202 | BX98: 221688.1568 | BY98: 194962.3953 | BZ98: 37115.76419 | CA98: 164732.4255 | CB98: 6012.6 | CC98: 157805.3348 | CD98: 0 | CE98: 0 | CF98: 914.490656 | CG98: 55475.83851 | CH98: 14190 | CI98: 41285.83851 | CK98: 1638292.892 | CL98: 37.46142237 | CM98: 1888580.89 | CN98: 1481.34 | CO98: 1481.34 | CP98: 0 | CQ98: 5774.09 | CR98: 3133.34 | CS98: 114952.51 | CT98: 0 | CU98: 886.5542169 | CV98: 251174.5521 | CW98: 0.1527736579 | CX98: =SUMIF('2023 (2)'!$C:$C,$B:$B,'2023 (2)'!$AT:$AT) -> 1905281.13 | CY98: 624158.82
A99: 95 | B99: г.Одинцово, Маршала Бирюзова, 26 | C99: 8981.23 | D99: 8981.23 | E99: 0 | F99: 907.9 | G99: 8981.23 | H99: 8981.23 | I99: 6 | J99: 0 | K99: 0.01028734292 | L99: 0.01464192899 | O99: нет | P99: ЖЭУ-1,2,3 | Q99: 6.91 | R99: 3.15 | S99: 1.81 | T99: 0.26 | U99: 45.06 | V99: 6 | W99: 0.01445783133 | X99: 175021.0649 | Y99: 63715.75 | Z99: 19208.95365 | AA99: 5651.486631 | AB99: 3896.984596 | AC99: 0 | AD99: 82547.89 | AE99: 0 | AF99: 0 | AG99: 0 | AH99: 0 | AI99: 0 | AJ99: 0 | AK99: 0 | AL99: 0 | AM99: 0 | AN99: 0 | AO99: 0 | AP99: 0 | AQ99: 0 | AR99: 0 | AS99: 0 | AT99: 0 | AU99: 0 | AV99: 0 | AW99: 698516.2435 | AX99: 618942.0948 | AY99: 57526.00898 | AZ99: 0 | BA99: 0 | BB99: 0 | BC99: 0 | BD99: 3858.269884 | BE99: 0 | BF99: 5055.536833 | BG99: 2531.190103 | BH99: 10603.14296 | BI99: 1339941.896 | BJ99: 9490.16415 | BK99: 13503.94459 | BL99: 14486.47304 | BM99: 14356.47956 | BN99: 241477.3036 | BO99: 138633.8446 | BP99: 113738.2975 | BQ99: 617093.9588 | BR99: 23029.52595 | BS99: 25569.86833 | BT99: 127566.6371 | BU99: 0 | BV99: 995.3987268 | BW99: 153992.834 | BX99: 546326.5077 | BY99: 480463.7564 | BZ99: 91467.79027 | CA99: 455524.0351 | CB99: 15576.84 | CC99: 437693.5317 | CD99: 0 | CE99: 0 | CF99: 2253.663405 | CG99: 135204.4838 | CH99: 33459.996 | CI99: 101744.4878 | CK99: 4076458.612 | CL99: 37.82387093 | CM99: 4656612.67 | CN99: 5230.58 | CO99: 5230.58 | CP99: 0 | CQ99: 20397.96 | CR99: 11063.52 | CS99: 236849.93 | CT99: 0 | CU99: 5319.325301 | CV99: 585473.3835 | CW99: 0.1423181525 | CX99: =SUMIF('2023 (2)'!$C:$C,$B:$B,'2023 (2)'!$AT:$AT) -> 4553121.08 | CY99: 2956765.67
A100: 96 | B100: г.Одинцово, Маршала Бирюзова, 28 | C100: 8840.4 | D100: 6805.3 | E100: 2035.1 | F100: 891.3 | G100: 8840.4 | H100: 8840.4 | I100: 4 | J100: 0 | K100: 0.00786829746 | L100: 0.01119891244 | O100: нет | P100: ЖЭУ-1,2,3 | Q100: 6.91 | R100: 3.15 | S100: 1.81 | T100: 0.26 | U100: 45.06 | V100: 2 | W100: 0.004819277108 | X100: 158122.7546 | Y100: 75744.63 | Z100: 18907.74803 | AA100: 5562.868607 | AB100: 3835.878006 | AC100: 0 | AD100: 0 | AE100: 0 | AF100: 0 | AG100: 0 | AH100: 0 | AI100: 0 | AJ100: 0 | AK100: 54071.63 | AL100: 0 | AM100: 0 | AN100: 0 | AO100: 0 | AP100: 0 | AQ100: 0 | AR100: 0 | AS100: 0 | AT100: 0 | AU100: 0 | AV100: 0 | AW100: 687563.1733 | AX100: 609236.7855 | AY100: 56623.97353 | AZ100: 0 | BA100: 0 | BB100: 0 | BC100: 0 | BD100: 3797.770359 | BE100: 0 | BF100: 4976.263588 | BG100: 2491.499827 | BH100: 10436.88059 | BI100: 1318930.964 | BJ100: 9341.353818 | BK100: 13292.19626 | BL100: 14259.31819 | BM100: 14131.36307 | BN100: 237690.8235 | BO100: 136459.9993 | BP100: 111954.8264 | BQ100: 607417.6292 | BR100: 22668.41192 | BS100: 25168.92051 | BT100: 125566.331 | BU100: 0 | BV100: 979.7903967 | BW100: 151578.1524 | BX100: 537759.8457 | BY100: 472929.8539 | BZ100: 90033.53139 | CA100: 349014.4107 | CB100: 12025.2 | CC100: 334770.8858 | CD100: 0 | CE100: 0 | CF100: 2218.324881 | CG100: 127189.0814 | CH100: 27039.996 | CI100: 100149.0854 | CK100: 3893121.767 | CL100: 36.69820528 | CM100: 3539020.36 | CN100: 2304.9 | CO100: 2304.9 | CP100: 0 | CQ100: 8983.21 | CR100: 4876.35 | CS100: 178930.6 | CT100: 376071.4696 | CU100: 1773.108434 | CV100: 23743.17101 | CW100: -0.09095564645 | CX100: =SUMIF('2023 (2)'!$C:$C,$B:$B,'2023 (2)'!$AT:$AT) -> 3386308.2 | CY100: 2685449.26
A101: 97 | B101: г.Одинцово, Маршала Бирюзова, 30 корп.А | C101: 6129.1 | D101: 5037.1 | E101: 1092 | F101: 913.65 | G101: 6129.1 | H101: 6129.1 | I101: 1 | J101: 1 | K101: 0.004046426961 | L101: 0.005759261324 | O101: ОДПУ | P101: ЖЭУ-1,2,3 | Q101: 6.91 | R101: 3.15 | S101: 1.81 | T101: 0.26 | U101: 45.06 | V101: 1 | W101: 0.002409638554 | X101: 249871.1776 | Y101: 36607.83 | Z101: 13108.8501 | AA101: 3856.768696 | AB101: 2659.436212 | AC101: 0 | AD101: 0 | AE101: 60074.16671 | AF101: 0 | AG101: 0 | AH101: 0 | AI101: 0 | AJ101: 0 | AK101: 0 | AL101: 0 | AM101: 0 | AN101: 0 | AO101: 0 | AP101: 132349.0954 | AQ101: 0 | AR101: 0 | AS101: 0 | AT101: 0 | AU101: 1215.030454 | AV101: 0 | AW101: 488554.9146 | AX101: 422387.356 | AY101: 39257.72546 | AZ101: 0 | BA101: 11863.42488 | BB101: 0 | BC101: 0 | BD101: 2633.015962 | BE101: 0 | BF101: 3450.072073 | BG101: 1727.371113 | BH101: 7235.949145 | BI101: 914422.3981 | BJ101: 6476.414154 | BK101: 9215.555866 | BL101: 9886.067046 | BM101: 9797.355028 | BN101: 164792.4106 | BO101: 94608.49982 | BP101: 77618.92293 | BQ101: 421126.1245 | BR101: 15716.13994 | BS101: 17449.75688 | BT101: 87055.85713 | BU101: 0 | BV101: 679.2942989 | BW101: 105090.002 | BX101: 372831.9839 | BY101: 327884.9789 | BZ101: 62420.76345 | CA101: 180911.2895 | CB101: 7210.789687 | CC101: 172162.5225 | CD101: 0 | CE101: 0 | CF101: 1537.977357 | CG101: 86333.93103 | CH101: 16899.996 | CI101: 69433.93503 | CK101: 2788321.439 | CL101: 37.91096897 | CM101: 2611232.59 | CN101: 2768.76 | CO101: 2768.76 | CP101: 0 | CQ101: 10791.96 | CR101: 5856.97 | CS101: 214990.68 | CT101: 260732.5058 | CU101: 886.5542169 | CV101: 84530.21083 | CW101: -0.06351091618 | CX101: =SUMIF('2023 (2)'!$C:$C,$B:$B,'2023 (2)'!$AT:$AT) -> 2553336.26 | CY101: 360804.73
A102: 98 | B102: г.Одинцово, Маршала Бирюзова, 30 корп.Б | C102: 5021.9 | D102: 5021.9 | E102: 0 | F102: 913.65 | G102: 5021.9 | H102: 5021.9 | I102: 1 | J102: 1 | K102: 0.004046426961 | L102: 0.005759261324 | O102: ОДПУ | P102: ЖЭУ-1,2,3 | Q102: 6.91 | R102: 3.15 | S102: 1.81 | T102: 0.26 | U102: 45.06 | V102: 1 | W102: 0.002409638554 | X102: 244143.3464 | Y102: 47195.88 | Z102: 10740.7832 | AA102: 3160.057221 | AB102: 2179.018569 | AC102: 22209.38 | AD102: 0 | AE102: 49221.98329 | AF102: 0 | AG102: 0 | AH102: 0 | AI102: 0 | AJ102: 0 | AK102: 0 | AL102: 0 | AM102: 0 | AN102: 0 | AO102: 0 | AP102: 108440.7046 | AQ102: 0 | AR102: 0 | AS102: 0 | AT102: 0 | AU102: 995.5395465 | AV102: 0 | AW102: 400299.2161 | AX102: 346084.5904 | AY102: 32165.95772 | AZ102: 0 | BA102: 9720.339597 | BB102: 0 | BC102: 0 | BD102: 2157.371043 | BE102: 0 | BF102: 2826.828889 | BG102: 1415.327698 | BH102: 5928.800805 | BI102: 749235.2615 | BJ102: 5306.473094 | BK102: 7550.798649 | BL102: 8100.184382 | BM102: 8027.497873 | BN102: 135023.2508 | BO102: 77517.81261 | BP102: 63597.34203 | BQ102: 345051.1959 | BR102: 12877.07545 | BS102: 14297.52069 | BT102: 71329.52781 | BU102: 0 | BV102: 556.5822127 | BW102: 86105.86893 | BX102: 305481.2191 | BY102: 268653.7299 | BZ102: 51144.67572 | CA102: 179330.856 | CB102: 5908.186313 | CC102: 172162.5225 | CD102: 0 | CE102: 0 | CF102: 1260.147247 | CG102: 74460.94693 | CH102: 17570.004 | CI102: 56890.94293 | CK102: 2358855.121 | CL102: 39.14280652 | CM102: 2603497.07 | CN102: 2768.28 | CO102: 2768.28 | CP102: 0 | CQ102: 10791 | CR102: 5857.08 | CS102: 215030.81 | CT102: 0 | CU102: 886.5542169 | CV102: 245528.5036 | CW102: 0.1037121556 | CX102: =SUMIF('2023 (2)'!$C:$C,$B:$B,'2023 (2)'!$AT:$AT) -> 2612367.37 | CY102: 1072156.91
A103: 99 | B103: г.Одинцово, Маршала Жукова, 1 корп.А | C103: 8658.6 | D103: 5980.5 | E103: 2678.1 | F103: 2125.5 | G103: 8658.6 | H103: 8658.6 | I103: 0 | J103: 3 | K103: 0.005298561696 | L103: 0.007541419069 | O103: ИТП | P103: ЖЭУ-1,2,3 | Q103: 5.4 | R103: 2.67 | S103: 1.54 | T103: 0 | U103: 36.54 | V103: 0 | W103: 0 | X103: 139341.4506 | Y103: 106829.07 | Z103: 18518.91624 | AA103: 5448.469992 | AB103: 3756.994401 | AC103: 0 | AD103: 0 | AE103: 0 | AF103: 0 | AG103: 0 | AH103: 0 | AI103: 0 | AJ103: 0 | AK103: 0 | AL103: 0 | AM103: 0 | AN103: 0 | AO103: 0 | AP103: 0 | AQ103: 0 | AR103: 0 | AS103: 4788 | AT103: 0 | AU103: 0 | AV103: 0 | AW103: 673423.6565 | AX103: 596708.0257 | AY103: 55459.51961 | AZ103: 0 | BA103: 0 | BB103: 0 | BC103: 0 | BD103: 3719.670426 | BE103: 0 | BF103: 4873.928318 | BG103: 2440.262929 | BH103: 10222.24948 | BI103: 2055286.06 | BJ103: 9149.251863 | BK103: 13018.84649 | BL103: 13966.07987 | BM103: 13840.75611 | BN103: 232802.7877 | BO103: 133653.7431 | BP103: 109652.5111 | BQ103: 594926.2798 | BR103: 22202.24328 | BS103: 24651.32971 | BT103: 122984.0996 | BU103: 763478.4904 | BV103: 959.6413204 | BW103: 148460.9962 | BX103: 526700.9864 | BY103: 463204.2027 | BZ103: 88182.0206 | CA103: 235397.9755 | CB103: 7788.42 | CC103: 225436.8498 | CD103: 0 | CE103: 0 | CF103: 2172.705739 | CG103: 0 | CH103: 0 | CI103: 0 | CK103: 4329997.349 | CL103: 41.67337819 | CM103: 2622343.68 | CN103: 7151.84 | CO103: 7151.84 | CP103: 0 | CQ103: 14580.21 | CR103: 15015.07 | CS103: 254336.25 | CT103: 368337.6801 | CU103: 0 | CV103: -1339315.989 | CW103: 0 | CX103: =SUMIF('2023 (2)'!$C:$C,$B:$B,'2023 (2)'!$AT:$AT) -> 2553837.59 | CY103: 1232799.92
A104: 100 | B104: г.Одинцово, Маршала Жукова, 4 | C104: 3369.8 | D104: 3369.8 | E104: 0 | F104: 333.8 | G104: 3369.8 | I104: 0 | J104: 0 | K104: 0 | L104: 0 | O104: нет | P104: ЖЭУ-1,2,3 | Q104: 6.92 | R104: 3.15 | S104: 0 | T104: 0.26 | U104: 31 | V104: 4 | W104: 0.009638554217 | X104: 32844.54191 | Y104: 22054.62 | Z104: 7207.290317 | AA104: 2120.46453 | AB104: 1462.167063 | AC104: 0 | AD104: 0 | AE104: 0 | AF104: 0 | AG104: 0 | AH104: 0 | AI104: 0 | AJ104: 0 | AK104: 0 | AL104: 0 | AM104: 0 | AN104: 0 | AO104: 0 | AP104: 0 | AQ104: 0 | AR104: 0 | AS104: 0 | AT104: 0 | AU104: 0 | AV104: 0 | AW104: 321632.9523 | AX104: 232230.0031 | AY104: 21584.03081 | AZ104: 0 | BA104: 0 | BB104: 0 | BC104: 59546.352 | BD104: 1447.64112 | BE104: 0 | BF104: 1896.861345 | BG104: 949.7145058 | BH104: 3978.34942 | BI104: 502752.5407 | BJ104: 3560.754502 | BK104: 5066.743919 | BL104: 5435.393244 | BM104: 5386.619075 | BN104: 90603.42712 | BO104: 52016.07458 | BP104: 42675.14749 | BQ104: 231536.5738 | BR104: 8640.787124 | BS104: 9593.935607 | BT104: 47863.60597 | BU104: 0 | BV104: 373.478313 | BW104: 57778.84011 | BX104: 204984.2912 | BY104: 180272.2752 | BZ104: 0 | CA104: 0 | CB104: 0 | CC104: 0 | CD104: 0 | CE104: 0 | CF104: 0 | CG104: 50005.00934 | CH104: 11829.996 | CI104: 38175.01334 | CK104: 1350270.451 | CL104: 33.39145871 | CM104: 1205383.32 | CN104: 2083.03 | CO104: 2083.05 | CP104: 0 | CQ104: 8124.88 | CR104: 4405.56 | CS104: 18461.33 | CT104: 0 | CU104: 3546.216867 | CV104: -141340.9139 | CW104: 0 | CX104: =SUMIF('2023 (2)'!$C:$C,$B:$B,'2023 (2)'!$AT:$AT) -> 1172817.63 | CY104: 3903411.35
A105: 101 | B105: г.Одинцово, Маршала Жукова, 7 к.1 | C105: 3053.6 | D105: 3053.6 | E105: 0 | F105: 550.02 | G105: 3053.6 | H105: 3053.6 | I105: 1 | J105: 0 | K105: 0.001636765508 | L105: 0.002329600998 | O105: ОДПУ | P105: ЖЭУ-1,2,3 | Q105: 6.91 | R105: 3.15 | S105: 1.81 | T105: 0.26 | U105: 45.06 | V105: 1 | W105: 0.002409638554 | X105: 1290172.574 | Y105: 25286.30793 | Z105: 6531.005315 | AA105: 1921.494002 | AB105: 1324.966866 | AC105: 0 | AD105: 0 | AE105: 0 | AF105: 0 | AG105: 0 | AH105: 0 | AI105: 0 | AJ105: 0 | AK105: 0 | AL105: 0 | AM105: 0 | AN105: 0 | AO105: 0 | AP105: 1255108.8 | AQ105: 0 | AR105: 0 | AS105: 0 | AT105: 0 | AU105: 0 | AV105: 0 | AW105: 267705.1444 | AX105: 210439.058 | AY105: 19558.72648 | AZ105: 0 | BA105: 5910.517731 | BB105: 0 | BC105: 0 | BD105: 1311.803942 | BE105: 24300.51941 | BF105: 1718.872279 | BG105: 860.5995058 | BH105: 3605.047121 | BI105: 455577.5293 | BJ105: 3226.63658 | BK105: 4591.313797 | BL105: 4925.371479 | BM105: 4881.173959 | BN105: 82101.79389 | BO105: 47135.22623 | BP105: 38670.79066 | BQ105: 209810.6955 | BR105: 7829.992154 | BS105: 8693.703416 | BT105: 43372.39812 | BU105: 0 | BV105: 338.43355 | BW105: 52357.25151 | BX105: 185749.9055 | BY105: 163356.7035 | BZ105: 31098.86334 | CA105: 72872.27401 | CB105: 2466.896752 | CC105: 69639.13627 | CD105: 0 | CE105: 0 | CF105: 766.2409909 | CG105: 46762.92368 | CH105: 12170.004 | CI105: 34592.91968 | CK105: 2565653.169 | CL105: 70.01717016 | CM105: 1582986.24 | CN105: 3168 | CO105: 3168 | CP105: 0 | CQ105: 12357.6 | CR105: 6700.8 | CS105: 143485.91 | CT105: 0 | CU105: 886.5542169 | CV105: -981780.3753 | CW105: 0 | CX105: =SUMIF('2023 (2)'!$C:$C,$B:$B,'2023 (2)'!$AT:$AT) -> 1522478.27 | CY105: 1263812.29
A106: 102 | B106: г.Одинцово, Маршала Жукова, 7 к.2 | C106: 3035.1 | D106: 3035.1 | E106: 0 | F106: 546.68 | G106: 3035.1 | H106: 3035.1 | I106: 1 | J106: 0 | K106: 0.001636765508 | L106: 0.002329600998 | O106: ОДПУ | P106: ЖЭУ-1,2,3 | Q106: 6.91 | R106: 3.15 | S106: 1.81 | T106: 0.26 | U106: 45.06 | V106: 1 | W106: 0.002409638554 | X106: 34820.97223 | Y106: 25102.74207 | Z106: 6491.437723 | AA106: 1909.852779 | AB106: 1316.939656 | AC106: 0 | AD106: 0 | AE106: 0 | AF106: 0 | AG106: 0 | AH106: 0 | AI106: 0 | AJ106: 0 | AK106: 0 | AL106: 0 | AM106: 0 | AN106: 0 | AO106: 0 | AP106: 0 | AQ106: 0 | AR106: 0 | AS106: 0 | AT106: 0 | AU106: 0 | AV106: 0 | AW106: 266083.2735 | AX106: 209164.1292 | AY106: 19440.23144 | AZ106: 0 | BA106: 5874.709316 | BB106: 0 | BC106: 0 | BD106: 1303.856479 | BE106: 24153.29659 | BF106: 1708.458624 | BG106: 855.3856301 | BH106: 3583.206221 | BI106: 452817.448 | BJ106: 3207.088251 | BK106: 4563.497676 | BL106: 4895.531496 | BM106: 4851.601743 | BN106: 81604.38651 | BO106: 46849.66109 | BP106: 38436.50666 | BQ106: 208539.5736 | BR106: 7782.554751 | BS106: 8641.033284 | BT106: 43109.6298 | BU106: 0 | BV106: 336.3831764 | BW106: 52040.04914 | BX106: 184624.5541 | BY106: 162367.0196 | BZ106: 30910.45327 | CA106: 72852.68629 | CB106: 2451.951248 | CC106: 69639.13627 | CD106: 0 | CE106: 0 | CF106: 761.598779 | CG106: 46553.34514 | CH106: 12170.004 | CI106: 34383.34114 | CK106: 1303069.801 | CL106: 35.7777833 | CM106: 1573395.84 | CN106: 3148.08 | CO106: 3148.08 | CP106: 0 | CQ106: 12282.72 | CR106: 6660.12 | CS106: 142604.52 | CT106: 0 | CU106: 886.5542169 | CV106: 271212.593 | CW106: 0.2074532297 | CX106: =SUMIF('2023 (2)'!$C:$C,$B:$B,'2023 (2)'!$AT:$AT) -> 1464911.36 | CY106: 1285583.5
A107: 103 | B107: г.Одинцово, Маршала Жукова, 10 | C107: 4505.6 | D107: 4185.4 | E107: 320.2 | F107: 571.5 | G107: 4505.6 | I107: 0 | J107: 0 | K107: 0 | L107: 0 | O107: нет | P107: ЖЭУ-1,2,3 | Q107: 6.92 | R107: 3.15 | S107: 0 | T107: 0.26 | U107: 31 | V107: 6 | W107: 0.01445783133 | X107: 217940.2336 | Y107: 22552.55 | Z107: 9636.526575 | AA107: 2835.172706 | AB107: 1954.994338 | AC107: 68838.25 | AD107: 0 | AE107: 0 | AF107: 0 | AG107: 0 | AH107: 0 | AI107: 0 | AJ107: 0 | AK107: 0 | AL107: 0 | AM107: 0 | AN107: 0 | AO107: 0 | AP107: 112122.74 | AQ107: 0 | AR107: 0 | AS107: 0 | AT107: 0 | AU107: 0 | AV107: 0 | AW107: 632681.0179 | AX107: 310503.7397 | AY107: 28858.98547 | AZ107: 0 | BA107: 0 | BB107: 0 | BC107: 282257.436 | BD107: 1935.572387 | BE107: 0 | BF107: 2536.203477 | BG107: 1269.818291 | BH107: 5319.262611 | BI107: 672206.6139 | BJ107: 4760.916221 | BK107: 6774.503354 | BL107: 7267.406908 | BM107: 7202.193277 | BN107: 121141.5518 | BO107: 69548.23005 | BP107: 57058.91879 | BQ107: 309576.5882 | BR107: 11553.18727 | BS107: 12827.59697 | BT107: 63996.16092 | BU107: 0 | BV107: 499.360166 | BW107: 77253.35094 | BX107: 274074.7886 | BY107: 241033.5222 | BZ107: 0 | CA107: 0 | CB107: 0 | CC107: 0 | CD107: 0 | CE107: 0 | CF107: 0 | CG107: 51042.00252 | CH107: 0 | CI107: 51042.00252 | CK107: 2166231.53 | CL107: 40.06553936 | CM107: 1492680.9 | CN107: 3313.08 | CO107: 3313.08 | CP107: 0 | CQ107: 12923.4 | CR107: 7006.68 | CS107: 29283 | CT107: 191668.6591 | CU107: 5319.325301 | CV107: -476562.6453 | CW107: 0 | CX107: =SUMIF('2023 (2)'!$C:$C,$B:$B,'2023 (2)'!$AT:$AT) -> 1499011.04 | CY107: 534123.22
A108: 104 | B108: г.Одинцово, Маршала Жукова, 12 | C108: 4500.98 | D108: 4500.98 | E108: 0 | F108: 571.5 | G108: 4500.98 | I108: 0 | J108: 0 | K108: 0 | L108: 0 | O108: ОДПУ | P108: ЖЭУ-1,2,3 | Q108: 6.92 | R108: 3.15 | S108: 0 | T108: 0.26 | U108: 31 | V108: 6 | W108: 0.01445783133 | X108: 97803.78062 | Y108: 83391.88 | Z108: 9626.645371 | AA108: 2832.265547 | AB108: 1952.989705 | AC108: 0 | AD108: 0 | AE108: 0 | AF108: 0 | AG108: 0 | AH108: 0 | AI108: 0 | AJ108: 0 | AK108: 0 | AL108: 0 | AM108: 0 | AN108: 0 | AO108: 0 | AP108: 0 | AQ108: 0 | AR108: 0 | AS108: 0 | AT108: 0 | AU108: 0 | AV108: 0 | AW108: 435818.0049 | AX108: 310185.3521 | AY108: 28829.39373 | AZ108: 0 | BA108: 8712.052036 | BB108: 0 | BC108: 77041.692 | BD108: 1933.587669 | BE108: 0 | BF108: 2533.602878 | BG108: 1268.516231 | BH108: 5313.808289 | BI108: 671517.3395 | BJ108: 4756.034422 | BK108: 6767.556842 | BL108: 7259.954977 | BM108: 7194.808215 | BN108: 121017.3344 | BO108: 69476.91595 | BP108: 57000.41111 | BQ108: 309259.1512 | BR108: 11541.34074 | BS108: 12814.44367 | BT108: 63930.53986 | BU108: 0 | BV108: 498.8481267 | BW108: 77174.13607 | BX108: 273793.7548 | BY108: 240786.3687 | BZ108: 0 | CA108: 0 | CB108: 0 | CC108: 0 | CD108: 0 | CE108: 0 | CF108: 0 | CG108: 50989.66453 | CH108: 0 | CI108: 50989.66453 | CK108: 1847883.049 | CL108: 34.21260572 | CM108: 1604517.28 | CN108: 3561.49 | CO108: 3561.49 | CP108: 0 | CQ108: 13898.97 | CR108: 7539.79 | CS108: 31514.28 | CT108: 0 | CU108: 5319.325301 | CV108: -238046.4439 | CW108: 0 | CX108: =SUMIF('2023 (2)'!$C:$C,$B:$B,'2023 (2)'!$AT:$AT) -> 1574208.83 | CY108: 1326667.15
A109: 105 | B109: г.Одинцово, Маршала Жукова, 13 | C109: 6866.78 | D109: 6866.78 | E109: 0 | F109: 706.4 | G109: 6866.78 | I109: 0 | J109: 0 | K109: 0 | L109: 0 | O109: нет | P109: ЖЭУ-1,2,3 | Q109: 6.92 | R109: 3.15 | S109: 0 | T109: 0.26 | U109: 31 | V109: 0 | W109: 0 | X109: 277548.2175 | Y109: 100267.21 | Z109: 14686.59179 | AA109: 4320.95775 | AB109: 2979.517937 | AC109: 45079.86 | AD109: 0 | AE109: 0 | AF109: 0 | AG109: 0 | AH109: 0 | AI109: 0 | AJ109: 0 | AK109: 57643.08 | AL109: 0 | AM109: 0 | AN109: 0 | AO109: 0 | AP109: 0 | AQ109: 52571 | AR109: 0 | AS109: 0 | AT109: 0 | AU109: 0 | AV109: 0 | AW109: 817917.4285 | AX109: 473224.6249 | AY109: 43982.66695 | AZ109: 0 | BA109: 0 | BB109: 0 | BC109: 102461.604 | BD109: 2949.917826 | BE109: 181391.184 | BF109: 3865.312348 | BG109: 1935.272293 | BH109: 8106.846172 | BI109: 1024479.521 | BJ109: 7255.895839 | BK109: 10324.71239 | BL109: 11075.92427 | BM109: 10976.53515 | BN109: 184626.3284 | BO109: 105995.2937 | BP109: 86960.90251 | BQ109: 471811.5954 | BR109: 17607.68716 | BS109: 19549.95701 | BT109: 97533.63767 | BU109: 0 | BV109: 761.052113 | BW109: 117738.3179 | BX109: 417704.9176 | BY109: 367348.2266 | BZ109: 0 | CA109: 0 | CB109: 0 | CC109: 0 | CD109: 0 | CE109: 0 | CF109: 0 | CG109: 77790.79414 | CH109: 0 | CI109: 77790.79414 | CK109: 3100527.424 | CL109: 37.62713896 | CM109: 2383756.48 | CN109: 4407.86 | CO109: 4407.86 | CP109: 0 | CQ109: 17195.09 | CR109: 9322.31 | CS109: 38194.11 | CT109: 0 | CU109: 0 | CV109: -716770.9436 | CW109: 0 | CX109: =SUMIF('2023 (2)'!$C:$C,$B:$B,'2023 (2)'!$AT:$AT) -> 2431601.34 | CY109: 621303.06
A110: 106 | B110: г.Одинцово, Маршала Жукова, 14 | C110: 4577.38 | D110: 4577.38 | E110: 0 | F110: 565.8 | G110: 4577.38 | I110: 0 | J110: 0 | K110: 0 | L110: 0 | O110: ОДПУ | P110: ЖЭУ-1,2,3 | Q110: 6.92 | R110: 3.15 | S110: 0 | T110: 0.26 | U110: 31 | V110: 6 | W110: 0.01445783133 | X110: 163212.0494 | Y110: 72005.79 | Z110: 9790.048831 | AA110: 2880.340652 | AB110: 1986.139911 | AC110: 76549.73 | AD110: 0 | AE110: 0 | AF110: 0 | AG110: 0 | AH110: 0 | AI110: 0 | AJ110: 0 | AK110: 0 | AL110: 0 | AM110: 0 | AN110: 0 | AO110: 0 | AP110: 0 | AQ110: 0 | AR110: 0 | AS110: 0 | AT110: 0 | AU110: 0 | AV110: 0 | AW110: 431091.2952 | AX110: 315450.4634 | AY110: 29318.7462 | AZ110: 0 | BA110: 8859.931115 | BB110: 0 | BC110: 66225.084 | BD110: 1966.408543 | BE110: 0 | BF110: 2576.608459 | BG110: 1290.048129 | BH110: 5404.005302 | BI110: 682915.7294 | BJ110: 4836.763737 | BK110: 6882.429901 | BL110: 7383.186043 | BM110: 7316.933474 | BN110: 123071.4924 | BO110: 70656.22276 | BP110: 57967.94071 | BQ110: 314508.5412 | BR110: 11737.2444 | BS110: 13031.95708 | BT110: 65015.70203 | BU110: 0 | BV110: 507.3156153 | BW110: 78484.09613 | BX110: 278441.1523 | BY110: 244873.4961 | BZ110: 0 | CA110: 0 | CB110: 0 | CC110: 0 | CD110: 0 | CE110: 0 | CF110: 0 | CG110: 51855.16724 | CH110: 0 | CI110: 51855.16724 | CK110: 1930872.986 | CL110: 35.15244138 | CM110: 1601937.97 | CN110: 3445.02 | CO110: 3463.17 | CP110: 0 | CQ110: 13574.93 | CR110: 7418.98 | CS110: 30717.67 | CT110: 0 | CU110: 5319.325301 | CV110: -323615.6904 | CW110: 0 | CX110: =SUMIF('2023 (2)'!$C:$C,$B:$B,'2023 (2)'!$AT:$AT) -> 1535206.6 | CY110: 578782.83
